Workbook

Sheet Notes
A1: GannHiLoActivator.xlsm; Traders Tip spreadsheet created for the August 2020 Issue
A2: Coded beginning 2020-August-14 by Ronald McAllister (rpmac_xltt@sprynet.com)
A4: This Workbook demonstrates an EXCEL version of the ideas presented
A5: by Barbara Star, PhD in an article titled "Swing Trade With The Gann Hi-Lo Activator"
A6: which originally appeared in the October 2020 issue of
A7: "Technical Analysis of Stocks and Commodities" magazine.
A9: * * * * * * * * * * * * * * * *
A11: Development Notes:
A12: Replicating figures from the article
D13: Figure 1 | E13: Figure 2 | F13: Figure 3 | G13: Figure 4 | H13: Figure 5 | I13: Figure 6
C14: Symbol | D14: AMD | E14: Five minute data is not available using this spreadsheet | F14: AMGN | G14: XLV | H14: NVDA | I14: BMY
C15: From | D15: 2020-02-03 | F15: 2019-05-29 | G15: 2020-01-17 | H15: 2020-01-16 | I15: 2019-06-25
C16: To | D16: 2020-04-22 | F16: 2019-08-09 | G16: 2020-05-11 | H16: 2020-04-07 | I16: 2019-08-29
A31: Background Shading
A32: So far, I have not found a way in EXCEL to produce a line on a chart that can display more than one color over its length.
A33: To deal with that shortcoming I am using a stacked bar series type to shade the background behind chart items in the colors I would have applied to the lines.
A35: EXCEL Stacked Bar Notes:
A36: A chart bar can not straddle an axis. A bar can only go up or down with its origin at the axis.
A38: To simulate a straddle bar, one must use two series that are color formatted the same. One with the positive extent and the other with the negative extent.
A40: On the Price chart, a single series for each color will do because prices are always positive.
A42: For oscillators that can have both positive and negative values as in this spreadsheet, it is necessary simulate the axis straddle.
A43: So I have a positive and separate negative series to create the red straddle and a similar pair of series for the green.
A45: To fill the vertical space on the chart, I use the Cursor extent values I produce as part of the logic that sets or adjusts the vertical axis range of each chart.
A47: Bar formatting
A48: Bar fill colors are formatted with a large transparency value (80 to 90%) and No Line.
A49: Bar Series options are set to No Gap and Overlap to achieve uniform coverage.
A51: For this particular Traders Tip, background shading actually does a better job than line color alone could to emphasize the relative alignments of the significant points of the various indicators.
A54: New August 2020
A55: Restructured my Symbol-Not-Found detection and now stop further processing in the not found case
A57: New with the May 2020 version of my T-Tips template: VBA to implement a "Perpetual" U.S. Markets Closed Holiday Calendar.
A59: Why we need one: The Yahoo Finance recently has begun having occasional filtration problems where bars for U.S. Market Closed Holidays
A60: make their way onto the Historical Data web page and into the Historical Data download.
A62: While testing this May 2020 spreadsheet with different symbols, I found that I sometimes had bars with the text "null" in the price fields.
A63: My code always translates the "null" text price values to zeros.
A64: The resulting zeros cause real problems with indicator computations and the amount of blank space below price candles on the price chart.
A66: "null" price bars can be valid for very lightly traded penny sheet symbols which may not trade every day the markets are open.
A67: But is definitely not normal for symbols on the big boards.
A69: A closer look determined that these "bars" were for holiday dates when the US markets are normally closed.
A70: I found it interesting that some times the next download for the same symbol would not contain any of these "holiday" bars. Weird!
A72: My approach here was to write code to determine if the DATE on a null price values bar falls on one of the 9 market closed U.S. Holidays.
A73: If the bar date corresponds to one of these market closed holidays, I drop the bar before it reaches the InputPriceData tab.
A74: If the date is not a holiday, I let the bar through with the resulting zero values.
A76: No messy tables to update over the years as there are good solid rules that can be used in VBA or any other programming language to determine
A77: the dates for U.S. Market Closed Holidays for any given calendar year.
A79: This workbook contains and uses VBA macros and may take advantage of user defined VBA Class structures.
A80: Input Data:
A81: The data in this workbook is sorted date-descending (most recent date at the top). All cell formulas and
A82: VBA routines are built assuming this date sequence.
A84: ERROR 9 (already fixed in this spreadsheet)
A85: On or about Jan 29, 2020 Yahoo Finance changed the format of the split factor expression used their historical data downloads.
A86: The Split expression went from using "/" as in "New Share Number/Old Share Number",
A87: to using ":" as in "New Share Number:Old Share Number".
A88: This caused the then current version of my VBA code to fail with a "Runtime Error '9': subscript out of range".
A90: Fix for this ERROR 9
A91: For T-Tip spreadsheets from September 2018 up to present:
A92: Selecting the Debug option takes one into the VBA at the code line which causes the failure:
A93: CellArray(C_A_RowNdx, C_A_ColNdx + 1) = SplitFactors(1)
A94: Two lines above the failing VBA line is a line that reads:
A95: SplitFactors = Split(CsvColumns(CsvColNdx), "/")
A96: Change the / to a :
A97: The corrected line should now read
A98: SplitFactors = Split(CsvColumns(CsvColNdx), ":")
A100: If you are fixing several spreadsheets and do not want to use the failure to find the fix location,
A101: you can use VBA’s FIND dialog (Ctrl F) to look for the substring
A102: SplitFactors =
A103: Do include one space and the equal sign in your FIND string
A104: Select the "Current Project" option
A105: There should only be one instance.
A107: T-Tip spreadsheets prior to the September 2018 spreadsheet do not hard fail.
A109: They just get weird results in the split columns of the Input Price Data tab (soft fail).
A110: These older spreadsheets used different data retrieval and formatting logic.
A112: To fix these older spreadsheets:
A113: In the VBA editor, use find (CTRL-F).
A114: Select the "Current Project" option, and search for the following:
A115: OtherChar:="/"
A116: You are looking for a hit in a line reading:
A117: Other:=True, OtherChar:="/", _
A118: This line is part of a multiline block of code starting with a line that reads:
A119: SplitRange.Offset(0, 1).Resize(SpRows, 1).TextToColumns
A120: Change the / to a : so that the line reads
A121: Other:=True, OtherChar:=":", _
A124: 2019-04-04 Finally came up with a mechanism to align the left location and overall length of the cursor scroll bar so that the left most and right most
A125: scroll bar thumb positions visually align reasonably well with the left and right ends of the price chart horizontal axis.
A126: Makes it a little easier to visually align the Thumb and thus the cursor with points of interest on the charts.
A128: Older:
B129: My sincere apologies to our Macintosh based readers: Neither MSXML nor WinHttpRequest are supported in your environment. So as it stands this version of the spreadsheet will not work for you.
B130: See "Why this approach does not work for Macintosh" below.
B131: I am investigating cURL as a non-Querytable based approach for the Macintosh environment.
A133: The new Yahoo Finance history download interface has changed rather radically. The biggest hurdle being a pseudo-security requirement of adding a
B134: crumb character string to any URL requesting any type of history download. That crumb must match up (by way of some sort of hash algorithm) with
B135: the Yahoo Finance cookie that must also be sent with any request to the new Yahoo History down load interface.
B137: A crumb value is returned, buried in the HTML for any of what I call the "entry level" Yahoo Finance web pages (no crumb security requirement for entry level pages).
B138: A crumb may come with other Yahoo Finance pages. A crumb may even accompany some of the secured pages as well. I have not checked.
B140: Entry level pages are the top level pages of the various Yahoo Finance dialogs and include: Quote Lookup, Stock Summary Quote, and any of the pages
B141: with links in the horizontal row with the "Summary" link on the quote summary page such as Options, Historical Data, and the rest.
B143: To date I have found no way to get at this crumb value using any native EXCEL capabilities.
B145: So this crumb requirement effectively shuts out any solution that attempts to exclusively use built-in facilities of EXCEL, which is to say a purely Querytables solution.
B147: The approach built for this Traders Tip spreadsheet uses WINHTTP calls to Load the InputPriceData worksheet.
B149: First I call to get the HTML text for the Yahoo Summary Quote page using the requested symbol. From this HTML text I extract the full company name,
B150: the market it trades, the market status and time stamp, and finally the associated crumb string. There is a bunch of other useful bits buried in this HTML
B151: text that do not necessarily appear on the web page your browser presents. Perhaps some day I will go after and build a worksheet with these other bits.
B153: Next I add the freshly extracted crumb string to the URLs I use in three separate WINHTTP calls to retrieve Price history, Split history, and Dividend history respectively.
B155: From there VBA code proceeds as in the past to fill in the cell formulas and formatting that make the "prettied up" InputPriceData sheet.
A157: Why this approach works for Windows:
B158: WINHTTP maintains a temporary computer memory cache where cookies are maintained for as long as the WINHTTP object is instantiated.
B159: WINHTTP updates this cache any time a "set cookie" header accompanies a web response.
B160: Subsequent WINHTTP calls automatically search this cache for cookies and add any "appropriate" cookies to the headers
B161: of any web requests that get sent out.
B162: This cookie handling automation means that even if the response to our WINHTTP call for the Summary web page includes a new version of
B163: the Yahoo Finance cookie, the imbedded Crumb value will always match the cookie newly installed in the cache!
A166: Why this approach does not work for Macintosh:
B167: For what it is worth, the Macintosh version of the MS Office suite of products do in fact maintain a special, shared amongst themselves only, cookie cache.
B168: They automate cookie handling into and from this cache JUST for the Office products and any Querytable activity they might originate.
B170: This cache is not tied to, nor shared with, any browser that might be installed on the MAC. And I have not found anything with HTTP capabilities similar to
B171: MSXML that can work with that Office product cookie cache.
B173: When working in the MAC EXCEL environment, I have not yet become conversant with a Mac based WINHTTP like capability.
B174: So l currently have no mechanism to replicate the non-Querytable data retrieval process I am using in Windows environments.
B175: A software product called CURL has been suggested as providing this capability in the MAC environment.
B176: A version of CURL is available for the Windows So some day I may explore its capabilities and how to access those capabilities from VBA.
A178: Calculation and Chart Worksheet Usage Comments:
C179: In General, Items in Bolded BLUE are items you may freely change to play what-if games.
C180: Be sure to have a backup copy of the spreadsheet before you alter anything else.
A182: Features carried forward from the June 2016 version of my T-Tips Template
A183: Added a pair of buttons near cell F12 that will allow the user to step the charting window forward or backward one bar for each click.
A184: I find this to be a good way to test my understanding of the author's ideas as I step through the evolution of the price behavior and the indicators.
B186: First: In the "Help! I would like to plot data" area.
B187: Added button to resolve #NA problems by locating the bar in the input data with a slightly more recent date than what the user actually requested.
B188: I find this particularly useful when I have a general idea of where I want to be date wise. Now I can pick a set of dates "out of the air".
B189: If either (or both) of my date specifications fall between dates that are available in the price history,
B190: this button will resolve them to the dates of the nearest, slightly more recent input bars.
B191: I can then refine my data interval search as necessary from there.
B192: Really great when working with Weekly or Monthly studies!
C193: 2016Jun11 - added logic to the "I would like to chart.." button to detect #N/A values and terminate
C194: gracefully with a message instead of blowing up in the charting logic.
B196: Second: In the "Price Chart Windowing Controls" area. (A11 and A12)
B197: When retrieving data for a new symbol or when changing from daily to weekly or monthly data, there was the possibility that the
B198: residual settings in A11 and A12 would fall outside of the number bars available on the input data tab after the new data retrieval.
B199: In certain combinations, this could create a serious error in the chart sizing logic and crash the spreadsheet.
B200: I have taken this opportunity to update the validity checking logic used in the chart sizing macros
B201: to adjust these values as necessary so that they fall within the boundaries of the newly retrieved input data.
A202: Features carried forward from the October 2015 Traders Tips Template
B203: Improved automation: changes to any of the following will automatically initiate calculations appropriate to reflect a change.
C204: Changing either of cells A11 (pan) or A12 (zoom) will automatically initiate the same chart sizing macros that the manual
C205: "Set Chart" button uses.

Sheet InputPriceData
A1: Bristol-Myers Squibb Company (BMY) -NYSE (Daily)
M2: To retrieve data for symbols traded on non US Exchanges, | IJ2: 241.79
A3: Request Online Yahoo History for: | F3: Market State == > | G3: As of | H3: 13:31:00 | I3: EDT. Market open. | M3: you will need to append the dot-suffix for the exchange to the symbol.
A4: Symbol | B4: BMY | D4: Valid | I4: =OFFSET(I4,-2,0,1,1) -> 0 | M4: The following links provide a description of how to use the exchange suffix
A5: From | B5: 1950-01-01 | D5: Data | M5: along with a list of suffixes for the major world exchanges. | AD5: Trailing 12 Div return (Cur Close)
A6: To | B6: =NOW() -> 2020-08-19T13:32:20.790 | D6: Types | E6: =VLOOKUP(B7,D7:E10,2,FALSE) -> d | M6: https://help.yahoo.com/kb/finance/SLN2310.html
A7: Data Type | B7: Daily | D7: Daily | E7: d | M7: And
A8: Crumb | B8: 5Om4qh0.hRG | D8: Weekly | E8: w | M8: https://www.stockmarketeye.com/users-guide/ticker-symbols-and-data-providers/data-providers.html
A9: Available Data | D9: Monthly | E9: m
A10: Bar Count: | B10: 12161 | M10: You may search on “exchange suffixes” for additional discussions | AD10: =OFFSET(AC15,1,0,1,1)/OFFSET(N15,1,0,1,1) -> 0.02763819095
A11: From: | B11: =IF(B10<=0,"",OFFSET(B15,B10,IF(HistReqDataType="v",1,0),1,1)) -> 1972-06-01 | W11: Trailing 12 Month Dividend Returns
A12: To: | B12: =IF(B10<=0,"",IF(HistReqDataType="v",OFFSET(B15,2,1,1,1),OFFSET(B15,1,0,1,1))) -> 2020-08-19 | W12: Raw Close price on Dividend date | X12: Div Year and Month | Y12: Looking for year ago Div Year and Month | Z12: Year ago Div Date we found | AA12: row offset to year ago div Date | AB12: Same month flag | AC12: Trailing 12 Div Total | AD12: Trailing 12 Div return
Q13: Split History | S13: 6 | T13: Running | U13: Dividend History
B14: Raw Data Values | H14: Adjusted | I14: Price Adjust | J14: Vol Adjust | K14: Adjusted Values | P14: Last | Q14: Effective | R14: Shares | T14: Vol Adjust | V14: 194
A15: RelRow | B15: Date | C15: Open | D15: High | E15: Low | F15: Close | G15: Volume | H15: Close | I15: Factor | J15: Factor | K15: Open | L15: High | M15: Low | N15: Close | O15: Volume | P15: Trade | Q15: 44063 | R15: New | S15: Old | T15: 1 | U15: Date | V15: $ / Share
A16: 1 | B16: 2020-08-19 | C16: 63.07 | D16: 63.82 | E16: 62.889999 | F16: 63.68 | G16: 2843849 | H16: 63.68 | I16: =IF(F16=0,1,H16/F16) -> 1 | J16: =INDEX(OFFSET($T$15,0,0,$S$13+1,1),MATCH(B16,OFFSET($Q$15,0,0,$S$13+1,1),-1)) -> 1 | K16: =ROUND($I16*C16,2) -> 63.07 | L16: =ROUND($I16*D16,2) -> 63.82 | M16: 62.89 | N16: 63.68 | O16: =G16*J16 -> 2843849 | Q16: 2001-08-07 | R16: 1000000 | S16: 951777 | T16: 1.05066628 | U16: 2020-07-02 | V16: 0.45 | W16: =(INDEX(OFFSET($F$15,1,0,$B$10,1),MATCH(U16,OFFSET($B$15,1,0,$B$10,1),-1))) -> 59.139999 | X16: =YEAR(U16)&RIGHT("0"&MONTH(U16),2) -> 202007 | Y16: =YEAR(U16)-1&RIGHT("0"&MONTH(U16),2) -> 201907 | Z16: =OFFSET(U15,AA16,0,1,1) -> 2019-07-03 | AA16: =MATCH(Y16,OFFSET($X$15,A16,0,$V$14+1-A16,1),-1) -> 5 | AB16: =IF(OR(AND(YEAR(U16)=YEAR(Z16),MONTH(U16)=MONTH(Z16)),MONTH(U16)=MONTH(Z16)),1,0) -> 1 | AC16: =(V16+IF(AA16-AB16=0,0,IFERROR(SUM(OFFSET(V16,1,0,AA16-AB16-1,1)),0))) -> 1.76 | AD16: =AC16/(INDEX(OFFSET($F$15,1,0,$B$10,1),MATCH(U16,OFFSET($B$15,1,0,$B$10,1),-1))) -> 0.02975989229
A17: 2 | B17: 2020-08-18 | C17: 63.490002 | D17: 63.68 | E17: 62.900002 | F17: 63.029999 | G17: 5745600 | H17: 63.029999 | I17: =IF(F17=0,1,H17/F17) -> 1 | J17: =INDEX(OFFSET($T$15,0,0,$S$13+1,1),MATCH(B17,OFFSET($Q$15,0,0,$S$13+1,1),-1)) -> 1 | K17: =ROUND($I17*C17,2) -> 63.49 | L17: =ROUND($I17*D17,2) -> 63.68 | M17: =ROUND($I17*E17,2) -> 62.9 | N17: =ROUND($I17*F17,2) -> 63.03 | O17: =G17*J17 -> 5745600 | Q17: 1999-03-01 | R17: 2 | S17: 1 | T17: 2.10133256 | U17: 2020-04-02 | V17: 0.45 | W17: =(INDEX(OFFSET($F$15,1,0,$B$10,1),MATCH(U17,OFFSET($B$15,1,0,$B$10,1),-1))) -> 55.209999 | X17: =YEAR(U17)&RIGHT("0"&MONTH(U17),2) -> 202004 | Y17: =YEAR(U17)-1&RIGHT("0"&MONTH(U17),2) -> 201904 | Z17: =OFFSET(U16,AA17,0,1,1) -> 2019-04-04 | AA17: =MATCH(Y17,OFFSET($X$15,A17,0,$V$14+1-A17,1),-1) -> 5 | AB17: =IF(OR(AND(YEAR(U17)=YEAR(Z17),MONTH(U17)=MONTH(Z17)),MONTH(U17)=MONTH(Z17)),1,0) -> 1 | AC17: =(V17+IF(AA17-AB17=0,0,IFERROR(SUM(OFFSET(V17,1,0,AA17-AB17-1,1)),0))) -> 1.72 | AD17: =AC17/(INDEX(OFFSET($F$15,1,0,$B$10,1),MATCH(U17,OFFSET($B$15,1,0,$B$10,1),-1))) -> 0.03115377705
A18: 3 | B18: 2020-08-17 | C18: 63.41 | D18: 64.080002 | E18: 63.169998 | F18: 63.619999 | G18: 5972400 | H18: 63.619999 | I18: 1 | J18: 1 | K18: 63.41 | L18: 64.08 | M18: 63.17 | N18: 63.62 | O18: 5972400 | Q18: 1997-03-03 | R18: 2 | S18: 1 | T18: 4.20266512 | U18: 2020-01-02 | V18: 0.45 | W18: 63.34 | X18: 202001 | Y18: 201901 | Z18: 2019-01-03 | AA18: 5 | AB18: 1 | AC18: 1.68 | AD18: 0.02652352384
A19: 4 | B19: 2020-08-14 | C19: 63.189999 | D19: 63.549999 | E19: 62.75 | F19: 63.16 | G19: 5606900 | H19: 63.16 | I19: 1 | J19: 1 | K19: 63.19 | L19: 63.55 | M19: 62.75 | N19: 63.16 | O19: 5606900 | Q19: 1987-06-10 | R19: 2 | S19: 1 | T19: 8.40533024 | U19: 2019-10-03 | V19: 0.41 | W19: 49.549999 | X19: 201910 | Y19: 201810 | Z19: 2018-10-04 | AA19: 5 | AB19: 1 | AC19: 1.64 | AD19: 0.0330978816
A20: 5 | B20: 2020-08-13 | C20: 63.02 | D20: 63.580002 | E20: 62.900002 | F20: 63.240002 | G20: 7748700 | H20: 63.240002 | I20: 1 | J20: 1 | K20: 63.02 | L20: 63.58 | M20: 62.9 | N20: 63.24 | O20: 7748700 | Q20: 1983-05-27 | R20: 2 | S20: 1 | T20: 16.81066048 | U20: 2019-07-03 | V20: 0.41 | W20: 46.560001 | X20: 201907 | Y20: 201807 | Z20: 2018-07-05 | AA20: 5 | AB20: 1 | AC20: 1.63 | AD20: 0.03500859031
A21: 6 | B21: 2020-08-12 | C21: 63.580002 | D21: 64.269997 | E21: 63.450001 | F21: 63.639999 | G21: 8616200 | H21: 63.639999 | I21: 1 | J21: 1 | K21: 63.58 | L21: 64.27 | M21: 63.45 | N21: 63.64 | O21: 8616200 | Q21: 1977-05-31 | R21: 2 | S21: 1 | T21: 33.62132096 | U21: 2019-04-04 | V21: 0.41 | W21: 46.669998 | X21: 201904 | Y21: 201804 | Z21: 2018-04-05 | AA21: 5 | AB21: 1 | AC21: 1.62 | AD21: 0.03471180779
A22: 7 | B22: 2020-08-11 | C22: 62.970001 | D22: 64.25 | E22: 62.689999 | F22: 63.130001 | G22: 20736000 | H22: 63.130001 | I22: 1 | J22: 1 | K22: 62.97 | L22: 64.25 | M22: 62.69 | N22: 63.13 | O22: 20736000 | U22: 2019-01-03 | V22: 0.41 | W22: 45.119999 | X22: 201901 | Y22: 201801 | Z22: 2018-01-04 | AA22: 5 | AB22: 1 | AC22: 1.61 | AD22: 0.0356826249
A23: 8 | B23: 2020-08-10 | C23: 60.959999 | D23: 61.990002 | E23: 60.77 | F23: 61.82 | G23: 9820900 | H23: 61.82 | I23: 1 | J23: 1 | K23: 60.96 | L23: 61.99 | M23: 60.77 | N23: 61.82 | O23: 9820900 | U23: 2018-10-04 | V23: 0.4 | W23: 62.360001 | X23: 201810 | Y23: 201710 | Z23: 2017-10-05 | AA23: 5 | AB23: 1 | AC23: 1.6 | AD23: 0.02565747233
A24: 9 | B24: 2020-08-07 | C24: 61.560001 | D24: 61.650002 | E24: 60.419998 | F24: 61.02 | G24: 9968300 | H24: 61.02 | I24: 1 | J24: 1 | K24: 61.56 | L24: 61.65 | M24: 60.42 | N24: 61.02 | O24: 9968300 | U24: 2018-07-05 | V24: 0.4 | W24: 55.950001 | X24: 201807 | Y24: 201707 | Z24: 2017-07-05 | AA24: 5 | AB24: 1 | AC24: 1.59 | AD24: 0.02841823006
A25: 10 | B25: 2020-08-06 | C25: 62 | D25: 62.970001 | E25: 60.419998 | F25: 61.330002 | G25: 18961900 | H25: 61.330002 | I25: 1 | J25: 1 | K25: 62 | L25: 62.97 | M25: 60.42 | N25: 61.33 | O25: 18961900 | U25: 2018-04-05 | V25: 0.4 | W25: 62.310001 | X25: 201804 | Y25: 201704 | Z25: 2017-04-05 | AA25: 5 | AB25: 1 | AC25: 1.58 | AD25: 0.02535708513
A26: 11 | B26: 2020-08-05 | C26: 59.950001 | D26: 60.380001 | E26: 59.41 | F26: 59.689999 | G26: 10789000 | H26: 59.689999 | I26: 1 | J26: 1 | K26: 59.95 | L26: 60.38 | M26: 59.41 | N26: 59.69 | O26: 10789000 | U26: 2018-01-04 | V26: 0.4 | W26: 61.75 | X26: 201801 | Y26: 201701 | Z26: 2017-01-04 | AA26: 5 | AB26: 1 | AC26: 1.57 | AD26: 0.02542510121
A27: 12 | B27: 2020-08-04 | C27: 58.830002 | D27: 59.509998 | E27: 58.529999 | F27: 59.470001 | G27: 6527600 | H27: 59.470001 | I27: 1 | J27: 1 | K27: 58.83 | L27: 59.51 | M27: 58.53 | N27: 59.47 | O27: 6527600 | U27: 2017-10-05 | V27: 0.39 | W27: 63.799999 | X27: 201710 | Y27: 201610 | Z27: 2016-10-05 | AA27: 5 | AB27: 1 | AC27: 1.56 | AD27: 0.02445141104
A28: 13 | B28: 2020-08-03 | C28: 59.110001 | D28: 59.639999 | E28: 58.950001 | F28: 59.099998 | G28: 10337900 | H28: 59.099998 | I28: 1 | J28: 1 | K28: 59.11 | L28: 59.64 | M28: 58.95 | N28: 59.1 | O28: 10337900 | U28: 2017-07-05 | V28: 0.39 | W28: 56.349998 | X28: 201707 | Y28: 201607 | Z28: 2016-10-05 | AA28: 4 | AB28: 0 | AC28: 1.55 | AD28: 0.02750665581
A29: 14 | B29: 2020-07-31 | C29: 58.880001 | D29: 59.09 | E29: 57.77 | F29: 58.66 | G29: 10443000 | H29: 58.66 | I29: 1 | J29: 1 | K29: 58.88 | L29: 59.09 | M29: 57.77 | N29: 58.66 | O29: 10443000 | U29: 2017-04-05 | V29: 0.39 | W29: 53.080002 | X29: 201704 | Y29: 201604 | Z29: 2016-06-29 | AA29: 4 | AB29: 0 | AC29: 1.54 | AD29: 0.02901280976
A30: 15 | B30: 2020-07-30 | C30: 58.799999 | D30: 59.150002 | E30: 58.34 | F30: 58.869999 | G30: 7175200 | H30: 58.869999 | I30: 1 | J30: 1 | K30: 58.8 | L30: 59.15 | M30: 58.34 | N30: 58.87 | O30: 7175200 | U30: 2017-01-04 | V30: 0.39 | W30: 59.139999 | X30: 201701 | Y30: 201601 | Z30: 2016-03-30 | AA30: 4 | AB30: 0 | AC30: 1.53 | AD30: 0.02587081545
A31: 16 | B31: 2020-07-29 | C31: 59.16 | D31: 59.400002 | E31: 58.59 | F31: 59.150002 | G31: 7357900 | H31: 59.150002 | I31: 1 | J31: 1 | K31: 59.16 | L31: 59.4 | M31: 58.59 | N31: 59.15 | O31: 7357900 | U31: 2016-10-05 | V31: 0.38 | W31: 54.790001 | X31: 201610 | Y31: 201510 | Z31: 2015-12-30 | AA31: 4 | AB31: 0 | AC31: 1.52 | AD31: 0.02774228823
A32: 17 | B32: 2020-07-28 | C32: 58.549999 | D32: 59.82 | E32: 58.240002 | F32: 59.43 | G32: 9816300 | H32: 59.43 | I32: 1 | J32: 1 | K32: 58.55 | L32: 59.82 | M32: 58.24 | N32: 59.43 | O32: 9816300 | U32: 2016-06-29 | V32: 0.38 | W32: 73 | X32: 201606 | Y32: 201506 | Z32: 2015-07-01 | AA32: 5 | AB32: 0 | AC32: 1.88 | AD32: 0.02575342466
A33: 18 | B33: 2020-07-27 | C33: 57.549999 | D33: 58.619999 | E33: 57.349998 | F33: 58.049999 | G33: 12372000 | H33: 58.049999 | I33: 1 | J33: 1 | K33: 57.55 | L33: 58.62 | M33: 57.35 | N33: 58.05 | O33: 12372000 | U33: 2016-03-30 | V33: 0.38 | W33: 63.439999 | X33: 201603 | Y33: 201503 | Z33: 2015-04-01 | AA33: 5 | AB33: 0 | AC33: 1.87 | AD33: 0.02947667133
A34: 19 | B34: 2020-07-24 | C34: 59.669998 | D34: 59.759998 | E34: 57.549999 | F34: 57.849998 | G34: 12531900 | H34: 57.849998 | I34: 1 | J34: 1 | K34: 59.67 | L34: 59.76 | M34: 57.55 | N34: 57.85 | O34: 12531900 | U34: 2015-12-30 | V34: 0.38 | W34: 69.519997 | X34: 201512 | Y34: 201412 | Z34: 2014-12-30 | AA34: 5 | AB34: 1 | AC34: 1.49 | AD34: 0.02143268217
A35: 20 | B35: 2020-07-23 | C35: 60.119999 | D35: 60.459999 | E35: 59.57 | F35: 59.869999 | G35: 8913200 | H35: 59.869999 | I35: 1 | J35: 1 | K35: 60.12 | L35: 60.46 | M35: 59.57 | N35: 59.87 | O35: 8913200 | U35: 2015-09-30 | V35: 0.37 | W35: 59.200001 | X35: 201509 | Y35: 201409 | Z35: 2014-10-01 | AA35: 5 | AB35: 0 | AC35: 1.84 | AD35: 0.03108108056
A36: 21 | B36: 2020-07-22 | C36: 59.889999 | D36: 60.330002 | E36: 59.34 | F36: 59.849998 | G36: 8961000 | H36: 59.849998 | I36: 1 | J36: 1 | K36: 59.89 | L36: 60.33 | M36: 59.34 | N36: 59.85 | O36: 8961000 | U36: 2015-07-01 | V36: 0.37 | W36: 67.669998 | X36: 201507 | Y36: 201407 | Z36: 2014-07-01 | AA36: 5 | AB36: 1 | AC36: 1.47 | AD36: 0.02172306847
A37: 22 | B37: 2020-07-21 | C37: 59.59 | D37: 60.240002 | E37: 59.32 | F37: 59.799999 | G37: 7804600 | H37: 59.799999 | I37: 1 | J37: 1 | K37: 59.59 | L37: 60.24 | M37: 59.32 | N37: 59.8 | O37: 7804600 | U37: 2015-04-01 | V37: 0.37 | W37: 63.560001 | X37: 201504 | Y37: 201404 | Z37: 2014-04-02 | AA37: 5 | AB37: 1 | AC37: 1.46 | AD37: 0.02297042129
A38: 23 | B38: 2020-07-20 | C38: 60.290001 | D38: 60.639999 | E38: 59.220001 | F38: 59.459999 | G38: 6759900 | H38: 59.459999 | I38: 1 | J38: 1 | K38: 60.29 | L38: 60.64 | M38: 59.22 | N38: 59.46 | O38: 6759900 | U38: 2014-12-30 | V38: 0.37 | W38: 59.389999 | X38: 201412 | Y38: 201312 | Z38: 2013-12-31 | AA38: 5 | AB38: 1 | AC38: 1.45 | AD38: 0.02441488507
A39: 24 | B39: 2020-07-17 | C39: 59.700001 | D39: 60.619999 | E39: 59.400002 | F39: 60.389999 | G39: 9078200 | H39: 60.389999 | I39: 1 | J39: 1 | K39: 59.7 | L39: 60.62 | M39: 59.4 | N39: 60.39 | O39: 9078200 | U39: 2014-10-01 | V39: 0.36 | W39: 50.529999 | X39: 201410 | Y39: 201310 | Z39: 2013-10-02 | AA39: 5 | AB39: 1 | AC39: 1.44 | AD39: 0.02849792259
A40: 25 | B40: 2020-07-16 | C40: 59.23 | D40: 59.380001 | E40: 58.73 | F40: 59.32 | G40: 6949700 | H40: 59.32 | I40: 1 | J40: 1 | K40: 59.23 | L40: 59.38 | M40: 58.73 | N40: 59.32 | O40: 6949700 | U40: 2014-07-01 | V40: 0.36 | W40: 48.119999 | X40: 201407 | Y40: 201307 | Z40: 2013-07-02 | AA40: 5 | AB40: 1 | AC40: 1.43 | AD40: 0.02971737385
A41: 26 | B41: 2020-07-15 | C41: 58.650002 | D41: 59.610001 | E41: 58.32 | F41: 59.27 | G41: 9459400 | H41: 59.27 | I41: 1 | J41: 1 | K41: 58.65 | L41: 59.61 | M41: 58.32 | N41: 59.27 | O41: 9459400 | U41: 2014-04-02 | V41: 0.36 | W41: 51.59 | X41: 201404 | Y41: 201304 | Z41: 2013-04-03 | AA41: 5 | AB41: 1 | AC41: 1.42 | AD41: 0.02752471409
A42: 27 | B42: 2020-07-14 | C42: 57.830002 | D42: 58.099998 | E42: 57.290001 | F42: 57.889999 | G42: 12153900 | H42: 57.889999 | I42: 1 | J42: 1 | K42: 57.83 | L42: 58.1 | M42: 57.29 | N42: 57.89 | O42: 12153900 | U42: 2013-12-31 | V42: 0.36 | W42: 53.150002 | X42: 201312 | Y42: 201212 | Z42: 2013-01-02 | AA42: 5 | AB42: 0 | AC42: 1.76 | AD42: 0.03311382754
A43: 28 | B43: 2020-07-13 | C43: 57.57 | D43: 58.490002 | E43: 57.5 | F43: 57.75 | G43: 10149000 | H43: 57.75 | I43: 1 | J43: 1 | K43: 57.57 | L43: 58.49 | M43: 57.5 | N43: 57.75 | O43: 10149000 | U43: 2013-10-02 | V43: 0.35 | W43: 46.93 | X43: 201310 | Y43: 201210 | Z43: 2012-10-03 | AA43: 5 | AB43: 1 | AC43: 1.4 | AD43: 0.02983166418
A44: 29 | B44: 2020-07-10 | C44: 58 | D44: 58.09 | E44: 57.16 | F44: 57.43 | G44: 8770000 | H44: 57.43 | I44: 1 | J44: 1 | K44: 58 | L44: 58.09 | M44: 57.16 | N44: 57.43 | O44: 8770000 | U44: 2013-07-02 | V44: 0.35 | W44: 43.990002 | X44: 201307 | Y44: 201207 | Z44: 2012-07-03 | AA44: 5 | AB44: 1 | AC44: 1.39 | AD44: 0.03159808904
A45: 30 | B45: 2020-07-09 | C45: 59.66 | D45: 60.139999 | E45: 57.830002 | F45: 58.110001 | G45: 12780000 | H45: 58.110001 | I45: 1 | J45: 1 | K45: 59.66 | L45: 60.14 | M45: 57.83 | N45: 58.11 | O45: 12780000 | U45: 2013-04-03 | V45: 0.35 | W45: 41.07 | X45: 201304 | Y45: 201204 | Z45: 2012-04-03 | AA45: 5 | AB45: 1 | AC45: 1.38 | AD45: 0.03360116874
A46: 31 | B46: 2020-07-08 | C46: 60.32 | D46: 60.68 | E46: 59.279999 | F46: 59.560001 | G46: 10507000 | H46: 59.560001 | I46: 1 | J46: 1 | K46: 60.32 | L46: 60.68 | M46: 59.28 | N46: 59.56 | O46: 10507000 | U46: 2013-01-02 | V46: 0.35 | W46: 32.709999 | X46: 201301 | Y46: 201201 | Z46: 2012-01-04 | AA46: 5 | AB46: 1 | AC46: 1.37 | AD46: 0.04188321742
A47: 32 | B47: 2020-07-07 | C47: 59.759998 | D47: 60.610001 | E47: 59.52 | F47: 60.290001 | G47: 12766700 | H47: 60.290001 | I47: 1 | J47: 1 | K47: 59.76 | L47: 60.61 | M47: 59.52 | N47: 60.29 | O47: 12766700 | U47: 2012-10-03 | V47: 0.34 | W47: 33.560001 | X47: 201210 | Y47: 201110 | Z47: 2011-10-06 | AA47: 5 | AB47: 1 | AC47: 1.36 | AD47: 0.04052443264
A48: 33 | B48: 2020-07-06 | C48: 59.599998 | D48: 60.580002 | E48: 58.869999 | F48: 60.189999 | G48: 8810800 | H48: 60.189999 | I48: 1 | J48: 1 | K48: 59.6 | L48: 60.58 | M48: 58.87 | N48: 60.19 | O48: 8810800 | U48: 2012-07-03 | V48: 0.34 | W48: 34.91 | X48: 201207 | Y48: 201107 | Z48: 2011-10-06 | AA48: 4 | AB48: 0 | AC48: 1.35 | AD48: 0.03867086795
A49: 34 | B49: 2020-07-02 | C49: 59.299999 | D49: 59.639999 | E49: 58.75 | F49: 59.139999 | G49: 11366100 | H49: 59.139999 | I49: 1 | J49: 1 | K49: 59.3 | L49: 59.64 | M49: 58.75 | N49: 59.14 | O49: 11366100 | U49: 2012-04-03 | V49: 0.34 | W49: 33.869999 | X49: 201204 | Y49: 201104 | Z49: 2011-06-29 | AA49: 4 | AB49: 0 | AC49: 1.34 | AD49: 0.0395630363
A50: 35 | B50: 2020-07-01 | C50: 59.189999 | D50: 59.73 | E50: 58.880001 | F50: 59.43 | G50: 11738300 | H50: 58.98 | I50: 0.9924280666 | J50: 1 | K50: 58.74 | L50: 59.28 | M50: 58.43 | N50: 58.98 | O50: 11738300 | U50: 2012-01-04 | V50: 0.34 | W50: 34.34 | X50: 201201 | Y50: 201101 | Z50: 2011-01-05 | AA50: 5 | AB50: 1 | AC50: 1.33 | AD50: 0.03873034362
A51: 36 | B51: 2020-06-30 | C51: 57.860001 | D51: 59.200001 | E51: 57.5 | F51: 58.799999 | G51: 12139700 | H51: 58.354771 | I51: 0.9924280951 | J51: 1 | K51: 57.42 | L51: 58.75 | M51: 57.06 | N51: 58.35 | O51: 12139700 | U51: 2011-10-06 | V51: 0.33 | W51: 32.450001 | X51: 201110 | Y51: 201010 | Z51: 2011-01-05 | AA51: 4 | AB51: 0 | AC51: 1.32 | AD51: 0.04067796485
A52: 37 | B52: 2020-06-29 | C52: 57.990002 | D52: 58.139999 | E52: 57.310001 | F52: 57.799999 | G52: 9831400 | H52: 57.362343 | I52: 0.9924280968 | J52: 1 | K52: 57.55 | L52: 57.7 | M52: 56.88 | N52: 57.36 | O52: 9831400 | U52: 2011-06-29 | V52: 0.33 | W52: 28.540001 | X52: 201106 | Y52: 201006 | Z52: 2010-06-30 | AA52: 5 | AB52: 1 | AC52: 1.31 | AD52: 0.04590048893
A53: 38 | B53: 2020-06-26 | C53: 57.959999 | D53: 58.02 | E53: 56.669998 | F53: 57.540001 | G53: 26132400 | H53: 57.104313 | I53: 0.9924280849 | J53: 1 | K53: 57.52 | L53: 57.58 | M53: 56.24 | N53: 57.1 | O53: 26132400 | U53: 2011-03-30 | V53: 0.33 | W53: 26.469999 | X53: 201103 | Y53: 201003 | Z53: 2010-03-30 | AA53: 5 | AB53: 1 | AC53: 1.3 | AD53: 0.04911220435
A54: 39 | B54: 2020-06-25 | C54: 58.009998 | D54: 58.470001 | E54: 57.700001 | F54: 58.18 | G54: 15267200 | H54: 57.739464 | I54: 0.9924280509 | J54: 1 | K54: 57.57 | L54: 58.03 | M54: 57.26 | N54: 57.74 | O54: 15267200 | U54: 2011-01-05 | V54: 0.33 | W54: 26.059999 | X54: 201101 | Y54: 201001 | Z54: 2010-03-30 | AA54: 4 | AB54: 0 | AC54: 1.29 | AD54: 0.04950115309
A55: 40 | B55: 2020-06-24 | C55: 58.110001 | D55: 58.209999 | E55: 57.110001 | F55: 57.759998 | G55: 11177200 | H55: 57.322643 | I55: 0.9924280641 | J55: 1 | K55: 57.67 | L55: 57.77 | M55: 56.68 | N55: 57.32 | O55: 11177200 | U55: 2010-09-29 | V55: 0.32 | W55: 27.370001 | X55: 201009 | Y55: 200909 | Z55: 2009-09-30 | AA55: 5 | AB55: 1 | AC55: 1.28 | AD55: 0.04676653099
A56: 41 | B56: 2020-06-23 | C56: 57.939999 | D56: 59.099998 | E56: 57.82 | F56: 58.380001 | G56: 15557200 | H56: 57.93795 | I56: 0.9924280406 | J56: 1 | K56: 57.5 | L56: 58.65 | M56: 57.38 | N56: 57.94 | O56: 15557200 | U56: 2010-06-30 | V56: 0.32 | W56: 24.940001 | X56: 201006 | Y56: 200906 | Z56: 2009-07-01 | AA56: 5 | AB56: 0 | AC56: 1.58 | AD56: 0.06335204237
A57: 42 | B57: 2020-06-22 | C57: 56.240002 | D57: 57.689999 | E57: 55.919998 | F57: 57.560001 | G57: 18716200 | H57: 57.124161 | I57: 0.9924280752 | J57: 1 | K57: 55.81 | L57: 57.25 | M57: 55.5 | N57: 57.12 | O57: 18716200 | U57: 2010-03-30 | V57: 0.32 | W57: 26.76 | X57: 201003 | Y57: 200903 | Z57: 2009-04-01 | AA57: 5 | AB57: 0 | AC57: 1.57 | AD57: 0.0586696562
A58: 43 | B58: 2020-06-19 | C58: 56.700001 | D58: 56.830002 | E58: 54.73 | F58: 56.41 | G58: 54134700 | H58: 55.982868 | I58: 0.9924280801 | J58: 1 | K58: 56.27 | L58: 56.4 | M58: 54.32 | N58: 55.98 | O58: 54134700 | U58: 2009-12-30 | V58: 0.32 | W58: 25.610001 | X58: 200912 | Y58: 200812 | Z58: 2008-12-30 | AA58: 5 | AB58: 1 | AC58: 1.25 | AD58: 0.04880905706
A59: 44 | B59: 2020-06-18 | C59: 56.57 | D59: 56.619999 | E59: 55.580002 | F59: 55.970001 | G59: 14113300 | H59: 55.5462 | I59: 0.9924280687 | J59: 1 | K59: 56.14 | L59: 56.19 | M59: 55.16 | N59: 55.55 | O59: 14113300 | U59: 2009-09-30 | V59: 0.31 | W59: 22.52 | X59: 200909 | Y59: 200809 | Z59: 2008-10-01 | AA59: 5 | AB59: 0 | AC59: 1.55 | AD59: 0.0688277087
A60: 45 | B60: 2020-06-17 | C60: 57.209999 | D60: 57.360001 | E60: 56.709999 | F60: 56.950001 | G60: 13637100 | H60: 56.51878 | I60: 0.9924280774 | J60: 1 | K60: 56.78 | L60: 56.93 | M60: 56.28 | N60: 56.52 | O60: 13637100 | U60: 2009-07-01 | V60: 0.31 | W60: 20.24 | X60: 200907 | Y60: 200807 | Z60: 2008-07-02 | AA60: 5 | AB60: 1 | AC60: 1.24 | AD60: 0.06126482213
A61: 46 | B61: 2020-06-16 | C61: 55.93 | D61: 57.290001 | E61: 55.5 | F61: 57.060001 | G61: 16973300 | H61: 56.627945 | I61: 0.9924280408 | J61: 1 | K61: 55.51 | L61: 56.86 | M61: 55.08 | N61: 56.63 | O61: 16973300 | U61: 2009-04-01 | V61: 0.31 | W61: 21.969999 | X61: 200904 | Y61: 200804 | Z61: 2008-04-02 | AA61: 5 | AB61: 1 | AC61: 1.24 | AD61: 0.05644060339
A62: 47 | B62: 2020-06-15 | C62: 55.639999 | D62: 55.779999 | E62: 54.07 | F62: 55.099998 | G62: 21617800 | H62: 54.682785 | I62: 0.992428076 | J62: 1 | K62: 55.22 | L62: 55.36 | M62: 53.66 | N62: 54.68 | O62: 21617800 | U62: 2008-12-30 | V62: 0.31 | W62: 22.870001 | X62: 200812 | Y62: 200712 | Z62: 2008-01-02 | AA62: 5 | AB62: 0 | AC62: 1.55 | AD62: 0.06777437395
A63: 48 | B63: 2020-06-12 | C63: 57.59 | D63: 57.650002 | E63: 55.59 | F63: 56.169998 | G63: 14860600 | H63: 55.744682 | I63: 0.9924280574 | J63: 1 | K63: 57.15 | L63: 57.21 | M63: 55.17 | N63: 55.74 | O63: 14860600 | U63: 2008-10-01 | V63: 0.31 | W63: 20.790001 | X63: 200810 | Y63: 200710 | Z63: 2007-10-03 | AA63: 5 | AB63: 1 | AC63: 1.24 | AD63: 0.05964405678
A64: 49 | B64: 2020-06-11 | C64: 59.900002 | D64: 60.279999 | E64: 56.400002 | F64: 56.709999 | G64: 17371900 | H64: 56.280594 | I64: 0.9924280549 | J64: 1 | K64: 59.45 | L64: 59.82 | M64: 55.97 | N64: 56.28 | O64: 17371900 | U64: 2008-07-02 | V64: 0.31 | W64: 20.59 | X64: 200807 | Y64: 200707 | Z64: 2007-07-03 | AA64: 5 | AB64: 1 | AC64: 1.21 | AD64: 0.05876639145
A65: 50 | B65: 2020-06-10 | C65: 61.240002 | D65: 61.419998 | E65: 59.900002 | F65: 60.16 | G65: 13343700 | H65: 59.704472 | I65: 0.9924280585 | J65: 1 | K65: 60.78 | L65: 60.95 | M65: 59.45 | N65: 59.7 | O65: 13343700 | U65: 2008-04-02 | V65: 0.31 | W65: 21.66 | X65: 200804 | Y65: 200704 | Z65: 2007-04-03 | AA65: 5 | AB65: 1 | AC65: 1.18 | AD65: 0.05447830102
A66: 51 | B66: 2020-06-09 | C66: 61.75 | D66: 62.169998 | E66: 60.93 | F66: 60.93 | G66: 12159500 | H66: 60.468643 | I66: 0.9924280814 | J66: 1 | K66: 61.28 | L66: 61.7 | M66: 60.47 | N66: 60.47 | O66: 12159500 | U66: 2008-01-02 | V66: 0.31 | W66: 26.129999 | X66: 200801 | Y66: 200701 | Z66: 2007-01-03 | AA66: 5 | AB66: 1 | AC66: 1.15 | AD66: 0.04401071734
A67: 52 | B67: 2020-06-08 | C67: 60.599998 | D67: 61.43 | E67: 60.400002 | F67: 61.43 | G67: 12549100 | H67: 60.964855 | I67: 0.9924280482 | J67: 1 | K67: 60.14 | L67: 60.96 | M67: 59.94 | N67: 60.96 | O67: 12549100 | U67: 2007-10-03 | V67: 0.28 | W67: 29.74 | X67: 200710 | Y67: 200610 | Z67: 2006-10-04 | AA67: 5 | AB67: 1 | AC67: 1.12 | AD67: 0.03765971755
A68: 53 | B68: 2020-06-05 | C68: 61.18 | D68: 61.77 | E68: 60.529999 | F68: 61.330002 | G68: 11862600 | H68: 60.865616 | I68: 0.9924280779 | J68: 1 | K68: 60.72 | L68: 61.3 | M68: 60.07 | N68: 60.87 | O68: 11862600 | U68: 2007-07-03 | V68: 0.28 | W68: 31.77 | X68: 200707 | Y68: 200607 | Z68: 2006-07-05 | AA68: 5 | AB68: 1 | AC68: 1.12 | AD68: 0.0352533837
A69: 54 | B69: 2020-06-04 | C69: 59.82 | D69: 61.09 | E69: 59.82 | F69: 60.889999 | G69: 13476900 | H69: 60.428944 | I69: 0.9924280669 | J69: 1 | K69: 59.37 | L69: 60.63 | M69: 59.37 | N69: 60.43 | O69: 13476900 | U69: 2007-04-03 | V69: 0.28 | W69: 27.540001 | X69: 200704 | Y69: 200604 | Z69: 2006-04-05 | AA69: 5 | AB69: 1 | AC69: 1.12 | AD69: 0.04066811762
A70: 55 | B70: 2020-06-03 | C70: 60.700001 | D70: 60.889999 | E70: 59.689999 | F70: 60.209999 | G70: 13497600 | H70: 59.754093 | I70: 0.9924280683 | J70: 1 | K70: 60.24 | L70: 60.43 | M70: 59.24 | N70: 59.75 | O70: 13497600 | U70: 2007-01-03 | V70: 0.28 | W70: 26.379999 | X70: 200701 | Y70: 200601 | Z70: 2006-01-04 | AA70: 5 | AB70: 1 | AC70: 1.12 | AD70: 0.04245640798
A71: 56 | B71: 2020-06-02 | C71: 60.290001 | D71: 60.68 | E71: 59.27 | F71: 60.650002 | G71: 15460100 | H71: 60.190765 | I71: 0.9924280794 | J71: 1 | K71: 59.83 | L71: 60.22 | M71: 58.82 | N71: 60.19 | O71: 15460100 | U71: 2006-10-04 | V71: 0.28 | W71: 24.620001 | X71: 200610 | Y71: 200510 | Z71: 2005-10-05 | AA71: 5 | AB71: 1 | AC71: 1.12 | AD71: 0.0454914685
A72: 57 | B72: 2020-06-01 | C72: 59.459999 | D72: 61.439999 | E72: 59.43 | F72: 60.290001 | G72: 11507900 | H72: 59.833488 | I72: 0.9924280479 | J72: 1 | K72: 59.01 | L72: 60.97 | M72: 58.98 | N72: 59.83 | O72: 11507900 | U72: 2006-07-05 | V72: 0.28 | W72: 25.219999 | X72: 200607 | Y72: 200507 | Z72: 2005-10-05 | AA72: 4 | AB72: 0 | AC72: 1.12 | AD72: 0.04440920081
A73: 58 | B73: 2020-05-29 | C73: 60.299999 | D73: 60.470001 | E73: 59.380001 | F73: 59.720001 | G73: 27225400 | H73: 59.267807 | I73: 0.9924280979 | J73: 1 | K73: 59.84 | L73: 60.01 | M73: 58.93 | N73: 59.27 | O73: 27225400 | U73: 2006-04-05 | V73: 0.28 | W73: 24.540001 | X73: 200604 | Y73: 200504 | Z73: 2005-06-29 | AA73: 4 | AB73: 0 | AC73: 1.12 | AD73: 0.04563976994
A74: 59 | B74: 2020-05-28 | C74: 60.959999 | D74: 60.98 | E74: 59.68 | F74: 59.810001 | G74: 14977400 | H74: 59.357124 | I74: 0.9924280724 | J74: 1 | K74: 60.5 | L74: 60.52 | M74: 59.23 | N74: 59.36 | O74: 14977400 | U74: 2006-01-04 | V74: 0.28 | W74: 22.629999 | X74: 200601 | Y74: 200501 | Z74: 2005-01-05 | AA74: 5 | AB74: 1 | AC74: 1.12 | AD74: 0.0494918272
A75: 60 | B75: 2020-05-27 | C75: 60 | D75: 60.52 | E75: 59.110001 | F75: 60.400002 | G75: 19071700 | H75: 59.942657 | I75: 0.9924280632 | J75: 1 | K75: 59.55 | L75: 60.06 | M75: 58.66 | N75: 59.94 | O75: 19071700 | U75: 2005-10-05 | V75: 0.28 | W75: 23.17 | X75: 200510 | Y75: 200410 | Z75: 2005-01-05 | AA75: 4 | AB75: 0 | AC75: 1.12 | AD75: 0.04833836858
A76: 61 | B76: 2020-05-26 | C76: 61.509998 | D76: 61.509998 | E76: 60.18 | F76: 60.32 | G76: 18447800 | H76: 59.863262 | I76: 0.9924280836 | J76: 1 | K76: 61.04 | L76: 61.04 | M76: 59.72 | N76: 59.86 | O76: 18447800 | U76: 2005-06-29 | V76: 0.28 | W76: 25.209999 | X76: 200506 | Y76: 200406 | Z76: 2004-06-30 | AA76: 5 | AB76: 1 | AC76: 1.12 | AD76: 0.04442681652
A77: 62 | B77: 2020-05-22 | C77: 61.009998 | D77: 61.66 | E77: 60.59 | F77: 60.790001 | G77: 9228600 | H77: 60.329704 | I77: 0.9924280804 | J77: 1 | K77: 60.55 | L77: 61.19 | M77: 60.13 | N77: 60.33 | O77: 9228600 | U77: 2005-03-30 | V77: 0.28 | W77: 25.540001 | X77: 200503 | Y77: 200403 | Z77: 2004-03-31 | AA77: 5 | AB77: 1 | AC77: 1.12 | AD77: 0.04385277824
A78: 63 | B78: 2020-05-21 | C78: 61.619999 | D78: 61.869999 | E78: 60.439999 | F78: 61.139999 | G78: 16016000 | H78: 60.677052 | I78: 0.992428083 | J78: 1 | K78: 61.15 | L78: 61.4 | M78: 59.98 | N78: 60.68 | O78: 16016000 | U78: 2005-01-05 | V78: 0.28 | W78: 24.790001 | X78: 200501 | Y78: 200401 | Z78: 2004-03-31 | AA78: 4 | AB78: 0 | AC78: 1.12 | AD78: 0.04517950604
A79: 64 | B79: 2020-05-20 | C79: 63 | D79: 63.25 | E79: 60.830002 | F79: 61.68 | G79: 16658200 | H79: 61.212963 | I79: 0.9924280642 | J79: 1 | K79: 62.52 | L79: 62.77 | M79: 60.37 | N79: 61.21 | O79: 16658200 | U79: 2004-09-29 | V79: 0.28 | W79: 23.860001 | X79: 200409 | Y79: 200309 | Z79: 2003-10-01 | AA79: 5 | AB79: 0 | AC79: 1.4 | AD79: 0.05867560525
A80: 65 | B80: 2020-05-19 | C80: 63.43 | D80: 63.82 | E80: 62.490002 | F80: 62.709999 | G80: 11052100 | H80: 62.235165 | I80: 0.9924280975 | J80: 1 | K80: 62.95 | L80: 63.34 | M80: 62.02 | N80: 62.24 | O80: 11052100 | U80: 2004-06-30 | V80: 0.28 | W80: 24.5 | X80: 200406 | Y80: 200306 | Z80: 2003-07-01 | AA80: 5 | AB80: 0 | AC80: 1.4 | AD80: 0.05714285714
A81: 66 | B81: 2020-05-18 | C81: 64.919998 | D81: 65.209999 | E81: 63.48 | F81: 63.599998 | G81: 15172100 | H81: 63.118423 | I81: =IF(F81=0,1,H81/F81) -> 0.9924280658 | J81: =INDEX(OFFSET($T$15,0,0,$S$13+1,1),MATCH(B81,OFFSET($Q$15,0,0,$S$13+1,1),-1)) -> 1 | K81: =ROUND($I81*C81,2) -> 64.43 | L81: =ROUND($I81*D81,2) -> 64.72 | M81: =ROUND($I81*E81,2) -> 63 | N81: =ROUND($I81*F81,2) -> 63.12 | O81: =G81*J81 -> 15172100 | U81: 2004-03-31 | V81: 0.28 | W81: =(INDEX(OFFSET($F$15,1,0,$B$10,1),MATCH(U81,OFFSET($B$15,1,0,$B$10,1),-1))) -> 24.23 | X81: =YEAR(U81)&RIGHT("0"&MONTH(U81),2) -> 200403 | Y81: =YEAR(U81)-1&RIGHT("0"&MONTH(U81),2) -> 200303 | Z81: =OFFSET(U80,AA81,0,1,1) -> 2003-04-02 | AA81: =MATCH(Y81,OFFSET($X$15,A81,0,$V$14+1-A81,1),-1) -> 5 | AB81: =IF(OR(AND(YEAR(U81)=YEAR(Z81),MONTH(U81)=MONTH(Z81)),MONTH(U81)=MONTH(Z81)),1,0) -> 0 | AC81: =(V81+IF(AA81-AB81=0,0,IFERROR(SUM(OFFSET(V81,1,0,AA81-AB81-1,1)),0))) -> 1.4 | AD81: =AC81/(INDEX(OFFSET($F$15,1,0,$B$10,1),MATCH(U81,OFFSET($B$15,1,0,$B$10,1),-1))) -> 0.05777961205
A82: 67 | B82: 2020-05-15 | C82: 64.199997 | D82: 65.339996 | E82: 63.810001 | F82: 64.089996 | G82: 35224400 | H82: 63.60471 | I82: 0.9924280538 | J82: 1 | K82: 63.71 | L82: 64.85 | M82: 63.33 | N82: 63.6 | O82: 35224400 | U82: 2003-12-30 | V82: 0.28 | W82: 28.42 | X82: 200312 | Y82: 200212 | Z82: 2002-12-31 | AA82: 5 | AB82: 1 | AC82: 1.12 | AD82: 0.039408867
A83: 68 | B83: 2020-05-14 | C83: 62.5 | D83: 64.129997 | E83: 62.130001 | F83: 63.77 | G83: 18221700 | H83: 63.28714 | I83: 0.992428101 | J83: 1 | K83: 62.03 | L83: 63.64 | M83: 61.66 | N83: 63.29 | O83: 18221700 | U83: 2003-10-01 | V83: 0.28 | W83: 26.030001 | X83: 200310 | Y83: 200210 | Z83: 2002-10-02 | AA83: 5 | AB83: 1 | AC83: 1.12 | AD83: 0.04302727457
A84: 69 | B84: 2020-05-13 | C84: 63.169998 | D84: 63.93 | E84: 62.580002 | F84: 63.27 | G84: 17287900 | H84: 62.790924 | I84: 0.9924280702 | J84: 1 | K84: 62.69 | L84: 63.45 | M84: 62.11 | N84: 62.79 | O84: 17287900 | U84: 2003-07-01 | V84: 0.28 | W84: 27.18 | X84: 200307 | Y84: 200207 | Z84: 2002-07-02 | AA84: 5 | AB84: 1 | AC84: 1.12 | AD84: 0.04120676968
A85: 70 | B85: 2020-05-12 | C85: 63.169998 | D85: 64.269997 | E85: 62.880001 | F85: 63.349998 | G85: 18928100 | H85: 62.870316 | I85: 0.9924280661 | J85: 1 | K85: 62.69 | L85: 63.78 | M85: 62.4 | N85: 62.87 | O85: 18928100 | U85: 2003-04-02 | V85: 0.28 | W85: 21.969999 | X85: 200304 | Y85: 200204 | Z85: 2002-04-03 | AA85: 5 | AB85: 1 | AC85: 1.12 | AD85: 0.05097860951
A86: 71 | B86: 2020-05-11 | C86: 60.869999 | D86: 62.810001 | E86: 60.77 | F86: 62.66 | G86: 14135400 | H86: 62.185543 | I86: 0.9924280721 | J86: 1 | K86: 60.41 | L86: 62.33 | M86: 60.31 | N86: 62.19 | O86: 14135400 | U86: 2002-12-31 | V86: 0.28 | W86: 23.15 | X86: 200212 | Y86: 200112 | Z86: 2002-01-02 | AA86: 5 | AB86: 0 | AC86: 1.4 | AD86: 0.06047516199
A87: 72 | B87: 2020-05-08 | C87: 61.830002 | D87: 62.18 | E87: 60.950001 | F87: 61.049999 | G87: 16961400 | H87: 60.587734 | I87: 0.9924280916 | J87: 1 | K87: 61.36 | L87: 61.71 | M87: 60.49 | N87: 60.59 | O87: 16961400 | U87: 2002-10-02 | V87: 0.28 | W87: 23.129999 | X87: 200210 | Y87: 200110 | Z87: 2001-10-03 | AA87: 5 | AB87: 1 | AC87: 1.12 | AD87: 0.04842196491
A88: 73 | B88: 2020-05-07 | C88: 62.52 | D88: 62.599998 | E88: 60.619999 | F88: 61.040001 | G88: 17531500 | H88: 60.577808 | I88: 0.9924280309 | J88: 1 | K88: 62.05 | L88: 62.13 | M88: 60.16 | N88: 60.58 | O88: 17531500 | U88: 2002-07-02 | V88: 0.28 | W88: 24.4 | X88: 200207 | Y88: 200107 | Z88: 2001-07-03 | AA88: 5 | AB88: 1 | AC88: 1.115 | AD88: 0.04569672131
A89: 74 | B89: 2020-05-06 | C89: 61.650002 | D89: 62.23 | E89: 60.939999 | F89: 61.130001 | G89: 14589000 | H89: 60.66713 | I89: 0.9924280878 | J89: 1 | K89: 61.18 | L89: 61.76 | M89: 60.48 | N89: 60.67 | O89: 14589000 | U89: 2002-04-03 | V89: 0.28 | W89: 37.700001 | X89: 200204 | Y89: 200104 | Z89: 2001-04-04 | AA89: 5 | AB89: 1 | AC89: 1.11 | AD89: 0.02944297004
A90: 75 | B90: 2020-05-05 | C90: 60.599998 | D90: 61.799999 | E90: 60.43 | F90: 61.360001 | G90: 13340800 | H90: 60.895386 | I90: 0.9924280477 | J90: 1 | K90: 60.14 | L90: 61.33 | M90: 59.97 | N90: 60.9 | O90: 13340800 | U90: 2002-01-02 | V90: 0.28 | W90: 50.849998 | X90: 200201 | Y90: 200101 | Z90: 2001-01-03 | AA90: 5 | AB90: 1 | AC90: 1.105 | AD90: 0.02173058099
A91: 76 | B91: 2020-05-04 | C91: 60.740002 | D91: 60.919998 | E91: 59.73 | F91: 60.169998 | G91: 16989600 | H91: 59.714394 | I91: 0.9924280536 | J91: 1 | K91: 60.28 | L91: 60.46 | M91: 59.28 | N91: 59.71 | O91: 16989600 | U91: 2001-10-03 | V91: 0.275 | W91: 56.75 | X91: 200110 | Y91: 200010 | Z91: 2000-10-04 | AA91: 5 | AB91: 1 | AC91: 1.1 | AD91: 0.01938325991
A92: 77 | B92: 2020-05-01 | C92: 60.849998 | D92: 60.869999 | E92: 59.68 | F92: 60.259998 | G92: 15582800 | H92: 59.803715 | I92: 0.9924280947 | J92: 1 | K92: 60.39 | L92: 60.41 | M92: 59.23 | N92: 59.8 | O92: 15582800 | U92: 2001-07-03 | V92: 0.275 | W92: 51.062836 | X92: 200107 | Y92: 200007 | Z92: 2000-07-05 | AA92: 5 | AB92: 1 | AC92: 1.07 | AD92: 0.02095457448
A93: 78 | B93: 2020-04-30 | C93: 60.849998 | D93: 61.110001 | E93: 60.360001 | F93: 60.810001 | G93: 17553100 | H93: 60.349552 | I93: 0.9924280712 | J93: 1 | K93: 60.39 | L93: 60.65 | M93: 59.9 | N93: 60.35 | O93: 17553100 | U93: 2001-04-04 | V93: 0.275 | W93: 53.870579 | X93: 200104 | Y93: 200004 | Z93: 2000-04-05 | AA93: 5 | AB93: 1 | AC93: 1.04 | AD93: 0.01930552853
A94: 79 | B94: 2020-04-29 | C94: 62.369999 | D94: 62.619999 | E94: 61.529999 | F94: 61.630001 | G94: 11035100 | H94: 61.163342 | I94: 0.9924280546 | J94: 1 | K94: 61.9 | L94: 62.15 | M94: 61.06 | N94: 61.16 | O94: 11035100 | U94: 2001-01-03 | V94: 0.275 | W94: 63.590599 | X94: 200101 | Y94: 200001 | Z94: 2000-01-05 | AA94: 5 | AB94: 1 | AC94: 1.01 | AD94: 0.01588285086
A95: 80 | B95: 2020-04-28 | C95: 62.93 | D95: 63.18 | E95: 61.77 | F95: 62.139999 | G95: 10858900 | H95: 61.669479 | I95: 0.9924280655 | J95: 1 | K95: 62.45 | L95: 62.7 | M95: 61.3 | N95: 61.67 | O95: 10858900 | U95: 2000-10-04 | V95: 0.245 | W95: 52.823624 | X95: 200010 | Y95: 199910 | Z95: 2000-01-05 | AA95: 4 | AB95: 0 | AC95: 0.98 | AD95: 0.01855230531
A96: 81 | B96: 2020-04-27 | C96: 62.639999 | D96: 63.02 | E96: 62.41 | F96: 62.560001 | G96: 13994600 | H96: 62.0863 | I96: 0.9924280532 | J96: 1 | K96: 62.17 | L96: 62.54 | M96: 61.94 | N96: 62.09 | O96: 13994600 | U96: 2000-07-05 | V96: 0.245 | W96: 56.095356 | X96: 200007 | Y96: 199907 | Z96: 1999-09-29 | AA96: 4 | AB96: 0 | AC96: 0.95 | AD96: 0.01693544827
A97: 82 | B97: 2020-04-24 | C97: 61.669998 | D97: 62.549999 | E97: 61.259998 | F97: 62.25 | G97: 10461500 | H97: 61.778648 | I97: 0.9924280803 | J97: 1 | K97: 61.2 | L97: 62.08 | M97: 60.8 | N97: 61.78 | O97: 10461500 | U97: 2000-04-05 | V97: 0.245 | W97: 61.330132 | X97: 200004 | Y97: 199904 | Z97: 1999-06-30 | AA97: 4 | AB97: 0 | AC97: 0.92 | AD97: 0.01500078298
A98: 83 | B98: 2020-04-23 | C98: 61.32 | D98: 61.990002 | E98: 60.84 | F98: 60.950001 | G98: 11897400 | H98: 60.488491 | I98: 0.9924280559 | J98: 1 | K98: 60.86 | L98: 61.52 | M98: 60.38 | N98: 60.49 | O98: 11897400 | U98: 2000-01-05 | V98: 0.245 | W98: 56.095356 | X98: 200001 | Y98: 199901 | Z98: 1999-01-06 | AA98: 5 | AB98: 1 | AC98: 0.89 | AD98: 0.01586584102
A99: 84 | B99: 2020-04-22 | C99: 61.259998 | D99: 61.91 | E99: 60.880001 | F99: 60.93 | G99: 12081500 | H99: 60.468643 | I99: 0.9924280814 | J99: 1 | K99: 60.8 | L99: 61.44 | M99: 60.42 | N99: 60.47 | O99: 12081500 | U99: 1999-09-29 | V99: 0.215 | W99: 62.341393 | X99: 199909 | Y99: 199809 | Z99: 1998-09-30 | AA99: 5 | AB99: 1 | AC99: 1.075 | AD99: 0.0172437597
A100: 85 | B100: 2020-04-21 | C100: 60.860001 | D100: 61.32 | E100: 60.259998 | F100: 60.59 | G100: 22203000 | H100: 60.131218 | I100: 0.9924280904 | J100: 1 | K100: 60.4 | L100: 60.86 | M100: 59.8 | N100: 60.13 | O100: 22203000 | U100: 1999-06-30 | V100: 0.215 | W100: 67.040794 | X100: 199906 | Y100: 199806 | Z100: 1998-06-30 | AA100: 5 | AB100: 1 | AC100: 1.25 | AD100: 0.0186453639
A101: 86 | B101: 2020-04-20 | C101: 60.75 | D101: 62.84 | E101: 60.599998 | F101: 61.68 | G101: 17446000 | H101: 61.212963 | I101: 0.9924280642 | J101: 1 | K101: 60.29 | L101: 62.36 | M101: 60.14 | N101: 61.21 | O101: 17446000 | U101: 1999-03-30 | V101: 0.215 | W101: 61.62756 | X101: 199903 | Y101: 199803 | Z101: 1998-04-01 | AA101: 5 | AB101: 0 | AC101: 1.815 | AD101: 0.02945110921
A102: 87 | B102: 2020-04-17 | C102: 60.380001 | D102: 60.77 | E102: 59.880001 | F102: 60.599998 | G102: 16697800 | H102: 60.14114 | I102: 0.9924280856 | J102: 1 | K102: 59.92 | L102: 60.31 | M102: 59.43 | N102: 60.14 | O102: 16697800 | U102: 1999-01-06 | V102: 0.43 | W102: 62.430622 | X102: 199901 | Y102: 199801 | Z102: 1998-04-01 | AA102: 4 | AB102: 0 | AC102: 1.6 | AD102: 0.02562844881
A103: 88 | B103: 2020-04-16 | C103: 59.799999 | D103: 60.349998 | E103: 59.5 | F103: 59.560001 | G103: 12984900 | H103: 59.109016 | I103: 0.9924280559 | J103: 1 | K103: 59.35 | L103: 59.89 | M103: 59.05 | N103: 59.11 | O103: 12984900 | U103: 1998-09-30 | V103: 0.39 | W103: 49.432919 | X103: 199809 | Y103: 199709 | Z103: 1997-10-01 | AA103: 5 | AB103: 0 | AC103: 1.94 | AD103: 0.03924510305
A104: 89 | B104: 2020-04-15 | C104: 59.299999 | D104: 59.889999 | E104: 58.900002 | F104: 59.459999 | G104: 14402100 | H104: 59.009773 | I104: 0.992428086 | J104: 1 | K104: 58.85 | L104: 59.44 | M104: 58.45 | N104: 59.01 | O104: 14402100 | U104: 1998-06-30 | V104: 0.39 | W104: 54.697433 | X104: 199806 | Y104: 199706 | Z104: 1997-07-01 | AA104: 5 | AB104: 0 | AC104: 1.93 | AD104: 0.03528501968
A105: 90 | B105: 2020-04-14 | C105: 59.830002 | D105: 60.73 | E105: 59.630001 | F105: 60.040001 | G105: 14259000 | H105: 59.585381 | I105: 0.9924280481 | J105: 1 | K105: 59.38 | L105: 60.27 | M105: 59.18 | N105: 59.59 | O105: 14259000 | U105: 1998-04-01 | V105: 0.39 | W105: 50.503666 | X105: 199804 | Y105: 199704 | Z105: 1997-04-02 | AA105: 5 | AB105: 1 | AC105: 1.54 | AD105: 0.03049283591
A106: 91 | B106: 2020-04-13 | C106: 58.5 | D106: 59.400002 | E106: 58.060001 | F106: 58.919998 | G106: 13921600 | H106: 58.473858 | I106: 0.9924280378 | J106: 1 | K106: 58.06 | L106: 58.95 | M106: 57.62 | N106: 58.47 | O106: 13921600 | U106: 1997-12-30 | V106: 0.39 | W106: 45.298637 | X106: 199712 | Y106: 199612 | Z106: 1996-12-31 | AA106: 5 | AB106: 1 | AC106: 1.53 | AD106: 0.0337758507
A107: 92 | B107: 2020-04-09 | C107: 58.799999 | D107: 59.580002 | E107: 58.369999 | F107: 58.91 | G107: 13256800 | H107: 58.463936 | I107: 0.9924280428 | J107: 1 | K107: 58.35 | L107: 59.13 | M107: 57.93 | N107: 58.46 | O107: 13256800 | U107: 1997-10-01 | V107: 0.38 | W107: 39.290543 | X107: 199710 | Y107: 199610 | Z107: 1996-10-02 | AA107: 5 | AB107: 1 | AC107: 1.9 | AD107: 0.04835769259
A108: 93 | B108: 2020-04-08 | C108: 57.049999 | D108: 59.130001 | E108: 56.360001 | F108: 58.25 | G108: 15268700 | H108: 57.808933 | I108: 0.9924280343 | J108: 1 | K108: 56.62 | L108: 58.68 | M108: 55.93 | N108: 57.81 | O108: 15268700 | U108: 1997-07-01 | V108: 0.38 | W108: 38.636196 | X108: 199707 | Y108: 199607 | Z108: 1996-07-02 | AA108: 6 | AB108: 1 | AC108: 3.02 | AD108: 0.07816504503
A109: 94 | B109: 2020-04-07 | C109: 58.529999 | D109: 58.59 | E109: 56.68 | F109: 56.900002 | G109: 19224400 | H109: 56.469158 | I109: 0.9924280495 | J109: 1 | K109: 58.09 | L109: 58.15 | M109: 56.25 | N109: 56.47 | O109: 19224400 | U109: 1997-04-02 | V109: 0.38 | W109: 28.85074 | X109: 199704 | Y109: 199604 | Z109: 1996-04-02 | AA109: 6 | AB109: 1 | AC109: 3.39 | AD109: 0.1175013189
A110: 95 | B110: 2020-04-06 | C110: 57.07 | D110: 58.07 | E110: 56.580002 | F110: 57.869999 | G110: 22589700 | H110: 57.431812 | I110: 0.99242808 | J110: 1 | K110: 56.64 | L110: 57.63 | M110: 56.15 | N110: 57.43 | O110: 22589700 | U110: 1996-12-31 | V110: 0.76 | W110: 25.935923 | X110: 199612 | Y110: 199512 | Z110: 1996-01-03 | AA110: 6 | AB110: 0 | AC110: 4.5 | AD110: 0.173504525
A111: 96 | B111: 2020-04-03 | C111: 54.990002 | D111: 56.470001 | E111: 54.900002 | F111: 55.529999 | G111: 14654200 | H111: 55.109528 | I111: 0.9924280388 | J111: 1 | K111: 54.57 | L111: 56.04 | M111: 54.48 | N111: 55.11 | O111: 14654200 | U111: 1996-10-02 | V111: 0.75 | W111: 23.199564 | X111: 199610 | Y111: 199510 | Z111: 1995-10-04 | AA111: 6 | AB111: 1 | AC111: 3.74 | AD111: 0.1612099262
A112: 97 | B112: 2020-04-02 | C112: 54.84 | D112: 55.32 | E112: 53.580002 | F112: 55.209999 | G112: 12929400 | H112: 54.791954 | I112: 0.9924280926 | J112: 1 | K112: 54.42 | L112: 54.9 | M112: 53.17 | N112: 54.79 | O112: 12929400 | U112: 1996-10-01 | V112: 0.75 | W112: 23.199564 | X112: 199610 | Y112: 199510 | Z112: 1995-10-04 | AA112: 5 | AB112: 1 | AC112: 2.99 | AD112: 0.1288817324
A113: 98 | B113: 2020-04-01 | C113: 53.619999 | D113: 55.700001 | E113: 53.52 | F113: 54.82 | G113: 13441300 | H113: 53.958313 | I113: 0.9842815213 | J113: 1 | K113: 52.78 | L113: 54.82 | M113: 52.68 | N113: 53.96 | O113: 13441300 | U113: 1996-07-02 | V113: 0.75 | W113: 21.296011 | X113: 199607 | Y113: 199507 | Z113: 1995-07-05 | AA113: 5 | AB113: 1 | AC113: 2.98 | AD113: 0.1399323094
A114: 99 | B114: 2020-03-31 | C114: 54.299999 | D114: 56.240002 | E114: 54.240002 | F114: 55.740002 | G114: 28455600 | H114: 54.863857 | I114: 0.9842815757 | J114: 1 | K114: 53.45 | L114: 55.36 | M114: 53.39 | N114: 54.86 | O114: 28455600 | U114: 1996-04-02 | V114: 0.75 | W114: 20.552435 | X114: 199604 | Y114: 199504 | Z114: 1995-04-03 | AA114: 5 | AB114: 1 | AC114: 2.97 | AD114: 0.1445084244
A115: 100 | B115: 2020-03-30 | C115: 53.200001 | D115: 55.080002 | E115: 53.200001 | F115: 54.389999 | G115: 18013500 | H115: 53.535072 | I115: 0.9842815404 | J115: 1 | K115: 52.36 | L115: 54.21 | M115: 52.36 | N115: 53.54 | O115: 18013500 | U115: 1996-01-03 | V115: 0.74 | W115: 19.957575 | X115: 199601 | Y115: 199501 | Z115: 1995-04-03 | AA115: 4 | AB115: 0 | AC115: 2.96 | AD115: 0.1483146124
A116: 101 | B116: 2020-03-27 | C116: 51.110001 | D116: 53.779999 | E116: 50.869999 | F116: 52.790001 | G116: 14498400 | H116: 51.96022 | I116: 0.9842814741 | J116: 1 | K116: 50.31 | L116: 52.93 | M116: 50.07 | N116: 51.96 | O116: 14498400 | U116: 1995-10-04 | V116: 0.74 | W116: 18.113506 | X116: 199510 | Y116: 199410 | Z116: 1994-10-03 | AA116: 5 | AB116: 1 | AC116: 2.96 | AD116: 0.1634139741
A117: 102 | B117: 2020-03-26 | C117: 50.459999 | D117: 53.32 | E117: 50.310001 | F117: 52.25 | G117: 21600200 | H117: 51.428711 | I117: 0.9842815502 | J117: 1 | K117: 49.67 | L117: 52.48 | M117: 49.52 | N117: 51.43 | O117: 21600200 | U117: 1995-07-05 | V117: 0.74 | W117: 16.031494 | X117: 199507 | Y117: 199407 | Z117: 1994-10-03 | AA117: 4 | AB117: 0 | AC117: 2.95 | AD117: 0.1840127938
A118: 103 | B118: 2020-03-25 | C118: 49.029999 | D118: 51.950001 | E118: 48.169998 | F118: 49.349998 | G118: 20921300 | H118: 48.574291 | I118: 0.9842815191 | J118: 1 | K118: 48.26 | L118: 51.13 | M118: 47.41 | N118: 48.57 | O118: 20921300 | U118: 1995-04-03 | V118: 0.74 | W118: 14.81203 | X118: 199504 | Y118: 199404 | Z118: 1994-06-27 | AA118: 4 | AB118: 0 | AC118: 2.94 | AD118: 0.1984873107
A119: 104 | B119: 2020-03-24 | C119: 48.18 | D119: 49.5 | E119: 47.389999 | F119: 49.240002 | G119: 16484800 | H119: 48.466026 | I119: 0.9842815603 | J119: 1 | K119: 47.42 | L119: 48.72 | M119: 46.65 | N119: 48.47 | O119: 16484800 | U119: 1994-12-30 | V119: 0.74 | W119: 13.771024 | X119: 199412 | Y119: 199312 | Z119: 1994-01-03 | AA119: 5 | AB119: 0 | AC119: 3.66 | AD119: 0.2657754427
A120: 105 | B120: 2020-03-23 | C120: 47.189999 | D120: 48.400002 | E120: 45.759998 | F120: 46.400002 | G120: 21237000 | H120: 45.670666 | I120: 0.9842815524 | J120: 1 | K120: 46.45 | L120: 47.64 | M120: 45.04 | N120: 45.67 | O120: 21237000 | U120: 1994-10-03 | V120: 0.73 | W120: 13.533079 | X120: 199410 | Y120: 199310 | Z120: 1994-01-03 | AA120: 4 | AB120: 0 | AC120: 2.92 | AD120: 0.2157676017
A121: 106 | B121: 2020-03-20 | C121: 49.049999 | D121: 50.639999 | E121: 47.25 | F121: 48.400002 | G121: 20370800 | H121: 47.639229 | I121: 0.9842815502 | J121: 1 | K121: 48.28 | L121: 49.84 | M121: 46.51 | N121: 47.64 | O121: 20370800 | U121: 1994-06-27 | V121: 0.73 | W121: 12.789503 | X121: 199406 | Y121: 199306 | Z121: 1993-06-28 | AA121: 5 | AB121: 1 | AC121: 2.91 | AD121: 0.2275303427
A122: 107 | B122: 2020-03-19 | C122: 50.110001 | D122: 50.720001 | E122: 48.130001 | F122: 48.790001 | G122: 20058300 | H122: 48.023098 | I122: 0.9842815539 | J122: 1 | K122: 49.32 | L122: 49.92 | M122: 47.37 | N122: 48.02 | O122: 20058300 | U122: 1994-03-25 | V122: 0.73 | W122: 12.343358 | X122: 199403 | Y122: 199303 | Z122: 1993-03-29 | AA122: 5 | AB122: 1 | AC122: 2.9 | AD122: 0.23494417
A123: 108 | B123: 2020-03-18 | C123: 51.630001 | D123: 52.389999 | E123: 48.02 | F123: 50.240002 | G123: 27384200 | H123: 49.450306 | I123: 0.9842815293 | J123: 1 | K123: 50.82 | L123: 51.57 | M123: 47.27 | N123: 49.45 | O123: 27384200 | U123: 1994-01-03 | V123: 0.73 | W123: 13.681794 | X123: 199401 | Y123: 199301 | Z123: 1993-01-04 | AA123: 5 | AB123: 1 | AC123: 2.89 | AD123: 0.2112296092
A124: 109 | B124: 2020-03-17 | C124: 51.830002 | D124: 54.099998 | E124: 51.200001 | F124: 54.09 | G124: 17519600 | H124: 53.239788 | I124: 0.9842815308 | J124: 1 | K124: 51.02 | L124: 53.25 | M124: 50.4 | N124: 53.24 | O124: 17519600 | U124: 1993-09-27 | V124: 0.72 | W124: 13.622309 | X124: 199309 | Y124: 199209 | Z124: 1992-09-28 | AA124: 5 | AB124: 1 | AC124: 2.88 | AD124: 0.2114179028
A125: 110 | B125: 2020-03-16 | C125: 50.130001 | D125: 53.759998 | E125: 48.009998 | F125: 51.110001 | G125: 20582800 | H125: 50.306629 | I125: 0.9842815108 | J125: 1 | K125: 49.34 | L125: 52.91 | M125: 47.26 | N125: 50.31 | O125: 20582800 | U125: 1993-06-28 | V125: 0.72 | W125: 13.889996 | X125: 199306 | Y125: 199206 | Z125: 1992-06-26 | AA125: 5 | AB125: 1 | AC125: 2.85 | AD125: 0.2051836444
A126: 111 | B126: 2020-03-13 | C126: 54.889999 | D126: 55.5 | E126: 51.779999 | F126: 54.990002 | G126: 23503600 | H126: 54.125641 | I126: 0.9842814881 | J126: 1 | K126: 54.03 | L126: 54.63 | M126: 50.97 | N126: 54.13 | O126: 23503600 | U126: 1993-03-29 | V126: 0.72 | W126: 13.860252 | X126: 199303 | Y126: 199203 | Z126: 1992-03-30 | AA126: 5 | AB126: 1 | AC126: 2.82 | AD126: 0.2034595042
A127: 112 | B127: 2020-03-12 | C127: 52.330002 | D127: 54.900002 | E127: 50.619999 | F127: 52.75 | G127: 22963000 | H127: 51.920853 | I127: 0.9842815735 | J127: 1 | K127: 51.51 | L127: 54.04 | M127: 49.82 | N127: 51.92 | O127: 22963000 | U127: 1993-01-04 | V127: 0.72 | W127: 15.79355 | X127: 199301 | Y127: 199201 | Z127: 1992-03-30 | AA127: 4 | AB127: 0 | AC127: 2.79 | AD127: 0.1766543937
A128: 113 | B128: 2020-03-11 | C128: 56.779999 | D128: 57.959999 | E128: 55.810001 | F128: 56.509998 | G128: 19768800 | H128: 55.621746 | I128: 0.9842815071 | J128: 1 | K128: 55.89 | L128: 57.05 | M128: 54.93 | N128: 55.62 | O128: 19768800 | U128: 1992-09-28 | V128: 0.69 | W128: 14.901258 | X128: 199209 | Y128: 199109 | Z128: 1991-09-30 | AA128: 5 | AB128: 1 | AC128: 2.76 | AD128: 0.1852192614
A129: 114 | B129: 2020-03-10 | C129: 58.82 | D129: 58.950001 | E129: 55.91 | F129: 57.93 | G129: 24831000 | H129: 57.019432 | I129: 0.9842815812 | J129: 1 | K129: 57.9 | L129: 58.02 | M129: 55.03 | N129: 57.02 | O129: 24831000 | U129: 1992-06-26 | V129: 0.69 | W129: 15.496119 | X129: 199206 | Y129: 199106 | Z129: 1991-06-28 | AA129: 5 | AB129: 1 | AC129: 2.67 | AD129: 0.1723012065
A130: 115 | B130: 2020-03-09 | C130: 56.009998 | D130: 59.139999 | E130: 56 | F130: 57.66 | G130: 22385900 | H130: 56.753674 | I130: 0.984281547 | J130: 1 | K130: 55.13 | L130: 58.21 | M130: 55.12 | N130: 56.75 | O130: 22385900 | U130: 1992-03-30 | V130: 0.69 | W130: 18.619137 | X130: 199203 | Y130: 199103 | Z130: 1991-04-01 | AA130: 5 | AB130: 0 | AC130: 3.18 | AD130: 0.170792019
A131: 116 | B131: 2020-03-06 | C131: 58.880001 | D131: 60.419998 | E131: 58.759998 | F131: 60.310001 | G131: 14833900 | H131: 59.362019 | I131: 0.9842815124 | J131: 1 | K131: 57.95 | L131: 59.47 | M131: 57.84 | N131: 59.36 | O131: 14833900 | U131: 1991-12-27 | V131: 0.69 | W131: 20.195518 | X131: 199112 | Y131: 199012 | Z131: 1990-12-28 | AA131: 5 | AB131: 1 | AC131: 2.49 | AD131: 0.1232946835
A132: 117 | B132: 2020-03-05 | C132: 60.700001 | D132: 61.240002 | E132: 59.84 | F132: 60.5 | G132: 15119400 | H132: 59.54903 | I132: 0.9842814876 | J132: 1 | K132: 59.75 | L132: 60.28 | M132: 58.9 | N132: 59.55 | O132: 15119400 | U132: 1991-09-30 | V132: 0.6 | W132: 19.689886 | X132: 199109 | Y132: 199009 | Z132: 1990-10-01 | AA132: 5 | AB132: 0 | AC132: 2.93 | AD132: 0.1488073623
A133: 118 | B133: 2020-03-04 | C133: 60.200001 | D133: 61.68 | E133: 59.689999 | F133: 61.48 | G133: 18228300 | H133: 60.513626 | I133: 0.9842814899 | J133: 1 | K133: 59.25 | L133: 60.71 | M133: 58.75 | N133: 60.51 | O133: 18228300 | U133: 1991-06-28 | V133: 0.6 | W133: 18.500166 | X133: 199106 | Y133: 199006 | Z133: 1990-06-29 | AA133: 5 | AB133: 1 | AC133: 2.33 | AD133: 0.1259448158
A134: 119 | B134: 2020-03-03 | C134: 60.860001 | D134: 61.849998 | E134: 58.34 | F134: 59.200001 | G134: 18250100 | H134: 58.26947 | I134: 0.9842815712 | J134: 1 | K134: 59.9 | L134: 60.88 | M134: 57.42 | N134: 58.27 | O134: 18250100 | U134: 1991-04-01 | V134: 0.6 | W134: 18.291964 | X134: 199104 | Y134: 199004 | Z134: 1990-04-02 | AA134: 5 | AB134: 1 | AC134: 2.26 | AD134: 0.1235515224
A135: 120 | B135: 2020-03-02 | C135: 59.57 | D135: 60.779999 | E135: 58.68 | F135: 60.34 | G135: 19500300 | H135: 59.391548 | I135: 0.984281538 | J135: 1 | K135: 58.63 | L135: 59.82 | M135: 57.76 | N135: 59.39 | O135: 19500300 | U135: 1990-12-28 | V135: 0.6 | W135: 15.882779 | X135: 199012 | Y135: 198912 | Z135: 1989-12-29 | AA135: 5 | AB135: 1 | AC135: 2.19 | AD135: 0.13788519
A136: 121 | B136: 2020-02-28 | C136: 57.759998 | D136: 59.209999 | E136: 56.369999 | F136: 59.060001 | G136: 28294900 | H136: 58.131668 | I136: 0.9842815275 | J136: 1 | K136: 56.85 | L136: 58.28 | M136: 55.48 | N136: 58.13 | O136: 28294900 | U136: 1990-10-01 | V136: 0.53 | W136: 14.455113 | X136: 199010 | Y136: 198910 | Z136: 1989-12-29 | AA136: 4 | AB136: 0 | AC136: 2.12 | AD136: 0.1466609082
A137: 122 | B137: 2020-02-27 | C137: 61 | D137: 61.580002 | E137: 59.560001 | F137: 59.580002 | G137: 20618300 | H137: 58.643494 | I137: 0.9842815044 | J137: 1 | K137: 60.04 | L137: 60.61 | M137: 58.62 | N137: 58.64 | O137: 20618300 | U137: 1990-06-29 | V137: 0.53 | W137: 15.079717 | X137: 199006 | Y137: 198906 | Z137: 1989-06-30 | AA137: 5 | AB137: 1 | AC137: 2.09 | AD137: 0.1385967654
A138: 123 | B138: 2020-02-26 | C138: 61.75 | D138: 63.389999 | E138: 61.610001 | F138: 62.040001 | G138: 11264600 | H138: 61.064827 | I138: 0.9842815283 | J138: 1 | K138: 60.78 | L138: 62.39 | M138: 60.64 | N138: 61.06 | O138: 11264600 | U138: 1990-04-02 | V138: 0.53 | W138: 12.670531 | X138: 199004 | Y138: 198904 | Z138: 1989-04-03 | AA138: 5 | AB138: 1 | AC138: 2.06 | AD138: 0.1625819786
A139: 124 | B139: 2020-02-25 | C139: 63.889999 | D139: 63.91 | E139: 61.599998 | F139: 62.139999 | G139: 15706000 | H139: 61.163254 | I139: 0.9842815414 | J139: 1 | K139: 62.89 | L139: 62.91 | M139: 60.63 | N139: 61.16 | O139: 15706000 | U139: 1989-12-29 | V139: 0.53 | W139: 13.324878 | X139: 198912 | Y139: 198812 | Z139: 1988-12-30 | AA139: 5 | AB139: 1 | AC139: 2.03 | AD139: 0.1523466106
A140: 125 | B140: 2020-02-24 | C140: 64.080002 | D140: 65.059998 | E140: 63.689999 | F140: 63.970001 | G140: 12105000 | H140: 62.964493 | I140: 0.9842815697 | J140: 1 | K140: 63.07 | L140: 64.04 | M140: 62.69 | N140: 62.96 | O140: 12105000 | U140: 1989-09-19 | V140: 0.5 | W140: 11.718755 | X140: 198909 | Y140: 198809 | Z140: 1988-10-03 | AA140: 5 | AB140: 0 | AC140: 2.42 | AD140: 0.2065065786
A141: 126 | B141: 2020-02-21 | C141: 64.870003 | D141: 65.870003 | E141: 64.800003 | F141: 65.629997 | G141: 10134800 | H141: 64.598389 | I141: 0.9842814559 | J141: 1 | K141: 63.85 | L141: 64.83 | M141: 63.78 | N141: 64.6 | O141: 10134800 | U141: 1989-06-30 | V141: 0.5 | W141: 11.391581 | X141: 198906 | Y141: 198806 | Z141: 1988-06-27 | AA141: 5 | AB141: 1 | AC141: 1.92 | AD141: 0.168545525
A142: 127 | B142: 2020-02-20 | C142: 65.629997 | D142: 65.980003 | E142: 64.889999 | F142: 65.169998 | G142: 11360500 | H142: 64.14563 | I142: 0.9842816015 | J142: 1 | K142: 64.6 | L142: 64.94 | M142: 63.87 | N142: 64.15 | O142: 11360500 | U142: 1989-04-03 | V142: 0.5 | W142: 11.18338 | X142: 198904 | Y142: 198804 | Z142: 1988-06-27 | AA142: 4 | AB142: 0 | AC142: 1.84 | AD142: 0.1645298649
A143: 128 | B143: 2020-02-19 | C143: 66 | D143: 66.050003 | E143: 65.360001 | F143: 65.709999 | G143: 9905400 | H143: 64.677139 | I143: 0.9842815399 | J143: 1 | K143: 64.96 | L143: 65.01 | M143: 64.33 | N143: 64.68 | O143: 9905400 | U143: 1988-12-30 | V143: 0.5 | W143: 10.766977 | X143: 198812 | Y143: 198712 | Z143: 1988-01-04 | AA143: 5 | AB143: 0 | AC143: 2.18 | AD143: 0.2024709443
A144: 129 | B144: 2020-02-18 | C144: 66.510002 | D144: 66.970001 | E144: 65.440002 | F144: 66.07 | G144: 13831900 | H144: 65.031487 | I144: 0.9842816255 | J144: 1 | K144: 65.46 | L144: 65.92 | M144: 64.41 | N144: 65.03 | O144: 13831900 | U144: 1988-10-03 | V144: 0.42 | W144: 10.469547 | X144: 198810 | Y144: 198710 | Z144: 1988-01-04 | AA144: 4 | AB144: 0 | AC144: 1.68 | AD144: 0.1604653955
A145: 130 | B145: 2020-02-14 | C145: 66.25 | D145: 66.830002 | E145: 65.980003 | F145: 66.379997 | G145: 7530700 | H145: 65.336609 | I145: =IF(F145=0,1,H145/F145) -> 0.9842815901 | J145: =INDEX(OFFSET($T$15,0,0,$S$13+1,1),MATCH(B145,OFFSET($Q$15,0,0,$S$13+1,1),-1)) -> 1 | K145: =ROUND($I145*C145,2) -> 65.21 | L145: =ROUND($I145*D145,2) -> 65.78 | M145: =ROUND($I145*E145,2) -> 64.94 | N145: =ROUND($I145*F145,2) -> 65.34 | O145: =G145*J145 -> 7530700 | U145: 1988-06-27 | V145: 0.42 | W145: =(INDEX(OFFSET($F$15,1,0,$B$10,1),MATCH(U145,OFFSET($B$15,1,0,$B$10,1),-1))) -> 9.458284 | X145: =YEAR(U145)&RIGHT("0"&MONTH(U145),2) -> 198806 | Y145: =YEAR(U145)-1&RIGHT("0"&MONTH(U145),2) -> 198706 | Z145: =OFFSET(U144,AA145,0,1,1) -> 1987-06-26 | AA145: =MATCH(Y145,OFFSET($X$15,A145,0,$V$14+1-A145,1),-1) -> 5 | AB145: =IF(OR(AND(YEAR(U145)=YEAR(Z145),MONTH(U145)=MONTH(Z145)),MONTH(U145)=MONTH(Z145)),1,0) -> 1 | AC145: =(V145+IF(AA145-AB145=0,0,IFERROR(SUM(OFFSET(V145,1,0,AA145-AB145-1,1)),0))) -> 1.61 | AD145: =AC145/(INDEX(OFFSET($F$15,1,0,$B$10,1),MATCH(U145,OFFSET($B$15,1,0,$B$10,1),-1))) -> 0.1702211522
A146: 131 | B146: 2020-02-13 | C146: 66.720001 | D146: 66.949997 | E146: 66.040001 | F146: 66.080002 | G146: 9149500 | H146: 65.041328 | I146: 0.9842815683 | J146: 1 | K146: 65.67 | L146: 65.9 | M146: 65 | N146: 65.04 | O146: 9149500 | U146: 1988-03-25 | V146: 0.42 | W146: 10.023401 | X146: 198803 | Y146: 198703 | Z146: 1987-03-30 | AA146: 5 | AB146: 1 | AC146: 1.54 | AD146: 0.1536404659
A147: 132 | B147: 2020-02-12 | C147: 67.089996 | D147: 67.5 | E147: 66.57 | F147: 67 | G147: 11213700 | H147: 65.946869 | I147: 0.9842816269 | J147: 1 | K147: 66.04 | L147: 66.44 | M147: 65.52 | N147: 65.95 | O147: 11213700 | U147: 1988-01-04 | V147: 0.42 | W147: 10.291089 | X147: 198801 | Y147: 198701 | Z147: 1987-03-30 | AA147: 4 | AB147: 0 | AC147: 1.82 | AD147: 0.1768520319
A148: 133 | B148: 2020-02-11 | C148: 67.349998 | D148: 67.550003 | E148: 66.970001 | F148: 66.989998 | G148: 7261400 | H148: 65.937019 | I148: 0.984281549 | J148: 1 | K148: 66.29 | L148: 66.49 | M148: 65.92 | N148: 65.94 | O148: 7261400 | U148: 1987-09-28 | V148: 0.35 | W148: 12.194643 | X148: 198709 | Y148: 198609 | Z148: 1986-09-29 | AA148: 5 | AB148: 1 | AC148: 2.1 | AD148: 0.1722067632
A149: 134 | B149: 2020-02-10 | C149: 65.879997 | D149: 67.120003 | E149: 65.800003 | F149: 66.910004 | G149: 13218500 | H149: 65.858284 | I149: 0.9842815732 | J149: 1 | K149: 64.84 | L149: 66.06 | M149: 64.77 | N149: 65.86 | O149: 13218500 | U149: 1987-06-26 | V149: 0.35 | W149: 12.224386 | X149: 198706 | Y149: 198606 | Z149: 1986-06-27 | AA149: 5 | AB149: 1 | AC149: 2.3004 | AD149: 0.1881812305
A150: 135 | B150: 2020-02-07 | C150: 66.68 | D150: 67.010002 | E150: 65.839996 | F150: 66.25 | G150: 13093400 | H150: 65.208649 | I150: 0.9842814943 | J150: 1 | K150: 65.63 | L150: 65.96 | M150: 64.81 | N150: 65.21 | O150: 13093400 | U150: 1987-03-30 | V150: 0.7 | W150: 11.926955 | X150: 198703 | Y150: 198603 | Z150: 1986-03-31 | AA150: 5 | AB150: 1 | AC150: 2.5008 | AD150: 0.2096763172
A151: 136 | B151: 2020-02-06 | C151: 67 | D151: 67.800003 | E151: 66.389999 | F151: 67.099998 | G151: 16488500 | H151: 66.045288 | I151: 0.9842815197 | J151: 1 | K151: 65.95 | L151: 66.73 | M151: 65.35 | N151: 66.05 | O151: 16488500 | U151: 1986-12-26 | V151: 0.7 | W151: 10.112631 | X151: 198612 | Y151: 198512 | Z151: 1985-12-27 | AA151: 5 | AB151: 1 | AC151: 2.3512 | AD151: 0.2325013144
A152: 137 | B152: 2020-02-05 | C152: 64.919998 | D152: 65.849998 | E152: 64.849998 | F152: 65.589996 | G152: 14991600 | H152: 64.559021 | I152: 0.9842815206 | J152: 1 | K152: 63.9 | L152: 64.81 | M152: 63.83 | N152: 64.56 | O152: 14991600 | U152: 1986-09-29 | V152: 0.5504 | W152: 8.610607 | X152: 198609 | Y152: 198509 | Z152: 1985-09-30 | AA152: 5 | AB152: 1 | AC152: 2.1216 | AD152: 0.2463937792
A153: 138 | B153: 2020-02-04 | C153: 64.07 | D153: 64.940002 | E153: 64.050003 | F153: 64.290001 | G153: 11740200 | H153: 63.279457 | I153: 0.9842814748 | J153: 1 | K153: 63.06 | L153: 63.92 | M153: 63.04 | N153: 63.28 | O153: 11740200 | U153: 1986-06-27 | V153: 0.5504 | W153: 10.439804 | X153: 198606 | Y153: 198506 | Z153: 1985-06-28 | AA153: 5 | AB153: 1 | AC153: 1.62712 | AD153: 0.1558573322
A154: 139 | B154: 2020-02-03 | C154: 63.099998 | D154: 64.239998 | E154: 63.049999 | F154: 63.580002 | G154: 15987100 | H154: 62.580624 | I154: 0.984281567 | J154: 1 | K154: 62.11 | L154: 63.23 | M154: 62.06 | N154: 62.58 | O154: 15987100 | U154: 1986-03-31 | V154: 0.5504 | W154: 8.997267 | X154: 198603 | Y154: 198503 | Z154: 1985-03-29 | AA154: 5 | AB154: 1 | AC154: 1.13264 | AD154: 0.1258871166
A155: 140 | B155: 2020-01-31 | C155: 63.630001 | D155: 63.689999 | E155: 62.509998 | F155: 62.950001 | G155: 12898000 | H155: 61.960522 | I155: 0.9842815094 | J155: 1 | K155: 62.63 | L155: 62.69 | M155: 61.53 | N155: 61.96 | O155: 12898000 | U155: 1985-12-27 | V155: 0.4704 | W155: 7.822417 | X155: 198512 | Y155: 198412 | Z155: 1984-12-28 | AA155: 5 | AB155: 1 | AC155: 0.63816 | AD155: 0.08158092313
A156: 141 | B156: 2020-01-30 | C156: 63.799999 | D156: 64.309998 | E156: 63.389999 | F156: 63.810001 | G156: 10783700 | H156: 62.807007 | I156: 0.9842815549 | J156: 1 | K156: 62.8 | L156: 63.3 | M156: 62.39 | N156: 62.81 | O156: 10783700 | U156: 1985-09-30 | V156: 0.05592 | W156: 6.424495 | X156: 198509 | Y156: 198409 | Z156: 1984-10-01 | AA156: 5 | AB156: 0 | AC156: 0.26294 | AD156: 0.04092773051
A157: 142 | B157: 2020-01-29 | C157: 65.019997 | D157: 65.089996 | E157: 64.129997 | F157: 64.139999 | G157: 10763200 | H157: 63.131817 | I157: 0.9842815401 | J157: 1 | K157: 64 | L157: 64.07 | M157: 63.12 | N157: 63.13 | O157: 10763200 | U157: 1985-06-28 | V157: 0.05592 | W157: 7.301914 | X157: 198506 | Y157: 198406 | Z157: 1984-06-29 | AA157: 5 | AB157: 1 | AC157: 0.20702 | AD157: 0.02835147059
A158: 143 | B158: 2020-01-28 | C158: 64.129997 | D158: 65.360001 | E158: 63.900002 | F158: 64.809998 | G158: 12761900 | H158: 63.791283 | I158: 0.9842815147 | J158: 1 | K158: 63.12 | L158: 64.33 | M158: 62.9 | N158: 63.79 | O158: 12761900 | U158: 1985-03-29 | V158: 0.05592 | W158: 6.840897 | X158: 198503 | Y158: 198403 | Z158: 1984-04-02 | AA158: 5 | AB158: 0 | AC158: 0.24628 | AD158: 0.03600112675
A159: 144 | B159: 2020-01-27 | C159: 63.259998 | D159: 64.629997 | E159: 63.09 | F159: 63.700001 | G159: 20951100 | H159: 62.69873 | I159: 0.9842814602 | J159: 1 | K159: 62.27 | L159: 63.61 | M159: 62.1 | N159: 62.7 | O159: 20951100 | U159: 1984-12-28 | V159: 0.04759 | W159: 6.216293 | X159: 198412 | Y159: 198312 | Z159: 1983-12-30 | AA159: 5 | AB159: 1 | AC159: 0.19036 | AD159: 0.03062275218
A160: 145 | B160: 2020-01-24 | C160: 66.389999 | D160: 66.739998 | E160: 63.610001 | F160: 64.160004 | G160: 22453000 | H160: 63.151505 | I160: 0.9842815004 | J160: 1 | K160: 65.35 | L160: 65.69 | M160: 62.61 | N160: 63.15 | O160: 22453000 | U160: 1984-10-01 | V160: 0.04759 | W160: 5.338874 | X160: 198410 | Y160: 198310 | Z160: 1983-10-03 | AA160: 5 | AB160: 1 | AC160: 0.17846 | AD160: 0.03342652402
A161: 146 | B161: 2020-01-23 | C161: 67.129997 | D161: 67.25 | E161: 66.029999 | F161: 66.870003 | G161: 13183300 | H161: 65.818909 | I161: 0.984281532 | J161: 1 | K161: 66.07 | L161: 66.19 | M161: 64.99 | N161: 65.82 | O161: 13183300 | U161: 1984-06-29 | V161: 0.04759 | W161: 5.576818 | X161: 198406 | Y161: 198306 | Z161: 1983-07-01 | AA161: 5 | AB161: 0 | AC161: 0.20225 | AD161: 0.03626620055
A162: 147 | B162: 2020-01-22 | C162: 67.910004 | D162: 68.339996 | E162: 67.220001 | F162: 67.43 | G162: 15186700 | H162: 66.370102 | I162: 0.9842815067 | J162: 1 | K162: 66.84 | L162: 67.27 | M162: 66.16 | N162: 66.37 | O162: 15186700 | U162: 1984-04-02 | V162: 0.04759 | W162: 5.457846 | X162: 198404 | Y162: 198304 | Z162: 1983-04-04 | AA162: 5 | AB162: 1 | AC162: 0.15466 | AD162: 0.0283371865
A163: 148 | B163: 2020-01-21 | C163: 66.699997 | D163: 67.620003 | E163: 66.529999 | F163: 67.43 | G163: 12519400 | H163: 66.370102 | I163: 0.9842815067 | J163: 1 | K163: 65.65 | L163: 66.56 | M163: 65.48 | N163: 66.37 | O163: 12519400 | U163: 1983-12-30 | V163: 0.03569 | W163: 5.026572 | X163: 198312 | Y163: 198212 | Z163: 1983-01-03 | AA163: 5 | AB163: 0 | AC163: 0.17399 | AD163: 0.03461404711
A164: 149 | B164: 2020-01-17 | C164: 66.75 | D164: 67.209999 | E164: 66.699997 | F164: 66.720001 | G164: 14375000 | H164: 65.671265 | I164: 0.984281535 | J164: 1 | K164: 65.7 | L164: 66.15 | M164: 65.65 | N164: 65.67 | O164: 14375000 | U164: 1983-10-03 | V164: 0.03569 | W164: 5.10093 | X164: 198310 | Y164: 198210 | Z164: 1982-10-04 | AA164: 5 | AB164: 1 | AC164: 0.1383 | AD164: 0.02711270298
A165: 150 | B165: 2020-01-16 | C165: 66.629997 | D165: 66.970001 | E165: 66.510002 | F165: 66.779999 | G165: 8435800 | H165: 65.730316 | I165: 0.9842814763 | J165: 1 | K165: 65.58 | L165: 65.92 | M165: 65.46 | N165: 65.73 | O165: 8435800 | U165: 1983-07-01 | V165: 0.03569 | W165: 4.848114 | X165: 198307 | Y165: 198207 | Z165: 1982-07-02 | AA165: 5 | AB165: 1 | AC165: 0.13384 | AD165: 0.02760661156
A166: 151 | B166: 2020-01-15 | C166: 66.43 | D166: 67.089996 | E166: 66.43 | F166: 66.580002 | G166: 10937400 | H166: 65.533463 | I166: 0.9842814814 | J166: 1 | K166: 65.39 | L166: 66.04 | M166: 65.39 | N166: 65.53 | O166: 10937400 | U166: 1983-04-04 | V166: 0.03569 | W166: 4.193768 | X166: 198304 | Y166: 198204 | Z166: 1982-04-02 | AA166: 5 | AB166: 1 | AC166: 0.12938 | AD166: 0.03085053823
A167: 152 | B167: 2020-01-14 | C167: 65.809998 | D167: 66.529999 | E167: 65.57 | F167: 66.440002 | G167: 30560500 | H167: 65.395668 | I167: 0.9842815477 | J167: 1 | K167: 64.78 | L167: 65.48 | M167: 64.54 | N167: 65.4 | O167: 30560500 | U167: 1983-01-03 | V167: 0.03123 | W167: 3.985566 | X167: 198301 | Y167: 198201 | Z167: 1982-01-04 | AA167: 5 | AB167: 1 | AC167: 0.12492 | AD167: 0.03134310158
A168: 153 | B168: 2020-01-13 | C168: 65.43 | D168: 66.989998 | E168: 65.370003 | F168: 66.150002 | G168: 19243300 | H168: 65.110222 | I168: 0.984281482 | J168: 1 | K168: 64.4 | L168: 65.94 | M168: 64.34 | N168: 65.11 | O168: 19243300 | U168: 1982-10-04 | V168: 0.03123 | W168: 3.725315 | X168: 198210 | Y168: 198110 | Z168: 1981-10-05 | AA168: 5 | AB168: 1 | AC168: 0.12105 | AD168: 0.03249389649
A169: 154 | B169: 2020-01-10 | C169: 65.449997 | D169: 65.970001 | E169: 65.040001 | F169: 65.230003 | G169: 11698000 | H169: 64.204689 | I169: 0.9842815583 | J169: 1 | K169: 64.42 | L169: 64.93 | M169: 64.02 | N169: 64.2 | O169: 11698000 | U169: 1982-07-02 | V169: 0.03123 | W169: 3.249426 | X169: 198207 | Y169: 198107 | Z169: 1981-07-06 | AA169: 5 | AB169: 1 | AC169: 0.11718 | AD169: 0.03606175368
A170: 155 | B170: 2020-01-09 | C170: 64.139999 | D170: 65.779999 | E170: 64.120003 | F170: 65.449997 | G170: 16169300 | H170: 64.421227 | I170: 0.9842815883 | J170: 1 | K170: 63.13 | L170: 64.75 | M170: 63.11 | N170: 64.42 | O170: 16169300 | U170: 1982-04-02 | V170: 0.03123 | W170: 3.38327 | X170: 198204 | Y170: 198104 | Z170: 1981-04-06 | AA170: 6 | AB170: 1 | AC170: 0.1371 | AD170: 0.04052292604
A171: 156 | B171: 2020-01-08 | C171: 64.050003 | D171: 64.610001 | E171: 63.860001 | F171: 63.860001 | G171: 18527000 | H171: 62.85622 | I171: 0.984281538 | J171: 1 | K171: 63.04 | L171: 63.59 | M171: 62.86 | N171: 62.86 | O171: 18527000 | U171: 1982-01-04 | V171: 0.02736 | W171: 3.13789 | X171: 198201 | Y171: 198101 | Z171: 1981-04-06 | AA171: 5 | AB171: 0 | AC171: 0.13323 | AD171: 0.04245846731
A172: 157 | B172: 2020-01-07 | C172: 62.84 | D172: 64.18 | E172: 62.77 | F172: 63.93 | G172: 15551700 | H172: 62.925117 | I172: 0.984281511 | J172: 1 | K172: 61.85 | L172: 63.17 | M172: 61.78 | N172: 62.93 | O172: 15551700 | U172: 1981-10-05 | V172: 0.02736 | W172: 3.026353 | X172: 198110 | Y172: 198010 | Z172: 1980-10-06 | AA172: 5 | AB172: 1 | AC172: 0.10587 | AD172: 0.0349827003
A173: 158 | B173: 2020-01-06 | C173: 62.900002 | D173: 63.240002 | E173: 62.669998 | F173: 62.98 | G173: 11311400 | H173: 61.990051 | I173: 0.9842815338 | J173: 1 | K173: 61.91 | L173: 62.25 | M173: 61.68 | N173: 61.99 | O173: 11311400 | U173: 1981-07-06 | V173: 0.02736 | W173: 2.84046 | X173: 198107 | Y173: 198007 | Z173: 1980-10-06 | AA173: 4 | AB173: 0 | AC173: 0.1023 | AD173: 0.0360152933
A174: 159 | B174: 2020-01-03 | C174: 62.610001 | D174: 63.330002 | E174: 62.549999 | F174: 62.779999 | G174: 12984600 | H174: 61.793194 | I174: 0.9842815385 | J174: 1 | K174: 61.63 | L174: 62.33 | M174: 61.57 | N174: 61.79 | O174: 12984600 | U174: 1981-05-01 | V174: 0.02379 | W174: 3.152761 | X174: 198105 | Y174: 198005 | Z174: 1980-06-30 | AA174: 4 | AB174: 0 | AC174: 0.09873 | AD174: 0.03131540894
A175: 160 | B175: 2020-01-02 | C175: 63.849998 | D175: 64 | E175: 63.139999 | F175: 63.34 | G175: 13163700 | H175: 62.344391 | I175: 0.9842815125 | J175: 1 | K175: 62.85 | L175: 62.99 | M175: 62.15 | N175: 62.34 | O175: 13163700 | U175: 1981-04-06 | V175: 0.02736 | W175: 3.18994 | X175: 198104 | Y175: 198004 | Z175: 1980-06-30 | AA175: 3 | AB175: 0 | AC175: 0.07494 | AD175: 0.02349260488
A176: 161 | B176: 2019-12-31 | C176: 63.59 | D176: 64.209999 | E176: 63.509998 | F176: 64.190002 | G176: 9378400 | H176: 62.738106 | I176: 0.977381275 | J176: 1 | K176: 62.15 | L176: 62.76 | M176: 62.07 | N176: 62.74 | O176: 9378400 | U176: 1980-10-06 | V176: 0.02379 | W176: 2.803281 | X176: 198010 | Y176: 197910 | Z176: 1979-10-05 | AA176: 5 | AB176: 1 | AC176: 0.09278 | AD176: 0.03309693177
A177: 162 | B177: 2019-12-30 | C177: 64.089996 | D177: 64.459999 | E177: 63.639999 | F177: 63.73 | G177: 7862300 | H177: 62.288509 | I177: 0.9773812804 | J177: 1 | K177: 62.64 | L177: 63 | M177: 62.2 | N177: 62.29 | O177: 7862300 | U177: 1980-06-30 | V177: 0.02379 | W177: 2.312521 | X177: 198006 | Y177: 197906 | Z177: 1979-06-29 | AA177: 5 | AB177: 1 | AC177: 0.0904 | AD177: 0.0390915369
A178: 163 | B178: 2019-12-27 | C178: 64.169998 | D178: 64.300003 | E178: 63.830002 | F178: 64.139999 | G178: 7684400 | H178: 62.689236 | I178: 0.9773813062 | J178: 1 | K178: 62.72 | L178: 62.85 | M178: 62.39 | N178: 62.69 | O178: 7684400 | U178: 1980-03-28 | V178: 0.02379 | W178: 1.903554 | X178: 198003 | Y178: 197903 | Z178: 1979-04-02 | AA178: 5 | AB178: 0 | AC178: 0.10943 | AD178: 0.05748720551
A179: 164 | B179: 2019-12-26 | C179: 63.23 | D179: 64.040001 | E179: 63.18 | F179: 63.959999 | G179: 8187700 | H179: 62.513306 | I179: 0.9773812848 | J179: 1 | K179: 61.8 | L179: 62.59 | M179: 61.75 | N179: 62.51 | O179: 8187700 | U179: 1979-12-28 | V179: 0.02141 | W179: 2.215856 | X179: 197912 | Y179: 197812 | Z179: 1978-12-29 | AA179: 5 | AB179: 1 | AC179: 0.08564 | AD179: 0.03864872086
A180: 165 | B180: 2019-12-24 | C180: 63.02 | D180: 63.43 | E180: 63.009998 | F180: 63.16 | G180: 2890400 | H180: 61.7314 | I180: 0.977381254 | J180: 1 | K180: 61.59 | L180: 62 | M180: 61.58 | N180: 61.73 | O180: 2890400 | U180: 1979-10-05 | V180: 0.02141 | W180: 2.111755 | X180: 197910 | Y180: 197810 | Z180: 1978-10-02 | AA180: 5 | AB180: 1 | AC180: 0.08237 | AD180: 0.03900547175
A181: 166 | B181: 2019-12-23 | C181: 63.549999 | D181: 63.799999 | E181: 63.080002 | F181: 63.209999 | G181: 12914900 | H181: 61.78027 | I181: 0.9773812842 | J181: 1 | K181: 62.11 | L181: 62.36 | M181: 61.65 | N181: 61.78 | O181: 12914900 | U181: 1979-06-29 | V181: 0.02141 | W181: 1.918426 | X181: 197906 | Y181: 197806 | Z181: 1978-06-30 | AA181: 5 | AB181: 1 | AC181: 0.0791 | AD181: 0.04123171809
A182: 167 | B182: 2019-12-20 | C182: 63.580002 | D182: 63.59 | E182: 62.919998 | F182: 63.509998 | G182: 24137000 | H182: 62.073483 | I182: 0.9773812778 | J182: 1 | K182: 62.14 | L182: 62.15 | M182: 61.5 | N182: 62.07 | O182: 24137000 | U182: 1979-04-02 | V182: 0.02141 | W182: 2.029962 | X182: 197904 | Y182: 197804 | Z182: 1978-06-30 | AA182: 4 | AB182: 0 | AC182: 0.07583 | AD182: 0.03735537907
A183: 168 | B183: 2019-12-19 | C183: 63.18 | D183: 63.459999 | E183: 62.740002 | F183: 62.849998 | G183: 12928200 | H183: 61.42841 | I183: 0.9773812562 | J183: 1 | K183: 61.75 | L183: 62.02 | M183: 61.32 | N183: 61.43 | O183: 12928200 | U183: 1978-12-29 | V183: 0.01814 | W183: 2.126627 | X183: 197812 | Y183: 197712 | Z183: 1977-12-30 | AA183: 5 | AB183: 1 | AC183: 0.07256 | AD183: 0.03411975866
A184: 169 | B184: 2019-12-18 | C184: 63.869999 | D184: 64.279999 | E184: 62.970001 | F184: 63.150002 | G184: 14824300 | H184: 61.721626 | I184: 0.97738122 | J184: 1 | K184: 62.43 | L184: 62.83 | M184: 61.55 | N184: 61.72 | O184: 14824300 | U184: 1978-10-02 | V184: 0.01814 | W184: 2.022526 | X184: 197810 | Y184: 197710 | Z184: 1977-10-03 | AA184: 5 | AB184: 1 | AC184: 0.07078 | AD184: 0.03499584183
A185: 170 | B185: 2019-12-17 | C185: 63.799999 | D185: 64.550003 | E185: 63.540001 | F185: 64.110001 | G185: 16207100 | H185: 62.659916 | I185: 0.9773812981 | J185: 1 | K185: 62.36 | L185: 63.09 | M185: 62.1 | N185: 62.66 | O185: 16207100 | U185: 1978-06-30 | V185: 0.01814 | W185: 2.134063 | X185: 197806 | Y185: 197706 | Z185: 1977-06-27 | AA185: 5 | AB185: 1 | AC185: 0.069 | AD185: 0.03233269121
A186: 171 | B186: 2019-12-16 | C186: 63.099998 | D186: 64.269997 | E186: 63.009998 | F186: 63.5 | G186: 23018200 | H186: 62.063709 | I186: 0.9773812441 | J186: 1 | K186: 61.67 | L186: 62.82 | M186: 61.58 | N186: 62.06 | O186: 23018200 | U186: 1978-03-31 | V186: 0.01814 | W186: 1.777146 | X186: 197803 | Y186: 197703 | Z186: 1977-03-30 | AA186: 5 | AB186: 1 | AC186: 0.06722 | AD186: 0.03782469195
A187: 172 | B187: 2019-12-13 | C187: 64.040001 | D187: 64.75 | E187: 63.790001 | F187: 63.82 | G187: 14526400 | H187: 62.376472 | I187: 0.9773812598 | J187: 1 | K187: 62.59 | L187: 63.29 | M187: 62.35 | N187: 62.38 | O187: 14526400 | U187: 1977-12-30 | V187: 0.01636 | W187: 2.000219 | X187: 197712 | Y187: 197612 | Z187: 1976-12-29 | AA187: 5 | AB187: 1 | AC187: 0.06544 | AD187: 0.03271641755
A188: 173 | B188: 2019-12-12 | C188: 62.419998 | D188: 64.220001 | E188: 62.419998 | F188: 63.939999 | G188: 17353600 | H188: 62.493755 | I188: 0.9773812321 | J188: 1 | K188: 61.01 | L188: 62.77 | M188: 61.01 | N188: 62.49 | O188: 17353600 | U188: 1977-10-03 | V188: 0.01636 | W188: 2.089448 | X188: 197710 | Y188: 197610 | Z188: 1976-12-29 | AA188: 4 | AB188: 0 | AC188: 0.06246 | AD188: 0.02989306267
A189: 174 | B189: 2019-12-11 | C189: 62.869999 | D189: 62.98 | E189: 61.959999 | F189: 62.41 | G189: 18262900 | H189: 60.998367 | I189: 0.9773813011 | J189: 1 | K189: 61.45 | L189: 61.56 | M189: 60.56 | N189: 61 | O189: 18262900 | U189: 1977-06-27 | V189: 0.01636 | W189: 1.888682 | X189: 197706 | Y189: 197606 | Z189: 1976-06-28 | AA189: 5 | AB189: 1 | AC189: 0.05948 | AD189: 0.03149286116
A190: 175 | B190: 2019-12-10 | C190: 61.029999 | D190: 62.369999 | E190: 60.93 | F190: 62.09 | G190: 19224800 | H190: 60.6856 | I190: 0.9773812208 | J190: 1 | K190: 59.65 | L190: 60.96 | M190: 59.55 | N190: 60.69 | O190: 19224800 | U190: 1977-03-30 | V190: 0.01636 | W190: 1.847786 | X190: 197703 | Y190: 197603 | Z190: 1976-03-29 | AA190: 5 | AB190: 1 | AC190: 0.0565 | AD190: 0.03057713393
A191: 176 | B191: 2019-12-09 | C191: 60.59 | D191: 61.580002 | E191: 60.400002 | F191: 61.279999 | G191: 16110700 | H191: 59.893925 | I191: 0.9773812986 | J191: 1 | K191: 59.22 | L191: 60.19 | M191: 59.03 | N191: 59.89 | O191: 16110700 | U191: 1976-12-29 | V191: 0.01338 | W191: 2.041116 | X191: 197612 | Y191: 197512 | Z191: 1975-12-26 | AA191: 5 | AB191: 1 | AC191: 0.05352 | AD191: 0.02622094972
A192: 177 | B192: 2019-12-06 | C192: 59.880001 | D192: 60.860001 | E192: 59.82 | F192: 59.950001 | G192: 17765400 | H192: 58.594006 | I192: 0.9773812347 | J192: 1 | K192: 58.53 | L192: 59.48 | M192: 58.47 | N192: 58.59 | O192: 17765400 | U192: 1976-09-28 | V192: 0.01338 | W192: 2.20842 | X192: 197609 | Y192: 197509 | Z192: 1975-09-29 | AA192: 5 | AB192: 1 | AC192: 0.05352 | AD192: 0.02423452061
A193: 178 | B193: 2019-12-05 | C193: 58.860001 | D193: 59.669998 | E193: 58.799999 | F193: 59.48 | G193: 17149700 | H193: 58.13464 | I193: 0.9773813046 | J193: 1 | K193: 57.53 | L193: 58.32 | M193: 57.47 | N193: 58.13 | O193: 17149700 | U193: 1976-06-28 | V193: 0.01338 | W193: 2.33111 | X193: 197606 | Y193: 197506 | Z193: 1975-06-27 | AA193: 5 | AB193: 1 | AC193: 0.05204 | AD193: 0.02232412885
A194: 179 | B194: 2019-12-04 | C194: 57.830002 | D194: 58.98 | E194: 57.549999 | F194: 58.900002 | G194: 22257200 | H194: 57.56776 | I194: 0.9773812911 | J194: 1 | K194: 56.52 | L194: 57.65 | M194: 56.25 | N194: 57.57 | O194: 22257200 | U194: 1976-03-29 | V194: 0.01338 | W194: 2.189831 | X194: 197603 | Y194: 197503 | Z194: 1975-03-31 | AA194: 5 | AB194: 1 | AC194: 0.05056 | AD194: 0.02308853971
A195: 180 | B195: 2019-12-03 | C195: 57 | D195: 57.810001 | E195: 56.68 | F195: 57.75 | G195: 16233300 | H195: 56.443768 | I195: 0.9773812641 | J195: 1 | K195: 55.71 | L195: 56.5 | M195: 55.4 | N195: 56.44 | O195: 16233300 | U195: 1975-12-26 | V195: 0.01338 | W195: 2.089448 | X195: 197512 | Y195: 197412 | Z195: 1974-12-27 | AA195: 5 | AB195: 1 | AC195: 0.04908 | AD195: 0.0234894575
A196: 181 | B196: 2019-12-02 | C196: 57.34 | D196: 58.099998 | E196: 57.279999 | F196: 57.41 | G196: 24715100 | H196: 56.111462 | I196: 0.9773813273 | J196: 1 | K196: 56.04 | L196: 56.79 | M196: 55.98 | N196: 56.11 | O196: 24715100 | U196: 1975-09-29 | V196: 0.0119 | W196: 1.810607 | X196: 197509 | Y196: 197409 | Z196: 1974-09-30 | AA196: 5 | AB196: 1 | AC196: 0.047 | AD196: 0.02595814553
A197: 182 | B197: 2019-11-29 | C197: 57.23 | D197: 57.369999 | E197: 56.849998 | F197: 56.939999 | G197: 11292400 | H197: 55.652088 | I197: 0.9773812606 | J197: 1 | K197: 55.94 | L197: 56.07 | M197: 55.56 | N197: 55.65 | O197: 11292400 | U197: 1975-06-27 | V197: 0.0119 | W197: 2.011373 | X197: 197506 | Y197: 197406 | Z197: 1974-06-28 | AA197: 5 | AB197: 1 | AC197: 0.0464 | AD197: 0.02306881916
A198: 183 | B198: 2019-11-27 | C198: 56.939999 | D198: 57.849998 | E198: 56.900002 | F198: 57.599998 | G198: 25908300 | H198: 56.297161 | I198: 0.9773813013 | J198: 1 | K198: 55.65 | L198: 56.54 | M198: 55.61 | N198: 56.3 | O198: 25908300 | U198: 1975-03-31 | V198: 0.0119 | W198: 1.751121 | X198: 197503 | Y198: 197403 | Z198: 1974-03-28 | AA198: 5 | AB198: 1 | AC198: 0.0458 | AD198: 0.02615467463
A199: 184 | B199: 2019-11-26 | C199: 56.330002 | D199: 56.900002 | E199: 56.080002 | F199: 56.73 | G199: 21781800 | H199: 55.446838 | I199: 0.9773812445 | J199: 1 | K199: 55.06 | L199: 55.61 | M199: 54.81 | N199: 55.45 | O199: 21781800 | U199: 1974-12-27 | V199: 0.0113 | W199: 1.461126 | X199: 197412 | Y199: 197312 | Z199: 1973-12-28 | AA199: 5 | AB199: 1 | AC199: 0.0452 | AD199: 0.03093504599
A200: 185 | B200: 2019-11-25 | C200: 56.919998 | D200: 57.099998 | E200: 55.939999 | F200: 56.169998 | G200: 23231400 | H200: 54.899506 | I200: 0.9773813059 | J200: 1 | K200: 55.63 | L200: 55.81 | M200: 54.67 | N200: 54.9 | O200: 23231400 | U200: 1974-09-30 | V200: 0.0113 | W200: 0.970366 | X200: 197409 | Y200: 197309 | Z200: 1973-10-01 | AA200: 5 | AB200: 0 | AC200: 0.05354 | AD200: 0.05517505766
... 4300 more rows

Sheet CalculationsAndCharts
A1: GannHiLoActivator.xlsm
A2: =InputPriceData!A1 -> Bristol-Myers Squibb Company (BMY) -NYSE (Daily)
A4: User Charting Controls | E4: Click to Shift Chart One Bar:
A5: Data Control | C5: TRUE
A6: =InputPriceData!$B$10 -> 12161 | B6: Available Input Data Rows | E6: Earliest: | F6: =OFFSET(InputPriceData!B15,CalculationsAndCharts!A6,0,1,1) -> 1972-06-01
A7: =MAX(A33:A56896) -> 1250 | B7: Available Calculation Rows | E7: Latest: | F7: =OFFSET(InputPriceData!B15,1,0,1,1) -> 2020-08-19
A8: =MIN(AvailableInputRows-DataPanRows,A7) -> 1250 | B8: Logically Available for Calc / Plot | E8: $ Change: | F8: =G33-G34 -> -0.37
A10: Historical Price Windowing Specifications | F10: Click to Shift
A11: 245 | B11: Input Data Offset (Pan) | F11: Points to Plot
A12: 47 | B12: Data Points to Plot (Zoom)
B13: First: | C13: =OFFSET(B32,A12,0,1,1) -> 2019-06-25
B14: ="Last: " & IF(OFFSET(InputPriceData!P15,1+A11,0,1,1)="","",TEXT(OFFSET(InputPriceData!P15,1+A11,0,1,1),"H:MM AM/PM")) -> Last: | C14: =B33 -> 2019-08-29
A15: User Controls
A16: High Low Activator | C16: Calculated Coefficients
A17: 3 | B17: High Period | C17: =2/(A17+1) -> 0.5 | D17: =1-C17 -> 0.5 | F17: 1
A18: 3 | B18: Low Period | C18: =2/(A18+1) -> 0.5 | D18: =1-C18 -> 0.5
A19: DMI Settings | C19: Calculated Coefficients
A20: ADX | B20: 10 | C20: =1/B20 -> 0.1 | D20: =1-C20 -> 0.9
A21: ATR | B21: 10 | C21: =1/B21 -> 0.1 | D21: =1-C21 -> 0.9
A22: SMI Settings | C22: Calculated Coefficients
A23: 3 | B23: %D Len | C23: =2/(A23+1) -> 0.5 | D23: =1-C23 -> 0.5 | E23: 40 | F23: Over Bought
A24: 8 | B24: %K len | C24: =2/(A24+1) -> 0.2222222222 | D24: =1-C24 -> 0.7777777778 | E24: -40 | F24: Over Sold
A25: Help! I would like to plot data
A26: From | B26: 2019-06-25 | C26: =OFFSET(InputPriceData!$A$15,MATCH(B26,OFFSET(InputPriceData!B15,1,0,InputPriceData!$B$10,1),0),0,1,1)-C27 -> 47 | E26: 12
A27: To | B27: 2019-08-29 | C27: =OFFSET(InputPriceData!$A$15,MATCH(B27,OFFSET(InputPriceData!$B$15,1,0,InputPriceData!$B$10,1),0),0,1,1)-1 -> 245 | E27: =$A$12-$E$26+1 -> 36 | AB27: Two columns necessary to shade background Green. 1 for above and 1 for below the axis. | AD27: Two columns necessary to shade background Red. 1 for above and 1 for below the axis. | AO27: Two columns necessary to shade background Green. 1 for above and 1 for below the axis. | AQ27: Two columns necessary to shade background Red. 1 for above and 1 for below the axis.
H28: Value @ Cursor => | I28: =OFFSET(A32,$E$27,0,1,1)&"(RR)" -> 36(RR) | J28: =OFFSET($B$32,E27,0,1,1) -> 2019-07-11 | K28: =TEXT(OFFSET(D32,$E$27,0,1,1),"#,##0.00")&"(o)" -> 44.47(o) | L28: =TEXT(OFFSET(E32,$E$27,0,1,1),"#,##0.00")&"(h)" -> 44.48(h) | M28: =TEXT(OFFSET(F32,$E$27,0,1,1),"#,##0.00")&"(l)" -> 42.81(l) | N28: =TEXT(OFFSET(G32,$E$27,0,1,1),"#,##0.00")&"(c)" -> 43.16(c) | O28: =TEXT(OFFSET(C32,$E$27,0,1,1),"#,##0.00,,""M""")&"(v)" -> 23.34M(v)
E29: Cursor ==> | AU29: Work Area For Chart Cursors
A31: Rel Row | H31: High Low Activator Calculations | N31: ="+/- Adj Factor: " -> +/- Adj Factor: | O31: 0.04 | P31: SMI Calculations | S31: ="SMI("&E23&", "&E24&", "&A23&", "&A24&")" -> SMI(40, -40, 3, 8) | AB31: SMI Color Bars | AF31: DMI Calculations | AO31: DMI Color Bars | AS31: Used To Color Vol Bars
B32: Date | C32: Volume | D32: Open | E32: High | F32: Low | G32: Close | H32: ="High "&IF(F17=1,"SMA","EMA")&"("& $A$17 & ")" -> High SMA(3) | I32: ="Low "&IF(F17=1,"SMA","EMA")&"("& $A$18 & ")" -> Low SMA(3) | J32: Long = True | K32: Gann HiLoActivator | L32: Rising | M32: Falling | N32: X Down | O32: X Up | P32: Max High | Q32: Min Low | R32: RelDiff | S32: EMA Rel Diff | T32: AvgRel | U32: Diff | V32: EMADiff | W32: AvgDiff | X32: SMI | Y32: Avg SMI | Z32: Over Bought | AA32: Over Sold | AB32: SMI > Zero | AC32: Gd | AD32: Red U | AE32: SMI < Zero | AF32: TrueRange | AG32: ="ATR " & $B$21 -> ATR 10 | AH32: +DM | AI32: -DM | AJ32: ="+DM " & B20 -> +DM 10 | AK32: ="-DM " & $B$20 -> -DM 10 | AL32: ="+DI " & $B$20 -> +DI 10 | AM32: ="-DI " & $B$20 -> -DI 10 | AN32: ="DMI " & $B$20 -> DMI 10 | AO32: DMI > Zero | AP32: GreenDn | AQ32: RedUp | AR32: DMI < Zero | AS32: Up Vol | AT32: Dn Vol | AU32: Volume Cursor | AV32: =MAX(OFFSET(C33,0,0,A12,1)) -> 33799300 | AW32: OBVM Cursor | AY32: Price Chart Cursor | BA32: ComparePriceChart Cursor | BC32: Price Phasor Cursor | BE32: DMI Cursor | BG32: SMI Cursor
A33: 1 | B33: =IF($A33>$A$8,"",OFFSET(InputPriceData!$B$15,$A33+$A$11,0,1,1)) -> 2019-08-29 | C33: =IF($A33>$A$8,"",OFFSET(InputPriceData!$G$15,CalculationsAndCharts!$A33+$A$11,IF($C$5,8,0),1,1)) -> 10342000 | D33: =IF(A33>$A$8,"",OFFSET(InputPriceData!$C$15,CalculationsAndCharts!$A33+$A$11,IF($C$5,8,0),1,1)) -> 47.44 | E33: =IF(A33>$A$8,"",OFFSET(InputPriceData!$D$15,CalculationsAndCharts!$A33+$A$11,IF($C$5,8,0),1,1)) -> 47.63 | F33: =IF(A33>$A$8,"",OFFSET(InputPriceData!$E$15,CalculationsAndCharts!$A33+$A$11,IF($C$5,8,0),1,1)) -> 46.3 | G33: =IF(A33>$A$8,"",OFFSET(InputPriceData!$F$15,CalculationsAndCharts!$A33+$A$11,IF($C$5,8,0),1,1)) -> 46.79 | H33: =IF($F$17=1,AVERAGE(OFFSET(E33,0,0,$A$17,1)),$C$17*E33+$D$17*H34) -> 47.26333333 | I33: =IF($F$17=1,AVERAGE(OFFSET(F33,0,0,$A$18,1)),$C$18*F33+$D$18*I34) -> 46.17 | J33: =IF(G33>H34,TRUE,IF(G33<I34,FALSE,J34)) -> TRUE | K33: =IF(J33,I33,H33) -> 46.17 | L33: =IF(J33,$AZ$34,NA()) -> 49.80352 | M33: =IF(NOT(J33),$AZ$34,NA()) ->  | N33: =IF(AND(G34>=K34,G33<K33),MAX(E33,K33)*(1+$O$31),NA()) ->  | O33: =IF(AND(G34<=K34,G33>K33),MIN(F33,K33)*(1-$O$31),NA()) ->  | P33: =MAX(OFFSET(E33,0,0,$A$24,1)) -> 47.63 | Q33: =MIN(OFFSET(F33,0,0,$A$24,1)) -> 44.87 | R33: =G33-(P33+Q33)/2 -> 0.54 | S33: =$C$23*R33+$D$23*S34 -> 0.6457954118 | T33: =$C$23*S33+$D$23*T34 -> 0.6592819435 | U33: =P33-Q33 -> 2.76 | V33: =$C$23*U33+$D$23*V34 -> 2.854705575 | W33: =$C$23*V33+$D$23*W34 -> 2.933093956 | X33: =IF(W33<>0,T33/(W33/2)*100,0) -> 44.95471018 | Y33: =$C$23*X33+$D$23*Y34 -> 44.14323068 | Z33: =$E$23 -> 40 | AA33: =$E$24 -> -40 | AB33: =IF($X33>0,$BH$34,NA()) -> 100 | AC33: =IF($X33>0,$BH$33,NA()) -> -100 | AD33: =IF($X33<0,$BH$34,NA()) ->  | AE33: =IF($X33<0,$BH$33,NA()) ->  | AF33: =IF($A33<$A$8,MAX(E33-F33,ABS(E33-G34),ABS(F33-G34)),"") -> 1.33 | AG33: =IF(($A$8-$A33)<$B$21,"",IF(($A$8-$A33)=$B$21,AVERAGE(OFFSET($AF33,0,0,$B$21,1)),AG34*$D$21+$AF33*$C$21)) -> 1.124559058 | AH33: =IF($A33<$A$8,IF(E33-E34>F34-F33,MAX(E33-E34,0),0),"") -> 0.45 | AI33: =IF($A33<$A$8,IF(F34-F33>E33-E34,MAX(F34-F33,0),0),"") -> 0 | AJ33: =IF(($A$8-$A33)<$B$20,"",IF(($A$8-$A33)=$B$20,AVERAGE(OFFSET(AH33,0,0,$B$20,1)),AJ34*$D$20+AH33*$C$20)) -> 0.2811269455 | AK33: =IF(($A$8-$A33)<$B$20,"",IF(($A$8-$A33)=$B$20,AVERAGE(OFFSET(AI33,0,0,$B$20,1)),AK34*$D$20+AI33*$C$20)) -> 0.1835225435 | AL33: =IF(($A$8-$A33)<$B$20,"",AJ33/AG33*100) -> 24.99886009 | AM33: =IF(($A$8-$A33)<$B$20,"",AK33/AG33*100) -> 16.31951138 | AN33: =IF(($A$8-$A33)<$B$20,"",AL33-AM33) -> 8.679348705 | AO33: =IF(($A$8-$A33)<$B$20,"",IF($AN33>0,$BF$34,NA())) -> 30 | AP33: =IF(($A$8-$A33)<$B$20,"",IF($AN33>0,$BF$33,NA())) -> -30 | AQ33: =IF(($A$8-$A33)<$B$20,"",IF($AN33<0,$BF$34,NA())) ->  | AR33: =IF(($A$8-$A33)<$B$20,"",IF($AN33<0,$BF$33,NA())) ->  | AS33: =IF(G33>=D33,C33,NA()) ->  | AT33: =IF(G33<D33,C33,NA()) -> 10342000 | AU33: =$E$27 -> 36 | AV33: 0 | AW33: =$E$27 -> 36 | AX33: 62500000 | AY33: =$E$27 -> 36 | AZ33: 38.70048 | BA33: =$E$27 -> 36 | BB33: 188.877 | BC33: =$E$27 -> 36 | BD33: =IF(#REF!=1,-180,NA()) ->  | BE33: =$E$27 -> 36 | BF33: -30 | BG33: =$E$27 -> 36 | BH33: -100
A34: 2 | B34: =IF($A34>$A$8,"",OFFSET(InputPriceData!$B$15,$A34+$A$11,0,1,1)) -> 2019-08-28 | C34: =IF($A34>$A$8,"",OFFSET(InputPriceData!$G$15,CalculationsAndCharts!$A34+$A$11,IF($C$5,8,0),1,1)) -> 8521100 | D34: =IF(A34>$A$8,"",OFFSET(InputPriceData!$C$15,CalculationsAndCharts!$A34+$A$11,IF($C$5,8,0),1,1)) -> 46.23 | E34: =IF(A34>$A$8,"",OFFSET(InputPriceData!$D$15,CalculationsAndCharts!$A34+$A$11,IF($C$5,8,0),1,1)) -> 47.18 | F34: =IF(A34>$A$8,"",OFFSET(InputPriceData!$E$15,CalculationsAndCharts!$A34+$A$11,IF($C$5,8,0),1,1)) -> 45.94 | G34: =IF(A34>$A$8,"",OFFSET(InputPriceData!$F$15,CalculationsAndCharts!$A34+$A$11,IF($C$5,8,0),1,1)) -> 47.16 | H34: 47.24333333 | I34: 46.15333333 | J34: =IF(G34>H35,TRUE,IF(G34<I35,FALSE,J35)) -> TRUE | K34: =IF(J34,I34,H34) -> 46.15333333 | L34: =IF(J34,$AZ$34,NA()) -> 49.80352 | M34: =IF(NOT(J34),$AZ$34,NA()) ->  | N34: =IF(AND(G35>=K35,G34<K34),MAX(E34,K34)*(1+$O$31),NA()) ->  | O34: =IF(AND(G35<=K35,G34>K34),MIN(F34,K34)*(1-$O$31),NA()) -> 44.1024 | P34: =MAX(OFFSET(E34,0,0,$A$24,1)) -> 47.57 | Q34: =MIN(OFFSET(F34,0,0,$A$24,1)) -> 44.87 | R34: =G34-(P34+Q34)/2 -> 0.94 | S34: =$C$23*R34+$D$23*S35 -> 0.7515908237 | T34: 0.6727684752 | U34: =P34-Q34 -> 2.7 | V34: =$C$23*U34+$D$23*V35 -> 2.949411151 | W34: 3.011482336 | X34: =IF(W34<>0,T34/(W34/2)*100,0) -> 44.68022058 | Y34: =$C$23*X34+$D$23*Y35 -> 43.33175117 | Z34: 40 | AA34: -40 | AB34: =IF($X34>0,$BH$34,NA()) -> 100 | AC34: =IF($X34>0,$BH$33,NA()) -> -100 | AD34: =IF($X34<0,$BH$34,NA()) ->  | AE34: =IF($X34<0,$BH$33,NA()) ->  | AF34: 1.24 | AG34: 1.101732287 | AH34: 0 | AI34: 0.33 | AJ34: =IF(($A$8-$A34)<$B$20,"",IF(($A$8-$A34)=$B$20,AVERAGE(OFFSET($AH34,0,0,$B$20,1)),AJ35*$D$20+$AH34*$C$20)) -> 0.2623632728 | AK34: =IF(($A$8-$A34)<$B$20,"",IF(($A$8-$A34)=$B$20,AVERAGE(OFFSET(AI34,0,0,$B$20,1)),AK35*$D$20+AI34*$C$20)) -> 0.2039139372 | AL34: 23.81370465 | AM34: 18.50848338 | AN34: 5.305221269 | AO34: 30 | AP34: -30 | AS34: 8521100 | AU34: =$E$27 -> 36 | AV34: =CEILING(AV32,10^INT(LOG10(AV32))/8) -> 35000000 | AW34: =$E$27 -> 36 | AX34: 125000000 | AY34: =$E$27 -> 36 | AZ34: 49.80352 | BA34: =$E$27 -> 36 | BB34: 230.34825 | BC34: =$E$27 -> 36 | BD34: =IF(#REF!=1,180,NA()) ->  | BE34: =$E$27 -> 36 | BF34: 30 | BG34: =$E$27 -> 36 | BH34: 100
A35: 3 | B35: =IF(A35>$A$8,"",OFFSET(InputPriceData!B$15,$A35+$A$11,0,1,1)) -> 2019-08-27 | C35: =IF(A35>$A$8,"",OFFSET(InputPriceData!G$15,CalculationsAndCharts!$A35+$A$11,IF($C$5,8,0),1,1)) -> 14748000 | D35: =IF(A35>$A$8,"",OFFSET(InputPriceData!C$15,CalculationsAndCharts!$A35+$A$11,IF($C$5,8,0),1,1)) -> 46.84 | E35: =IF(A35>$A$8,"",OFFSET(InputPriceData!D$15,CalculationsAndCharts!$A35+$A$11,IF($C$5,8,0),1,1)) -> 46.98 | F35: =IF(A35>$A$8,"",OFFSET(InputPriceData!E$15,CalculationsAndCharts!$A35+$A$11,IF($C$5,8,0),1,1)) -> 46.27 | G35: =IF(A35>$A$8,"",OFFSET(InputPriceData!F$15,CalculationsAndCharts!$A35+$A$11,IF($C$5,8,0),1,1)) -> 46.46 | H35: 47.09 | I35: 45.79666667 | J35: FALSE | K35: 47.09 | M35: 49.80352 | P35: 47.57 | Q35: 44.37 | R35: 0.49 | S35: =$C$23*R35+$D$23*S36 -> 0.5631816474 | T35: 0.5939461267 | U35: 3.2 | V35: =$C$23*U35+$D$23*V36 -> 3.198822301 | W35: 3.073553521 | X35: 38.64882278 | Y35: 41.98328177 | Z35: 40 | AA35: -40 | AB35: 100 | AC35: -100 | AF35: 0.71 | AG35: 1.086369208 | AH35: 0 | AI35: 0 | AJ35: 0.2915147476 | AK35: 0.1899043747 | AL35: 26.83385589 | AM35: 17.48064777 | AN35: 9.353208117 | AO35: 30 | AP35: -30 | AT35: 14748000
A36: 4 | B36: =IF(A36>$A$8,"",OFFSET(InputPriceData!B$15,$A36+$A$11,0,1,1)) -> 2019-08-26 | C36: =IF(A36>$A$8,"",OFFSET(InputPriceData!G$15,CalculationsAndCharts!$A36+$A$11,IF($C$5,8,0),1,1)) -> 20731500 | D36: =IF(A36>$A$8,"",OFFSET(InputPriceData!C$15,CalculationsAndCharts!$A36+$A$11,IF($C$5,8,0),1,1)) -> 46.93 | E36: =IF(A36>$A$8,"",OFFSET(InputPriceData!D$15,CalculationsAndCharts!$A36+$A$11,IF($C$5,8,0),1,1)) -> 47.57 | F36: =IF(A36>$A$8,"",OFFSET(InputPriceData!E$15,CalculationsAndCharts!$A36+$A$11,IF($C$5,8,0),1,1)) -> 46.25 | G36: =IF(A36>$A$8,"",OFFSET(InputPriceData!F$15,CalculationsAndCharts!$A36+$A$11,IF($C$5,8,0),1,1)) -> 46.63 | H36: 47.01333333 | I36: 45.71 | J36: FALSE | K36: 47.01333333 | M36: 49.80352 | P36: 47.57 | Q36: 43.93 | R36: 0.88 | S36: =$C$23*R36+$D$23*S37 -> 0.6363632947 | T36: 0.6247106059 | U36: 3.64 | V36: =$C$23*U36+$D$23*V37 -> 3.197644603 | W36: 2.948284741 | X36: 42.37790179 | Y36: 45.31774076 | Z36: 40 | AA36: -40 | AB36: 100 | AC36: -100 | AF36: 2.42 | AG36: 1.128188008 | AH36: 0.85 | AI36: 0 | AJ36: 0.3239052751 | AK36: 0.2110048607 | AL36: 28.71022141 | AM36: 18.70298737 | AN36: 10.00723403 | AO36: 30 | AP36: -30 | AT36: 20731500
A37: 5 | B37: =IF(A37>$A$8,"",OFFSET(InputPriceData!B$15,$A37+$A$11,0,1,1)) -> 2019-08-23 | C37: =IF(A37>$A$8,"",OFFSET(InputPriceData!G$15,CalculationsAndCharts!$A37+$A$11,IF($C$5,8,0),1,1)) -> 16319900 | D37: =IF(A37>$A$8,"",OFFSET(InputPriceData!C$15,CalculationsAndCharts!$A37+$A$11,IF($C$5,8,0),1,1)) -> 46.3 | E37: =IF(A37>$A$8,"",OFFSET(InputPriceData!D$15,CalculationsAndCharts!$A37+$A$11,IF($C$5,8,0),1,1)) -> 46.72 | F37: =IF(A37>$A$8,"",OFFSET(InputPriceData!E$15,CalculationsAndCharts!$A37+$A$11,IF($C$5,8,0),1,1)) -> 44.87 | G37: =IF(A37>$A$8,"",OFFSET(InputPriceData!F$15,CalculationsAndCharts!$A37+$A$11,IF($C$5,8,0),1,1)) -> 45.15 | H37: 46.66666667 | I37: 45.62 | J37: FALSE | K37: 46.66666667 | M37: 49.80352 | N37: 48.5888 | P37: 46.75 | Q37: 43.93 | R37: -0.19 | S37: =$C$23*R37+$D$23*S38 -> 0.3927265894 | T37: 0.6130579172 | U37: 2.82 | V37: =$C$23*U37+$D$23*V38 -> 2.755289206 | W37: 2.698924879 | X37: 45.4297874 | Y37: 48.25757974 | Z37: 40 | AA37: -40 | AB37: 100 | AC37: -100 | AF37: 1.85 | AG37: 0.9846533426 | AH37: 0 | AI37: 1.14 | AJ37: 0.2654503056 | AK37: 0.2344498453 | AL37: 26.95875738 | AM37: 23.81039449 | AN37: 3.148362883 | AO37: 30 | AP37: -30 | AT37: 16319900
A38: 6 | B38: =IF(A38>$A$8,"",OFFSET(InputPriceData!B$15,$A38+$A$11,0,1,1)) -> 2019-08-22 | C38: =IF(A38>$A$8,"",OFFSET(InputPriceData!G$15,CalculationsAndCharts!$A38+$A$11,IF($C$5,8,0),1,1)) -> 6378500 | D38: =IF(A38>$A$8,"",OFFSET(InputPriceData!C$15,CalculationsAndCharts!$A38+$A$11,IF($C$5,8,0),1,1)) -> 46.47 | E38: =IF(A38>$A$8,"",OFFSET(InputPriceData!D$15,CalculationsAndCharts!$A38+$A$11,IF($C$5,8,0),1,1)) -> 46.75 | F38: =IF(A38>$A$8,"",OFFSET(InputPriceData!E$15,CalculationsAndCharts!$A38+$A$11,IF($C$5,8,0),1,1)) -> 46.01 | G38: =IF(A38>$A$8,"",OFFSET(InputPriceData!F$15,CalculationsAndCharts!$A38+$A$11,IF($C$5,8,0),1,1)) -> 46.39 | H38: 46.53666667 | I38: 45.92666667 | J38: TRUE | K38: 45.92666667 | L38: 49.80352 | P38: 46.75 | Q38: 43.93 | R38: 1.05 | S38: =$C$23*R38+$D$23*S39 -> 0.9754531789 | T38: 0.8333892449 | U38: 2.82 | V38: =$C$23*U38+$D$23*V39 -> 2.690578412 | W38: 2.642560551 | X38: 63.07437266 | Y38: 51.08537207 | Z38: 40 | AA38: -40 | AB38: 100 | AC38: -100 | AF38: 0.74 | AG38: 0.888503714 | AH38: 0.22 | AI38: 0 | AJ38: 0.294944784 | AK38: 0.1338331614 | AL38: 33.19567261 | AM38: 15.06275768 | AN38: 18.13291493 | AO38: 30 | AP38: -30 | AT38: 6378500
A39: 7 | B39: =IF(A39>$A$8,"",OFFSET(InputPriceData!B$15,$A39+$A$11,0,1,1)) -> 2019-08-21 | C39: =IF(A39>$A$8,"",OFFSET(InputPriceData!G$15,CalculationsAndCharts!$A39+$A$11,IF($C$5,8,0),1,1)) -> 6729200 | D39: =IF(A39>$A$8,"",OFFSET(InputPriceData!C$15,CalculationsAndCharts!$A39+$A$11,IF($C$5,8,0),1,1)) -> 46.52 | E39: =IF(A39>$A$8,"",OFFSET(InputPriceData!D$15,CalculationsAndCharts!$A39+$A$11,IF($C$5,8,0),1,1)) -> 46.53 | F39: =IF(A39>$A$8,"",OFFSET(InputPriceData!E$15,CalculationsAndCharts!$A39+$A$11,IF($C$5,8,0),1,1)) -> 45.98 | G39: =IF(A39>$A$8,"",OFFSET(InputPriceData!F$15,CalculationsAndCharts!$A39+$A$11,IF($C$5,8,0),1,1)) -> 46.3 | H39: 46.41 | I39: 45.78 | J39: TRUE | K39: 45.78 | L39: 49.80352 | P39: 46.53 | Q39: 43.93 | R39: 1.07 | S39: =$C$23*R39+$D$23*S40 -> 0.9009063577 | T39: 0.691325311 | U39: 2.6 | V39: =$C$23*U39+$D$23*V40 -> 2.561156824 | W39: 2.594542691 | X39: 53.29072545 | Y39: 39.09637149 | Z39: 40 | AA39: -40 | AB39: 100 | AC39: -100 | AF39: 0.55 | AG39: 0.9050041267 | AH39: 0.2 | AI39: 0 | AJ39: 0.3032719822 | AK39: 0.1487035127 | AL39: 33.51056347 | AM39: 16.43125244 | AN39: 17.07931102 | AO39: 30 | AP39: -30 | AT39: 6729200
A40: 8 | B40: =IF(A40>$A$8,"",OFFSET(InputPriceData!B$15,$A40+$A$11,0,1,1)) -> 2019-08-20 | C40: =IF(A40>$A$8,"",OFFSET(InputPriceData!G$15,CalculationsAndCharts!$A40+$A$11,IF($C$5,8,0),1,1)) -> 9176300 | D40: =IF(A40>$A$8,"",OFFSET(InputPriceData!C$15,CalculationsAndCharts!$A40+$A$11,IF($C$5,8,0),1,1)) -> 46.01 | E40: =IF(A40>$A$8,"",OFFSET(InputPriceData!D$15,CalculationsAndCharts!$A40+$A$11,IF($C$5,8,0),1,1)) -> 46.33 | F40: =IF(A40>$A$8,"",OFFSET(InputPriceData!E$15,CalculationsAndCharts!$A40+$A$11,IF($C$5,8,0),1,1)) -> 45.79 | G40: =IF(A40>$A$8,"",OFFSET(InputPriceData!F$15,CalculationsAndCharts!$A40+$A$11,IF($C$5,8,0),1,1)) -> 46.16 | H40: 46.10333333 | I40: 45.24333333 | J40: TRUE | K40: 45.24333333 | L40: 49.80352 | P40: 46.37 | Q40: 43.93 | R40: 1.01 | S40: =$C$23*R40+$D$23*S41 -> 0.7318127154 | T40: 0.4817442643 | U40: 2.44 | V40: =$C$23*U40+$D$23*V41 -> 2.522313648 | W40: 2.627928558 | X40: 36.66342169 | Y40: 24.90201753 | Z40: 40 | AA40: -40 | AB40: 100 | AC40: -100 | AF40: 0.54 | AG40: 0.9444490296 | AH40: 0 | AI40: 0 | AJ40: 0.3147466469 | AK40: 0.1652261252 | AL40: 33.32595376 | AM40: 17.49444597 | AN40: 15.8315078 | AO40: 30 | AP40: -30 | AS40: 9176300
A41: 9 | B41: =IF(A41>$A$8,"",OFFSET(InputPriceData!B$15,$A41+$A$11,0,1,1)) -> 2019-08-19 | C41: =IF(A41>$A$8,"",OFFSET(InputPriceData!G$15,CalculationsAndCharts!$A41+$A$11,IF($C$5,8,0),1,1)) -> 7788700 | D41: =IF(A41>$A$8,"",OFFSET(InputPriceData!C$15,CalculationsAndCharts!$A41+$A$11,IF($C$5,8,0),1,1)) -> 45.63 | E41: =IF(A41>$A$8,"",OFFSET(InputPriceData!D$15,CalculationsAndCharts!$A41+$A$11,IF($C$5,8,0),1,1)) -> 46.37 | F41: =IF(A41>$A$8,"",OFFSET(InputPriceData!E$15,CalculationsAndCharts!$A41+$A$11,IF($C$5,8,0),1,1)) -> 45.57 | G41: =IF(A41>$A$8,"",OFFSET(InputPriceData!F$15,CalculationsAndCharts!$A41+$A$11,IF($C$5,8,0),1,1)) -> 46 | H41: 45.54333333 | I41: 44.62333333 | J41: TRUE | K41: 44.62333333 | L41: 49.80352 | P41: 46.37 | Q41: 43.93 | R41: 0.85 | S41: =$C$23*R41+$D$23*S42 -> 0.4536254308 | T41: 0.2316758133 | U41: 2.44 | V41: =$C$23*U41+$D$23*V42 -> 2.604627295 | W41: 2.733543467 | X41: 16.95058564 | Y41: 13.14061337 | Z41: 40 | AA41: -40 | AB41: 100 | AC41: -100 | AF41: 0.84 | AG41: 0.9893878107 | AH41: 0.76 | AI41: 0 | AJ41: 0.3497184966 | AK41: 0.1835845835 | AL41: 35.34695827 | AM41: 18.55537147 | AN41: 16.7915868 | AO41: 30 | AP41: -30 | AS41: 7788700
A42: 10 | B42: =IF(A42>$A$8,"",OFFSET(InputPriceData!B$15,$A42+$A$11,0,1,1)) -> 2019-08-16 | C42: =IF(A42>$A$8,"",OFFSET(InputPriceData!G$15,CalculationsAndCharts!$A42+$A$11,IF($C$5,8,0),1,1)) -> 9630200 | D42: =IF(A42>$A$8,"",OFFSET(InputPriceData!C$15,CalculationsAndCharts!$A42+$A$11,IF($C$5,8,0),1,1)) -> 44.56 | E42: =IF(A42>$A$8,"",OFFSET(InputPriceData!D$15,CalculationsAndCharts!$A42+$A$11,IF($C$5,8,0),1,1)) -> 45.61 | F42: =IF(A42>$A$8,"",OFFSET(InputPriceData!E$15,CalculationsAndCharts!$A42+$A$11,IF($C$5,8,0),1,1)) -> 44.37 | G42: =IF(A42>$A$8,"",OFFSET(InputPriceData!F$15,CalculationsAndCharts!$A42+$A$11,IF($C$5,8,0),1,1)) -> 45.53 | H42: 45.26333333 | I42: 44.14666667 | J42: TRUE | K42: 44.14666667 | L42: 49.80352 | O42: 42.3808 | P42: 46.37 | Q42: 43.69 | R42: 0.5 | S42: =$C$23*R42+$D$23*S43 -> 0.05725086162 | T42: 0.009726195691 | U42: 2.68 | V42: =$C$23*U42+$D$23*V43 -> 2.769254591 | W42: 2.862459639 | X42: 0.679569106 | Y42: 9.3306411 | Z42: 40 | AA42: -40 | AB42: 100 | AC42: -100 | AF42: 1.27 | AG42: 1.005986456 | AH42: 0.96 | AI42: 0 | AJ42: 0.3041316629 | AK42: 0.2039828706 | AL42: 30.23218265 | AM42: 20.27690028 | AN42: 9.955282366 | AO42: 30 | AP42: -30 | AS42: 9630200
A43: 11 | B43: =IF(A43>$A$8,"",OFFSET(InputPriceData!B$15,$A43+$A$11,0,1,1)) -> 2019-08-15 | C43: =IF(A43>$A$8,"",OFFSET(InputPriceData!G$15,CalculationsAndCharts!$A43+$A$11,IF($C$5,8,0),1,1)) -> 8513700 | D43: =IF(A43>$A$8,"",OFFSET(InputPriceData!C$15,CalculationsAndCharts!$A43+$A$11,IF($C$5,8,0),1,1)) -> 44.42 | E43: =IF(A43>$A$8,"",OFFSET(InputPriceData!D$15,CalculationsAndCharts!$A43+$A$11,IF($C$5,8,0),1,1)) -> 44.65 | F43: =IF(A43>$A$8,"",OFFSET(InputPriceData!E$15,CalculationsAndCharts!$A43+$A$11,IF($C$5,8,0),1,1)) -> 43.93 | G43: =IF(A43>$A$8,"",OFFSET(InputPriceData!F$15,CalculationsAndCharts!$A43+$A$11,IF($C$5,8,0),1,1)) -> 44.34 | H43: 45.23333333 | I43: 44.26666667 | J43: FALSE | K43: 45.23333333 | M43: 49.80352 | P43: 46.37 | Q43: 43.62 | R43: -0.655 | S43: =$C$23*R43+$D$23*S44 -> -0.3854982768 | T43: -0.03779847024 | U43: 2.75 | V43: =$C$23*U43+$D$23*V44 -> 2.858509182 | W43: 2.955664688 | X43: -2.557696778 | Y43: 17.98171309 | Z43: 40 | AA43: -40 | AD43: 100 | AE43: -100 | AF43: 0.72 | AG43: 0.9766516181 | AH43: 0 | AI43: 0.21 | AJ43: 0.2312574032 | AK43: 0.226647634 | AL43: 23.67859725 | AM43: 23.20659996 | AN43: 0.4719972944 | AO43: 30 | AP43: -30 | AT43: 8513700
A44: 12 | B44: =IF(A44>$A$8,"",OFFSET(InputPriceData!B$15,$A44+$A$11,0,1,1)) -> 2019-08-14 | C44: =IF(A44>$A$8,"",OFFSET(InputPriceData!G$15,CalculationsAndCharts!$A44+$A$11,IF($C$5,8,0),1,1)) -> 14371700 | D44: =IF(A44>$A$8,"",OFFSET(InputPriceData!C$15,CalculationsAndCharts!$A44+$A$11,IF($C$5,8,0),1,1)) -> 45.45 | E44: =IF(A44>$A$8,"",OFFSET(InputPriceData!D$15,CalculationsAndCharts!$A44+$A$11,IF($C$5,8,0),1,1)) -> 45.53 | F44: =IF(A44>$A$8,"",OFFSET(InputPriceData!E$15,CalculationsAndCharts!$A44+$A$11,IF($C$5,8,0),1,1)) -> 44.14 | G44: =IF(A44>$A$8,"",OFFSET(InputPriceData!F$15,CalculationsAndCharts!$A44+$A$11,IF($C$5,8,0),1,1)) -> 44.24 | H44: 45.60333333 | I44: 44.55333333 | J44: FALSE | K44: 45.60333333 | M44: 49.80352 | P44: 46.37 | Q44: 43.52 | R44: -0.705 | S44: =$C$23*R44+$D$23*S45 -> -0.1159965535 | T44: 0.3099013363 | U44: 2.85 | V44: =$C$23*U44+$D$23*V45 -> 2.967018364 | W44: 3.052820194 | X44: 20.3026262 | Y44: 38.52112296 | Z44: 40 | AA44: -40 | AB44: 100 | AC44: -100 | AF44: 1.39 | AG44: 1.005168465 | AH44: 0 | AI44: 0.59 | AJ44: 0.2569526702 | AK44: 0.2284973711 | AL44: 25.56314481 | AM44: 22.7322463 | AN44: 2.830898514 | AO44: 30 | AP44: -30 | AT44: 14371700
A45: 13 | B45: =IF(A45>$A$8,"",OFFSET(InputPriceData!B$15,$A45+$A$11,0,1,1)) -> 2019-08-13 | C45: =IF(A45>$A$8,"",OFFSET(InputPriceData!G$15,CalculationsAndCharts!$A45+$A$11,IF($C$5,8,0),1,1)) -> 8496200 | D45: =IF(A45>$A$8,"",OFFSET(InputPriceData!C$15,CalculationsAndCharts!$A45+$A$11,IF($C$5,8,0),1,1)) -> 45.01 | E45: =IF(A45>$A$8,"",OFFSET(InputPriceData!D$15,CalculationsAndCharts!$A45+$A$11,IF($C$5,8,0),1,1)) -> 45.52 | F45: =IF(A45>$A$8,"",OFFSET(InputPriceData!E$15,CalculationsAndCharts!$A45+$A$11,IF($C$5,8,0),1,1)) -> 44.73 | G45: =IF(A45>$A$8,"",OFFSET(InputPriceData!F$15,CalculationsAndCharts!$A45+$A$11,IF($C$5,8,0),1,1)) -> 45.06 | H45: 45.88333333 | I45: 45.05666667 | J45: FALSE | K45: 45.88333333 | M45: 49.80352 | P45: 46.37 | Q45: 43.52 | R45: 0.115 | S45: =$C$23*R45+$D$23*S46 -> 0.473006893 | T45: 0.7357992261 | U45: 2.85 | V45: =$C$23*U45+$D$23*V46 -> 3.084036727 | W45: 3.138622024 | X45: 46.8867688 | Y45: 56.73961973 | Z45: 40 | AA45: -40 | AB45: 100 | AC45: -100 | AF45: 0.79 | AG45: 0.9624094051 | AH45: 0 | AI45: 0.06 | AJ45: 0.2855029669 | AK45: 0.1883304123 | AL45: 29.66543816 | AM45: 19.56863798 | AN45: 10.09680018 | AO45: 30 | AP45: -30 | AS45: 8496200
A46: 14 | B46: =IF(A46>$A$8,"",OFFSET(InputPriceData!B$15,$A46+$A$11,0,1,1)) -> 2019-08-12 | C46: =IF(A46>$A$8,"",OFFSET(InputPriceData!G$15,CalculationsAndCharts!$A46+$A$11,IF($C$5,8,0),1,1)) -> 8851600 | D46: =IF(A46>$A$8,"",OFFSET(InputPriceData!C$15,CalculationsAndCharts!$A46+$A$11,IF($C$5,8,0),1,1)) -> 45.55 | E46: =IF(A46>$A$8,"",OFFSET(InputPriceData!D$15,CalculationsAndCharts!$A46+$A$11,IF($C$5,8,0),1,1)) -> 45.76 | F46: =IF(A46>$A$8,"",OFFSET(InputPriceData!E$15,CalculationsAndCharts!$A46+$A$11,IF($C$5,8,0),1,1)) -> 44.79 | G46: =IF(A46>$A$8,"",OFFSET(InputPriceData!F$15,CalculationsAndCharts!$A46+$A$11,IF($C$5,8,0),1,1)) -> 45.08 | H46: 46.01333333 | I46: 45.09333333 | J46: TRUE | K46: 45.09333333 | L46: 49.80352 | N46: 47.5904 | P46: 46.37 | Q46: 43.04 | R46: 0.375 | S46: =$C$23*R46+$D$23*S47 -> 0.8310137859 | T46: 0.9985915592 | U46: 3.33 | V46: =$C$23*U46+$D$23*V47 -> 3.318073454 | W46: 3.193207321 | X46: 62.54473692 | Y46: 66.59247065 | Z46: 40 | AA46: -40 | AB46: 100 | AC46: -100 | AF46: 1.07 | AG46: 0.9815660057 | AH46: 0 | AI46: 0.86 | AJ46: 0.3172255188 | AK46: 0.202589347 | AL46: 32.31830738 | AM46: 20.63940131 | AN46: 11.67890606 | AO46: 30 | AP46: -30 | AT46: 8851600
A47: 15 | B47: =IF(A47>$A$8,"",OFFSET(InputPriceData!B$15,$A47+$A$11,0,1,1)) -> 2019-08-09 | C47: =IF(A47>$A$8,"",OFFSET(InputPriceData!G$15,CalculationsAndCharts!$A47+$A$11,IF($C$5,8,0),1,1)) -> 12213600 | D47: =IF(A47>$A$8,"",OFFSET(InputPriceData!C$15,CalculationsAndCharts!$A47+$A$11,IF($C$5,8,0),1,1)) -> 45.84 | E47: =IF(A47>$A$8,"",OFFSET(InputPriceData!D$15,CalculationsAndCharts!$A47+$A$11,IF($C$5,8,0),1,1)) -> 46.37 | F47: =IF(A47>$A$8,"",OFFSET(InputPriceData!E$15,CalculationsAndCharts!$A47+$A$11,IF($C$5,8,0),1,1)) -> 45.65 | G47: =IF(A47>$A$8,"",OFFSET(InputPriceData!F$15,CalculationsAndCharts!$A47+$A$11,IF($C$5,8,0),1,1)) -> 45.86 | H47: 45.77 | I47: 44.72666667 | J47: TRUE | K47: 44.72666667 | L47: 49.80352 | P47: 46.37 | Q47: 42.65 | R47: 1.35 | S47: =$C$23*R47+$D$23*S48 -> 1.287027572 | T47: 1.166169332 | U47: 3.72 | V47: =$C$23*U47+$D$23*V48 -> 3.306146909 | W47: 3.068341188 | X47: 76.01301556 | Y47: 70.64020438 | Z47: 40 | AA47: -40 | AB47: 100 | AC47: -100 | AF47: 0.72 | AG47: 0.9717400063 | AH47: 0.46 | AI47: 0 | AJ47: 0.3524727987 | AK47: 0.1295437189 | AL47: 36.27233585 | AM47: 13.33110895 | AN47: 22.9412269 | AO47: 30 | AP47: -30 | AS47: 12213600
A48: 16 | B48: =IF(A48>$A$8,"",OFFSET(InputPriceData!B$15,$A48+$A$11,0,1,1)) -> 2019-08-08 | C48: =IF(A48>$A$8,"",OFFSET(InputPriceData!G$15,CalculationsAndCharts!$A48+$A$11,IF($C$5,8,0),1,1)) -> 13955700 | D48: =IF(A48>$A$8,"",OFFSET(InputPriceData!C$15,CalculationsAndCharts!$A48+$A$11,IF($C$5,8,0),1,1)) -> 45 | E48: =IF(A48>$A$8,"",OFFSET(InputPriceData!D$15,CalculationsAndCharts!$A48+$A$11,IF($C$5,8,0),1,1)) -> 45.91 | F48: =IF(A48>$A$8,"",OFFSET(InputPriceData!E$15,CalculationsAndCharts!$A48+$A$11,IF($C$5,8,0),1,1)) -> 44.84 | G48: =IF(A48>$A$8,"",OFFSET(InputPriceData!F$15,CalculationsAndCharts!$A48+$A$11,IF($C$5,8,0),1,1)) -> 45.84 | H48: 45.07666667 | I48: 44.05 | J48: TRUE | K48: 44.05 | L48: 49.80352 | P48: 45.91 | Q48: 42.65 | R48: 1.56 | S48: =$C$23*R48+$D$23*S49 -> 1.224055144 | T48: 1.045311093 | U48: 3.26 | V48: =$C$23*U48+$D$23*V49 -> 2.892293817 | W48: 2.830535468 | X48: 73.85960041 | Y48: 65.2673932 | Z48: 40 | AA48: -40 | AB48: 100 | AC48: -100 | AF48: 1.09 | AG48: 0.9997111181 | AH48: 0.88 | AI48: 0 | AJ48: 0.3405253319 | AK48: 0.1439374655 | AL48: 34.06237319 | AM48: 14.39790584 | AN48: 19.66446735 | AO48: 30 | AP48: -30 | AS48: 13955700
A49: 17 | B49: =IF(A49>$A$8,"",OFFSET(InputPriceData!B$15,$A49+$A$11,0,1,1)) -> 2019-08-07 | C49: =IF(A49>$A$8,"",OFFSET(InputPriceData!G$15,CalculationsAndCharts!$A49+$A$11,IF($C$5,8,0),1,1)) -> 16780700 | D49: =IF(A49>$A$8,"",OFFSET(InputPriceData!C$15,CalculationsAndCharts!$A49+$A$11,IF($C$5,8,0),1,1)) -> 43.87 | E49: =IF(A49>$A$8,"",OFFSET(InputPriceData!D$15,CalculationsAndCharts!$A49+$A$11,IF($C$5,8,0),1,1)) -> 45.03 | F49: =IF(A49>$A$8,"",OFFSET(InputPriceData!E$15,CalculationsAndCharts!$A49+$A$11,IF($C$5,8,0),1,1)) -> 43.69 | G49: =IF(A49>$A$8,"",OFFSET(InputPriceData!F$15,CalculationsAndCharts!$A49+$A$11,IF($C$5,8,0),1,1)) -> 44.82 | H49: 44.60333333 | I49: 43.61 | J49: TRUE | K49: 43.61 | L49: 49.80352 | P49: 45.03 | Q49: 42.65 | R49: 0.98 | S49: =$C$23*R49+$D$23*S50 -> 0.8881102874 | T49: 0.8665670425 | U49: 2.38 | V49: =$C$23*U49+$D$23*V50 -> 2.524587635 | W49: 2.768777119 | X49: 62.59565182 | Y49: 56.67518599 | Z49: 40 | AA49: -40 | AB49: 100 | AC49: -100 | AF49: 1.34 | AG49: 0.9896790201 | AH49: 0.74 | AI49: 0 | AJ49: 0.2805837021 | AK49: 0.1599305172 | AL49: 28.3509801 | AM49: 16.15983707 | AN49: 12.19114303 | AO49: 30 | AP49: -30 | AS49: 16780700
A50: 18 | B50: =IF(A50>$A$8,"",OFFSET(InputPriceData!B$15,$A50+$A$11,0,1,1)) -> 2019-08-06 | C50: =IF(A50>$A$8,"",OFFSET(InputPriceData!G$15,CalculationsAndCharts!$A50+$A$11,IF($C$5,8,0),1,1)) -> 12146800 | D50: =IF(A50>$A$8,"",OFFSET(InputPriceData!C$15,CalculationsAndCharts!$A50+$A$11,IF($C$5,8,0),1,1)) -> 44.27 | E50: =IF(A50>$A$8,"",OFFSET(InputPriceData!D$15,CalculationsAndCharts!$A50+$A$11,IF($C$5,8,0),1,1)) -> 44.29 | F50: =IF(A50>$A$8,"",OFFSET(InputPriceData!E$15,CalculationsAndCharts!$A50+$A$11,IF($C$5,8,0),1,1)) -> 43.62 | G50: =IF(A50>$A$8,"",OFFSET(InputPriceData!F$15,CalculationsAndCharts!$A50+$A$11,IF($C$5,8,0),1,1)) -> 44.28 | H50: 44.46333333 | I50: 43.62 | J50: TRUE | K50: 43.62 | L50: 49.80352 | P50: 44.69 | Q50: 42.65 | R50: 0.61 | S50: =$C$23*R50+$D$23*S51 -> 0.7962205748 | T50: 0.8450237976 | U50: 2.04 | V50: =$C$23*U50+$D$23*V51 -> 2.66917527 | W50: 3.012966603 | X50: 56.09247688 | Y50: 50.75472016 | Z50: 40 | AA50: -40 | AB50: 100 | AC50: -100 | AF50: 0.67 | AG50: 0.9507544668 | AH50: 0 | AI50: 0 | AJ50: 0.2295374467 | AK50: 0.1777005747 | AL50: 24.14266299 | AM50: 18.69048013 | AN50: 5.452182858 | AO50: 30 | AP50: -30 | AS50: 12146800
A51: 19 | B51: =IF(A51>$A$8,"",OFFSET(InputPriceData!B$15,$A51+$A$11,0,1,1)) -> 2019-08-05 | C51: =IF(A51>$A$8,"",OFFSET(InputPriceData!G$15,CalculationsAndCharts!$A51+$A$11,IF($C$5,8,0),1,1)) -> 17156700 | D51: =IF(A51>$A$8,"",OFFSET(InputPriceData!C$15,CalculationsAndCharts!$A51+$A$11,IF($C$5,8,0),1,1)) -> 43.87 | E51: =IF(A51>$A$8,"",OFFSET(InputPriceData!D$15,CalculationsAndCharts!$A51+$A$11,IF($C$5,8,0),1,1)) -> 44.49 | F51: =IF(A51>$A$8,"",OFFSET(InputPriceData!E$15,CalculationsAndCharts!$A51+$A$11,IF($C$5,8,0),1,1)) -> 43.52 | G51: =IF(A51>$A$8,"",OFFSET(InputPriceData!F$15,CalculationsAndCharts!$A51+$A$11,IF($C$5,8,0),1,1)) -> 43.98 | H51: 44.4 | I51: 43.42666667 | J51: TRUE | K51: 43.42666667 | L51: 49.80352 | P51: 44.69 | Q51: 41.5 | R51: 0.885 | S51: =$C$23*R51+$D$23*S52 -> 0.9824411497 | T51: 0.8938270203 | U51: 3.19 | V51: =$C$23*U51+$D$23*V52 -> 3.29835054 | W51: 3.356757936 | X51: 53.25537542 | Y51: 45.41696344 | Z51: 40 | AA51: -40 | AB51: 100 | AC51: -100 | AF51: 1.06 | AG51: 0.9819494076 | AH51: 0 | AI51: 0.2 | AJ51: 0.2550416075 | AK51: 0.197445083 | AL51: 25.97298858 | AM51: 20.10745986 | AN51: 5.86552872 | AO51: 30 | AP51: -30 | AS51: 17156700
A52: 20 | B52: =IF(A52>$A$8,"",OFFSET(InputPriceData!B$15,$A52+$A$11,0,1,1)) -> 2019-08-02 | C52: =IF(A52>$A$8,"",OFFSET(InputPriceData!G$15,CalculationsAndCharts!$A52+$A$11,IF($C$5,8,0),1,1)) -> 17929000 | D52: =IF(A52>$A$8,"",OFFSET(InputPriceData!C$15,CalculationsAndCharts!$A52+$A$11,IF($C$5,8,0),1,1)) -> 43.86 | E52: =IF(A52>$A$8,"",OFFSET(InputPriceData!D$15,CalculationsAndCharts!$A52+$A$11,IF($C$5,8,0),1,1)) -> 44.61 | F52: =IF(A52>$A$8,"",OFFSET(InputPriceData!E$15,CalculationsAndCharts!$A52+$A$11,IF($C$5,8,0),1,1)) -> 43.72 | G52: =IF(A52>$A$8,"",OFFSET(InputPriceData!F$15,CalculationsAndCharts!$A52+$A$11,IF($C$5,8,0),1,1)) -> 44.58 | H52: 44.12333333 | I52: 43.13666667 | J52: TRUE | K52: 43.13666667 | L52: 49.80352 | O52: 41.4112 | P52: 44.69 | Q52: 41.37 | R52: 1.55 | S52: =$C$23*R52+$D$23*S53 -> 1.079882299 | T52: 0.8052128909 | U52: 3.32 | V52: =$C$23*U52+$D$23*V53 -> 3.40670108 | W52: 3.415165331 | X52: 47.15513381 | Y52: 37.57855146 | Z52: 40 | AA52: -40 | AB52: 100 | AC52: -100 | AF52: 0.89 | AG52: 0.9732771195 | AH52: 0.51 | AI52: 0 | AJ52: 0.2833795639 | AK52: 0.1971612033 | AL52: 29.11602032 | AM52: 20.25745796 | AN52: 8.85856236 | AO52: 30 | AP52: -30 | AS52: 17929000
A53: 21 | B53: =IF(A53>$A$8,"",OFFSET(InputPriceData!B$15,$A53+$A$11,0,1,1)) -> 2019-08-01 | C53: =IF(A53>$A$8,"",OFFSET(InputPriceData!G$15,CalculationsAndCharts!$A53+$A$11,IF($C$5,8,0),1,1)) -> 16077500 | D53: =IF(A53>$A$8,"",OFFSET(InputPriceData!C$15,CalculationsAndCharts!$A53+$A$11,IF($C$5,8,0),1,1)) -> 43.18 | E53: =IF(A53>$A$8,"",OFFSET(InputPriceData!D$15,CalculationsAndCharts!$A53+$A$11,IF($C$5,8,0),1,1)) -> 44.1 | F53: =IF(A53>$A$8,"",OFFSET(InputPriceData!E$15,CalculationsAndCharts!$A53+$A$11,IF($C$5,8,0),1,1)) -> 43.04 | G53: =IF(A53>$A$8,"",OFFSET(InputPriceData!F$15,CalculationsAndCharts!$A53+$A$11,IF($C$5,8,0),1,1)) -> 43.81 | H53: 43.9 | I53: 42.93333333 | J53: FALSE | K53: 43.9 | M53: 49.80352 | P53: 44.69 | Q53: 41.17 | R53: 0.88 | S53: =$C$23*R53+$D$23*S54 -> 0.6097645987 | T53: 0.5305434826 | U53: 3.52 | V53: =$C$23*U53+$D$23*V54 -> 3.49340216 | W53: 3.423629583 | X53: 30.99304231 | Y53: 28.0019691 | Z53: 40 | AA53: -40 | AB53: 100 | AC53: -100 | AF53: 1.06 | AG53: 0.9825301328 | AH53: 0.44 | AI53: 0 | AJ53: 0.2581995154 | AK53: 0.2190680037 | AL53: 26.27904293 | AM53: 22.29631401 | AN53: 3.98272892 | AO53: 30 | AP53: -30 | AS53: 16077500
A54: 22 | B54: =IF(A54>$A$8,"",OFFSET(InputPriceData!B$15,$A54+$A$11,0,1,1)) -> 2019-07-31 | C54: =IF(A54>$A$8,"",OFFSET(InputPriceData!G$15,CalculationsAndCharts!$A54+$A$11,IF($C$5,8,0),1,1)) -> 12863100 | D54: =IF(A54>$A$8,"",OFFSET(InputPriceData!C$15,CalculationsAndCharts!$A54+$A$11,IF($C$5,8,0),1,1)) -> 43.01 | E54: =IF(A54>$A$8,"",OFFSET(InputPriceData!D$15,CalculationsAndCharts!$A54+$A$11,IF($C$5,8,0),1,1)) -> 43.66 | F54: =IF(A54>$A$8,"",OFFSET(InputPriceData!E$15,CalculationsAndCharts!$A54+$A$11,IF($C$5,8,0),1,1)) -> 42.65 | G54: =IF(A54>$A$8,"",OFFSET(InputPriceData!F$15,CalculationsAndCharts!$A54+$A$11,IF($C$5,8,0),1,1)) -> 43.04 | H54: 43.90333333 | I54: 43.09666667 | J54: FALSE | K54: 43.90333333 | M54: 49.80352 | N54: 45.65946667 | P54: 44.69 | Q54: 41.17 | R54: 0.11 | S54: =$C$23*R54+$D$23*S55 -> 0.3395291973 | T54: 0.4513223664 | U54: 3.52 | V54: =$C$23*U54+$D$23*V55 -> 3.466804319 | W54: 3.353857006 | X54: 26.91363202 | Y54: 25.01089588 | Z54: 40 | AA54: -40 | AB54: 100 | AC54: -100 | AF54: 1.01 | AG54: 0.9739223698 | AH54: 0 | AI54: 0.46 | AJ54: 0.2379994616 | AK54: 0.243408893 | AL54: 24.4372107 | AM54: 24.99263807 | AN54: -0.555427369 | AQ54: 30 | AR54: -30 | AS54: 12863100
A55: 23 | B55: =IF(A55>$A$8,"",OFFSET(InputPriceData!B$15,$A55+$A$11,0,1,1)) -> 2019-07-30 | C55: =IF(A55>$A$8,"",OFFSET(InputPriceData!G$15,CalculationsAndCharts!$A55+$A$11,IF($C$5,8,0),1,1)) -> 13906500 | D55: =IF(A55>$A$8,"",OFFSET(InputPriceData!C$15,CalculationsAndCharts!$A55+$A$11,IF($C$5,8,0),1,1)) -> 43.66 | E55: =IF(A55>$A$8,"",OFFSET(InputPriceData!D$15,CalculationsAndCharts!$A55+$A$11,IF($C$5,8,0),1,1)) -> 43.94 | F55: =IF(A55>$A$8,"",OFFSET(InputPriceData!E$15,CalculationsAndCharts!$A55+$A$11,IF($C$5,8,0),1,1)) -> 43.11 | G55: =IF(A55>$A$8,"",OFFSET(InputPriceData!F$15,CalculationsAndCharts!$A55+$A$11,IF($C$5,8,0),1,1)) -> 43.19 | H55: 44.24666667 | I55: 43.18 | J55: TRUE | K55: 43.18 | L55: 49.80352 | P55: 44.69 | Q55: 41.17 | R55: 0.26 | S55: =$C$23*R55+$D$23*S56 -> 0.5690583947 | T55: 0.5631155356 | U55: 3.52 | V55: =$C$23*U55+$D$23*V56 -> 3.413608638 | W55: 3.240909692 | X55: 34.75046139 | Y55: 23.10815975 | Z55: 40 | AA55: -40 | AB55: 100 | AC55: -100 | AF55: 0.88 | AG55: 0.9699137442 | AH55: 0 | AI55: 0.42 | AJ55: 0.2644438462 | AK55: 0.2193432144 | AL55: 27.26467666 | AM55: 22.6147135 | AN55: 4.649963159 | AO55: 30 | AP55: -30 | AT55: 13906500
A56: 24 | B56: =IF(A56>$A$8,"",OFFSET(InputPriceData!B$15,$A56+$A$11,0,1,1)) -> 2019-07-29 | C56: =IF(A56>$A$8,"",OFFSET(InputPriceData!G$15,CalculationsAndCharts!$A56+$A$11,IF($C$5,8,0),1,1)) -> 14301000 | D56: =IF(A56>$A$8,"",OFFSET(InputPriceData!C$15,CalculationsAndCharts!$A56+$A$11,IF($C$5,8,0),1,1)) -> 43.62 | E56: =IF(A56>$A$8,"",OFFSET(InputPriceData!D$15,CalculationsAndCharts!$A56+$A$11,IF($C$5,8,0),1,1)) -> 44.11 | F56: =IF(A56>$A$8,"",OFFSET(InputPriceData!E$15,CalculationsAndCharts!$A56+$A$11,IF($C$5,8,0),1,1)) -> 43.53 | G56: =IF(A56>$A$8,"",OFFSET(InputPriceData!F$15,CalculationsAndCharts!$A56+$A$11,IF($C$5,8,0),1,1)) -> 43.99 | H56: 44.34666667 | I56: 42.64333333 | J56: TRUE | K56: 42.64333333 | L56: 49.80352 | P56: 44.69 | Q56: 41.17 | R56: 1.06 | S56: =$C$23*R56+$D$23*S57 -> 0.8781167893 | T56: 0.5571726765 | U56: 3.52 | V56: =$C$23*U56+$D$23*V57 -> 3.307217276 | W56: 3.068210746 | X56: 36.31906167 | Y56: 11.46585811 | Z56: 40 | AA56: -40 | AB56: 100 | AC56: -100 | AF56: 0.58 | AG56: 0.9799041602 | AH56: 0 | AI56: 0 | AJ56: 0.2938264958 | AK56: 0.197048016 | AL56: 29.98522791 | AM56: 20.10890697 | AN56: 9.876320939 | AO56: 30 | AP56: -30 | AS56: 14301000
A57: 25 | B57: =IF(A57>$A$8,"",OFFSET(InputPriceData!B$15,$A57+$A$11,0,1,1)) -> 2019-07-26 | C57: =IF(A57>$A$8,"",OFFSET(InputPriceData!G$15,CalculationsAndCharts!$A57+$A$11,IF($C$5,8,0),1,1)) -> 20318100 | D57: =IF(A57>$A$8,"",OFFSET(InputPriceData!C$15,CalculationsAndCharts!$A57+$A$11,IF($C$5,8,0),1,1)) -> 44.57 | E57: =IF(A57>$A$8,"",OFFSET(InputPriceData!D$15,CalculationsAndCharts!$A57+$A$11,IF($C$5,8,0),1,1)) -> 44.69 | F57: =IF(A57>$A$8,"",OFFSET(InputPriceData!E$15,CalculationsAndCharts!$A57+$A$11,IF($C$5,8,0),1,1)) -> 42.9 | G57: =IF(A57>$A$8,"",OFFSET(InputPriceData!F$15,CalculationsAndCharts!$A57+$A$11,IF($C$5,8,0),1,1)) -> 43.97 | H57: 43.63666667 | I57: 41.92333333 | J57: TRUE | K57: 41.92333333 | L57: 49.80352 | P57: 44.69 | Q57: 41.17 | R57: 1.04 | S57: =$C$23*R57+$D$23*S58 -> 0.6962335787 | T57: 0.2362285636 | U57: 3.52 | V57: =$C$23*U57+$D$23*V58 -> 3.094434553 | W57: 2.829204216 | X57: 16.69929391 | Y57: -13.38734545 | Z57: 40 | AA57: -40 | AB57: 100 | AC57: -100 | AF57: 1.79 | AG57: 1.024337956 | AH57: 0.45 | AI57: 0 | AJ57: 0.3264738842 | AK57: 0.21894224 | AL57: 31.87169648 | AM57: 21.37402395 | AN57: 10.49767253 | AO57: 30 | AP57: -30 | AT57: 20318100
A58: 26 | B58: =IF(A58>$A$8,"",OFFSET(InputPriceData!B$15,$A58+$A$11,0,1,1)) -> 2019-07-25 | C58: =IF(A58>$A$8,"",OFFSET(InputPriceData!G$15,CalculationsAndCharts!$A58+$A$11,IF($C$5,8,0),1,1)) -> 33799300 | D58: =IF(A58>$A$8,"",OFFSET(InputPriceData!C$15,CalculationsAndCharts!$A58+$A$11,IF($C$5,8,0),1,1)) -> 41.58 | E58: =IF(A58>$A$8,"",OFFSET(InputPriceData!D$15,CalculationsAndCharts!$A58+$A$11,IF($C$5,8,0),1,1)) -> 44.24 | F58: =IF(A58>$A$8,"",OFFSET(InputPriceData!E$15,CalculationsAndCharts!$A58+$A$11,IF($C$5,8,0),1,1)) -> 41.5 | G58: =IF(A58>$A$8,"",OFFSET(InputPriceData!F$15,CalculationsAndCharts!$A58+$A$11,IF($C$5,8,0),1,1)) -> 44 | H58: 42.65666667 | I58: 41.34666667 | J58: TRUE | K58: 41.34666667 | L58: 49.80352 | O58: 39.6928 | P58: 44.24 | Q58: 41.17 | R58: 1.295 | S58: =$C$23*R58+$D$23*S59 -> 0.3524671573 | T58: -0.2237764514 | U58: 3.07 | V58: =$C$23*U58+$D$23*V59 -> 2.668869106 | W58: 2.563973878 | X58: -17.45543925 | Y58: -43.47398481 | Z58: 40 | AA58: -40 | AD58: 100 | AE58: -100 | AF58: 2.74 | AG58: 0.9392643953 | AH58: 2.26 | AI58: 0 | AJ58: 0.3127487602 | AK58: 0.2432691556 | AL58: 33.2972017 | AM58: 25.89996563 | AN58: 7.39723607 | AO58: 30 | AP58: -30 | AS58: 33799300
A59: 27 | B59: =IF(A59>$A$8,"",OFFSET(InputPriceData!B$15,$A59+$A$11,0,1,1)) -> 2019-07-24 | C59: =IF(A59>$A$8,"",OFFSET(InputPriceData!G$15,CalculationsAndCharts!$A59+$A$11,IF($C$5,8,0),1,1)) -> 14490600 | D59: =IF(A59>$A$8,"",OFFSET(InputPriceData!C$15,CalculationsAndCharts!$A59+$A$11,IF($C$5,8,0),1,1)) -> 41.64 | E59: =IF(A59>$A$8,"",OFFSET(InputPriceData!D$15,CalculationsAndCharts!$A59+$A$11,IF($C$5,8,0),1,1)) -> 41.98 | F59: =IF(A59>$A$8,"",OFFSET(InputPriceData!E$15,CalculationsAndCharts!$A59+$A$11,IF($C$5,8,0),1,1)) -> 41.37 | G59: =IF(A59>$A$8,"",OFFSET(InputPriceData!F$15,CalculationsAndCharts!$A59+$A$11,IF($C$5,8,0),1,1)) -> 41.9 | H59: 41.96666667 | I59: 41.31666667 | J59: FALSE | K59: 41.96666667 | M59: 49.80352 | P59: 43.2 | Q59: 41.17 | R59: -0.285 | S59: =$C$23*R59+$D$23*S60 -> -0.5900656854 | T59: -0.8000200601 | U59: 2.03 | V59: =$C$23*U59+$D$23*V60 -> 2.267738211 | W59: 2.459078651 | X59: -65.06665086 | Y59: -69.49253037 | Z59: 40 | AA59: -40 | AD59: 100 | AE59: -100 | AF59: 0.61 | AG59: 0.7391826615 | AH59: 0.23 | AI59: 0 | AJ59: 0.09638751135 | AK59: 0.2702990618 | AL59: 13.03974192 | AM59: 36.56728923 | AN59: -23.52754731 | AQ59: 30 | AR59: -30 | AS59: 14490600
A60: 28 | B60: =IF(A60>$A$8,"",OFFSET(InputPriceData!B$15,$A60+$A$11,0,1,1)) -> 2019-07-23 | C60: =IF(A60>$A$8,"",OFFSET(InputPriceData!G$15,CalculationsAndCharts!$A60+$A$11,IF($C$5,8,0),1,1)) -> 17663400 | D60: =IF(A60>$A$8,"",OFFSET(InputPriceData!C$15,CalculationsAndCharts!$A60+$A$11,IF($C$5,8,0),1,1)) -> 41.49 | E60: =IF(A60>$A$8,"",OFFSET(InputPriceData!D$15,CalculationsAndCharts!$A60+$A$11,IF($C$5,8,0),1,1)) -> 41.75 | F60: =IF(A60>$A$8,"",OFFSET(InputPriceData!E$15,CalculationsAndCharts!$A60+$A$11,IF($C$5,8,0),1,1)) -> 41.17 | G60: =IF(A60>$A$8,"",OFFSET(InputPriceData!F$15,CalculationsAndCharts!$A60+$A$11,IF($C$5,8,0),1,1)) -> 41.73 | H60: 42.25 | I60: 41.50333333 | J60: FALSE | K60: 42.25 | M60: 49.80352 | P60: 43.28 | Q60: 41.17 | R60: -0.495 | S60: =$C$23*R60+$D$23*S61 -> -0.8951313708 | T60: -1.009974435 | U60: 2.11 | V60: =$C$23*U60+$D$23*V61 -> 2.505476423 | W60: 2.650419091 | X60: -76.21243284 | Y60: -73.91840989 | Z60: 40 | AA60: -40 | AD60: 100 | AE60: -100 | AF60: 0.58 | AG60: 0.7535362905 | AH60: 0 | AI60: 0.24 | AJ60: 0.08154167928 | AK60: 0.3003322908 | AL60: 10.82120135 | AM60: 39.85638046 | AN60: -29.0351791 | AQ60: 30 | AR60: -30 | AS60: 17663400
A61: 29 | B61: =IF(A61>$A$8,"",OFFSET(InputPriceData!B$15,$A61+$A$11,0,1,1)) -> 2019-07-22 | C61: =IF(A61>$A$8,"",OFFSET(InputPriceData!G$15,CalculationsAndCharts!$A61+$A$11,IF($C$5,8,0),1,1)) -> 12390600 | D61: =IF(A61>$A$8,"",OFFSET(InputPriceData!C$15,CalculationsAndCharts!$A61+$A$11,IF($C$5,8,0),1,1)) -> 42.06 | E61: =IF(A61>$A$8,"",OFFSET(InputPriceData!D$15,CalculationsAndCharts!$A61+$A$11,IF($C$5,8,0),1,1)) -> 42.17 | F61: =IF(A61>$A$8,"",OFFSET(InputPriceData!E$15,CalculationsAndCharts!$A61+$A$11,IF($C$5,8,0),1,1)) -> 41.41 | G61: =IF(A61>$A$8,"",OFFSET(InputPriceData!F$15,CalculationsAndCharts!$A61+$A$11,IF($C$5,8,0),1,1)) -> 41.45 | H61: 42.61333333 | I61: 41.84333333 | J61: FALSE | K61: 42.61333333 | M61: 49.80352 | P61: 44.48 | Q61: 41.41 | R61: -1.495 | S61: =$C$23*R61+$D$23*S62 -> -1.295262742 | T61: -1.124817499 | U61: 3.07 | V61: =$C$23*U61+$D$23*V62 -> 2.900952846 | W61: 2.795361759 | X61: -80.47741909 | Y61: -71.62438693 | Z61: 40 | AA61: -40 | AD61: 100 | AE61: -100 | AF61: 0.76 | AG61: 0.7728181006 | AH61: 0 | AI61: 0.52 | AJ61: 0.09060186587 | AK61: 0.3070358787 | AL61: 11.72356934 | AM61: 39.72938502 | AN61: -28.00581569 | AQ61: 30 | AR61: -30 | AT61: 12390600
A62: 30 | B62: =IF(A62>$A$8,"",OFFSET(InputPriceData!B$15,$A62+$A$11,0,1,1)) -> 2019-07-19 | C62: =IF(A62>$A$8,"",OFFSET(InputPriceData!G$15,CalculationsAndCharts!$A62+$A$11,IF($C$5,8,0),1,1)) -> 12023100 | D62: =IF(A62>$A$8,"",OFFSET(InputPriceData!C$15,CalculationsAndCharts!$A62+$A$11,IF($C$5,8,0),1,1)) -> 42.75 | E62: =IF(A62>$A$8,"",OFFSET(InputPriceData!D$15,CalculationsAndCharts!$A62+$A$11,IF($C$5,8,0),1,1)) -> 42.83 | F62: =IF(A62>$A$8,"",OFFSET(InputPriceData!E$15,CalculationsAndCharts!$A62+$A$11,IF($C$5,8,0),1,1)) -> 41.93 | G62: =IF(A62>$A$8,"",OFFSET(InputPriceData!F$15,CalculationsAndCharts!$A62+$A$11,IF($C$5,8,0),1,1)) -> 42 | H62: 42.95 | I62: 42.27333333 | J62: FALSE | K62: 42.95 | M62: 49.80352 | P62: 44.72 | Q62: 41.93 | R62: -1.325 | S62: =$C$23*R62+$D$23*S63 -> -1.095525483 | T62: -0.9543722566 | U62: 2.79 | V62: =$C$23*U62+$D$23*V63 -> 2.731905691 | W62: 2.689770673 | X62: -70.96309482 | Y62: -62.77135478 | Z62: 40 | AA62: -40 | AD62: 100 | AE62: -100 | AF62: 0.9 | AG62: 0.774242334 | AH62: 0 | AI62: 0.26 | AJ62: 0.1006687399 | AK62: 0.2833731986 | AL62: 13.00222623 | AM62: 36.60006514 | AN62: -23.5978389 | AQ62: 30 | AR62: -30 | AT62: 12023100
A63: 31 | B63: =IF(A63>$A$8,"",OFFSET(InputPriceData!B$15,$A63+$A$11,0,1,1)) -> 2019-07-18 | C63: =IF(A63>$A$8,"",OFFSET(InputPriceData!G$15,CalculationsAndCharts!$A63+$A$11,IF($C$5,8,0),1,1)) -> 13178500 | D63: =IF(A63>$A$8,"",OFFSET(InputPriceData!C$15,CalculationsAndCharts!$A63+$A$11,IF($C$5,8,0),1,1)) -> 42.83 | E63: =IF(A63>$A$8,"",OFFSET(InputPriceData!D$15,CalculationsAndCharts!$A63+$A$11,IF($C$5,8,0),1,1)) -> 42.84 | F63: =IF(A63>$A$8,"",OFFSET(InputPriceData!E$15,CalculationsAndCharts!$A63+$A$11,IF($C$5,8,0),1,1)) -> 42.19 | G63: =IF(A63>$A$8,"",OFFSET(InputPriceData!F$15,CalculationsAndCharts!$A63+$A$11,IF($C$5,8,0),1,1)) -> 42.69 | H63: 43.05333333 | I63: 42.53666667 | J63: FALSE | K63: 43.05333333 | M63: 49.80352 | P63: 44.94 | Q63: 42.19 | R63: -0.875 | S63: =$C$23*R63+$D$23*S64 -> -0.8660509661 | T63: -0.8132190301 | U63: 2.75 | V63: =$C$23*U63+$D$23*V64 -> 2.673811382 | W63: 2.647635655 | X63: -61.42982917 | Y63: -54.57961475 | Z63: 40 | AA63: -40 | AD63: 100 | AE63: -100 | AF63: 0.65 | AG63: 0.76026926 | AH63: 0 | AI63: 0.51 | AJ63: 0.1118541554 | AK63: 0.2859702206 | AL63: 14.71243956 | AM63: 37.61433425 | AN63: -22.90189468 | AQ63: 30 | AR63: -30 | AT63: 13178500
A64: 32 | B64: =IF(A64>$A$8,"",OFFSET(InputPriceData!B$15,$A64+$A$11,0,1,1)) -> 2019-07-17 | C64: =IF(A64>$A$8,"",OFFSET(InputPriceData!G$15,CalculationsAndCharts!$A64+$A$11,IF($C$5,8,0),1,1)) -> 10815700 | D64: =IF(A64>$A$8,"",OFFSET(InputPriceData!C$15,CalculationsAndCharts!$A64+$A$11,IF($C$5,8,0),1,1)) -> 43.1 | E64: =IF(A64>$A$8,"",OFFSET(InputPriceData!D$15,CalculationsAndCharts!$A64+$A$11,IF($C$5,8,0),1,1)) -> 43.18 | F64: =IF(A64>$A$8,"",OFFSET(InputPriceData!E$15,CalculationsAndCharts!$A64+$A$11,IF($C$5,8,0),1,1)) -> 42.7 | G64: =IF(A64>$A$8,"",OFFSET(InputPriceData!F$15,CalculationsAndCharts!$A64+$A$11,IF($C$5,8,0),1,1)) -> 42.77 | H64: 43.17333333 | I64: 42.70333333 | J64: FALSE | K64: 43.17333333 | M64: 49.80352 | P64: 44.94 | Q64: 42.46 | R64: -0.93 | S64: =$C$23*R64+$D$23*S65 -> -0.8571019322 | T64: -0.7603870942 | U64: 2.48 | V64: =$C$23*U64+$D$23*V65 -> 2.597622765 | W64: 2.621459928 | X64: -58.01249036 | Y64: -47.72940032 | Z64: 40 | AA64: -40 | AD64: 100 | AE64: -100 | AF64: 0.48 | AG64: 0.7725214 | AH64: 0.04 | AI64: 0 | AJ64: 0.1242823949 | AK64: 0.2610780229 | AL64: 16.08789024 | AM64: 33.79557161 | AN64: -17.70768137 | AQ64: 30 | AR64: -30 | AT64: 10815700
A65: 33 | B65: =IF(A65>$A$8,"",OFFSET(InputPriceData!B$15,$A65+$A$11,0,1,1)) -> 2019-07-16 | C65: =IF(A65>$A$8,"",OFFSET(InputPriceData!G$15,CalculationsAndCharts!$A65+$A$11,IF($C$5,8,0),1,1)) -> 11590900 | D65: =IF(A65>$A$8,"",OFFSET(InputPriceData!C$15,CalculationsAndCharts!$A65+$A$11,IF($C$5,8,0),1,1)) -> 42.79 | E65: =IF(A65>$A$8,"",OFFSET(InputPriceData!D$15,CalculationsAndCharts!$A65+$A$11,IF($C$5,8,0),1,1)) -> 43.14 | F65: =IF(A65>$A$8,"",OFFSET(InputPriceData!E$15,CalculationsAndCharts!$A65+$A$11,IF($C$5,8,0),1,1)) -> 42.72 | G65: =IF(A65>$A$8,"",OFFSET(InputPriceData!F$15,CalculationsAndCharts!$A65+$A$11,IF($C$5,8,0),1,1)) -> 43.08 | H65: 43.20666667 | I65: 42.62333333 | J65: FALSE | K65: 43.20666667 | M65: 49.80352 | P65: 45.23 | Q65: 42.46 | R65: -0.765 | S65: =$C$23*R65+$D$23*S66 -> -0.7842038644 | T65: -0.6636722561 | U65: 2.77 | V65: =$C$23*U65+$D$23*V66 -> 2.715245529 | W65: 2.645297092 | X65: -50.17752131 | Y65: -37.44631029 | Z65: 40 | AA65: -40 | AD65: 100 | AE65: -100 | AF65: 0.42 | AG65: 0.8050237778 | AH65: 0 | AI65: 0 | AJ65: 0.1336471054 | AK65: 0.2900866921 | AL65: 16.60163452 | AM65: 36.03454956 | AN65: -19.43291503 | AQ65: 30 | AR65: -30 | AS65: 11590900
A66: 34 | B66: =IF(A66>$A$8,"",OFFSET(InputPriceData!B$15,$A66+$A$11,0,1,1)) -> 2019-07-15 | C66: =IF(A66>$A$8,"",OFFSET(InputPriceData!G$15,CalculationsAndCharts!$A66+$A$11,IF($C$5,8,0),1,1)) -> 8885400 | D66: =IF(A66>$A$8,"",OFFSET(InputPriceData!C$15,CalculationsAndCharts!$A66+$A$11,IF($C$5,8,0),1,1)) -> 42.92 | E66: =IF(A66>$A$8,"",OFFSET(InputPriceData!D$15,CalculationsAndCharts!$A66+$A$11,IF($C$5,8,0),1,1)) -> 43.2 | F66: =IF(A66>$A$8,"",OFFSET(InputPriceData!E$15,CalculationsAndCharts!$A66+$A$11,IF($C$5,8,0),1,1)) -> 42.69 | G66: =IF(A66>$A$8,"",OFFSET(InputPriceData!F$15,CalculationsAndCharts!$A66+$A$11,IF($C$5,8,0),1,1)) -> 42.83 | H66: 43.65333333 | I66: 42.65333333 | J66: FALSE | K66: 43.65333333 | M66: 49.80352 | P66: 45.23 | Q66: 42.46 | R66: -1.015 | S66: =$C$23*R66+$D$23*S67 -> -0.8034077289 | T66: -0.5431406478 | U66: 2.77 | V66: =$C$23*U66+$D$23*V67 -> 2.660491059 | W66: 2.575348655 | X66: -42.17997021 | Y66: -24.71509926 | Z66: 40 | AA66: -40 | AD66: 100 | AE66: -100 | AF66: 0.51 | AG66: 0.8478041975 | AH66: 0 | AI66: 0 | AJ66: 0.1484967838 | AK66: 0.3223185468 | AL66: 17.51545749 | AM66: 38.01804093 | AN66: -20.50258344 | AQ66: 30 | AR66: -30 | AT66: 8885400
A67: 35 | B67: =IF(A67>$A$8,"",OFFSET(InputPriceData!B$15,$A67+$A$11,0,1,1)) -> 2019-07-12 | C67: =IF(A67>$A$8,"",OFFSET(InputPriceData!G$15,CalculationsAndCharts!$A67+$A$11,IF($C$5,8,0),1,1)) -> 14254900 | D67: =IF(A67>$A$8,"",OFFSET(InputPriceData!C$15,CalculationsAndCharts!$A67+$A$11,IF($C$5,8,0),1,1)) -> 43.2 | E67: =IF(A67>$A$8,"",OFFSET(InputPriceData!D$15,CalculationsAndCharts!$A67+$A$11,IF($C$5,8,0),1,1)) -> 43.28 | F67: =IF(A67>$A$8,"",OFFSET(InputPriceData!E$15,CalculationsAndCharts!$A67+$A$11,IF($C$5,8,0),1,1)) -> 42.46 | G67: =IF(A67>$A$8,"",OFFSET(InputPriceData!F$15,CalculationsAndCharts!$A67+$A$11,IF($C$5,8,0),1,1)) -> 42.91 | H67: 44.16 | I67: 43.20333333 | J67: FALSE | K67: 44.16 | M67: 49.80352 | P67: 45.23 | Q67: 42.46 | R67: -0.935 | S67: =$C$23*R67+$D$23*S68 -> -0.5918154578 | T67: -0.2828735666 | U67: 2.77 | V67: =$C$23*U67+$D$23*V68 -> 2.550982118 | W67: 2.490206251 | X67: -22.71888656 | Y67: -7.250228309 | Z67: 40 | AA67: -40 | AD67: 100 | AE67: -100 | AF67: 0.82 | AG67: 0.8853379972 | AH67: 0 | AI67: 0.35 | AJ67: 0.1649964264 | AK67: 0.3581317187 | AL67: 18.63654638 | AM67: 40.45141175 | AN67: -21.81486538 | AQ67: 30 | AR67: -30 | AT67: 14254900
A68: 36 | B68: =IF(A68>$A$8,"",OFFSET(InputPriceData!B$15,$A68+$A$11,0,1,1)) -> 2019-07-11 | C68: =IF(A68>$A$8,"",OFFSET(InputPriceData!G$15,CalculationsAndCharts!$A68+$A$11,IF($C$5,8,0),1,1)) -> 23338400 | D68: =IF(A68>$A$8,"",OFFSET(InputPriceData!C$15,CalculationsAndCharts!$A68+$A$11,IF($C$5,8,0),1,1)) -> 44.47 | E68: =IF(A68>$A$8,"",OFFSET(InputPriceData!D$15,CalculationsAndCharts!$A68+$A$11,IF($C$5,8,0),1,1)) -> 44.48 | F68: =IF(A68>$A$8,"",OFFSET(InputPriceData!E$15,CalculationsAndCharts!$A68+$A$11,IF($C$5,8,0),1,1)) -> 42.81 | G68: =IF(A68>$A$8,"",OFFSET(InputPriceData!F$15,CalculationsAndCharts!$A68+$A$11,IF($C$5,8,0),1,1)) -> 43.16 | H68: 44.71333333 | I68: 43.81333333 | J68: FALSE | K68: 44.71333333 | M68: 49.80352 | P68: 45.23 | Q68: 42.81 | R68: -0.86 | S68: =$C$23*R68+$D$23*S69 -> -0.2486309155 | T68: 0.02606832447 | U68: 2.42 | V68: =$C$23*U68+$D$23*V69 -> 2.331964235 | W68: 2.429430385 | X68: 2.146044161 | Y68: 8.218429941 | Z68: 40 | AA68: -40 | AB68: 100 | AC68: -100 | AF68: 1.74 | AG68: 0.8925977747 | AH68: 0 | AI68: 1.53 | AJ68: 0.1833293627 | AK68: 0.359035243 | AL68: 20.538855 | AM68: 40.22363187 | AN68: -19.68477687 | AQ68: 30 | AR68: -30 | AT68: 23338400
A69: 37 | B69: =IF(A69>$A$8,"",OFFSET(InputPriceData!B$15,$A69+$A$11,0,1,1)) -> 2019-07-10 | C69: =IF(A69>$A$8,"",OFFSET(InputPriceData!G$15,CalculationsAndCharts!$A69+$A$11,IF($C$5,8,0),1,1)) -> 8807200 | D69: =IF(A69>$A$8,"",OFFSET(InputPriceData!C$15,CalculationsAndCharts!$A69+$A$11,IF($C$5,8,0),1,1)) -> 44.62 | E69: =IF(A69>$A$8,"",OFFSET(InputPriceData!D$15,CalculationsAndCharts!$A69+$A$11,IF($C$5,8,0),1,1)) -> 44.72 | F69: =IF(A69>$A$8,"",OFFSET(InputPriceData!E$15,CalculationsAndCharts!$A69+$A$11,IF($C$5,8,0),1,1)) -> 44.34 | G69: =IF(A69>$A$8,"",OFFSET(InputPriceData!F$15,CalculationsAndCharts!$A69+$A$11,IF($C$5,8,0),1,1)) -> 44.55 | H69: 44.69333333 | I69: 44.18 | J69: FALSE | K69: 44.69333333 | M69: 49.80352 | P69: 45.23 | Q69: 43.16 | R69: 0.355 | S69: =$C$23*R69+$D$23*S70 -> 0.3627381689 | T69: 0.3007675645 | U69: 2.07 | V69: =$C$23*U69+$D$23*V70 -> 2.24392847 | W69: 2.526896535 | X69: 23.8052932 | Y69: 14.29081572 | Z69: 40 | AA69: -40 | AB69: 100 | AC69: -100 | AF69: 0.38 | AG69: 0.7984419719 | AH69: 0 | AI69: 0 | AJ69: 0.2036992919 | AK69: 0.2289280477 | AL69: 25.51209719 | AM69: 28.67184539 | AN69: -3.1597482 | AQ69: 30 | AR69: -30 | AT69: 8807200
A70: 38 | B70: =IF(A70>$A$8,"",OFFSET(InputPriceData!B$15,$A70+$A$11,0,1,1)) -> 2019-07-09 | C70: =IF(A70>$A$8,"",OFFSET(InputPriceData!G$15,CalculationsAndCharts!$A70+$A$11,IF($C$5,8,0),1,1)) -> 9456700 | D70: =IF(A70>$A$8,"",OFFSET(InputPriceData!C$15,CalculationsAndCharts!$A70+$A$11,IF($C$5,8,0),1,1)) -> 44.44 | E70: =IF(A70>$A$8,"",OFFSET(InputPriceData!D$15,CalculationsAndCharts!$A70+$A$11,IF($C$5,8,0),1,1)) -> 44.94 | F70: =IF(A70>$A$8,"",OFFSET(InputPriceData!E$15,CalculationsAndCharts!$A70+$A$11,IF($C$5,8,0),1,1)) -> 44.29 | G70: =IF(A70>$A$8,"",OFFSET(InputPriceData!F$15,CalculationsAndCharts!$A70+$A$11,IF($C$5,8,0),1,1)) -> 44.62 | H70: 44.86333333 | I70: 44.22 | J70: FALSE | K70: 44.86333333 | M70: 49.80352 | P70: 45.23 | Q70: 43.16 | R70: 0.425 | S70: =$C$23*R70+$D$23*S71 -> 0.3704763379 | T70: 0.23879696 | U70: 2.07 | V70: =$C$23*U70+$D$23*V71 -> 2.41785694 | W70: 2.8098646 | X70: 16.99704391 | Y70: 4.776338245 | Z70: 40 | AA70: -40 | AB70: 100 | AC70: -100 | AF70: 0.65 | AG70: 0.8449355243 | AH70: 0.52 | AI70: 0 | AJ70: 0.2263325466 | AK70: 0.2543644975 | AL70: 26.78696067 | AM70: 30.10460445 | AN70: -3.317643787 | AQ70: 30 | AR70: -30 | AS70: 9456700
A71: 39 | B71: =IF(A71>$A$8,"",OFFSET(InputPriceData!B$15,$A71+$A$11,0,1,1)) -> 2019-07-08 | C71: =IF(A71>$A$8,"",OFFSET(InputPriceData!G$15,CalculationsAndCharts!$A71+$A$11,IF($C$5,8,0),1,1)) -> 11884000 | D71: =IF(A71>$A$8,"",OFFSET(InputPriceData!C$15,CalculationsAndCharts!$A71+$A$11,IF($C$5,8,0),1,1)) -> 44.31 | E71: =IF(A71>$A$8,"",OFFSET(InputPriceData!D$15,CalculationsAndCharts!$A71+$A$11,IF($C$5,8,0),1,1)) -> 44.42 | F71: =IF(A71>$A$8,"",OFFSET(InputPriceData!E$15,CalculationsAndCharts!$A71+$A$11,IF($C$5,8,0),1,1)) -> 43.91 | G71: =IF(A71>$A$8,"",OFFSET(InputPriceData!F$15,CalculationsAndCharts!$A71+$A$11,IF($C$5,8,0),1,1)) -> 44.36 | H71: 44.94 | I71: 44.39333333 | J71: FALSE | K71: 44.94 | M71: 49.80352 | P71: 45.23 | Q71: 42.79 | R71: 0.35 | S71: =$C$23*R71+$D$23*S72 -> 0.3159526758 | T71: 0.1071175821 | U71: 2.44 | V71: =$C$23*U71+$D$23*V72 -> 2.76571388 | W71: 3.20187226 | X71: 6.690934142 | Y71: -7.444367425 | Z71: 40 | AA71: -40 | AB71: 100 | AC71: -100 | AF71: 0.57 | AG71: 0.866595027 | AH71: 0 | AI71: 0.55 | AJ71: 0.1937028295 | AK71: 0.2826272194 | AL71: 22.35217414 | AM71: 32.61352888 | AN71: -10.26135474 | AQ71: 30 | AR71: -30 | AS71: 11884000
A72: 40 | B72: =IF(A72>$A$8,"",OFFSET(InputPriceData!B$15,$A72+$A$11,0,1,1)) -> 2019-07-05 | C72: =IF(A72>$A$8,"",OFFSET(InputPriceData!G$15,CalculationsAndCharts!$A72+$A$11,IF($C$5,8,0),1,1)) -> 9635600 | D72: =IF(A72>$A$8,"",OFFSET(InputPriceData!C$15,CalculationsAndCharts!$A72+$A$11,IF($C$5,8,0),1,1)) -> 45.1 | E72: =IF(A72>$A$8,"",OFFSET(InputPriceData!D$15,CalculationsAndCharts!$A72+$A$11,IF($C$5,8,0),1,1)) -> 45.23 | F72: =IF(A72>$A$8,"",OFFSET(InputPriceData!E$15,CalculationsAndCharts!$A72+$A$11,IF($C$5,8,0),1,1)) -> 44.46 | G72: =IF(A72>$A$8,"",OFFSET(InputPriceData!F$15,CalculationsAndCharts!$A72+$A$11,IF($C$5,8,0),1,1)) -> 44.48 | H72: 45.08333333 | I72: 44.54666667 | J72: TRUE | K72: 44.54666667 | L72: 49.80352 | N72: 47.0392 | P72: 45.23 | Q72: 42.79 | R72: 0.47 | S72: =$C$23*R72+$D$23*S73 -> 0.2819053515 | T72: -0.1017175115 | U72: 2.44 | V72: =$C$23*U72+$D$23*V73 -> 3.09142776 | W72: 3.638030639 | X72: -5.591899663 | Y72: -21.57966899 | Z72: 40 | AA72: -40 | AD72: 100 | AE72: -100 | AF72: 0.77 | AG72: 0.89955003 | AH72: 0 | AI72: 0.35 | AJ72: 0.2152253661 | AK72: 0.2529191327 | AL72: 23.92589172 | AM72: 28.11618301 | AN72: -4.190291293 | AQ72: 30 | AR72: -30 | AT72: 9635600
A73: 41 | B73: =IF(A73>$A$8,"",OFFSET(InputPriceData!B$15,$A73+$A$11,0,1,1)) -> 2019-07-03 | C73: =IF(A73>$A$8,"",OFFSET(InputPriceData!G$15,CalculationsAndCharts!$A73+$A$11,IF($C$5,8,0),1,1)) -> 6121500 | D73: =IF(A73>$A$8,"",OFFSET(InputPriceData!C$15,CalculationsAndCharts!$A73+$A$11,IF($C$5,8,0),1,1)) -> 45.06 | E73: =IF(A73>$A$8,"",OFFSET(InputPriceData!D$15,CalculationsAndCharts!$A73+$A$11,IF($C$5,8,0),1,1)) -> 45.17 | F73: =IF(A73>$A$8,"",OFFSET(InputPriceData!E$15,CalculationsAndCharts!$A73+$A$11,IF($C$5,8,0),1,1)) -> 44.81 | G73: =IF(A73>$A$8,"",OFFSET(InputPriceData!F$15,CalculationsAndCharts!$A73+$A$11,IF($C$5,8,0),1,1)) -> 45.13 | H73: 44.83 | I73: 44.27333333 | J73: TRUE | K73: 44.27333333 | L73: 49.80352 | P73: 45.58 | Q73: 42.79 | R73: 0.945 | S73: =$C$23*R73+$D$23*S74 -> 0.093810703 | T73: -0.4853403746 | U73: 2.79 | V73: =$C$23*U73+$D$23*V74 -> 3.742855521 | W73: 4.184633519 | X73: -23.19631444 | Y73: -37.56743832 | Z73: 40 | AA73: -40 | AD73: 100 | AE73: -100 | AF73: 0.36 | AG73: 0.9139444778 | AH73: 0.32 | AI73: 0 | AJ73: 0.2391392957 | AK73: 0.2421323697 | AL73: 26.1656262 | AM73: 26.49311589 | AN73: -0.3274896946 | AQ73: 30 | AR73: -30 | AS73: 6121500
A74: 42 | B74: =IF(A74>$A$8,"",OFFSET(InputPriceData!B$15,$A74+$A$11,0,1,1)) -> 2019-07-02 | C74: =IF(A74>$A$8,"",OFFSET(InputPriceData!G$15,CalculationsAndCharts!$A74+$A$11,IF($C$5,8,0),1,1)) -> 10957000 | D74: =IF(A74>$A$8,"",OFFSET(InputPriceData!C$15,CalculationsAndCharts!$A74+$A$11,IF($C$5,8,0),1,1)) -> 44.64 | E74: =IF(A74>$A$8,"",OFFSET(InputPriceData!D$15,CalculationsAndCharts!$A74+$A$11,IF($C$5,8,0),1,1)) -> 44.85 | F74: =IF(A74>$A$8,"",OFFSET(InputPriceData!E$15,CalculationsAndCharts!$A74+$A$11,IF($C$5,8,0),1,1)) -> 44.37 | G74: =IF(A74>$A$8,"",OFFSET(InputPriceData!F$15,CalculationsAndCharts!$A74+$A$11,IF($C$5,8,0),1,1)) -> 44.85 | H74: 44.31333333 | I74: 43.72333333 | J74: TRUE | K74: 43.72333333 | L74: 49.80352 | P74: 47.45 | Q74: 42.79 | R74: -0.27 | S74: =$C$23*R74+$D$23*S75 -> -0.757378594 | T74: -1.064491452 | U74: 4.66 | V74: =$C$23*U74+$D$23*V75 -> 4.695711041 | W74: 4.626411517 | X74: -46.01801843 | Y74: -51.9385622 | Z74: 40 | AA74: -40 | AD74: 100 | AE74: -100 | AF74: 0.48 | AG74: 0.9754938642 | AH74: 0.38 | AI74: 0 | AJ74: 0.230154773 | AK74: 0.2690359663 | AL74: 23.5936669 | AM74: 27.57946269 | AN74: -3.985795784 | AQ74: 30 | AR74: -30 | AS74: 10957000
A75: 43 | B75: =IF(A75>$A$8,"",OFFSET(InputPriceData!B$15,$A75+$A$11,0,1,1)) -> 2019-07-01 | C75: =IF(A75>$A$8,"",OFFSET(InputPriceData!G$15,CalculationsAndCharts!$A75+$A$11,IF($C$5,8,0),1,1)) -> 14061100 | D75: =IF(A75>$A$8,"",OFFSET(InputPriceData!C$15,CalculationsAndCharts!$A75+$A$11,IF($C$5,8,0),1,1)) -> 43.91 | E75: =IF(A75>$A$8,"",OFFSET(InputPriceData!D$15,CalculationsAndCharts!$A75+$A$11,IF($C$5,8,0),1,1)) -> 44.47 | F75: =IF(A75>$A$8,"",OFFSET(InputPriceData!E$15,CalculationsAndCharts!$A75+$A$11,IF($C$5,8,0),1,1)) -> 43.64 | G75: =IF(A75>$A$8,"",OFFSET(InputPriceData!F$15,CalculationsAndCharts!$A75+$A$11,IF($C$5,8,0),1,1)) -> 44.37 | H75: 43.95666667 | I75: 43.32666667 | J75: TRUE | K75: 43.32666667 | L75: 49.80352 | O75: 41.5936 | P75: 47.6 | Q75: 42.79 | R75: -0.825 | S75: =$C$23*R75+$D$23*S76 -> -1.244757188 | T75: -1.37160431 | U75: 4.81 | V75: =$C$23*U75+$D$23*V76 -> 4.731422082 | W75: 4.557111992 | X75: -60.19620815 | Y75: -57.85910597 | Z75: 40 | AA75: -40 | AD75: 100 | AE75: -100 | AF75: 0.9 | AG75: 1.030548738 | AH75: 0.85 | AI75: 0 | AJ75: 0.2135053033 | AK75: 0.2989288515 | AL75: 20.7176328 | AM75: 29.00676508 | AN75: -8.289132282 | AQ75: 30 | AR75: -30 | AS75: 14061100
A76: 44 | B76: =IF(A76>$A$8,"",OFFSET(InputPriceData!B$15,$A76+$A$11,0,1,1)) -> 2019-06-28 | C76: =IF(A76>$A$8,"",OFFSET(InputPriceData!G$15,CalculationsAndCharts!$A76+$A$11,IF($C$5,8,0),1,1)) -> 15627000 | D76: =IF(A76>$A$8,"",OFFSET(InputPriceData!C$15,CalculationsAndCharts!$A76+$A$11,IF($C$5,8,0),1,1)) -> 43.6 | E76: =IF(A76>$A$8,"",OFFSET(InputPriceData!D$15,CalculationsAndCharts!$A76+$A$11,IF($C$5,8,0),1,1)) -> 43.62 | F76: =IF(A76>$A$8,"",OFFSET(InputPriceData!E$15,CalculationsAndCharts!$A76+$A$11,IF($C$5,8,0),1,1)) -> 43.16 | G76: =IF(A76>$A$8,"",OFFSET(InputPriceData!F$15,CalculationsAndCharts!$A76+$A$11,IF($C$5,8,0),1,1)) -> 43.57 | H76: 43.85666667 | I76: 43.04333333 | J76: FALSE | K76: 43.85666667 | M76: 49.80352 | P76: 47.6 | Q76: 42.79 | R76: -1.625 | S76: =$C$23*R76+$D$23*S77 -> -1.664514376 | T76: -1.498451433 | U76: 4.81 | V76: =$C$23*U76+$D$23*V77 -> 4.652844165 | W76: 4.382801902 | X76: -68.37869774 | Y76: -55.52200378 | Z76: 40 | AA76: -40 | AD76: 100 | AE76: -100 | AF76: 0.46 | AG76: 1.045054153 | AH76: 0 | AI76: 0.02 | AJ76: 0.1427836704 | AK76: 0.3321431683 | AL76: 13.6628011 | AM76: 31.78238823 | AN76: -18.11958713 | AQ76: 30 | AR76: -30 | AT76: 15627000
A77: 45 | B77: =IF(A77>$A$8,"",OFFSET(InputPriceData!B$15,$A77+$A$11,0,1,1)) -> 2019-06-27 | C77: =IF(A77>$A$8,"",OFFSET(InputPriceData!G$15,CalculationsAndCharts!$A77+$A$11,IF($C$5,8,0),1,1)) -> 10918600 | D77: =IF(A77>$A$8,"",OFFSET(InputPriceData!C$15,CalculationsAndCharts!$A77+$A$11,IF($C$5,8,0),1,1)) -> 43.18 | E77: =IF(A77>$A$8,"",OFFSET(InputPriceData!D$15,CalculationsAndCharts!$A77+$A$11,IF($C$5,8,0),1,1)) -> 43.78 | F77: =IF(A77>$A$8,"",OFFSET(InputPriceData!E$15,CalculationsAndCharts!$A77+$A$11,IF($C$5,8,0),1,1)) -> 43.18 | G77: =IF(A77>$A$8,"",OFFSET(InputPriceData!F$15,CalculationsAndCharts!$A77+$A$11,IF($C$5,8,0),1,1)) -> 43.33 | H77: 44.22666667 | I77: 43.27666667 | J77: FALSE | K77: 44.22666667 | M77: 49.80352 | P77: 47.6 | Q77: 42.79 | R77: -1.865 | S77: =$C$23*R77+$D$23*S78 -> -1.704028752 | T77: -1.332388489 | U77: 4.81 | V77: =$C$23*U77+$D$23*V78 -> 4.495688329 | W77: 4.112759639 | X77: -64.79291795 | Y77: -42.66530982 | Z77: 40 | AA77: -40 | AD77: 100 | AE77: -100 | AF77: 0.62 | AG77: 1.11006017 | AH77: 0 | AI77: 0 | AJ77: 0.1586485226 | AK77: 0.3668257425 | AL77: 14.29188497 | AM77: 33.04557287 | AN77: -18.7536879 | AQ77: 30 | AR77: -30 | AS77: 10918600
A78: 46 | B78: =IF(A78>$A$8,"",OFFSET(InputPriceData!B$15,$A78+$A$11,0,1,1)) -> 2019-06-26 | C78: =IF(A78>$A$8,"",OFFSET(InputPriceData!G$15,CalculationsAndCharts!$A78+$A$11,IF($C$5,8,0),1,1)) -> 21924200 | D78: =IF(A78>$A$8,"",OFFSET(InputPriceData!C$15,CalculationsAndCharts!$A78+$A$11,IF($C$5,8,0),1,1)) -> 44.06 | E78: =IF(A78>$A$8,"",OFFSET(InputPriceData!D$15,CalculationsAndCharts!$A78+$A$11,IF($C$5,8,0),1,1)) -> 44.17 | F78: =IF(A78>$A$8,"",OFFSET(InputPriceData!E$15,CalculationsAndCharts!$A78+$A$11,IF($C$5,8,0),1,1)) -> 42.79 | G78: =IF(A78>$A$8,"",OFFSET(InputPriceData!F$15,CalculationsAndCharts!$A78+$A$11,IF($C$5,8,0),1,1)) -> 43.16 | H78: 44.82666667 | I78: 43.47666667 | J78: FALSE | K78: 44.82666667 | M78: 49.80352 | P78: 47.6 | Q78: 42.79 | R78: -2.035 | S78: =$C$23*R78+$D$23*S79 -> -1.543057504 | T78: -0.9607482264 | U78: 4.81 | V78: =$C$23*U78+$D$23*V79 -> 4.181376659 | W78: 3.729830949 | X78: -51.51698507 | Y78: -20.53770168 | Z78: 40 | AA78: -40 | AD78: 100 | AE78: -100 | AF78: 1.38 | AG78: 1.1645113 | AH78: 0 | AI78: 1.07 | AJ78: 0.1762761363 | AK78: 0.4075841584 | AL78: 15.13734871 | AM78: 35.00044682 | AN78: -19.86309811 | AQ78: 30 | AR78: -30 | AT78: 21924200
A79: 47 | B79: =IF(A79>$A$8,"",OFFSET(InputPriceData!B$15,$A79+$A$11,0,1,1)) -> 2019-06-25 | C79: =IF(A79>$A$8,"",OFFSET(InputPriceData!G$15,CalculationsAndCharts!$A79+$A$11,IF($C$5,8,0),1,1)) -> 24456700 | D79: =IF(A79>$A$8,"",OFFSET(InputPriceData!C$15,CalculationsAndCharts!$A79+$A$11,IF($C$5,8,0),1,1)) -> 44.01 | E79: =IF(A79>$A$8,"",OFFSET(InputPriceData!D$15,CalculationsAndCharts!$A79+$A$11,IF($C$5,8,0),1,1)) -> 44.73 | F79: =IF(A79>$A$8,"",OFFSET(InputPriceData!E$15,CalculationsAndCharts!$A79+$A$11,IF($C$5,8,0),1,1)) -> 43.86 | G79: =IF(A79>$A$8,"",OFFSET(InputPriceData!F$15,CalculationsAndCharts!$A79+$A$11,IF($C$5,8,0),1,1)) -> 43.97 | H79: 45.92 | I79: 44.64666667 | J79: FALSE | K79: 45.92 | M79: 49.80352 | P79: 47.6 | Q79: 43.78 | R79: -1.72 | S79: =$C$23*R79+$D$23*S80 -> -1.051115008 | T79: -0.3784389488 | U79: 3.82 | V79: =$C$23*U79+$D$23*V80 -> 3.552753318 | W79: 3.278285238 | X79: -23.08761571 | Y79: 10.44158171 | Z79: 40 | AA79: -40 | AD79: 100 | AE79: -100 | AF79: 0.87 | AG79: 1.140568112 | AH79: 0 | AI79: 0 | AJ79: 0.1958623736 | AK79: 0.3339823982 | AL79: 17.17235224 | AM79: 29.28210905 | AN79: -12.10975681 | AQ79: 30 | AR79: -30 | AT79: 24456700
A80: 48 | B80: =IF(A80>$A$8,"",OFFSET(InputPriceData!B$15,$A80+$A$11,0,1,1)) -> 2019-06-24 | C80: =IF(A80>$A$8,"",OFFSET(InputPriceData!G$15,CalculationsAndCharts!$A80+$A$11,IF($C$5,8,0),1,1)) -> 36621800 | D80: =IF(A80>$A$8,"",OFFSET(InputPriceData!C$15,CalculationsAndCharts!$A80+$A$11,IF($C$5,8,0),1,1)) -> 45.37 | E80: =IF(A80>$A$8,"",OFFSET(InputPriceData!D$15,CalculationsAndCharts!$A80+$A$11,IF($C$5,8,0),1,1)) -> 45.58 | F80: =IF(A80>$A$8,"",OFFSET(InputPriceData!E$15,CalculationsAndCharts!$A80+$A$11,IF($C$5,8,0),1,1)) -> 43.78 | G80: =IF(A80>$A$8,"",OFFSET(InputPriceData!F$15,CalculationsAndCharts!$A80+$A$11,IF($C$5,8,0),1,1)) -> 43.89 | H80: 46.87666667 | I80: 45.60333333 | J80: FALSE | K80: 46.87666667 | M80: 49.80352 | N80: 48.75173333 | P80: 47.6 | Q80: 43.78 | R80: -1.8 | S80: =$C$23*R80+$D$23*S81 -> -0.3822300159 | T80: 0.2942371102 | U80: 3.82 | V80: =$C$23*U80+$D$23*V81 -> 3.285506635 | W80: 3.003817159 | X80: 19.59088018 | Y80: 43.97077912 | Z80: 40 | AA80: -40 | AB80: 100 | AC80: -100 | AF80: 3.62 | AG80: 1.170631235 | AH80: 0 | AI80: 2.52 | AJ80: 0.2176248596 | AK80: 0.3710915536 | AL80: 18.59038552 | AM80: 31.70012404 | AN80: -13.10973852 | AQ80: 30 | AR80: -30 | AT80: 36621800
A81: 49 | B81: =IF(A81>$A$8,"",OFFSET(InputPriceData!B$15,$A81+$A$11,0,1,1)) -> 2019-06-21 | C81: =IF(A81>$A$8,"",OFFSET(InputPriceData!G$15,CalculationsAndCharts!$A81+$A$11,IF($C$5,8,0),1,1)) -> 14979300 | D81: =IF(A81>$A$8,"",OFFSET(InputPriceData!C$15,CalculationsAndCharts!$A81+$A$11,IF($C$5,8,0),1,1)) -> 46.9 | E81: =IF(A81>$A$8,"",OFFSET(InputPriceData!D$15,CalculationsAndCharts!$A81+$A$11,IF($C$5,8,0),1,1)) -> 47.45 | F81: =IF(A81>$A$8,"",OFFSET(InputPriceData!E$15,CalculationsAndCharts!$A81+$A$11,IF($C$5,8,0),1,1)) -> 46.3 | G81: =IF(A81>$A$8,"",OFFSET(InputPriceData!F$15,CalculationsAndCharts!$A81+$A$11,IF($C$5,8,0),1,1)) -> 47.4 | H81: 47.27 | I81: 46.29 | J81: TRUE | K81: 46.29 | L81: 49.80352 | P81: 47.6 | Q81: 45.06 | R81: 1.07 | S81: =$C$23*R81+$D$23*S82 -> 1.035539968 | T81: 0.9707042364 | U81: 2.54 | V81: =$C$23*U81+$D$23*V82 -> 2.75101327 | W81: 2.722127683 | X81: 71.31952278 | Y81: 68.35067806 | Z81: 40 | AA81: -40 | AB81: 100 | AC81: -100 | AF81: 1.15 | AG81: 0.8984791502 | AH81: 0 | AI81: 0.43 | AJ81: 0.2418053995 | AK81: 0.1323239484 | AL81: 26.91274466 | AM81: 14.72754803 | AN81: 12.18519663 | AO81: 30 | AP81: -30 | AS81: 14979300
A82: 50 | B82: =IF(A82>$A$8,"",OFFSET(InputPriceData!B$15,$A82+$A$11,0,1,1)) -> 2019-06-20 | C82: =IF(A82>$A$8,"",OFFSET(InputPriceData!G$15,CalculationsAndCharts!$A82+$A$11,IF($C$5,8,0),1,1)) -> 9441600 | D82: =IF(A82>$A$8,"",OFFSET(InputPriceData!C$15,CalculationsAndCharts!$A82+$A$11,IF($C$5,8,0),1,1)) -> 47.08 | E82: =IF(A82>$A$8,"",OFFSET(InputPriceData!D$15,CalculationsAndCharts!$A82+$A$11,IF($C$5,8,0),1,1)) -> 47.6 | F82: =IF(A82>$A$8,"",OFFSET(InputPriceData!E$15,CalculationsAndCharts!$A82+$A$11,IF($C$5,8,0),1,1)) -> 46.73 | G82: =IF(A82>$A$8,"",OFFSET(InputPriceData!F$15,CalculationsAndCharts!$A82+$A$11,IF($C$5,8,0),1,1)) -> 46.97 | H82: 47.04333333 | I82: 46.13666667 | J82: TRUE | K82: 46.13666667 | L82: 49.80352 | P82: 47.6 | Q82: 44.23 | R82: 1.055 | S82: =$C$23*R82+$D$23*S83 -> 1.001079936 | T82: 0.9058685046 | U82: 3.37 | V82: =$C$23*U82+$D$23*V83 -> 2.962026541 | W82: 2.693242095 | X82: 67.26974201 | Y82: 65.38183334 | Z82: 40 | AA82: -40 | AB82: 100 | AC82: -100 | AF82: 0.9 | AG82: 0.8705323891 | AH82: 0.84 | AI82: 0 | AJ82: 0.2686726661 | AK82: 0.09924883154 | AL82: 30.86302928 | AM82: 11.40093497 | AN82: 19.46209432 | AO82: 30 | AP82: -30 | AT82: 9441600
A83: 51 | B83: =IF(A83>$A$8,"",OFFSET(InputPriceData!B$15,$A83+$A$11,0,1,1)) -> 2019-06-19 | C83: =IF(A83>$A$8,"",OFFSET(InputPriceData!G$15,CalculationsAndCharts!$A83+$A$11,IF($C$5,8,0),1,1)) -> 8720800 | D83: =IF(A83>$A$8,"",OFFSET(InputPriceData!C$15,CalculationsAndCharts!$A83+$A$11,IF($C$5,8,0),1,1)) -> 46.19 | E83: =IF(A83>$A$8,"",OFFSET(InputPriceData!D$15,CalculationsAndCharts!$A83+$A$11,IF($C$5,8,0),1,1)) -> 46.76 | F83: =IF(A83>$A$8,"",OFFSET(InputPriceData!E$15,CalculationsAndCharts!$A83+$A$11,IF($C$5,8,0),1,1)) -> 45.84 | G83: =IF(A83>$A$8,"",OFFSET(InputPriceData!F$15,CalculationsAndCharts!$A83+$A$11,IF($C$5,8,0),1,1)) -> 46.7 | H83: 46.7 | I83: 45.82 | J83: TRUE | K83: 45.82 | L83: 49.80352 | P83: 46.77 | Q83: 44.11 | R83: 1.26 | S83: =$C$23*R83+$D$23*S84 -> 0.9471598728 | T83: 0.8106570727 | U83: 2.66 | V83: =$C$23*U83+$D$23*V84 -> 2.554053081 | W83: 2.424457649 | X83: 66.87327147 | Y83: 63.49392466 | Z83: 40 | AA83: -40 | AB83: 100 | AC83: -100 | AF83: 0.92 | AG83: 0.8672582101 | AH83: 0 | AI83: 0 | AJ83: 0.2051918513 | AK83: 0.1102764795 | AL83: 23.65983382 | AM83: 12.71553019 | AN83: 10.94430363 | AO83: 30 | AP83: -30 | AS83: 8720800
A84: 52 | B84: =IF(A84>$A$8,"",OFFSET(InputPriceData!B$15,$A84+$A$11,0,1,1)) -> 2019-06-18 | C84: =IF(A84>$A$8,"",OFFSET(InputPriceData!G$15,CalculationsAndCharts!$A84+$A$11,IF($C$5,8,0),1,1)) -> 11523700 | D84: =IF(A84>$A$8,"",OFFSET(InputPriceData!C$15,CalculationsAndCharts!$A84+$A$11,IF($C$5,8,0),1,1)) -> 46.38 | E84: =IF(A84>$A$8,"",OFFSET(InputPriceData!D$15,CalculationsAndCharts!$A84+$A$11,IF($C$5,8,0),1,1)) -> 46.77 | F84: =IF(A84>$A$8,"",OFFSET(InputPriceData!E$15,CalculationsAndCharts!$A84+$A$11,IF($C$5,8,0),1,1)) -> 45.84 | G84: =IF(A84>$A$8,"",OFFSET(InputPriceData!F$15,CalculationsAndCharts!$A84+$A$11,IF($C$5,8,0),1,1)) -> 45.91 | H84: 46.49333333 | I84: 45.65666667 | J84: TRUE | K84: 45.65666667 | L84: 49.80352 | P84: 46.77 | Q84: 44.11 | R84: 0.47 | S84: =$C$23*R84+$D$23*S85 -> 0.6343197457 | T84: 0.6741542726 | U84: 2.66 | V84: =$C$23*U84+$D$23*V85 -> 2.448106163 | W84: 2.294862217 | X84: 58.753355 | Y84: 60.11457786 | Z84: 40 | AA84: -40 | AB84: 100 | AC84: -100 | AF84: 0.93 | AG84: 0.8613980112 | AH84: 0.2 | AI84: 0 | AJ84: 0.2279909459 | AK84: 0.1225294217 | AL84: 26.4675496 | AM84: 14.22448393 | AN84: 12.24306567 | AO84: 30 | AP84: -30 | AT84: 11523700
A85: 53 | B85: =IF(A85>$A$8,"",OFFSET(InputPriceData!B$15,$A85+$A$11,0,1,1)) -> 2019-06-17 | C85: =IF(A85>$A$8,"",OFFSET(InputPriceData!G$15,CalculationsAndCharts!$A85+$A$11,IF($C$5,8,0),1,1)) -> 9514200 | D85: =IF(A85>$A$8,"",OFFSET(InputPriceData!C$15,CalculationsAndCharts!$A85+$A$11,IF($C$5,8,0),1,1)) -> 45.91 | E85: =IF(A85>$A$8,"",OFFSET(InputPriceData!D$15,CalculationsAndCharts!$A85+$A$11,IF($C$5,8,0),1,1)) -> 46.57 | F85: =IF(A85>$A$8,"",OFFSET(InputPriceData!E$15,CalculationsAndCharts!$A85+$A$11,IF($C$5,8,0),1,1)) -> 45.78 | G85: =IF(A85>$A$8,"",OFFSET(InputPriceData!F$15,CalculationsAndCharts!$A85+$A$11,IF($C$5,8,0),1,1)) -> 46.32 | H85: 46.19333333 | I85: 45.42 | J85: TRUE | K85: 45.42 | L85: 49.80352 | P85: 46.57 | Q85: 44.11 | R85: 0.98 | S85: =$C$23*R85+$D$23*S86 -> 0.7986394914 | T85: 0.7139887995 | U85: 2.46 | V85: =$C$23*U85+$D$23*V86 -> 2.236212326 | W85: 2.141618272 | X85: 66.67750355 | Y85: 61.47580072 | Z85: 40 | AA85: -40 | AB85: 100 | AC85: -100 | AF85: 0.88 | AG85: 0.853775568 | AH85: 0.43 | AI85: 0 | AJ85: 0.231101051 | AK85: 0.1361438018 | AL85: 27.06812652 | AM85: 15.94608782 | AN85: 11.1220387 | AO85: 30 | AP85: -30 | AS85: 9514200
A86: 54 | B86: =IF(A86>$A$8,"",OFFSET(InputPriceData!B$15,$A86+$A$11,0,1,1)) -> 2019-06-14 | C86: =IF(A86>$A$8,"",OFFSET(InputPriceData!G$15,CalculationsAndCharts!$A86+$A$11,IF($C$5,8,0),1,1)) -> 10186000 | D86: =IF(A86>$A$8,"",OFFSET(InputPriceData!C$15,CalculationsAndCharts!$A86+$A$11,IF($C$5,8,0),1,1)) -> 45.47 | E86: =IF(A86>$A$8,"",OFFSET(InputPriceData!D$15,CalculationsAndCharts!$A86+$A$11,IF($C$5,8,0),1,1)) -> 46.14 | F86: =IF(A86>$A$8,"",OFFSET(InputPriceData!E$15,CalculationsAndCharts!$A86+$A$11,IF($C$5,8,0),1,1)) -> 45.35 | G86: =IF(A86>$A$8,"",OFFSET(InputPriceData!F$15,CalculationsAndCharts!$A86+$A$11,IF($C$5,8,0),1,1)) -> 45.69 | H86: 45.93333333 | I86: 45.18 | J86: TRUE | K86: 45.18 | L86: 49.80352 | P86: 46.14 | Q86: 44.11 | R86: 0.565 | S86: =$C$23*R86+$D$23*S87 -> 0.6172789828 | T86: 0.6293381076 | U86: 2.03 | V86: =$C$23*U86+$D$23*V87 -> 2.012424652 | W86: 2.047024217 | X86: 61.48809596 | Y86: 56.2740979 | Z86: 40 | AA86: -40 | AB86: 100 | AC86: -100 | AF86: 0.79 | AG86: 0.8508617422 | AH86: 0.27 | AI86: 0 | AJ86: 0.2090011677 | AK86: 0.1512708909 | AL86: 24.56346988 | AM86: 17.77855125 | AN86: 6.784918622 | AO86: 30 | AP86: -30 | AS86: 10186000
A87: 55 | B87: =IF(A87>$A$8,"",OFFSET(InputPriceData!B$15,$A87+$A$11,0,1,1)) -> 2019-06-13 | C87: =IF(A87>$A$8,"",OFFSET(InputPriceData!G$15,CalculationsAndCharts!$A87+$A$11,IF($C$5,8,0),1,1)) -> 9328000 | D87: =IF(A87>$A$8,"",OFFSET(InputPriceData!C$15,CalculationsAndCharts!$A87+$A$11,IF($C$5,8,0),1,1)) -> 45.66 | E87: =IF(A87>$A$8,"",OFFSET(InputPriceData!D$15,CalculationsAndCharts!$A87+$A$11,IF($C$5,8,0),1,1)) -> 45.87 | F87: =IF(A87>$A$8,"",OFFSET(InputPriceData!E$15,CalculationsAndCharts!$A87+$A$11,IF($C$5,8,0),1,1)) -> 45.13 | G87: =IF(A87>$A$8,"",OFFSET(InputPriceData!F$15,CalculationsAndCharts!$A87+$A$11,IF($C$5,8,0),1,1)) -> 45.47 | H87: 45.61 | I87: 44.80666667 | J87: TRUE | K87: 44.80666667 | L87: 49.80352 | P87: 45.87 | Q87: 44.11 | R87: 0.48 | S87: =$C$23*R87+$D$23*S88 -> 0.6695579655 | T87: 0.6413972325 | U87: 1.76 | V87: =$C$23*U87+$D$23*V88 -> 1.994849303 | W87: 2.081623783 | X87: 61.62470256 | Y87: 51.06009983 | Z87: 40 | AA87: -40 | AB87: 100 | AC87: -100 | AF87: 0.74 | AG87: 0.857624158 | AH87: 0.08 | AI87: 0 | AJ87: 0.2022235197 | AK87: 0.1680787677 | AL87: 23.57950366 | AM87: 19.59818484 | AN87: 3.981318818 | AO87: 30 | AP87: -30 | AT87: 9328000
A88: 56 | B88: =IF(A88>$A$8,"",OFFSET(InputPriceData!B$15,$A88+$A$11,0,1,1)) -> 2019-06-12 | C88: =IF(A88>$A$8,"",OFFSET(InputPriceData!G$15,CalculationsAndCharts!$A88+$A$11,IF($C$5,8,0),1,1)) -> 10650300 | D88: =IF(A88>$A$8,"",OFFSET(InputPriceData!C$15,CalculationsAndCharts!$A88+$A$11,IF($C$5,8,0),1,1)) -> 45.14 | E88: =IF(A88>$A$8,"",OFFSET(InputPriceData!D$15,CalculationsAndCharts!$A88+$A$11,IF($C$5,8,0),1,1)) -> 45.79 | F88: =IF(A88>$A$8,"",OFFSET(InputPriceData!E$15,CalculationsAndCharts!$A88+$A$11,IF($C$5,8,0),1,1)) -> 45.06 | G88: =IF(A88>$A$8,"",OFFSET(InputPriceData!F$15,CalculationsAndCharts!$A88+$A$11,IF($C$5,8,0),1,1)) -> 45.76 | H88: 45.36333333 | I88: 44.46666667 | J88: TRUE | K88: 44.46666667 | L88: 49.80352 | O88: 42.688 | P88: 45.79 | Q88: 43.3 | R88: 1.215 | S88: =$C$23*R88+$D$23*S89 -> 0.8591159311 | T88: 0.6132364994 | U88: 2.49 | V88: =$C$23*U88+$D$23*V89 -> 2.229698606 | W88: 2.168398263 | X88: 56.56124244 | Y88: 40.49549709 | Z88: 40 | AA88: -40 | AB88: 100 | AC88: -100 | AF88: 0.76 | AG88: 0.8706935089 | AH88: 0.62 | AI88: 0 | AJ88: 0.2158039108 | AK88: 0.1867541863 | AL88: 24.78528995 | AM88: 21.44890073 | AN88: 3.336389228 | AO88: 30 | AP88: -30 | AS88: 10650300
A89: 57 | B89: =IF(A89>$A$8,"",OFFSET(InputPriceData!B$15,$A89+$A$11,0,1,1)) -> 2019-06-11 | C89: =IF(A89>$A$8,"",OFFSET(InputPriceData!G$15,CalculationsAndCharts!$A89+$A$11,IF($C$5,8,0),1,1)) -> 11030300 | D89: =IF(A89>$A$8,"",OFFSET(InputPriceData!C$15,CalculationsAndCharts!$A89+$A$11,IF($C$5,8,0),1,1)) -> 44.39 | E89: =IF(A89>$A$8,"",OFFSET(InputPriceData!D$15,CalculationsAndCharts!$A89+$A$11,IF($C$5,8,0),1,1)) -> 45.17 | F89: =IF(A89>$A$8,"",OFFSET(InputPriceData!E$15,CalculationsAndCharts!$A89+$A$11,IF($C$5,8,0),1,1)) -> 44.23 | G89: =IF(A89>$A$8,"",OFFSET(InputPriceData!F$15,CalculationsAndCharts!$A89+$A$11,IF($C$5,8,0),1,1)) -> 45.03 | H89: 45.13666667 | I89: 44.33 | J89: FALSE | K89: 45.13666667 | M89: 49.80352 | P89: 45.17 | Q89: 43.3 | R89: 0.795 | S89: =$C$23*R89+$D$23*S90 -> 0.5032318621 | T89: 0.3673570677 | U89: 1.87 | V89: =$C$23*U89+$D$23*V90 -> 1.969397213 | W89: 2.10709792 | X89: 34.86853308 | Y89: 24.42975175 | Z89: 40 | AA89: -40 | AB89: 100 | AC89: -100 | AF89: 0.97 | AG89: 0.8829927877 | AH89: 0.04 | AI89: 0 | AJ89: 0.1708932342 | AK89: 0.2075046515 | AL89: 19.35386524 | AM89: 23.50015248 | AN89: -4.146287241 | AQ89: 30 | AR89: -30 | AS89: 11030300
A90: 58 | B90: =IF(A90>$A$8,"",OFFSET(InputPriceData!B$15,$A90+$A$11,0,1,1)) -> 2019-06-10 | C90: =IF(A90>$A$8,"",OFFSET(InputPriceData!G$15,CalculationsAndCharts!$A90+$A$11,IF($C$5,8,0),1,1)) -> 10445300 | D90: =IF(A90>$A$8,"",OFFSET(InputPriceData!C$15,CalculationsAndCharts!$A90+$A$11,IF($C$5,8,0),1,1)) -> 44.89 | E90: =IF(A90>$A$8,"",OFFSET(InputPriceData!D$15,CalculationsAndCharts!$A90+$A$11,IF($C$5,8,0),1,1)) -> 45.13 | F90: =IF(A90>$A$8,"",OFFSET(InputPriceData!E$15,CalculationsAndCharts!$A90+$A$11,IF($C$5,8,0),1,1)) -> 44.11 | G90: =IF(A90>$A$8,"",OFFSET(InputPriceData!F$15,CalculationsAndCharts!$A90+$A$11,IF($C$5,8,0),1,1)) -> 44.2 | H90: 45.09 | I90: 44.35666667 | J90: FALSE | K90: 45.09 | M90: 49.80352 | N90: 46.9352 | P90: 45.17 | Q90: 43.3 | R90: -0.035 | S90: =$C$23*R90+$D$23*S91 -> 0.2114637243 | T90: 0.2314822733 | U90: 1.87 | V90: =$C$23*U90+$D$23*V91 -> 2.068794425 | W90: 2.244798628 | X90: 20.62387872 | Y90: 13.99097042 | Z90: 40 | AA90: -40 | AB90: 100 | AC90: -100 | AF90: 1.02 | AG90: 0.8733253196 | AH90: 0 | AI90: 0.54 | AJ90: 0.1854369269 | AK90: 0.2305607239 | AL90: 21.23343074 | AM90: 26.40032514 | AN90: -5.166894395 | AQ90: 30 | AR90: -30 | AT90: 10445300
A91: 59 | B91: =IF(A91>$A$8,"",OFFSET(InputPriceData!B$15,$A91+$A$11,0,1,1)) -> 2019-06-07 | C91: =IF(A91>$A$8,"",OFFSET(InputPriceData!G$15,CalculationsAndCharts!$A91+$A$11,IF($C$5,8,0),1,1)) -> 6801600 | D91: =IF(A91>$A$8,"",OFFSET(InputPriceData!C$15,CalculationsAndCharts!$A91+$A$11,IF($C$5,8,0),1,1)) -> 44.69 | E91: =IF(A91>$A$8,"",OFFSET(InputPriceData!D$15,CalculationsAndCharts!$A91+$A$11,IF($C$5,8,0),1,1)) -> 45.11 | F91: =IF(A91>$A$8,"",OFFSET(InputPriceData!E$15,CalculationsAndCharts!$A91+$A$11,IF($C$5,8,0),1,1)) -> 44.65 | G91: =IF(A91>$A$8,"",OFFSET(InputPriceData!F$15,CalculationsAndCharts!$A91+$A$11,IF($C$5,8,0),1,1)) -> 44.91 | H91: 45.10333333 | I91: 44.56 | J91: TRUE | K91: 44.56 | L91: 49.80352 | O91: 42.7776 | P91: 45.17 | Q91: 43.1 | R91: 0.775 | S91: =$C$23*R91+$D$23*S92 -> 0.4579274485 | T91: 0.2515008223 | U91: 2.07 | V91: =$C$23*U91+$D$23*V92 -> 2.26758885 | W91: 2.420802831 | X91: 20.77829875 | Y91: 7.35806213 | Z91: 40 | AA91: -40 | AB91: 100 | AC91: -100 | AF91: 0.77 | AG91: 0.8570281329 | AH91: 0.08 | AI91: 0 | AJ91: 0.2060410299 | AK91: 0.1961785821 | AL91: 24.04133796 | AM91: 22.89056503 | AN91: 1.150772934 | AO91: 30 | AP91: -30 | AS91: 6801600
A92: 60 | B92: =IF(A92>$A$8,"",OFFSET(InputPriceData!B$15,$A92+$A$11,0,1,1)) -> 2019-06-06 | C92: =IF(A92>$A$8,"",OFFSET(InputPriceData!G$15,CalculationsAndCharts!$A92+$A$11,IF($C$5,8,0),1,1)) -> 12206200 | D92: =IF(A92>$A$8,"",OFFSET(InputPriceData!C$15,CalculationsAndCharts!$A92+$A$11,IF($C$5,8,0),1,1)) -> 44.98 | E92: =IF(A92>$A$8,"",OFFSET(InputPriceData!D$15,CalculationsAndCharts!$A92+$A$11,IF($C$5,8,0),1,1)) -> 45.03 | F92: =IF(A92>$A$8,"",OFFSET(InputPriceData!E$15,CalculationsAndCharts!$A92+$A$11,IF($C$5,8,0),1,1)) -> 44.31 | G92: =IF(A92>$A$8,"",OFFSET(InputPriceData!F$15,CalculationsAndCharts!$A92+$A$11,IF($C$5,8,0),1,1)) -> 44.34 | H92: 45.06666667 | I92: 44.54666667 | J92: TRUE | K92: 44.54666667 | L92: 49.80352 | N92: 46.8312 | P92: 45.38 | Q92: 43.1 | R92: 0.1 | S92: =$C$23*R92+$D$23*S93 -> 0.140854897 | T92: 0.04507419602 | U92: 2.28 | V92: =$C$23*U92+$D$23*V93 -> 2.4651777 | W92: 2.574016813 | X92: 3.502245657 | Y92: -6.062174493 | Z92: 40 | AA92: -40 | AB92: 100 | AC92: -100 | AF92: 0.72 | AG92: 0.8666979255 | AH92: 0 | AI92: 0.41 | AJ92: 0.2200455888 | AK92: 0.2179762023 | AL92: 25.3889599 | AM92: 25.15019315 | AN92: 0.2387667454 | AO92: 30 | AP92: -30 | AT92: 12206200
A93: 61 | B93: =IF(A93>$A$8,"",OFFSET(InputPriceData!B$15,$A93+$A$11,0,1,1)) -> 2019-06-05 | C93: =IF(A93>$A$8,"",OFFSET(InputPriceData!G$15,CalculationsAndCharts!$A93+$A$11,IF($C$5,8,0),1,1)) -> 10052400 | D93: =IF(A93>$A$8,"",OFFSET(InputPriceData!C$15,CalculationsAndCharts!$A93+$A$11,IF($C$5,8,0),1,1)) -> 45.03 | E93: =IF(A93>$A$8,"",OFFSET(InputPriceData!D$15,CalculationsAndCharts!$A93+$A$11,IF($C$5,8,0),1,1)) -> 45.17 | F93: =IF(A93>$A$8,"",OFFSET(InputPriceData!E$15,CalculationsAndCharts!$A93+$A$11,IF($C$5,8,0),1,1)) -> 44.72 | G93: =IF(A93>$A$8,"",OFFSET(InputPriceData!F$15,CalculationsAndCharts!$A93+$A$11,IF($C$5,8,0),1,1)) -> 44.8 | H93: 44.94666667 | I93: 44.21 | J93: TRUE | K93: 44.21 | L93: 49.80352 | P93: 45.67 | Q93: 43.1 | R93: 0.415 | S93: =$C$23*R93+$D$23*S94 -> 0.181709794 | T93: -0.05070650497 | U93: 2.57 | V93: =$C$23*U93+$D$23*V94 -> 2.650355401 | W93: 2.682855925 | X93: -3.78003936 | Y93: -15.62659464 | Z93: 40 | AA93: -40 | AD93: 100 | AE93: -100 | AF93: 0.45 | AG93: 0.8829976949 | AH93: 0.17 | AI93: 0 | AJ93: 0.2444950986 | AK93: 0.1966402248 | AL93: 27.68921142 | AM93: 22.26961927 | AN93: 5.419592156 | AO93: 30 | AP93: -30 | AT93: 10052400
A94: 62 | B94: =IF(A94>$A$8,"",OFFSET(InputPriceData!B$15,$A94+$A$11,0,1,1)) -> 2019-06-04 | C94: =IF(A94>$A$8,"",OFFSET(InputPriceData!G$15,CalculationsAndCharts!$A94+$A$11,IF($C$5,8,0),1,1)) -> 10883100 | D94: =IF(A94>$A$8,"",OFFSET(InputPriceData!C$15,CalculationsAndCharts!$A94+$A$11,IF($C$5,8,0),1,1)) -> 44.65 | E94: =IF(A94>$A$8,"",OFFSET(InputPriceData!D$15,CalculationsAndCharts!$A94+$A$11,IF($C$5,8,0),1,1)) -> 45 | F94: =IF(A94>$A$8,"",OFFSET(InputPriceData!E$15,CalculationsAndCharts!$A94+$A$11,IF($C$5,8,0),1,1)) -> 44.61 | G94: =IF(A94>$A$8,"",OFFSET(InputPriceData!F$15,CalculationsAndCharts!$A94+$A$11,IF($C$5,8,0),1,1)) -> 44.8 | H94: 44.54333333 | I94: 43.73666667 | J94: TRUE | K94: 43.73666667 | L94: 49.80352 | P94: 45.77 | Q94: 43.1 | R94: 0.365 | S94: =$C$23*R94+$D$23*S95 -> -0.05158041192 | T94: -0.283122804 | U94: 2.67 | V94: =$C$23*U94+$D$23*V95 -> 2.730710801 | W94: 2.71535645 | X94: -20.85345399 | Y94: -27.47314993 | Z94: 40 | AA94: -40 | AD94: 100 | AE94: -100 | AF94: 0.69 | AG94: 0.9311085499 | AH94: 0.33 | AI94: 0 | AJ94: 0.2527723318 | AK94: 0.2184891387 | AL94: 27.14746114 | AM94: 23.46548517 | AN94: 3.681975976 | AO94: 30 | AP94: -30 | AS94: 10883100
A95: 63 | B95: =IF(A95>$A$8,"",OFFSET(InputPriceData!B$15,$A95+$A$11,0,1,1)) -> 2019-06-03 | C95: =IF(A95>$A$8,"",OFFSET(InputPriceData!G$15,CalculationsAndCharts!$A95+$A$11,IF($C$5,8,0),1,1)) -> 13277000 | D95: =IF(A95>$A$8,"",OFFSET(InputPriceData!C$15,CalculationsAndCharts!$A95+$A$11,IF($C$5,8,0),1,1)) -> 43.48 | E95: =IF(A95>$A$8,"",OFFSET(InputPriceData!D$15,CalculationsAndCharts!$A95+$A$11,IF($C$5,8,0),1,1)) -> 44.67 | F95: =IF(A95>$A$8,"",OFFSET(InputPriceData!E$15,CalculationsAndCharts!$A95+$A$11,IF($C$5,8,0),1,1)) -> 43.3 | G95: =IF(A95>$A$8,"",OFFSET(InputPriceData!F$15,CalculationsAndCharts!$A95+$A$11,IF($C$5,8,0),1,1)) -> 44.31 | H95: 44.26333333 | I95: 43.39333333 | J95: TRUE | K95: 43.39333333 | L95: 49.80352 | O95: 41.568 | P95: 45.94 | Q95: 43.1 | R95: -0.21 | S95: =$C$23*R95+$D$23*S96 -> -0.4681608238 | T95: -0.5146651961 | U95: 2.84 | V95: =$C$23*U95+$D$23*V96 -> 2.791421602 | W95: 2.700002099 | X95: -38.12331821 | Y95: -34.09284587 | Z95: 40 | AA95: -40 | AD95: 100 | AE95: -100 | AF95: 1.37 | AG95: 0.9578983888 | AH95: 0.71 | AI95: 0 | AJ95: 0.2441914798 | AK95: 0.2427657096 | AL95: 25.49241993 | AM95: 25.34357636 | AN95: 0.1488435676 | AO95: 30 | AP95: -30 | AS95: 13277000
A96: 64 | B96: =IF(A96>$A$8,"",OFFSET(InputPriceData!B$15,$A96+$A$11,0,1,1)) -> 2019-05-31 | C96: =IF(A96>$A$8,"",OFFSET(InputPriceData!G$15,CalculationsAndCharts!$A96+$A$11,IF($C$5,8,0),1,1)) -> 12845500 | D96: =IF(A96>$A$8,"",OFFSET(InputPriceData!C$15,CalculationsAndCharts!$A96+$A$11,IF($C$5,8,0),1,1)) -> 43.77 | E96: =IF(A96>$A$8,"",OFFSET(InputPriceData!D$15,CalculationsAndCharts!$A96+$A$11,IF($C$5,8,0),1,1)) -> 43.96 | F96: =IF(A96>$A$8,"",OFFSET(InputPriceData!E$15,CalculationsAndCharts!$A96+$A$11,IF($C$5,8,0),1,1)) -> 43.3 | G96: =IF(A96>$A$8,"",OFFSET(InputPriceData!F$15,CalculationsAndCharts!$A96+$A$11,IF($C$5,8,0),1,1)) -> 43.59 | H96: 43.99333333 | I96: 43.32666667 | J96: FALSE | K96: 43.99333333 | M96: 49.80352 | P96: 45.94 | Q96: 43.1 | R96: -0.93 | S96: =$C$23*R96+$D$23*S97 -> -0.7263216477 | T96: -0.5611695683 | U96: 2.84 | V96: =$C$23*U96+$D$23*V97 -> 2.742843204 | W96: 2.608582597 | X96: -43.02486484 | Y96: -30.06237352 | Z96: 40 | AA96: -40 | AD96: 100 | AE96: -100 | AF96: 0.78 | AG96: 0.9121093209 | AH96: 0 | AI96: 0.28 | AJ96: 0.1924349775 | AK96: 0.2697396774 | AL96: 21.0977975 | AM96: 29.57317409 | AN96: -8.475376589 | AQ96: 30 | AR96: -30 | AT96: 12845500
A97: 65 | B97: =IF(A97>$A$8,"",OFFSET(InputPriceData!B$15,$A97+$A$11,0,1,1)) -> 2019-05-30 | C97: =IF(A97>$A$8,"",OFFSET(InputPriceData!G$15,CalculationsAndCharts!$A97+$A$11,IF($C$5,8,0),1,1)) -> 8594900 | D97: =IF(A97>$A$8,"",OFFSET(InputPriceData!C$15,CalculationsAndCharts!$A97+$A$11,IF($C$5,8,0),1,1)) -> 43.58 | E97: =IF(A97>$A$8,"",OFFSET(InputPriceData!D$15,CalculationsAndCharts!$A97+$A$11,IF($C$5,8,0),1,1)) -> 44.16 | F97: =IF(A97>$A$8,"",OFFSET(InputPriceData!E$15,CalculationsAndCharts!$A97+$A$11,IF($C$5,8,0),1,1)) -> 43.58 | G97: =IF(A97>$A$8,"",OFFSET(InputPriceData!F$15,CalculationsAndCharts!$A97+$A$11,IF($C$5,8,0),1,1)) -> 44.08 | H97: =IF($F$17=1,AVERAGE(OFFSET(E97,0,0,$A$17,1)),$C$17*E97+$D$17*H98) -> 44.46666667 | I97: =IF($F$17=1,AVERAGE(OFFSET(F97,0,0,$A$18,1)),$C$18*F97+$D$18*I98) -> 43.58 | J97: FALSE | K97: 44.46666667 | M97: 49.80352 | P97: 45.94 | Q97: 43.1 | R97: -0.44 | S97: =$C$23*R97+$D$23*S98 -> -0.5226432953 | T97: -0.3960174889 | U97: 2.84 | V97: =$C$23*U97+$D$23*V98 -> 2.645686408 | W97: 2.474321989 | X97: -32.01018223 | Y97: -17.0998822 | Z97: =$E$23 -> 40 | AA97: =$E$24 -> -40 | AD97: 100 | AE97: -100 | AF97: =IF($A97<$A$8,MAX(E97-F97,ABS(E97-G98),ABS(F97-G98)),"") -> 0.58 | AG97: =IF(($A$8-$A97)<$B$21,"",IF(($A$8-$A97)=$B$21,AVERAGE(OFFSET($AF97,0,0,$B$21,1)),AG98*$D$21+$AF97*$C$21)) -> 0.9267881344 | AH97: =IF($A97<$A$8,IF(E97-E98>F98-F97,MAX(E97-E98,0),0),"") -> 0.3 | AI97: =IF($A97<$A$8,IF(F98-F97>E97-E98,MAX(F98-F97,0),0),"") -> 0 | AJ97: 0.2138166417 | AK97: 0.2685996415 | AL97: =IF(($A$8-$A97)<$B$20,"",AJ97/AG97*100) -> 23.0707142 | AM97: =IF(($A$8-$A97)<$B$20,"",AK97/AG97*100) -> 28.98177389 | AN97: =IF(($A$8-$A97)<$B$20,"",AL97-AM97) -> -5.911059691 | AO97: =IF(($A$8-$A97)<$B$20,"",IF($AN97>0,$BF$34,NA())) ->  | AP97: =IF(($A$8-$A97)<$B$20,"",IF($AN97>0,$BF$33,NA())) ->  | AQ97: =IF(($A$8-$A97)<$B$20,"",IF($AN97<0,$BF$34,NA())) -> 30 | AR97: =IF(($A$8-$A97)<$B$20,"",IF($AN97<0,$BF$33,NA())) -> -30 | AS97: =IF(G97>=D97,C97,NA()) -> 8594900 | AT97: =IF(G97<D97,C97,NA()) -> 
A98: 66 | B98: =IF(A98>$A$8,"",OFFSET(InputPriceData!B$15,$A98+$A$11,0,1,1)) -> 2019-05-29 | C98: =IF(A98>$A$8,"",OFFSET(InputPriceData!G$15,CalculationsAndCharts!$A98+$A$11,IF($C$5,8,0),1,1)) -> 15910700 | D98: =IF(A98>$A$8,"",OFFSET(InputPriceData!C$15,CalculationsAndCharts!$A98+$A$11,IF($C$5,8,0),1,1)) -> 43.82 | E98: =IF(A98>$A$8,"",OFFSET(InputPriceData!D$15,CalculationsAndCharts!$A98+$A$11,IF($C$5,8,0),1,1)) -> 43.86 | F98: =IF(A98>$A$8,"",OFFSET(InputPriceData!E$15,CalculationsAndCharts!$A98+$A$11,IF($C$5,8,0),1,1)) -> 43.1 | G98: =IF(A98>$A$8,"",OFFSET(InputPriceData!F$15,CalculationsAndCharts!$A98+$A$11,IF($C$5,8,0),1,1)) -> 43.6 | H98: 44.97 | I98: 44.03333333 | J98: =IF(G98>H99,TRUE,IF(G98<I99,FALSE,J99)) -> FALSE | K98: =IF(J98,I98,H98) -> 44.97 | L98: =IF(J98,$AZ$34,NA()) ->  | M98: =IF(NOT(J98),$AZ$34,NA()) -> 49.80352 | N98: =IF(AND(G99>=K99,G98<K98),MAX(E98,K98)*(1+$O$31),NA()) ->  | O98: =IF(AND(G99<=K99,G98>K98),MIN(F98,K98)*(1-$O$31),NA()) ->  | P98: =MAX(OFFSET(E98,0,0,$A$24,1)) -> 45.94 | Q98: =MIN(OFFSET(F98,0,0,$A$24,1)) -> 43.1 | R98: =G98-(P98+Q98)/2 -> -0.92 | S98: =$C$23*R98+$D$23*S99 -> -0.6052865907 | T98: -0.2693916825 | U98: =P98-Q98 -> 2.84 | V98: =$C$23*U98+$D$23*V99 -> 2.451372817 | W98: 2.30295757 | X98: =IF(W98<>0,T98/(W98/2)*100,0) -> -23.3952797 | Y98: =$C$23*X98+$D$23*Y99 -> -2.189582158 | Z98: 40 | AA98: -40 | AB98: =IF($X98>0,$BH$34,NA()) ->  | AC98: =IF($X98>0,$BH$33,NA()) ->  | AD98: =IF($X98<0,$BH$34,NA()) -> 100 | AE98: =IF($X98<0,$BH$33,NA()) -> -100 | AF98: 0.96 | AG98: 0.9653201493 | AH98: 0 | AI98: 0.96 | AJ98: =IF(($A$8-$A98)<$B$20,"",IF(($A$8-$A98)=$B$20,AVERAGE(OFFSET($AH98,0,0,$B$20,1)),AJ99*$D$20+$AH98*$C$20)) -> 0.204240713 | AK98: =IF(($A$8-$A98)<$B$20,"",IF(($A$8-$A98)=$B$20,AVERAGE(OFFSET(AI98,0,0,$B$20,1)),AK99*$D$20+AI98*$C$20)) -> 0.2984440461 | AL98: 21.15782139 | AM98: 30.91658724 | AN98: -9.758765858 | AQ98: 30 | AR98: -30 | AT98: 15910700
A99: 67 | B99: =IF(A99>$A$8,"",OFFSET(InputPriceData!B$15,$A99+$A$11,0,1,1)) -> 2019-05-28 | C99: =IF(A99>$A$8,"",OFFSET(InputPriceData!G$15,CalculationsAndCharts!$A99+$A$11,IF($C$5,8,0),1,1)) -> 16422900 | D99: =IF(A99>$A$8,"",OFFSET(InputPriceData!C$15,CalculationsAndCharts!$A99+$A$11,IF($C$5,8,0),1,1)) -> 45.21 | E99: =IF(A99>$A$8,"",OFFSET(InputPriceData!D$15,CalculationsAndCharts!$A99+$A$11,IF($C$5,8,0),1,1)) -> 45.38 | F99: =IF(A99>$A$8,"",OFFSET(InputPriceData!E$15,CalculationsAndCharts!$A99+$A$11,IF($C$5,8,0),1,1)) -> 44.06 | G99: =IF(A99>$A$8,"",OFFSET(InputPriceData!F$15,CalculationsAndCharts!$A99+$A$11,IF($C$5,8,0),1,1)) -> 44.06 | H99: 45.60666667 | I99: 44.68333333 | J99: FALSE | K99: 45.60666667 | M99: 49.80352 | P99: 45.96 | Q99: 44.06 | R99: -0.95 | S99: =$C$23*R99+$D$23*S100 -> -0.2905731813 | T99: 0.06650322575 | U99: 1.9 | V99: =$C$23*U99+$D$23*V100 -> 2.062745633 | W99: 2.154542324 | X99: 6.173304187 | Y99: 19.01611538 | Z99: 40 | AA99: -40 | AB99: 100 | AC99: -100 | AF99: 1.32 | AG99: 0.965911277 | AH99: 0 | AI99: 0.88 | AJ99: 0.2269341255 | AK99: 0.224937829 | AL99: 23.49430335 | AM99: 23.28762842 | AN99: 0.206674935 | AO99: 30 | AP99: -30 | AT99: 16422900
A100: 68 | B100: =IF(A100>$A$8,"",OFFSET(InputPriceData!B$15,$A100+$A$11,0,1,1)) -> 2019-05-24 | C100: =IF(A100>$A$8,"",OFFSET(InputPriceData!G$15,CalculationsAndCharts!$A100+$A$11,IF($C$5,8,0),1,1)) -> 9468900 | D100: =IF(A100>$A$8,"",OFFSET(InputPriceData!C$15,CalculationsAndCharts!$A100+$A$11,IF($C$5,8,0),1,1)) -> 45.54 | E100: =IF(A100>$A$8,"",OFFSET(InputPriceData!D$15,CalculationsAndCharts!$A100+$A$11,IF($C$5,8,0),1,1)) -> 45.67 | F100: =IF(A100>$A$8,"",OFFSET(InputPriceData!E$15,CalculationsAndCharts!$A100+$A$11,IF($C$5,8,0),1,1)) -> 44.94 | G100: =IF(A100>$A$8,"",OFFSET(InputPriceData!F$15,CalculationsAndCharts!$A100+$A$11,IF($C$5,8,0),1,1)) -> 44.97 | H100: 45.79333333 | I100: 45.07 | J100: FALSE | K100: 45.79333333 | M100: 49.80352 | N100: 47.62506667 | P100: 45.96 | Q100: 43.74 | R100: 0.12 | S100: =$C$23*R100+$D$23*S101 -> 0.3688536373 | T100: 0.4235796328 | U100: 2.22 | V100: =$C$23*U100+$D$23*V101 -> 2.225491266 | W100: 2.246339015 | X100: 37.71288573 | Y100: 31.85892658 | Z100: 40 | AA100: -40 | AB100: 100 | AC100: -100 | AF100: 0.73 | AG100: 0.9265680855 | AH100: 0 | AI100: 0.11 | AJ100: 0.2521490284 | AK100: 0.1521531434 | AL100: 27.21322181 | AM100: 16.42115088 | AN100: 10.79207093 | AO100: 30 | AP100: -30 | AT100: 9468900
A101: 69 | B101: =IF(A101>$A$8,"",OFFSET(InputPriceData!B$15,$A101+$A$11,0,1,1)) -> 2019-05-23 | C101: =IF(A101>$A$8,"",OFFSET(InputPriceData!G$15,CalculationsAndCharts!$A101+$A$11,IF($C$5,8,0),1,1)) -> 10834500 | D101: =IF(A101>$A$8,"",OFFSET(InputPriceData!C$15,CalculationsAndCharts!$A101+$A$11,IF($C$5,8,0),1,1)) -> 45.64 | E101: =IF(A101>$A$8,"",OFFSET(InputPriceData!D$15,CalculationsAndCharts!$A101+$A$11,IF($C$5,8,0),1,1)) -> 45.77 | F101: =IF(A101>$A$8,"",OFFSET(InputPriceData!E$15,CalculationsAndCharts!$A101+$A$11,IF($C$5,8,0),1,1)) -> 45.05 | G101: =IF(A101>$A$8,"",OFFSET(InputPriceData!F$15,CalculationsAndCharts!$A101+$A$11,IF($C$5,8,0),1,1)) -> 45.44 | H101: 45.77 | I101: 44.97333333 | J101: TRUE | K101: 44.97333333 | L101: 49.80352 | P101: 45.96 | Q101: 43.74 | R101: 0.59 | S101: =$C$23*R101+$D$23*S102 -> 0.6177072746 | T101: 0.4783056284 | U101: 2.22 | V101: =$C$23*U101+$D$23*V102 -> 2.230982532 | W101: 2.267186763 | X101: 42.19375625 | Y101: 26.00496743 | Z101: 40 | AA101: -40 | AB101: 100 | AC101: -100 | AF101: 0.82 | AG101: 0.9484089839 | AH101: 0 | AI101: 0.17 | AJ101: 0.2801655871 | AK101: 0.156836826 | AL101: 29.54058764 | AM101: 16.5368347 | AN101: 13.00375294 | AO101: 30 | AP101: -30 | AT101: 10834500
A102: 70 | B102: =IF(A102>$A$8,"",OFFSET(InputPriceData!B$15,$A102+$A$11,0,1,1)) -> 2019-05-22 | C102: =IF(A102>$A$8,"",OFFSET(InputPriceData!G$15,CalculationsAndCharts!$A102+$A$11,IF($C$5,8,0),1,1)) -> 9222200 | D102: =IF(A102>$A$8,"",OFFSET(InputPriceData!C$15,CalculationsAndCharts!$A102+$A$11,IF($C$5,8,0),1,1)) -> 45.6 | E102: =IF(A102>$A$8,"",OFFSET(InputPriceData!D$15,CalculationsAndCharts!$A102+$A$11,IF($C$5,8,0),1,1)) -> 45.94 | F102: =IF(A102>$A$8,"",OFFSET(InputPriceData!E$15,CalculationsAndCharts!$A102+$A$11,IF($C$5,8,0),1,1)) -> 45.22 | G102: =IF(A102>$A$8,"",OFFSET(InputPriceData!F$15,CalculationsAndCharts!$A102+$A$11,IF($C$5,8,0),1,1)) -> 45.87 | H102: 45.43 | I102: 44.72 | J102: TRUE | K102: 44.72 | L102: 49.80352 | P102: 45.96 | Q102: 43.74 | R102: 1.02 | S102: =$C$23*R102+$D$23*S103 -> 0.6454145492 | T102: 0.3389039822 | U102: 2.22 | V102: =$C$23*U102+$D$23*V103 -> 2.241965064 | W102: 2.303390995 | X102: 29.42652663 | Y102: 9.81617861 | Z102: 40 | AA102: -40 | AB102: 100 | AC102: -100 | AF102: 0.72 | AG102: 0.9626766488 | AH102: 0.34 | AI102: 0 | AJ102: 0.3112950968 | AK102: 0.1553742511 | AL102: 32.33641297 | AM102: 16.13981717 | AN102: 16.1965958 | AO102: 30 | AP102: -30 | AS102: 9222200
A103: 71 | B103: =IF(A103>$A$8,"",OFFSET(InputPriceData!B$15,$A103+$A$11,0,1,1)) -> 2019-05-21 | C103: =IF(A103>$A$8,"",OFFSET(InputPriceData!G$15,CalculationsAndCharts!$A103+$A$11,IF($C$5,8,0),1,1)) -> 12018800 | D103: =IF(A103>$A$8,"",OFFSET(InputPriceData!C$15,CalculationsAndCharts!$A103+$A$11,IF($C$5,8,0),1,1)) -> 44.72 | E103: =IF(A103>$A$8,"",OFFSET(InputPriceData!D$15,CalculationsAndCharts!$A103+$A$11,IF($C$5,8,0),1,1)) -> 45.6 | F103: =IF(A103>$A$8,"",OFFSET(InputPriceData!E$15,CalculationsAndCharts!$A103+$A$11,IF($C$5,8,0),1,1)) -> 44.65 | G103: =IF(A103>$A$8,"",OFFSET(InputPriceData!F$15,CalculationsAndCharts!$A103+$A$11,IF($C$5,8,0),1,1)) -> 45.57 | H103: 45.24333333 | I103: 44.56666667 | J103: TRUE | K103: 44.56666667 | L103: 49.80352 | O103: 42.784 | P103: 45.96 | Q103: 43.74 | R103: 0.72 | S103: =$C$23*R103+$D$23*S104 -> 0.2708290985 | T103: 0.03239341508 | U103: 2.22 | V103: =$C$23*U103+$D$23*V104 -> 2.263930129 | W103: 2.364816925 | X103: 2.739612927 | Y103: -9.794169406 | Z103: 40 | AA103: -40 | AB103: 100 | AC103: -100 | AF103: 1.11 | AG103: 0.9896407209 | AH103: 0.85 | AI103: 0 | AJ103: 0.3081056631 | AK103: 0.1726380568 | AL103: 31.1330826 | AM103: 17.44451831 | AN103: 13.68856429 | AO103: 30 | AP103: -30 | AS103: 12018800
A104: 72 | B104: =IF(A104>$A$8,"",OFFSET(InputPriceData!B$15,$A104+$A$11,0,1,1)) -> 2019-05-20 | C104: =IF(A104>$A$8,"",OFFSET(InputPriceData!G$15,CalculationsAndCharts!$A104+$A$11,IF($C$5,8,0),1,1)) -> 11081000 | D104: =IF(A104>$A$8,"",OFFSET(InputPriceData!C$15,CalculationsAndCharts!$A104+$A$11,IF($C$5,8,0),1,1)) -> 44.56 | E104: =IF(A104>$A$8,"",OFFSET(InputPriceData!D$15,CalculationsAndCharts!$A104+$A$11,IF($C$5,8,0),1,1)) -> 44.75 | F104: =IF(A104>$A$8,"",OFFSET(InputPriceData!E$15,CalculationsAndCharts!$A104+$A$11,IF($C$5,8,0),1,1)) -> 44.29 | G104: =IF(A104>$A$8,"",OFFSET(InputPriceData!F$15,CalculationsAndCharts!$A104+$A$11,IF($C$5,8,0),1,1)) -> 44.49 | H104: 45.36333333 | I104: 44.62666667 | J104: TRUE | K104: 44.62666667 | L104: 49.80352 | N104: 46.54 | P104: 45.96 | Q104: 43.74 | R104: -0.36 | S104: =$C$23*R104+$D$23*S105 -> -0.1783418031 | T104: -0.2060422683 | U104: 2.22 | V104: =$C$23*U104+$D$23*V105 -> 2.307860258 | W104: 2.46570372 | X104: -16.71265421 | Y104: -22.32795174 | Z104: 40 | AA104: -40 | AD104: 100 | AE104: -100 | AF104: 0.72 | AG104: 0.9762674677 | AH104: 0 | AI104: 0.47 | AJ104: 0.2478951812 | AK104: 0.1918200631 | AL104: 25.39213785 | AM104: 19.64831047 | AN104: 5.743827382 | AO104: 30 | AP104: -30 | AT104: 11081000
A105: 73 | B105: =IF(A105>$A$8,"",OFFSET(InputPriceData!B$15,$A105+$A$11,0,1,1)) -> 2019-05-17 | C105: =IF(A105>$A$8,"",OFFSET(InputPriceData!G$15,CalculationsAndCharts!$A105+$A$11,IF($C$5,8,0),1,1)) -> 10144900 | D105: =IF(A105>$A$8,"",OFFSET(InputPriceData!C$15,CalculationsAndCharts!$A105+$A$11,IF($C$5,8,0),1,1)) -> 44.86 | E105: =IF(A105>$A$8,"",OFFSET(InputPriceData!D$15,CalculationsAndCharts!$A105+$A$11,IF($C$5,8,0),1,1)) -> 45.38 | F105: =IF(A105>$A$8,"",OFFSET(InputPriceData!E$15,CalculationsAndCharts!$A105+$A$11,IF($C$5,8,0),1,1)) -> 44.76 | G105: =IF(A105>$A$8,"",OFFSET(InputPriceData!F$15,CalculationsAndCharts!$A105+$A$11,IF($C$5,8,0),1,1)) -> 45.01 | H105: 45.41666667 | I105: 44.44333333 | J105: TRUE | K105: 44.44333333 | L105: 49.80352 | P105: 45.96 | Q105: 43.74 | R105: 0.16 | S105: =$C$23*R105+$D$23*S106 -> 0.00331639388 | T105: -0.2337427335 | U105: 2.22 | V105: =$C$23*U105+$D$23*V106 -> 2.395720516 | W105: 2.623547183 | X105: -17.81883208 | Y105: -27.94324927 | Z105: 40 | AA105: -40 | AD105: 100 | AE105: -100 | AF105: 0.62 | AG105: 1.004741631 | AH105: 0 | AI105: 0.07 | AJ105: 0.2754390902 | AK105: 0.1609111812 | AL105: 27.41392232 | AM105: 16.01518005 | AN105: 11.39874228 | AO105: 30 | AP105: -30 | AS105: 10144900
A106: 74 | B106: =IF(A106>$A$8,"",OFFSET(InputPriceData!B$15,$A106+$A$11,0,1,1)) -> 2019-05-16 | C106: =IF(A106>$A$8,"",OFFSET(InputPriceData!G$15,CalculationsAndCharts!$A106+$A$11,IF($C$5,8,0),1,1)) -> 15378100 | D106: =IF(A106>$A$8,"",OFFSET(InputPriceData!C$15,CalculationsAndCharts!$A106+$A$11,IF($C$5,8,0),1,1)) -> 44.87 | E106: =IF(A106>$A$8,"",OFFSET(InputPriceData!D$15,CalculationsAndCharts!$A106+$A$11,IF($C$5,8,0),1,1)) -> 45.96 | F106: =IF(A106>$A$8,"",OFFSET(InputPriceData!E$15,CalculationsAndCharts!$A106+$A$11,IF($C$5,8,0),1,1)) -> 44.83 | G106: =IF(A106>$A$8,"",OFFSET(InputPriceData!F$15,CalculationsAndCharts!$A106+$A$11,IF($C$5,8,0),1,1)) -> 45.27 | H106: 45.16333333 | I106: 44.21666667 | J106: TRUE | K106: 44.21666667 | L106: 49.80352 | P106: 46.04 | Q106: 43.74 | R106: 0.38 | S106: =$C$23*R106+$D$23*S107 -> -0.1533672122 | T106: -0.470801861 | U106: 2.3 | V106: =$C$23*U106+$D$23*V107 -> 2.571441032 | W106: 2.85137385 | X106: -33.02280836 | Y106: -38.06766645 | Z106: 40 | AA106: -40 | AD106: 100 | AE106: -100 | AF106: 1.16 | AG106: 1.047490701 | AH106: 1.05 | AI106: 0 | AJ106: 0.3060434336 | AK106: 0.1710124235 | AL106: 29.21681628 | AM106: 16.32591329 | AN106: 12.89090299 | AO106: 30 | AP106: -30 | AS106: 15378100
A107: 75 | B107: =IF(A107>$A$8,"",OFFSET(InputPriceData!B$15,$A107+$A$11,0,1,1)) -> 2019-05-15 | C107: =IF(A107>$A$8,"",OFFSET(InputPriceData!G$15,CalculationsAndCharts!$A107+$A$11,IF($C$5,8,0),1,1)) -> 10143300 | D107: =IF(A107>$A$8,"",OFFSET(InputPriceData!C$15,CalculationsAndCharts!$A107+$A$11,IF($C$5,8,0),1,1)) -> 43.83 | E107: =IF(A107>$A$8,"",OFFSET(InputPriceData!D$15,CalculationsAndCharts!$A107+$A$11,IF($C$5,8,0),1,1)) -> 44.91 | F107: =IF(A107>$A$8,"",OFFSET(InputPriceData!E$15,CalculationsAndCharts!$A107+$A$11,IF($C$5,8,0),1,1)) -> 43.74 | G107: =IF(A107>$A$8,"",OFFSET(InputPriceData!F$15,CalculationsAndCharts!$A107+$A$11,IF($C$5,8,0),1,1)) -> 44.8 | H107: 44.76333333 | I107: 43.95 | J107: FALSE | K107: 44.76333333 | M107: 49.80352 | O107: 41.9904 | P107: 46.31 | Q107: 43.74 | R107: -0.225 | S107: =$C$23*R107+$D$23*S108 -> -0.6867344245 | T107: -0.7882365097 | U107: 2.57 | V107: =$C$23*U107+$D$23*V108 -> 2.842882063 | W107: 3.131306668 | X107: -50.3455326 | Y107: -43.11252455 | Z107: 40 | AA107: -40 | AD107: 100 | AE107: -100 | AF107: 1.17 | AG107: 1.034989668 | AH107: 0 | AI107: 0.34 | AJ107: 0.2233815929 | AK107: 0.1900138039 | AL107: 21.58297806 | AM107: 18.35900491 | AN107: 3.223973144 | AO107: 30 | AP107: -30 | AS107: 10143300
A108: 76 | B108: =IF(A108>$A$8,"",OFFSET(InputPriceData!B$15,$A108+$A$11,0,1,1)) -> 2019-05-14 | C108: =IF(A108>$A$8,"",OFFSET(InputPriceData!G$15,CalculationsAndCharts!$A108+$A$11,IF($C$5,8,0),1,1)) -> 12971100 | D108: =IF(A108>$A$8,"",OFFSET(InputPriceData!C$15,CalculationsAndCharts!$A108+$A$11,IF($C$5,8,0),1,1)) -> 44.28 | E108: =IF(A108>$A$8,"",OFFSET(InputPriceData!D$15,CalculationsAndCharts!$A108+$A$11,IF($C$5,8,0),1,1)) -> 44.62 | F108: =IF(A108>$A$8,"",OFFSET(InputPriceData!E$15,CalculationsAndCharts!$A108+$A$11,IF($C$5,8,0),1,1)) -> 44.08 | G108: =IF(A108>$A$8,"",OFFSET(InputPriceData!F$15,CalculationsAndCharts!$A108+$A$11,IF($C$5,8,0),1,1)) -> 44.11 | H108: 44.94666667 | I108: 44.17333333 | J108: FALSE | K108: 44.94666667 | M108: 49.80352 | P108: 46.88 | Q108: 44.03 | R108: -1.345 | S108: =$C$23*R108+$D$23*S109 -> -1.148468849 | T108: -0.889738595 | U108: 2.85 | V108: =$C$23*U108+$D$23*V109 -> 3.115764126 | W108: 3.419731273 | X108: -52.03558548 | Y108: -35.87951651 | Z108: 40 | AA108: -40 | AD108: 100 | AE108: -100 | AF108: 0.54 | AG108: 1.01998852 | AH108: 0 | AI108: 0 | AJ108: 0.2482017698 | AK108: 0.173348671 | AL108: 24.33378073 | AM108: 16.99515903 | AN108: 7.338621698 | AO108: 30 | AP108: -30 | AT108: 12971100
A109: 77 | B109: =IF(A109>$A$8,"",OFFSET(InputPriceData!B$15,$A109+$A$11,0,1,1)) -> 2019-05-13 | C109: =IF(A109>$A$8,"",OFFSET(InputPriceData!G$15,CalculationsAndCharts!$A109+$A$11,IF($C$5,8,0),1,1)) -> 15454000 | D109: =IF(A109>$A$8,"",OFFSET(InputPriceData!C$15,CalculationsAndCharts!$A109+$A$11,IF($C$5,8,0),1,1)) -> 44.53 | E109: =IF(A109>$A$8,"",OFFSET(InputPriceData!D$15,CalculationsAndCharts!$A109+$A$11,IF($C$5,8,0),1,1)) -> 44.76 | F109: =IF(A109>$A$8,"",OFFSET(InputPriceData!E$15,CalculationsAndCharts!$A109+$A$11,IF($C$5,8,0),1,1)) -> 44.03 | G109: =IF(A109>$A$8,"",OFFSET(InputPriceData!F$15,CalculationsAndCharts!$A109+$A$11,IF($C$5,8,0),1,1)) -> 44.1 | H109: 45.24666667 | I109: 44.45333333 | J109: FALSE | K109: 45.24666667 | M109: 49.80352 | N109: 47.05653333 | P109: 46.88 | Q109: 44.03 | R109: -1.355 | S109: =$C$23*R109+$D$23*S110 -> -0.9519376979 | T109: -0.6310083409 | U109: 2.85 | V109: =$C$23*U109+$D$23*V110 -> 3.381528253 | W109: 3.72369842 | X109: -33.89148474 | Y109: -19.72344753 | Z109: 40 | AA109: -40 | AD109: 100 | AE109: -100 | AF109: 1.13 | AG109: 1.073320577 | AH109: 0 | AI109: 0.38 | AJ109: 0.2757797443 | AK109: 0.1926096345 | AL109: 25.69407036 | AM109: 17.94521027 | AN109: 7.748860084 | AO109: 30 | AP109: -30 | AT109: 15454000
A110: 78 | B110: =IF(A110>$A$8,"",OFFSET(InputPriceData!B$15,$A110+$A$11,0,1,1)) -> 2019-05-10 | C110: =IF(A110>$A$8,"",OFFSET(InputPriceData!G$15,CalculationsAndCharts!$A110+$A$11,IF($C$5,8,0),1,1)) -> 12019900 | D110: =IF(A110>$A$8,"",OFFSET(InputPriceData!C$15,CalculationsAndCharts!$A110+$A$11,IF($C$5,8,0),1,1)) -> 45.06 | E110: =IF(A110>$A$8,"",OFFSET(InputPriceData!D$15,CalculationsAndCharts!$A110+$A$11,IF($C$5,8,0),1,1)) -> 45.46 | F110: =IF(A110>$A$8,"",OFFSET(InputPriceData!E$15,CalculationsAndCharts!$A110+$A$11,IF($C$5,8,0),1,1)) -> 44.41 | G110: =IF(A110>$A$8,"",OFFSET(InputPriceData!F$15,CalculationsAndCharts!$A110+$A$11,IF($C$5,8,0),1,1)) -> 45.16 | H110: 45.59666667 | I110: 44.76666667 | J110: TRUE | K110: 44.76666667 | L110: 49.80352 | P110: 47.85 | Q110: 44.05 | R110: -0.79 | S110: =$C$23*R110+$D$23*S111 -> -0.5488753958 | T110: -0.310078984 | U110: 3.8 | V110: =$C$23*U110+$D$23*V111 -> 3.913056506 | W110: 4.065868588 | X110: -15.25277944 | Y110: -5.555410325 | Z110: 40 | AA110: -40 | AD110: 100 | AE110: -100 | AF110: 1.05 | AG110: 1.067022864 | AH110: 0 | AI110: 0.51 | AJ110: 0.3064219381 | AK110: 0.1717884828 | AL110: 28.71746694 | AM110: 16.09979398 | AN110: 12.61767296 | AO110: 30 | AP110: -30 | AS110: 12019900
A111: 79 | B111: =IF(A111>$A$8,"",OFFSET(InputPriceData!B$15,$A111+$A$11,0,1,1)) -> 2019-05-09 | C111: =IF(A111>$A$8,"",OFFSET(InputPriceData!G$15,CalculationsAndCharts!$A111+$A$11,IF($C$5,8,0),1,1)) -> 13886300 | D111: =IF(A111>$A$8,"",OFFSET(InputPriceData!C$15,CalculationsAndCharts!$A111+$A$11,IF($C$5,8,0),1,1)) -> 45.32 | E111: =IF(A111>$A$8,"",OFFSET(InputPriceData!D$15,CalculationsAndCharts!$A111+$A$11,IF($C$5,8,0),1,1)) -> 45.52 | F111: =IF(A111>$A$8,"",OFFSET(InputPriceData!E$15,CalculationsAndCharts!$A111+$A$11,IF($C$5,8,0),1,1)) -> 44.92 | G111: =IF(A111>$A$8,"",OFFSET(InputPriceData!F$15,CalculationsAndCharts!$A111+$A$11,IF($C$5,8,0),1,1)) -> 45.38 | H111: 45.79 | I111: 44.99333333 | J111: TRUE | K111: 44.99333333 | L111: 49.80352 | P111: 47.85 | Q111: 44.05 | R111: -0.57 | S111: =$C$23*R111+$D$23*S112 -> -0.3077507917 | T111: -0.07128257209 | U111: 3.8 | V111: =$C$23*U111+$D$23*V112 -> 4.026113011 | W111: 4.21868067 | X111: -3.379377472 | Y111: 4.141958788 | Z111: 40 | AA111: -40 | AD111: 100 | AE111: -100 | AF111: 0.67 | AG111: 1.068914293 | AH111: 0 | AI111: 0.05 | AJ111: 0.3404688201 | AK111: 0.1342094253 | AL111: 31.8518353 | AM111: 12.55567693 | AN111: 19.29615837 | AO111: 30 | AP111: -30 | AS111: 13886300
A112: 80 | B112: =IF(A112>$A$8,"",OFFSET(InputPriceData!B$15,$A112+$A$11,0,1,1)) -> 2019-05-08 | C112: =IF(A112>$A$8,"",OFFSET(InputPriceData!G$15,CalculationsAndCharts!$A112+$A$11,IF($C$5,8,0),1,1)) -> 13207600 | D112: =IF(A112>$A$8,"",OFFSET(InputPriceData!C$15,CalculationsAndCharts!$A112+$A$11,IF($C$5,8,0),1,1)) -> 45.24 | E112: =IF(A112>$A$8,"",OFFSET(InputPriceData!D$15,CalculationsAndCharts!$A112+$A$11,IF($C$5,8,0),1,1)) -> 45.81 | F112: =IF(A112>$A$8,"",OFFSET(InputPriceData!E$15,CalculationsAndCharts!$A112+$A$11,IF($C$5,8,0),1,1)) -> 44.97 | G112: =IF(A112>$A$8,"",OFFSET(InputPriceData!F$15,CalculationsAndCharts!$A112+$A$11,IF($C$5,8,0),1,1)) -> 45.59 | H112: 46.05333333 | I112: 45.26 | J112: TRUE | K112: 45.26 | L112: 49.80352 | O112: 43.1712 | P112: 47.85 | Q112: 43.97 | R112: -0.32 | S112: =$C$23*R112+$D$23*S113 -> -0.04550158337 | T112: 0.1651856475 | U112: 3.88 | V112: =$C$23*U112+$D$23*V113 -> 4.252226022 | W112: 4.411248329 | X112: 7.489292608 | Y112: 11.66329505 | Z112: 40 | AA112: -40 | AB112: 100 | AC112: -100 | AF112: 0.84 | AG112: 1.113238103 | AH112: 0 | AI112: 0.12 | AJ112: 0.378298689 | AK112: 0.1435660281 | AL112: 33.98183083 | AM112: 12.89625532 | AN112: 21.08557551 | AO112: 30 | AP112: -30 | AS112: 13207600
A113: 81 | B113: =IF(A113>$A$8,"",OFFSET(InputPriceData!B$15,$A113+$A$11,0,1,1)) -> 2019-05-07 | C113: =IF(A113>$A$8,"",OFFSET(InputPriceData!G$15,CalculationsAndCharts!$A113+$A$11,IF($C$5,8,0),1,1)) -> 13189700 | D113: =IF(A113>$A$8,"",OFFSET(InputPriceData!C$15,CalculationsAndCharts!$A113+$A$11,IF($C$5,8,0),1,1)) -> 45.87 | E113: =IF(A113>$A$8,"",OFFSET(InputPriceData!D$15,CalculationsAndCharts!$A113+$A$11,IF($C$5,8,0),1,1)) -> 46.04 | F113: =IF(A113>$A$8,"",OFFSET(InputPriceData!E$15,CalculationsAndCharts!$A113+$A$11,IF($C$5,8,0),1,1)) -> 45.09 | G113: =IF(A113>$A$8,"",OFFSET(InputPriceData!F$15,CalculationsAndCharts!$A113+$A$11,IF($C$5,8,0),1,1)) -> 45.37 | H113: 46.41 | I113: 45.40666667 | J113: TRUE | K113: 45.40666667 | L113: 49.80352 | N113: 47.8816 | P113: 47.85 | Q113: 43.48 | R113: -0.295 | S113: =$C$23*R113+$D$23*S114 -> 0.2289968333 | T113: 0.3758728784 | U113: 4.37 | V113: =$C$23*U113+$D$23*V114 -> 4.624452045 | W113: 4.570270635 | X113: 16.44860484 | Y113: 15.83729749 | Z113: 40 | AA113: -40 | AB113: 100 | AC113: -100 | AF113: 1.12 | AG113: 1.143597892 | AH113: 0 | AI113: 0.63 | AJ113: 0.4203318766 | AK113: 0.1461844757 | AL113: 36.7552161 | AM113: 12.78285634 | AN113: 23.97235976 | AO113: 30 | AP113: -30 | AT113: 13189700
A114: 82 | B114: =IF(A114>$A$8,"",OFFSET(InputPriceData!B$15,$A114+$A$11,0,1,1)) -> 2019-05-06 | C114: =IF(A114>$A$8,"",OFFSET(InputPriceData!G$15,CalculationsAndCharts!$A114+$A$11,IF($C$5,8,0),1,1)) -> 14481200 | D114: =IF(A114>$A$8,"",OFFSET(InputPriceData!C$15,CalculationsAndCharts!$A114+$A$11,IF($C$5,8,0),1,1)) -> 45.91 | E114: =IF(A114>$A$8,"",OFFSET(InputPriceData!D$15,CalculationsAndCharts!$A114+$A$11,IF($C$5,8,0),1,1)) -> 46.31 | F114: =IF(A114>$A$8,"",OFFSET(InputPriceData!E$15,CalculationsAndCharts!$A114+$A$11,IF($C$5,8,0),1,1)) -> 45.72 | G114: =IF(A114>$A$8,"",OFFSET(InputPriceData!F$15,CalculationsAndCharts!$A114+$A$11,IF($C$5,8,0),1,1)) -> 46.21 | H114: 46.13666667 | I114: 45.27 | J114: TRUE | K114: 45.27 | L114: 49.80352 | P114: 47.85 | Q114: 42.79 | R114: 0.89 | S114: =$C$23*R114+$D$23*S115 -> 0.7529936665 | T114: 0.5227489235 | U114: 5.06 | V114: =$C$23*U114+$D$23*V115 -> 4.87890409 | W114: 4.516089226 | X114: 23.15051352 | Y114: 15.22599014 | Z114: 40 | AA114: -40 | AB114: 100 | AC114: -100 | AF114: 0.99 | AG114: 1.146219881 | AH114: 0 | AI114: 0 | AJ114: 0.4670354185 | AK114: 0.09242719518 | AL114: 40.74570913 | AM114: 8.063653122 | AN114: 32.68205601 | AO114: 30 | AP114: -30 | AS114: 14481200
A115: 83 | B115: =IF(A115>$A$8,"",OFFSET(InputPriceData!B$15,$A115+$A$11,0,1,1)) -> 2019-05-03 | C115: =IF(A115>$A$8,"",OFFSET(InputPriceData!G$15,CalculationsAndCharts!$A115+$A$11,IF($C$5,8,0),1,1)) -> 24355100 | D115: =IF(A115>$A$8,"",OFFSET(InputPriceData!C$15,CalculationsAndCharts!$A115+$A$11,IF($C$5,8,0),1,1)) -> 45.51 | E115: =IF(A115>$A$8,"",OFFSET(InputPriceData!D$15,CalculationsAndCharts!$A115+$A$11,IF($C$5,8,0),1,1)) -> 46.88 | F115: =IF(A115>$A$8,"",OFFSET(InputPriceData!E$15,CalculationsAndCharts!$A115+$A$11,IF($C$5,8,0),1,1)) -> 45.41 | G115: =IF(A115>$A$8,"",OFFSET(InputPriceData!F$15,CalculationsAndCharts!$A115+$A$11,IF($C$5,8,0),1,1)) -> 46.71 | H115: 46.65 | I115: 44.71333333 | J115: TRUE | K115: 44.71333333 | L115: 49.80352 | P115: 47.85 | Q115: 42.79 | R115: 1.39 | S115: =$C$23*R115+$D$23*S116 -> 0.615987333 | T115: 0.2925041805 | U115: 5.06 | V115: =$C$23*U115+$D$23*V116 -> 4.697808179 | W115: 4.153274362 | X115: 14.08547353 | Y115: 7.301466758 | Z115: 40 | AA115: -40 | AB115: 100 | AC115: -100 | AF115: 1.84 | AG115: 1.163577645 | AH115: 1.66 | AI115: 0 | AJ115: 0.5189282428 | AK115: 0.1026968835 | AL115: 44.59764632 | AM115: 8.825958798 | AN115: 35.77168752 | AO115: 30 | AP115: -30 | AS115: 24355100
A116: 84 | B116: =IF(A116>$A$8,"",OFFSET(InputPriceData!B$15,$A116+$A$11,0,1,1)) -> 2019-05-02 | C116: =IF(A116>$A$8,"",OFFSET(InputPriceData!G$15,CalculationsAndCharts!$A116+$A$11,IF($C$5,8,0),1,1)) -> 12676400 | D116: =IF(A116>$A$8,"",OFFSET(InputPriceData!C$15,CalculationsAndCharts!$A116+$A$11,IF($C$5,8,0),1,1)) -> 44.94 | E116: =IF(A116>$A$8,"",OFFSET(InputPriceData!D$15,CalculationsAndCharts!$A116+$A$11,IF($C$5,8,0),1,1)) -> 45.22 | F116: =IF(A116>$A$8,"",OFFSET(InputPriceData!E$15,CalculationsAndCharts!$A116+$A$11,IF($C$5,8,0),1,1)) -> 44.68 | G116: =IF(A116>$A$8,"",OFFSET(InputPriceData!F$15,CalculationsAndCharts!$A116+$A$11,IF($C$5,8,0),1,1)) -> 45.04 | H116: 45.94 | I116: 44.30666667 | J116: TRUE | K116: 44.30666667 | L116: 49.80352 | P116: 47.85 | Q116: 42.79 | R116: -0.28 | S116: =$C$23*R116+$D$23*S117 -> -0.158025334 | T116: -0.03097897204 | U116: 5.06 | V116: =$C$23*U116+$D$23*V117 -> 4.335616359 | W116: 3.608740546 | X116: -1.716885526 | Y116: 0.5174599861 | Z116: 40 | AA116: -40 | AD116: 100 | AE116: -100 | AF116: 0.54 | AG116: 1.088419606 | AH116: 0 | AI116: 0 | AJ116: 0.392142492 | AK116: 0.1141076484 | AL116: 36.02861341 | AM116: 10.48379208 | AN116: 25.54482133 | AO116: 30 | AP116: -30 | AS116: 12676400
A117: 85 | B117: =IF(A117>$A$8,"",OFFSET(InputPriceData!B$15,$A117+$A$11,0,1,1)) -> 2019-05-01 | C117: =IF(A117>$A$8,"",OFFSET(InputPriceData!G$15,CalculationsAndCharts!$A117+$A$11,IF($C$5,8,0),1,1)) -> 18282300 | D117: =IF(A117>$A$8,"",OFFSET(InputPriceData!C$15,CalculationsAndCharts!$A117+$A$11,IF($C$5,8,0),1,1)) -> 44.5 | E117: =IF(A117>$A$8,"",OFFSET(InputPriceData!D$15,CalculationsAndCharts!$A117+$A$11,IF($C$5,8,0),1,1)) -> 47.85 | F117: =IF(A117>$A$8,"",OFFSET(InputPriceData!E$15,CalculationsAndCharts!$A117+$A$11,IF($C$5,8,0),1,1)) -> 44.05 | G117: =IF(A117>$A$8,"",OFFSET(InputPriceData!F$15,CalculationsAndCharts!$A117+$A$11,IF($C$5,8,0),1,1)) -> 44.75 | H117: 45.84666667 | I117: 44.07 | J117: TRUE | K117: 44.07 | L117: 49.80352 | P117: 47.85 | Q117: 42.79 | R117: -0.57 | S117: =$C$23*R117+$D$23*S118 -> -0.0360506679 | T117: 0.09606738987 | U117: 5.06 | V117: =$C$23*U117+$D$23*V118 -> 3.611232718 | W117: 2.881864732 | X117: 6.667029774 | Y117: 2.751805498 | Z117: 40 | AA117: -40 | AB117: 100 | AC117: -100 | AF117: 3.8 | AG117: 1.149355117 | AH117: 3.1 | AI117: 0 | AJ117: 0.43571388 | AK117: 0.126786276 | AL117: 37.90942185 | AM117: 11.03107943 | AN117: 26.87834242 | AO117: 30 | AP117: -30 | AS117: 18282300
A118: 86 | B118: =IF(A118>$A$8,"",OFFSET(InputPriceData!B$15,$A118+$A$11,0,1,1)) -> 2019-04-30 | C118: =IF(A118>$A$8,"",OFFSET(InputPriceData!G$15,CalculationsAndCharts!$A118+$A$11,IF($C$5,8,0),1,1)) -> 14162500 | D118: =IF(A118>$A$8,"",OFFSET(InputPriceData!C$15,CalculationsAndCharts!$A118+$A$11,IF($C$5,8,0),1,1)) -> 44.65 | E118: =IF(A118>$A$8,"",OFFSET(InputPriceData!D$15,CalculationsAndCharts!$A118+$A$11,IF($C$5,8,0),1,1)) -> 44.75 | F118: =IF(A118>$A$8,"",OFFSET(InputPriceData!E$15,CalculationsAndCharts!$A118+$A$11,IF($C$5,8,0),1,1)) -> 44.19 | G118: =IF(A118>$A$8,"",OFFSET(InputPriceData!F$15,CalculationsAndCharts!$A118+$A$11,IF($C$5,8,0),1,1)) -> 44.61 | H118: 44.67666667 | I118: 43.88 | J118: TRUE | K118: 43.88 | L118: 49.80352 | P118: 44.94 | Q118: 42.79 | R118: 0.745 | S118: =$C$23*R118+$D$23*S119 -> 0.4978986642 | T118: 0.2281854476 | U118: 2.15 | V118: =$C$23*U118+$D$23*V119 -> 2.162465436 | W118: 2.152496746 | X118: 21.20193195 | Y118: -1.163418779 | Z118: 40 | AA118: -40 | AB118: 100 | AC118: -100 | AF118: 0.56 | AG118: 0.8548390192 | AH118: 0 | AI118: 0 | AJ118: 0.1396820889 | AK118: 0.14087364 | AL118: 16.34016297 | AM118: 16.47955191 | AN118: -0.1393889467 | AQ118: 30 | AR118: -30 | AT118: 14162500
A119: 87 | B119: =IF(A119>$A$8,"",OFFSET(InputPriceData!B$15,$A119+$A$11,0,1,1)) -> 2019-04-29 | C119: =IF(A119>$A$8,"",OFFSET(InputPriceData!G$15,CalculationsAndCharts!$A119+$A$11,IF($C$5,8,0),1,1)) -> 15735800 | D119: =IF(A119>$A$8,"",OFFSET(InputPriceData!C$15,CalculationsAndCharts!$A119+$A$11,IF($C$5,8,0),1,1)) -> 43.98 | E119: =IF(A119>$A$8,"",OFFSET(InputPriceData!D$15,CalculationsAndCharts!$A119+$A$11,IF($C$5,8,0),1,1)) -> 44.94 | F119: =IF(A119>$A$8,"",OFFSET(InputPriceData!E$15,CalculationsAndCharts!$A119+$A$11,IF($C$5,8,0),1,1)) -> 43.97 | G119: =IF(A119>$A$8,"",OFFSET(InputPriceData!F$15,CalculationsAndCharts!$A119+$A$11,IF($C$5,8,0),1,1)) -> 44.5 | H119: 44.41 | I119: 43.41333333 | J119: TRUE | K119: 43.41333333 | L119: 49.80352 | P119: 44.94 | Q119: 42.79 | R119: 0.635 | S119: =$C$23*R119+$D$23*S120 -> 0.2507973284 | T119: -0.0415277689 | U119: 2.15 | V119: =$C$23*U119+$D$23*V120 -> 2.174930872 | W119: 2.142528057 | X119: -3.876520428 | Y119: -23.5287695 | Z119: 40 | AA119: -40 | AD119: 100 | AE119: -100 | AF119: 0.97 | AG119: 0.8875989103 | AH119: 0.6 | AI119: 0 | AJ119: 0.1552023209 | AK119: 0.1565262666 | AL119: 17.48563672 | AM119: 17.63479707 | AN119: -0.1491603535 | AQ119: 30 | AR119: -30 | AS119: 15735800
A120: 88 | B120: =IF(A120>$A$8,"",OFFSET(InputPriceData!B$15,$A120+$A$11,0,1,1)) -> 2019-04-26 | C120: =IF(A120>$A$8,"",OFFSET(InputPriceData!G$15,CalculationsAndCharts!$A120+$A$11,IF($C$5,8,0),1,1)) -> 13671800 | D120: =IF(A120>$A$8,"",OFFSET(InputPriceData!C$15,CalculationsAndCharts!$A120+$A$11,IF($C$5,8,0),1,1)) -> 44.27 | E120: =IF(A120>$A$8,"",OFFSET(InputPriceData!D$15,CalculationsAndCharts!$A120+$A$11,IF($C$5,8,0),1,1)) -> 44.34 | F120: =IF(A120>$A$8,"",OFFSET(InputPriceData!E$15,CalculationsAndCharts!$A120+$A$11,IF($C$5,8,0),1,1)) -> 43.48 | G120: =IF(A120>$A$8,"",OFFSET(InputPriceData!F$15,CalculationsAndCharts!$A120+$A$11,IF($C$5,8,0),1,1)) -> 44.09 | H120: 44.01666667 | I120: 43.04333333 | J120: TRUE | K120: 43.04333333 | L120: 49.80352 | P120: 45.05 | Q120: 42.79 | R120: 0.17 | S120: =$C$23*R120+$D$23*S121 -> -0.1334053432 | T120: -0.3338528662 | U120: 2.26 | V120: =$C$23*U120+$D$23*V121 -> 2.199861743 | W120: 2.110125242 | X120: -31.64294323 | Y120: -43.18101858 | Z120: 40 | AA120: -40 | AD120: 100 | AE120: -100 | AF120: 0.86 | AG120: 0.8784432336 | AH120: 0.39 | AI120: 0 | AJ120: 0.1057803566 | AK120: 0.173918074 | AL120: 12.04179764 | AM120: 19.79844199 | AN120: -7.756644346 | AQ120: 30 | AR120: -30 | AT120: 13671800
A121: 89 | B121: =IF(A121>$A$8,"",OFFSET(InputPriceData!B$15,$A121+$A$11,0,1,1)) -> 2019-04-25 | C121: =IF(A121>$A$8,"",OFFSET(InputPriceData!G$15,CalculationsAndCharts!$A121+$A$11,IF($C$5,8,0),1,1)) -> 17288000 | D121: =IF(A121>$A$8,"",OFFSET(InputPriceData!C$15,CalculationsAndCharts!$A121+$A$11,IF($C$5,8,0),1,1)) -> 43.28 | E121: =IF(A121>$A$8,"",OFFSET(InputPriceData!D$15,CalculationsAndCharts!$A121+$A$11,IF($C$5,8,0),1,1)) -> 43.95 | F121: =IF(A121>$A$8,"",OFFSET(InputPriceData!E$15,CalculationsAndCharts!$A121+$A$11,IF($C$5,8,0),1,1)) -> 42.79 | G121: =IF(A121>$A$8,"",OFFSET(InputPriceData!F$15,CalculationsAndCharts!$A121+$A$11,IF($C$5,8,0),1,1)) -> 43.85 | H121: 43.82 | I121: 42.94333333 | J121: TRUE | K121: 42.94333333 | L121: 49.80352 | O121: 41.0784 | P121: 45.05 | Q121: 42.79 | R121: -0.07 | S121: =$C$23*R121+$D$23*S122 -> -0.4368106865 | T121: -0.5343003891 | U121: 2.26 | V121: =$C$23*U121+$D$23*V122 -> 2.139723486 | W121: 2.020388741 | X121: -52.89085 | Y121: -54.71909393 | Z121: 40 | AA121: -40 | AD121: 100 | AE121: -100 | AF121: 1.16 | AG121: 0.8804924818 | AH121: 0.19 | AI121: 0 | AJ121: 0.07420039623 | AK121: 0.1932423045 | AL121: 8.427147053 | AM121: 21.94707036 | AN121: -13.5199233 | AQ121: 30 | AR121: -30 | AS121: 17288000
A122: 90 | B122: =IF(A122>$A$8,"",OFFSET(InputPriceData!B$15,$A122+$A$11,0,1,1)) -> 2019-04-24 | C122: =IF(A122>$A$8,"",OFFSET(InputPriceData!G$15,CalculationsAndCharts!$A122+$A$11,IF($C$5,8,0),1,1)) -> 15062000 | D122: =IF(A122>$A$8,"",OFFSET(InputPriceData!C$15,CalculationsAndCharts!$A122+$A$11,IF($C$5,8,0),1,1)) -> 43.72 | E122: =IF(A122>$A$8,"",OFFSET(InputPriceData!D$15,CalculationsAndCharts!$A122+$A$11,IF($C$5,8,0),1,1)) -> 43.76 | F122: =IF(A122>$A$8,"",OFFSET(InputPriceData!E$15,CalculationsAndCharts!$A122+$A$11,IF($C$5,8,0),1,1)) -> 42.86 | G122: =IF(A122>$A$8,"",OFFSET(InputPriceData!F$15,CalculationsAndCharts!$A122+$A$11,IF($C$5,8,0),1,1)) -> 42.87 | H122: 43.79 | I122: 43.06 | J122: FALSE | K122: 43.79 | M122: 49.80352 | P122: 45.05 | Q122: 42.86 | R122: -1.085 | S122: =$C$23*R122+$D$23*S123 -> -0.803621373 | T122: -0.6317900917 | U122: 2.19 | V122: =$C$23*U122+$D$23*V123 -> 2.019446973 | W122: 1.901053995 | X122: -66.46734847 | Y122: -56.54733787 | Z122: 40 | AA122: -40 | AD122: 100 | AE122: -100 | AF122: 0.9 | AG122: 0.8494360909 | AH122: 0 | AI122: 0.32 | AJ122: 0.06133377359 | AK122: 0.2147136716 | AL122: 7.22052833 | AM122: 25.27720142 | AN122: -18.05667309 | AQ122: 30 | AR122: -30 | AT122: 15062000
A123: 91 | B123: =IF(A123>$A$8,"",OFFSET(InputPriceData!B$15,$A123+$A$11,0,1,1)) -> 2019-04-23 | C123: =IF(A123>$A$8,"",OFFSET(InputPriceData!G$15,CalculationsAndCharts!$A123+$A$11,IF($C$5,8,0),1,1)) -> 14386000 | D123: =IF(A123>$A$8,"",OFFSET(InputPriceData!C$15,CalculationsAndCharts!$A123+$A$11,IF($C$5,8,0),1,1)) -> 43.56 | E123: =IF(A123>$A$8,"",OFFSET(InputPriceData!D$15,CalculationsAndCharts!$A123+$A$11,IF($C$5,8,0),1,1)) -> 43.75 | F123: =IF(A123>$A$8,"",OFFSET(InputPriceData!E$15,CalculationsAndCharts!$A123+$A$11,IF($C$5,8,0),1,1)) -> 43.18 | G123: =IF(A123>$A$8,"",OFFSET(InputPriceData!F$15,CalculationsAndCharts!$A123+$A$11,IF($C$5,8,0),1,1)) -> 43.54 | H123: 43.97666667 | I123: 43.19333333 | J123: FALSE | K123: 43.97666667 | M123: 49.80352 | P123: 45.05 | Q123: 43.14 | R123: -0.555 | S123: =$C$23*R123+$D$23*S124 -> -0.5222427459 | T123: -0.4599588105 | U123: 1.91 | V123: =$C$23*U123+$D$23*V124 -> 1.848893945 | W123: 1.782661017 | X123: -51.60362021 | Y123: -46.62732727 | Z123: 40 | AA123: -40 | AD123: 100 | AE123: -100 | AF123: 0.57 | AG123: 0.8438178788 | AH123: 0 | AI123: 0 | AJ123: 0.06814863732 | AK123: 0.2030151907 | AL123: 8.076225811 | AM123: 24.05912411 | AN123: -15.9828983 | AQ123: 30 | AR123: -30 | AT123: 14386000
A124: 92 | B124: =IF(A124>$A$8,"",OFFSET(InputPriceData!B$15,$A124+$A$11,0,1,1)) -> 2019-04-22 | C124: =IF(A124>$A$8,"",OFFSET(InputPriceData!G$15,CalculationsAndCharts!$A124+$A$11,IF($C$5,8,0),1,1)) -> 15747900 | D124: =IF(A124>$A$8,"",OFFSET(InputPriceData!C$15,CalculationsAndCharts!$A124+$A$11,IF($C$5,8,0),1,1)) -> 43.56 | E124: =IF(A124>$A$8,"",OFFSET(InputPriceData!D$15,CalculationsAndCharts!$A124+$A$11,IF($C$5,8,0),1,1)) -> 43.86 | F124: =IF(A124>$A$8,"",OFFSET(InputPriceData!E$15,CalculationsAndCharts!$A124+$A$11,IF($C$5,8,0),1,1)) -> 43.14 | G124: =IF(A124>$A$8,"",OFFSET(InputPriceData!F$15,CalculationsAndCharts!$A124+$A$11,IF($C$5,8,0),1,1)) -> 43.46 | H124: 44.19 | I124: 43.35 | J124: FALSE | K124: 44.19 | M124: 49.80352 | P124: 45.05 | Q124: 43.14 | R124: -0.635 | S124: =$C$23*R124+$D$23*S125 -> -0.4894854918 | T124: -0.3976748751 | U124: 1.91 | V124: =$C$23*U124+$D$23*V125 -> 1.787787891 | W124: 1.716428089 | X124: -46.33749326 | Y124: -41.65103432 | Z124: 40 | AA124: -40 | AD124: 100 | AE124: -100 | AF124: 0.72 | AG124: 0.8742420875 | AH124: 0 | AI124: 0.12 | AJ124: 0.07572070813 | AK124: 0.2255724341 | AL124: 8.661297507 | AM124: 25.80205613 | AN124: -17.14075862 | AQ124: 30 | AR124: -30 | AT124: 15747900
A125: 93 | B125: =IF(A125>$A$8,"",OFFSET(InputPriceData!B$15,$A125+$A$11,0,1,1)) -> 2019-04-18 | C125: =IF(A125>$A$8,"",OFFSET(InputPriceData!G$15,CalculationsAndCharts!$A125+$A$11,IF($C$5,8,0),1,1)) -> 23633800 | D125: =IF(A125>$A$8,"",OFFSET(InputPriceData!C$15,CalculationsAndCharts!$A125+$A$11,IF($C$5,8,0),1,1)) -> 44.24 | E125: =IF(A125>$A$8,"",OFFSET(InputPriceData!D$15,CalculationsAndCharts!$A125+$A$11,IF($C$5,8,0),1,1)) -> 44.32 | F125: =IF(A125>$A$8,"",OFFSET(InputPriceData!E$15,CalculationsAndCharts!$A125+$A$11,IF($C$5,8,0),1,1)) -> 43.26 | G125: =IF(A125>$A$8,"",OFFSET(InputPriceData!F$15,CalculationsAndCharts!$A125+$A$11,IF($C$5,8,0),1,1)) -> 43.73 | H125: 44.58666667 | I125: 43.69333333 | J125: FALSE | K125: 44.58666667 | M125: 49.80352 | N125: 46.37013333 | P125: 45.05 | Q125: 43.26 | R125: -0.425 | S125: =$C$23*R125+$D$23*S126 -> -0.3439709837 | T125: -0.3058642583 | U125: 1.79 | V125: =$C$23*U125+$D$23*V126 -> 1.665575782 | W125: 1.645068288 | X125: -37.1856002 | Y125: -36.96457539 | Z125: 40 | AA125: -40 | AD125: 100 | AE125: -100 | AF125: 1.06 | AG125: 0.8913800972 | AH125: 0 | AI125: 0.39 | AJ125: 0.08413412015 | AK125: 0.2373027046 | AL125: 9.438635707 | AM125: 26.62194336 | AN125: -17.18330765 | AQ125: 30 | AR125: -30 | AT125: 23633800
A126: 94 | B126: =IF(A126>$A$8,"",OFFSET(InputPriceData!B$15,$A126+$A$11,0,1,1)) -> 2019-04-17 | C126: =IF(A126>$A$8,"",OFFSET(InputPriceData!G$15,CalculationsAndCharts!$A126+$A$11,IF($C$5,8,0),1,1)) -> 20085500 | D126: =IF(A126>$A$8,"",OFFSET(InputPriceData!C$15,CalculationsAndCharts!$A126+$A$11,IF($C$5,8,0),1,1)) -> 44.36 | E126: =IF(A126>$A$8,"",OFFSET(InputPriceData!D$15,CalculationsAndCharts!$A126+$A$11,IF($C$5,8,0),1,1)) -> 44.39 | F126: =IF(A126>$A$8,"",OFFSET(InputPriceData!E$15,CalculationsAndCharts!$A126+$A$11,IF($C$5,8,0),1,1)) -> 43.65 | G126: =IF(A126>$A$8,"",OFFSET(InputPriceData!F$15,CalculationsAndCharts!$A126+$A$11,IF($C$5,8,0),1,1)) -> 44 | H126: 44.77333333 | I126: 43.89333333 | J126: TRUE | K126: 43.89333333 | L126: 49.80352 | P126: 45.05 | Q126: 43.62 | R126: -0.335 | S126: =$C$23*R126+$D$23*S127 -> -0.2629419673 | T126: -0.267757533 | U126: 1.43 | V126: =$C$23*U126+$D$23*V127 -> 1.541151563 | W126: 1.624560794 | X126: -32.96368273 | Y126: -36.74355058 | Z126: 40 | AA126: -40 | AD126: 100 | AE126: -100 | AF126: 0.74 | AG126: 0.8726445525 | AH126: 0 | AI126: 0.52 | AJ126: 0.09348235572 | AK126: 0.2203363384 | AL126: 10.7125353 | AM126: 25.24926533 | AN126: -14.53673003 | AQ126: 30 | AR126: -30 | AT126: 20085500
A127: 95 | B127: =IF(A127>$A$8,"",OFFSET(InputPriceData!B$15,$A127+$A$11,0,1,1)) -> 2019-04-16 | C127: =IF(A127>$A$8,"",OFFSET(InputPriceData!G$15,CalculationsAndCharts!$A127+$A$11,IF($C$5,8,0),1,1)) -> 21336600 | D127: =IF(A127>$A$8,"",OFFSET(InputPriceData!C$15,CalculationsAndCharts!$A127+$A$11,IF($C$5,8,0),1,1)) -> 45 | E127: =IF(A127>$A$8,"",OFFSET(InputPriceData!D$15,CalculationsAndCharts!$A127+$A$11,IF($C$5,8,0),1,1)) -> 45.05 | F127: =IF(A127>$A$8,"",OFFSET(InputPriceData!E$15,CalculationsAndCharts!$A127+$A$11,IF($C$5,8,0),1,1)) -> 44.17 | G127: =IF(A127>$A$8,"",OFFSET(InputPriceData!F$15,CalculationsAndCharts!$A127+$A$11,IF($C$5,8,0),1,1)) -> 44.21 | H127: 44.84333333 | I127: 43.88333333 | J127: TRUE | K127: 43.88333333 | L127: 49.80352 | P127: 45.25 | Q127: 43.62 | R127: -0.225 | S127: =$C$23*R127+$D$23*S128 -> -0.1908839347 | T127: -0.2725730986 | U127: 1.63 | V127: =$C$23*U127+$D$23*V128 -> 1.652303126 | W127: 1.707970026 | X127: -31.9177848 | Y127: -40.52341843 | Z127: 40 | AA127: -40 | AD127: 100 | AE127: -100 | AF127: 0.88 | AG127: 0.8873828361 | AH127: 0.17 | AI127: 0 | AJ127: 0.1038692841 | AK127: 0.187040376 | AL127: 11.70512657 | AM127: 21.07775454 | AN127: -9.372627968 | AQ127: 30 | AR127: -30 | AT127: 21336600
A128: 96 | B128: =IF(A128>$A$8,"",OFFSET(InputPriceData!B$15,$A128+$A$11,0,1,1)) -> 2019-04-15 | C128: =IF(A128>$A$8,"",OFFSET(InputPriceData!G$15,CalculationsAndCharts!$A128+$A$11,IF($C$5,8,0),1,1)) -> 20263700 | D128: =IF(A128>$A$8,"",OFFSET(InputPriceData!C$15,CalculationsAndCharts!$A128+$A$11,IF($C$5,8,0),1,1)) -> 44.03 | E128: =IF(A128>$A$8,"",OFFSET(InputPriceData!D$15,CalculationsAndCharts!$A128+$A$11,IF($C$5,8,0),1,1)) -> 44.88 | F128: =IF(A128>$A$8,"",OFFSET(InputPriceData!E$15,CalculationsAndCharts!$A128+$A$11,IF($C$5,8,0),1,1)) -> 43.86 | G128: =IF(A128>$A$8,"",OFFSET(InputPriceData!F$15,CalculationsAndCharts!$A128+$A$11,IF($C$5,8,0),1,1)) -> 44.67 | H128: 44.66333333 | I128: 43.71 | J128: TRUE | K128: 43.71 | L128: 49.80352 | O128: 41.9616 | P128: 45.25 | Q128: 43.62 | R128: 0.235 | S128: =$C$23*R128+$D$23*S129 -> -0.1567678694 | T128: -0.3542622625 | U128: 1.63 | V128: =$C$23*U128+$D$23*V129 -> 1.674606253 | W128: 1.763636925 | X128: -40.17405822 | Y128: -49.12905206 | Z128: 40 | AA128: -40 | AD128: 100 | AE128: -100 | AF128: 1.1 | AG128: 0.8882031512 | AH128: 0.28 | AI128: 0 | AJ128: 0.09652142681 | AK128: 0.20782264 | AL128: 10.86704395 | AM128: 23.39809758 | AN128: -12.53105363 | AQ128: 30 | AR128: -30 | AS128: 20263700
A129: 97 | B129: =IF(A129>$A$8,"",OFFSET(InputPriceData!B$15,$A129+$A$11,0,1,1)) -> 2019-04-12 | C129: =IF(A129>$A$8,"",OFFSET(InputPriceData!G$15,CalculationsAndCharts!$A129+$A$11,IF($C$5,8,0),1,1)) -> 25363500 | D129: =IF(A129>$A$8,"",OFFSET(InputPriceData!C$15,CalculationsAndCharts!$A129+$A$11,IF($C$5,8,0),1,1)) -> 44.59 | E129: =IF(A129>$A$8,"",OFFSET(InputPriceData!D$15,CalculationsAndCharts!$A129+$A$11,IF($C$5,8,0),1,1)) -> 44.6 | F129: =IF(A129>$A$8,"",OFFSET(InputPriceData!E$15,CalculationsAndCharts!$A129+$A$11,IF($C$5,8,0),1,1)) -> 43.62 | G129: =IF(A129>$A$8,"",OFFSET(InputPriceData!F$15,CalculationsAndCharts!$A129+$A$11,IF($C$5,8,0),1,1)) -> 43.78 | H129: 44.53666667 | I129: 43.72666667 | J129: FALSE | K129: 44.53666667 | M129: 49.80352 | P129: 45.25 | Q129: 43.62 | R129: -0.655 | S129: =$C$23*R129+$D$23*S130 -> -0.5485357387 | T129: -0.5517566556 | U129: 1.63 | V129: =$C$23*U129+$D$23*V130 -> 1.719212505 | W129: 1.852667597 | X129: -59.56348094 | Y129: -58.0840459 | Z129: 40 | AA129: -40 | AD129: 100 | AE129: -100 | AF129: 0.98 | AG129: 0.864670168 | AH129: 0.09 | AI129: 0 | AJ129: 0.07613491868 | AK129: 0.2309140445 | AL129: 8.805082157 | AM129: 26.70544827 | AN129: -17.90036612 | AQ129: 30 | AR129: -30 | AT129: 25363500
A130: 98 | B130: =IF(A130>$A$8,"",OFFSET(InputPriceData!B$15,$A130+$A$11,0,1,1)) -> 2019-04-11 | C130: =IF(A130>$A$8,"",OFFSET(InputPriceData!G$15,CalculationsAndCharts!$A130+$A$11,IF($C$5,8,0),1,1)) -> 19846100 | D130: =IF(A130>$A$8,"",OFFSET(InputPriceData!C$15,CalculationsAndCharts!$A130+$A$11,IF($C$5,8,0),1,1)) -> 44.3 | E130: =IF(A130>$A$8,"",OFFSET(InputPriceData!D$15,CalculationsAndCharts!$A130+$A$11,IF($C$5,8,0),1,1)) -> 44.51 | F130: =IF(A130>$A$8,"",OFFSET(InputPriceData!E$15,CalculationsAndCharts!$A130+$A$11,IF($C$5,8,0),1,1)) -> 43.65 | G130: =IF(A130>$A$8,"",OFFSET(InputPriceData!F$15,CalculationsAndCharts!$A130+$A$11,IF($C$5,8,0),1,1)) -> 44.28 | H130: 44.61666667 | I130: 43.88 | J130: FALSE | K130: 44.61666667 | M130: 49.80352 | P130: 45.25 | Q130: 43.65 | R130: -0.17 | S130: =$C$23*R130+$D$23*S131 -> -0.4420714775 | T130: -0.5549775725 | U130: 1.6 | V130: =$C$23*U130+$D$23*V131 -> 1.80842501 | W130: 1.986122689 | X130: -55.88552766 | Y130: -56.60461085 | Z130: 40 | AA130: -40 | AD130: 100 | AE130: -100 | AF130: 0.86 | AG130: 0.8518557422 | AH130: 0 | AI130: 0.26 | AJ130: 0.07459435409 | AK130: 0.2565711605 | AL130: 8.756688532 | AM130: 30.11908564 | AN130: -21.3623971 | AQ130: 30 | AR130: -30 | AT130: 19846100
A131: 99 | B131: =IF(A131>$A$8,"",OFFSET(InputPriceData!B$15,$A131+$A$11,0,1,1)) -> 2019-04-10 | C131: =IF(A131>$A$8,"",OFFSET(InputPriceData!G$15,CalculationsAndCharts!$A131+$A$11,IF($C$5,8,0),1,1)) -> 13083700 | D131: =IF(A131>$A$8,"",OFFSET(InputPriceData!C$15,CalculationsAndCharts!$A131+$A$11,IF($C$5,8,0),1,1)) -> 44.17 | E131: =IF(A131>$A$8,"",OFFSET(InputPriceData!D$15,CalculationsAndCharts!$A131+$A$11,IF($C$5,8,0),1,1)) -> 44.5 | F131: =IF(A131>$A$8,"",OFFSET(InputPriceData!E$15,CalculationsAndCharts!$A131+$A$11,IF($C$5,8,0),1,1)) -> 43.91 | G131: =IF(A131>$A$8,"",OFFSET(InputPriceData!F$15,CalculationsAndCharts!$A131+$A$11,IF($C$5,8,0),1,1)) -> 44.09 | H131: 44.79666667 | I131: 44.23 | J131: FALSE | K131: 44.79666667 | M131: 49.80352 | P131: 45.81 | Q131: 43.91 | R131: -0.77 | S131: =$C$23*R131+$D$23*S132 -> -0.714142955 | T131: -0.6678836675 | U131: 1.9 | V131: =$C$23*U131+$D$23*V132 -> 2.016850021 | W131: 2.163820369 | X131: -61.73189579 | Y131: -57.32369404 | Z131: 40 | AA131: -40 | AD131: 100 | AE131: -100 | AF131: 0.59 | AG131: 0.8509508247 | AH131: 0 | AI131: 0.17 | AJ131: 0.08288261566 | AK131: 0.2561901783 | AL131: 9.740000626 | AM131: 30.1063435 | AN131: -20.36634288 | AQ131: 30 | AR131: -30 | AT131: 13083700
A132: 100 | B132: =IF(A132>$A$8,"",OFFSET(InputPriceData!B$15,$A132+$A$11,0,1,1)) -> 2019-04-09 | C132: =IF(A132>$A$8,"",OFFSET(InputPriceData!G$15,CalculationsAndCharts!$A132+$A$11,IF($C$5,8,0),1,1)) -> 16073400 | D132: =IF(A132>$A$8,"",OFFSET(InputPriceData!C$15,CalculationsAndCharts!$A132+$A$11,IF($C$5,8,0),1,1)) -> 44.77 | E132: =IF(A132>$A$8,"",OFFSET(InputPriceData!D$15,CalculationsAndCharts!$A132+$A$11,IF($C$5,8,0),1,1)) -> 44.84 | F132: =IF(A132>$A$8,"",OFFSET(InputPriceData!E$15,CalculationsAndCharts!$A132+$A$11,IF($C$5,8,0),1,1)) -> 44.08 | G132: =IF(A132>$A$8,"",OFFSET(InputPriceData!F$15,CalculationsAndCharts!$A132+$A$11,IF($C$5,8,0),1,1)) -> 44.17 | H132: 45.04666667 | I132: 44.48666667 | J132: FALSE | K132: 45.04666667 | M132: 49.80352 | P132: 46 | Q132: 44.08 | R132: -0.87 | S132: =$C$23*R132+$D$23*S133 -> -0.65828591 | T132: -0.6216243801 | U132: 1.92 | V132: =$C$23*U132+$D$23*V133 -> 2.133700041 | W132: 2.310790717 | X132: -53.80187618 | Y132: -52.91549229 | Z132: 40 | AA132: -40 | AD132: 100 | AE132: -100 | AF132: 0.87 | AG132: 0.8799453608 | AH132: 0 | AI132: 0.62 | AJ132: 0.09209179517 | AK132: 0.2657668648 | AL132: 10.46562654 | AM132: 30.20265538 | AN132: -19.73702884 | AQ132: 30 | AR132: -30 | AT132: 16073400
A133: 101 | B133: =IF(A133>$A$8,"",OFFSET(InputPriceData!B$15,$A133+$A$11,0,1,1)) -> 2019-04-08 | C133: =IF(A133>$A$8,"",OFFSET(InputPriceData!G$15,CalculationsAndCharts!$A133+$A$11,IF($C$5,8,0),1,1)) -> 15953300 | D133: =IF(A133>$A$8,"",OFFSET(InputPriceData!C$15,CalculationsAndCharts!$A133+$A$11,IF($C$5,8,0),1,1)) -> 44.87 | E133: =IF(A133>$A$8,"",OFFSET(InputPriceData!D$15,CalculationsAndCharts!$A133+$A$11,IF($C$5,8,0),1,1)) -> 45.05 | F133: =IF(A133>$A$8,"",OFFSET(InputPriceData!E$15,CalculationsAndCharts!$A133+$A$11,IF($C$5,8,0),1,1)) -> 44.7 | G133: =IF(A133>$A$8,"",OFFSET(InputPriceData!F$15,CalculationsAndCharts!$A133+$A$11,IF($C$5,8,0),1,1)) -> 44.95 | H133: 45.06666667 | I133: 44.58 | J133: FALSE | K133: 45.06666667 | M133: 49.80352 | P133: 46.2 | Q133: 44.13 | R133: -0.215 | S133: =$C$23*R133+$D$23*S134 -> -0.44657182 | T133: -0.5849628501 | U133: 2.07 | V133: =$C$23*U133+$D$23*V134 -> 2.347400082 | W133: 2.487881392 | X133: -47.02497892 | Y133: -52.0291084 | Z133: 40 | AA133: -40 | AD133: 100 | AE133: -100 | AF133: 0.35 | AG133: 0.8810504009 | AH133: 0 | AI133: 0 | AJ133: 0.1023242169 | AK133: 0.2264076276 | AL133: 11.61388914 | AM133: 25.69746604 | AN133: -14.0835769 | AQ133: 30 | AR133: -30 | AS133: 15953300
A134: 102 | B134: =IF(A134>$A$8,"",OFFSET(InputPriceData!B$15,$A134+$A$11,0,1,1)) -> 2019-04-05 | C134: =IF(A134>$A$8,"",OFFSET(InputPriceData!G$15,CalculationsAndCharts!$A134+$A$11,IF($C$5,8,0),1,1)) -> 16044300 | D134: =IF(A134>$A$8,"",OFFSET(InputPriceData!C$15,CalculationsAndCharts!$A134+$A$11,IF($C$5,8,0),1,1)) -> 45.04 | E134: =IF(A134>$A$8,"",OFFSET(InputPriceData!D$15,CalculationsAndCharts!$A134+$A$11,IF($C$5,8,0),1,1)) -> 45.25 | F134: =IF(A134>$A$8,"",OFFSET(InputPriceData!E$15,CalculationsAndCharts!$A134+$A$11,IF($C$5,8,0),1,1)) -> 44.68 | G134: =IF(A134>$A$8,"",OFFSET(InputPriceData!F$15,CalculationsAndCharts!$A134+$A$11,IF($C$5,8,0),1,1)) -> 44.81 | H134: 45.12 | I134: 44.39 | J134: FALSE | K134: 45.12 | M134: 49.80352 | P134: 46.76 | Q134: 44.13 | R134: -0.635 | S134: =$C$23*R134+$D$23*S135 -> -0.67814364 | T134: -0.7233538803 | U134: 2.63 | V134: =$C$23*U134+$D$23*V135 -> 2.624800165 | W134: 2.628362702 | X134: -55.04216596 | Y134: -57.03323789 | Z134: 40 | AA134: -40 | AD134: 100 | AE134: -100 | AF134: 0.57 | AG134: 0.940056001 | AH134: 0.35 | AI134: 0 | AJ134: 0.1136935743 | AK134: 0.2515640306 | AL134: 12.09434057 | AM134: 26.76053665 | AN134: -14.66619608 | AQ134: 30 | AR134: -30 | AT134: 16044300
A135: 103 | B135: =IF(A135>$A$8,"",OFFSET(InputPriceData!B$15,$A135+$A$11,0,1,1)) -> 2019-04-04 | C135: =IF(A135>$A$8,"",OFFSET(InputPriceData!G$15,CalculationsAndCharts!$A135+$A$11,IF($C$5,8,0),1,1)) -> 17925900 | D135: =IF(A135>$A$8,"",OFFSET(InputPriceData!C$15,CalculationsAndCharts!$A135+$A$11,IF($C$5,8,0),1,1)) -> 44.81 | E135: =IF(A135>$A$8,"",OFFSET(InputPriceData!D$15,CalculationsAndCharts!$A135+$A$11,IF($C$5,8,0),1,1)) -> 44.9 | F135: =IF(A135>$A$8,"",OFFSET(InputPriceData!E$15,CalculationsAndCharts!$A135+$A$11,IF($C$5,8,0),1,1)) -> 44.36 | G135: =IF(A135>$A$8,"",OFFSET(InputPriceData!F$15,CalculationsAndCharts!$A135+$A$11,IF($C$5,8,0),1,1)) -> 44.84 | H135: 45.09666667 | I135: 44.31666667 | J135: FALSE | K135: 45.09666667 | M135: 49.80352 | P135: 46.76 | Q135: 44.13 | R135: -0.605 | S135: =$C$23*R135+$D$23*S136 -> -0.7212872799 | T135: -0.7685641207 | U135: 2.63 | V135: =$C$23*U135+$D$23*V136 -> 2.619600329 | W135: 2.63192524 | X135: -58.40318782 | Y135: -59.02430982 | Z135: 40 | AA135: -40 | AD135: 100 | AE135: -100 | AF135: 0.54 | AG135: 0.9811733344 | AH135: 0 | AI135: 0 | AJ135: 0.08743730477 | AK135: 0.2795155896 | AL135: 8.91150439 | AM135: 28.48789096 | AN135: -19.57638657 | AQ135: 30 | AR135: -30 | AS135: 17925900
A136: 104 | B136: =IF(A136>$A$8,"",OFFSET(InputPriceData!B$15,$A136+$A$11,0,1,1)) -> 2019-04-03 | C136: =IF(A136>$A$8,"",OFFSET(InputPriceData!G$15,CalculationsAndCharts!$A136+$A$11,IF($C$5,8,0),1,1)) -> 21744000 | D136: =IF(A136>$A$8,"",OFFSET(InputPriceData!C$15,CalculationsAndCharts!$A136+$A$11,IF($C$5,8,0),1,1)) -> 44.84 | E136: =IF(A136>$A$8,"",OFFSET(InputPriceData!D$15,CalculationsAndCharts!$A136+$A$11,IF($C$5,8,0),1,1)) -> 45.21 | F136: =IF(A136>$A$8,"",OFFSET(InputPriceData!E$15,CalculationsAndCharts!$A136+$A$11,IF($C$5,8,0),1,1)) -> 44.13 | G136: =IF(A136>$A$8,"",OFFSET(InputPriceData!F$15,CalculationsAndCharts!$A136+$A$11,IF($C$5,8,0),1,1)) -> 44.64 | H136: 45.4 | I136: 44.37 | J136: FALSE | K136: 45.4 | M136: 49.80352 | P136: 46.76 | Q136: 44.13 | R136: -0.805 | S136: =$C$23*R136+$D$23*S137 -> -0.8375745598 | T136: -0.8158409614 | U136: 2.63 | V136: =$C$23*U136+$D$23*V137 -> 2.609200658 | W136: 2.644250152 | X136: -61.70679131 | Y136: -59.64543183 | Z136: 40 | AA136: -40 | AD136: 100 | AE136: -100 | AF136: 1.08 | AG136: 1.030192594 | AH136: 0 | AI136: 0.33 | AJ136: 0.09715256085 | AK136: 0.3105728773 | AL136: 9.430524102 | AM136: 30.14706951 | AN136: -20.71654541 | AQ136: 30 | AR136: -30 | AT136: 21744000
A137: 105 | B137: =IF(A137>$A$8,"",OFFSET(InputPriceData!B$15,$A137+$A$11,0,1,1)) -> 2019-04-02 | C137: =IF(A137>$A$8,"",OFFSET(InputPriceData!G$15,CalculationsAndCharts!$A137+$A$11,IF($C$5,8,0),1,1)) -> 15098100 | D137: =IF(A137>$A$8,"",OFFSET(InputPriceData!C$15,CalculationsAndCharts!$A137+$A$11,IF($C$5,8,0),1,1)) -> 44.87 | E137: =IF(A137>$A$8,"",OFFSET(InputPriceData!D$15,CalculationsAndCharts!$A137+$A$11,IF($C$5,8,0),1,1)) -> 45.18 | F137: =IF(A137>$A$8,"",OFFSET(InputPriceData!E$15,CalculationsAndCharts!$A137+$A$11,IF($C$5,8,0),1,1)) -> 44.46 | G137: =IF(A137>$A$8,"",OFFSET(InputPriceData!F$15,CalculationsAndCharts!$A137+$A$11,IF($C$5,8,0),1,1)) -> 44.47 | H137: 45.66333333 | I137: 44.42666667 | J137: FALSE | K137: 45.66333333 | M137: 49.80352 | P137: 46.76 | Q137: 44.3 | R137: -1.06 | S137: =$C$23*R137+$D$23*S138 -> -0.8701491196 | T137: -0.7941073631 | U137: 2.46 | V137: =$C$23*U137+$D$23*V138 -> 2.588401317 | W137: 2.679299645 | X137: -59.27723423 | Y137: -57.58407235 | Z137: 40 | AA137: -40 | AD137: 100 | AE137: -100 | AF137: 0.72 | AG137: 1.024658438 | AH137: 0 | AI137: 0.06 | AJ137: 0.1079472898 | AK137: 0.3084143082 | AL137: 10.53495349 | AM137: 30.09923081 | AN137: -19.56427732 | AQ137: 30 | AR137: -30 | AT137: 15098100
A138: 106 | B138: =IF(A138>$A$8,"",OFFSET(InputPriceData!B$15,$A138+$A$11,0,1,1)) -> 2019-04-01 | C138: =IF(A138>$A$8,"",OFFSET(InputPriceData!G$15,CalculationsAndCharts!$A138+$A$11,IF($C$5,8,0),1,1)) -> 21242500 | D138: =IF(A138>$A$8,"",OFFSET(InputPriceData!C$15,CalculationsAndCharts!$A138+$A$11,IF($C$5,8,0),1,1)) -> 45.76 | E138: =IF(A138>$A$8,"",OFFSET(InputPriceData!D$15,CalculationsAndCharts!$A138+$A$11,IF($C$5,8,0),1,1)) -> 45.81 | F138: =IF(A138>$A$8,"",OFFSET(InputPriceData!E$15,CalculationsAndCharts!$A138+$A$11,IF($C$5,8,0),1,1)) -> 44.52 | G138: =IF(A138>$A$8,"",OFFSET(InputPriceData!F$15,CalculationsAndCharts!$A138+$A$11,IF($C$5,8,0),1,1)) -> 44.84 | H138: 46.00333333 | I138: 44.77333333 | J138: FALSE | K138: 46.00333333 | M138: 49.80352 | P138: 46.88 | Q138: 44.3 | R138: -0.75 | S138: =$C$23*R138+$D$23*S139 -> -0.6802982392 | T138: -0.7180656065 | U138: 2.58 | V138: =$C$23*U138+$D$23*V139 -> 2.716802633 | W138: 2.770197973 | X138: -51.84218698 | Y138: -55.89091046 | Z138: 40 | AA138: -40 | AD138: 100 | AE138: -100 | AF138: 1.29 | AG138: 1.058509375 | AH138: 0 | AI138: 0 | AJ138: 0.1199414331 | AK138: 0.3360158979 | AL138: 11.33116399 | AM138: 31.74425337 | AN138: -20.41308938 | AQ138: 30 | AR138: -30 | AT138: 21242500
A139: 107 | B139: =IF(A139>$A$8,"",OFFSET(InputPriceData!B$15,$A139+$A$11,0,1,1)) -> 2019-03-29 | C139: =IF(A139>$A$8,"",OFFSET(InputPriceData!G$15,CalculationsAndCharts!$A139+$A$11,IF($C$5,8,0),1,1)) -> 49293100 | D139: =IF(A139>$A$8,"",OFFSET(InputPriceData!C$15,CalculationsAndCharts!$A139+$A$11,IF($C$5,8,0),1,1)) -> 44.51 | E139: =IF(A139>$A$8,"",OFFSET(InputPriceData!D$15,CalculationsAndCharts!$A139+$A$11,IF($C$5,8,0),1,1)) -> 46 | F139: =IF(A139>$A$8,"",OFFSET(InputPriceData!E$15,CalculationsAndCharts!$A139+$A$11,IF($C$5,8,0),1,1)) -> 44.3 | G139: =IF(A139>$A$8,"",OFFSET(InputPriceData!F$15,CalculationsAndCharts!$A139+$A$11,IF($C$5,8,0),1,1)) -> 45.44 | H139: 46.32 | I139: 45.15666667 | J139: FALSE | K139: 46.32 | M139: 49.80352 | P139: 47.33 | Q139: 44.3 | R139: -0.375 | S139: =$C$23*R139+$D$23*S140 -> -0.6105964785 | T139: -0.7558329738 | U139: 3.03 | V139: =$C$23*U139+$D$23*V140 -> 2.853605266 | W139: 2.823593313 | X139: -53.53695734 | Y139: -59.93963395 | Z139: 40 | AA139: -40 | AD139: 100 | AE139: -100 | AF139: 1.7 | AG139: 1.032788195 | AH139: 0 | AI139: 1.2 | AJ139: 0.1332682591 | AK139: 0.3733509977 | AL139: 12.90373571 | AM139: 36.14981268 | AN139: -23.24607697 | AQ139: 30 | AR139: -30 | AS139: 49293100
A140: 108 | B140: =IF(A140>$A$8,"",OFFSET(InputPriceData!B$15,$A140+$A$11,0,1,1)) -> 2019-03-28 | C140: =IF(A140>$A$8,"",OFFSET(InputPriceData!G$15,CalculationsAndCharts!$A140+$A$11,IF($C$5,8,0),1,1)) -> 16788400 | D140: =IF(A140>$A$8,"",OFFSET(InputPriceData!C$15,CalculationsAndCharts!$A140+$A$11,IF($C$5,8,0),1,1)) -> 45.98 | E140: =IF(A140>$A$8,"",OFFSET(InputPriceData!D$15,CalculationsAndCharts!$A140+$A$11,IF($C$5,8,0),1,1)) -> 46.2 | F140: =IF(A140>$A$8,"",OFFSET(InputPriceData!E$15,CalculationsAndCharts!$A140+$A$11,IF($C$5,8,0),1,1)) -> 45.5 | G140: =IF(A140>$A$8,"",OFFSET(InputPriceData!F$15,CalculationsAndCharts!$A140+$A$11,IF($C$5,8,0),1,1)) -> 45.56 | H140: 46.36333333 | I140: 45.56 | J140: FALSE | K140: 46.36333333 | M140: 49.80352 | P140: 47.72 | Q140: 45.13 | R140: -0.865 | S140: =$C$23*R140+$D$23*S141 -> -0.846192957 | T140: -0.901069469 | U140: 2.59 | V140: =$C$23*U140+$D$23*V141 -> 2.677210533 | W140: 2.79358136 | X140: -64.50998578 | Y140: -66.34231056 | Z140: 40 | AA140: -40 | AD140: 100 | AE140: -100 | AF140: 0.7 | AG140: 0.9586535495 | AH140: 0 | AI140: 0.17 | AJ140: 0.1480758434 | AK140: 0.2815011086 | AL140: 15.44623117 | AM140: 29.364217 | AN140: -13.91798583 | AQ140: 30 | AR140: -30 | AT140: 16788400
A141: 109 | B141: =IF(A141>$A$8,"",OFFSET(InputPriceData!B$15,$A141+$A$11,0,1,1)) -> 2019-03-27 | C141: =IF(A141>$A$8,"",OFFSET(InputPriceData!G$15,CalculationsAndCharts!$A141+$A$11,IF($C$5,8,0),1,1)) -> 19695800 | D141: =IF(A141>$A$8,"",OFFSET(InputPriceData!C$15,CalculationsAndCharts!$A141+$A$11,IF($C$5,8,0),1,1)) -> 45.96 | E141: =IF(A141>$A$8,"",OFFSET(InputPriceData!D$15,CalculationsAndCharts!$A141+$A$11,IF($C$5,8,0),1,1)) -> 46.76 | F141: =IF(A141>$A$8,"",OFFSET(InputPriceData!E$15,CalculationsAndCharts!$A141+$A$11,IF($C$5,8,0),1,1)) -> 45.67 | G141: =IF(A141>$A$8,"",OFFSET(InputPriceData!F$15,CalculationsAndCharts!$A141+$A$11,IF($C$5,8,0),1,1)) -> 45.69 | H141: 46.26333333 | I141: 45.43666667 | J141: FALSE | K141: 46.26333333 | M141: 49.80352 | P141: 47.72 | Q141: 45.13 | R141: -0.735 | S141: =$C$23*R141+$D$23*S142 -> -0.827385914 | T141: -0.955945981 | U141: 2.59 | V141: =$C$23*U141+$D$23*V142 -> 2.764421066 | W141: 2.909952187 | X141: -65.70183423 | Y141: -68.17463534 | Z141: 40 | AA141: -40 | AD141: 100 | AE141: -100 | AF141: 1.09 | AG141: 0.9873928327 | AH141: 0.63 | AI141: 0 | AJ141: 0.1645287149 | AK141: 0.2938901206 | AL141: 16.66294401 | AM141: 29.76425501 | AN141: -13.101311 | AQ141: 30 | AR141: -30 | AT141: 19695800
A142: 110 | B142: =IF(A142>$A$8,"",OFFSET(InputPriceData!B$15,$A142+$A$11,0,1,1)) -> 2019-03-26 | C142: =IF(A142>$A$8,"",OFFSET(InputPriceData!G$15,CalculationsAndCharts!$A142+$A$11,IF($C$5,8,0),1,1)) -> 16679700 | D142: =IF(A142>$A$8,"",OFFSET(InputPriceData!C$15,CalculationsAndCharts!$A142+$A$11,IF($C$5,8,0),1,1)) -> 45.58 | E142: =IF(A142>$A$8,"",OFFSET(InputPriceData!D$15,CalculationsAndCharts!$A142+$A$11,IF($C$5,8,0),1,1)) -> 46.13 | F142: =IF(A142>$A$8,"",OFFSET(InputPriceData!E$15,CalculationsAndCharts!$A142+$A$11,IF($C$5,8,0),1,1)) -> 45.51 | G142: =IF(A142>$A$8,"",OFFSET(InputPriceData!F$15,CalculationsAndCharts!$A142+$A$11,IF($C$5,8,0),1,1)) -> 46.04 | H142: 46.25 | I142: 45.49666667 | J142: FALSE | K142: 46.25 | M142: 49.80352 | P142: 47.72 | Q142: 45.13 | R142: -0.385 | S142: =$C$23*R142+$D$23*S143 -> -0.919771828 | T142: -1.084506048 | U142: 2.59 | V142: =$C$23*U142+$D$23*V143 -> 2.938842131 | W142: 3.055483309 | X142: -70.98752888 | Y142: -70.64743645 | Z142: 40 | AA142: -40 | AD142: 100 | AE142: -100 | AF142: 0.9 | AG142: 0.9759920364 | AH142: 0.23 | AI142: 0 | AJ142: 0.1128096832 | AK142: 0.3265445785 | AL142: 11.55846349 | AM142: 33.45770932 | AN142: -21.89924583 | AQ142: 30 | AR142: -30 | AS142: 16679700
A143: 111 | B143: =IF(A143>$A$8,"",OFFSET(InputPriceData!B$15,$A143+$A$11,0,1,1)) -> 2019-03-25 | C143: =IF(A143>$A$8,"",OFFSET(InputPriceData!G$15,CalculationsAndCharts!$A143+$A$11,IF($C$5,8,0),1,1)) -> 12968600 | D143: =IF(A143>$A$8,"",OFFSET(InputPriceData!C$15,CalculationsAndCharts!$A143+$A$11,IF($C$5,8,0),1,1)) -> 45.85 | E143: =IF(A143>$A$8,"",OFFSET(InputPriceData!D$15,CalculationsAndCharts!$A143+$A$11,IF($C$5,8,0),1,1)) -> 45.9 | F143: =IF(A143>$A$8,"",OFFSET(InputPriceData!E$15,CalculationsAndCharts!$A143+$A$11,IF($C$5,8,0),1,1)) -> 45.13 | G143: =IF(A143>$A$8,"",OFFSET(InputPriceData!F$15,CalculationsAndCharts!$A143+$A$11,IF($C$5,8,0),1,1)) -> 45.23 | H143: 46.5 | I143: 45.79666667 | J143: FALSE | K143: 46.5 | M143: 49.80352 | P143: 48.8 | Q143: 45.13 | R143: -1.735 | S143: =$C$23*R143+$D$23*S144 -> -1.454543656 | T143: -1.249240268 | U143: 3.67 | V143: =$C$23*U143+$D$23*V144 -> 3.287684263 | W143: 3.172124486 | X143: -78.76363451 | Y143: -70.30734402 | Z143: 40 | AA143: -40 | AD143: 100 | AE143: -100 | AF143: 0.77 | AG143: 0.984435596 | AH143: 0 | AI143: 0.72 | AJ143: 0.09978853689 | AK143: 0.3628273094 | AL143: 10.1366242 | AM143: 36.85637851 | AN143: -26.71975431 | AQ143: 30 | AR143: -30 | AT143: 12968600
A144: 112 | B144: =IF(A144>$A$8,"",OFFSET(InputPriceData!B$15,$A144+$A$11,0,1,1)) -> 2019-03-22 | C144: =IF(A144>$A$8,"",OFFSET(InputPriceData!G$15,CalculationsAndCharts!$A144+$A$11,IF($C$5,8,0),1,1)) -> 14120000 | D144: =IF(A144>$A$8,"",OFFSET(InputPriceData!C$15,CalculationsAndCharts!$A144+$A$11,IF($C$5,8,0),1,1)) -> 46.45 | E144: =IF(A144>$A$8,"",OFFSET(InputPriceData!D$15,CalculationsAndCharts!$A144+$A$11,IF($C$5,8,0),1,1)) -> 46.72 | F144: =IF(A144>$A$8,"",OFFSET(InputPriceData!E$15,CalculationsAndCharts!$A144+$A$11,IF($C$5,8,0),1,1)) -> 45.85 | G144: =IF(A144>$A$8,"",OFFSET(InputPriceData!F$15,CalculationsAndCharts!$A144+$A$11,IF($C$5,8,0),1,1)) -> 45.86 | H144: 46.97666667 | I144: 46.16666667 | J144: FALSE | K144: 46.97666667 | M144: 49.80352 | P144: 48.8 | Q144: 45.85 | R144: -1.465 | S144: =$C$23*R144+$D$23*S145 -> -1.174087312 | T144: -1.04393688 | U144: 2.95 | V144: =$C$23*U144+$D$23*V145 -> 2.905368525 | W144: 3.056564709 | X144: -68.30785407 | Y144: -61.85105353 | Z144: 40 | AA144: -40 | AD144: 100 | AE144: -100 | AF144: 0.87 | AG144: 1.008261773 | AH144: 0 | AI144: 0.56 | AJ144: 0.1108761521 | AK144: 0.3231414549 | AL144: 10.99676245 | AM144: 32.04936094 | AN144: -21.05259849 | AQ144: 30 | AR144: -30 | AT144: 14120000
A145: 113 | B145: =IF(A145>$A$8,"",OFFSET(InputPriceData!B$15,$A145+$A$11,0,1,1)) -> 2019-03-21 | C145: =IF(A145>$A$8,"",OFFSET(InputPriceData!G$15,CalculationsAndCharts!$A145+$A$11,IF($C$5,8,0),1,1)) -> 13308400 | D145: =IF(A145>$A$8,"",OFFSET(InputPriceData!C$15,CalculationsAndCharts!$A145+$A$11,IF($C$5,8,0),1,1)) -> 46.79 | E145: =IF(A145>$A$8,"",OFFSET(InputPriceData!D$15,CalculationsAndCharts!$A145+$A$11,IF($C$5,8,0),1,1)) -> 46.88 | F145: =IF(A145>$A$8,"",OFFSET(InputPriceData!E$15,CalculationsAndCharts!$A145+$A$11,IF($C$5,8,0),1,1)) -> 46.41 | G145: =IF(A145>$A$8,"",OFFSET(InputPriceData!F$15,CalculationsAndCharts!$A145+$A$11,IF($C$5,8,0),1,1)) -> 46.59 | H145: 47.31 | I145: 46.58666667 | J145: FALSE | K145: 47.31 | M145: 49.80352 | P145: 48.8 | Q145: 46.24 | R145: -0.93 | S145: =$C$23*R145+$D$23*S146 -> -0.8831746238 | T145: -0.913786449 | U145: 2.56 | V145: =$C$23*U145+$D$23*V146 -> 2.860737051 | W145: 3.207760893 | X145: -56.97347649 | Y145: -55.39425299 | Z145: 40 | AA145: -40 | AD145: 100 | AE145: -100 | AF145: 0.47 | AG145: 1.023624193 | AH145: 0 | AI145: 0 | AJ145: 0.1231957246 | AK145: 0.2968238388 | AL145: 12.03524941 | AM145: 28.99734502 | AN145: -16.96209561 | AQ145: 30 | AR145: -30 | AT145: 13308400
A146: 114 | B146: =IF(A146>$A$8,"",OFFSET(InputPriceData!B$15,$A146+$A$11,0,1,1)) -> 2019-03-20 | C146: =IF(A146>$A$8,"",OFFSET(InputPriceData!G$15,CalculationsAndCharts!$A146+$A$11,IF($C$5,8,0),1,1)) -> 17438200 | D146: =IF(A146>$A$8,"",OFFSET(InputPriceData!C$15,CalculationsAndCharts!$A146+$A$11,IF($C$5,8,0),1,1)) -> 47.33 | E146: =IF(A146>$A$8,"",OFFSET(InputPriceData!D$15,CalculationsAndCharts!$A146+$A$11,IF($C$5,8,0),1,1)) -> 47.33 | F146: =IF(A146>$A$8,"",OFFSET(InputPriceData!E$15,CalculationsAndCharts!$A146+$A$11,IF($C$5,8,0),1,1)) -> 46.24 | G146: =IF(A146>$A$8,"",OFFSET(InputPriceData!F$15,CalculationsAndCharts!$A146+$A$11,IF($C$5,8,0),1,1)) -> 46.84 | H146: 47.59 | I146: 46.87 | J146: FALSE | K146: 47.59 | M146: 49.80352 | P146: 49.09 | Q146: 46.24 | R146: -0.825 | S146: =$C$23*R146+$D$23*S147 -> -0.8363492476 | T146: -0.9443982743 | U146: 2.85 | V146: =$C$23*U146+$D$23*V147 -> 3.161474101 | W146: 3.554784735 | X146: -53.133922 | Y146: -53.8150295 | Z146: 40 | AA146: -40 | AD146: 100 | AE146: -100 | AF146: 1.09 | AG146: 1.085137992 | AH146: 0 | AI146: 0.87 | AJ146: 0.1368841384 | AK146: 0.3298042653 | AL146: 12.6144453 | AM146: 30.39284108 | AN146: -17.77839578 | AQ146: 30 | AR146: -30 | AT146: 17438200
A147: 115 | B147: =IF(A147>$A$8,"",OFFSET(InputPriceData!B$15,$A147+$A$11,0,1,1)) -> 2019-03-19 | C147: =IF(A147>$A$8,"",OFFSET(InputPriceData!G$15,CalculationsAndCharts!$A147+$A$11,IF($C$5,8,0),1,1)) -> 11656500 | D147: =IF(A147>$A$8,"",OFFSET(InputPriceData!C$15,CalculationsAndCharts!$A147+$A$11,IF($C$5,8,0),1,1)) -> 47.63 | E147: =IF(A147>$A$8,"",OFFSET(InputPriceData!D$15,CalculationsAndCharts!$A147+$A$11,IF($C$5,8,0),1,1)) -> 47.72 | F147: =IF(A147>$A$8,"",OFFSET(InputPriceData!E$15,CalculationsAndCharts!$A147+$A$11,IF($C$5,8,0),1,1)) -> 47.11 | G147: =IF(A147>$A$8,"",OFFSET(InputPriceData!F$15,CalculationsAndCharts!$A147+$A$11,IF($C$5,8,0),1,1)) -> 47.24 | H147: 47.71333333 | I147: 46.96 | J147: FALSE | K147: 47.71333333 | M147: 49.80352 | P147: 49.09 | Q147: 46.46 | R147: -0.535 | S147: =$C$23*R147+$D$23*S148 -> -0.8476984951 | T147: -1.052447301 | U147: 2.63 | V147: =$C$23*U147+$D$23*V148 -> 3.472948202 | W147: 3.948095369 | X147: -53.31417823 | Y147: -54.496137 | Z147: 40 | AA147: -40 | AD147: 100 | AE147: -100 | AF147: 0.61 | AG147: 1.084597769 | AH147: 0 | AI147: 0.15 | AJ147: 0.1520934871 | AK147: 0.269782517 | AL147: 14.02303153 | AM147: 24.8739694 | AN147: -10.85093786 | AQ147: 30 | AR147: -30 | AT147: 11656500
A148: 116 | B148: =IF(A148>$A$8,"",OFFSET(InputPriceData!B$15,$A148+$A$11,0,1,1)) -> 2019-03-18 | C148: =IF(A148>$A$8,"",OFFSET(InputPriceData!G$15,CalculationsAndCharts!$A148+$A$11,IF($C$5,8,0),1,1)) -> 11628200 | D148: =IF(A148>$A$8,"",OFFSET(InputPriceData!C$15,CalculationsAndCharts!$A148+$A$11,IF($C$5,8,0),1,1)) -> 47.62 | E148: =IF(A148>$A$8,"",OFFSET(InputPriceData!D$15,CalculationsAndCharts!$A148+$A$11,IF($C$5,8,0),1,1)) -> 47.72 | F148: =IF(A148>$A$8,"",OFFSET(InputPriceData!E$15,CalculationsAndCharts!$A148+$A$11,IF($C$5,8,0),1,1)) -> 47.26 | G148: =IF(A148>$A$8,"",OFFSET(InputPriceData!F$15,CalculationsAndCharts!$A148+$A$11,IF($C$5,8,0),1,1)) -> 47.48 | H148: 48.07333333 | I148: 46.74333333 | J148: FALSE | K148: 48.07333333 | M148: 49.80352 | P148: 50.3 | Q148: 46.46 | R148: -0.9 | S148: =$C$23*R148+$D$23*S149 -> -1.16039699 | T148: -1.257196107 | U148: 3.84 | V148: =$C$23*U148+$D$23*V149 -> 4.315896405 | W148: 4.423242536 | X148: -56.84499987 | Y148: -55.67809576 | Z148: 40 | AA148: -40 | AD148: 100 | AE148: -100 | AF148: 0.46 | AG148: 1.137330854 | AH148: 0.02 | AI148: 0 | AJ148: 0.1689927635 | AK148: 0.2830916856 | AL148: 14.85871617 | AM148: 24.89088242 | AN148: -10.03216626 | AQ148: 30 | AR148: -30 | AT148: 11628200
A149: 117 | B149: =IF(A149>$A$8,"",OFFSET(InputPriceData!B$15,$A149+$A$11,0,1,1)) -> 2019-03-15 | C149: =IF(A149>$A$8,"",OFFSET(InputPriceData!G$15,CalculationsAndCharts!$A149+$A$11,IF($C$5,8,0),1,1)) -> 27370700 | D149: =IF(A149>$A$8,"",OFFSET(InputPriceData!C$15,CalculationsAndCharts!$A149+$A$11,IF($C$5,8,0),1,1)) -> 47.5 | E149: =IF(A149>$A$8,"",OFFSET(InputPriceData!D$15,CalculationsAndCharts!$A149+$A$11,IF($C$5,8,0),1,1)) -> 47.7 | F149: =IF(A149>$A$8,"",OFFSET(InputPriceData!E$15,CalculationsAndCharts!$A149+$A$11,IF($C$5,8,0),1,1)) -> 46.51 | G149: =IF(A149>$A$8,"",OFFSET(InputPriceData!F$15,CalculationsAndCharts!$A149+$A$11,IF($C$5,8,0),1,1)) -> 47.58 | H149: 48.36666667 | I149: 46.96 | J149: FALSE | K149: 48.36666667 | M149: 49.80352 | P149: 51.43 | Q149: 46.46 | R149: -1.365 | S149: =$C$23*R149+$D$23*S150 -> -1.42079398 | T149: -1.353995224 | U149: 4.97 | V149: =$C$23*U149+$D$23*V150 -> 4.79179281 | W149: 4.530588667 | X149: -59.77127138 | Y149: -54.51119166 | Z149: 40 | AA149: -40 | AD149: 100 | AE149: -100 | AF149: 1.19 | AG149: 1.212589838 | AH149: 0 | AI149: 0 | AJ149: 0.1855475149 | AK149: 0.3145463173 | AL149: 15.30175408 | AM149: 25.94004234 | AN149: -10.63828826 | AQ149: 30 | AR149: -30 | AS149: 27370700
A150: 118 | B150: =IF(A150>$A$8,"",OFFSET(InputPriceData!B$15,$A150+$A$11,0,1,1)) -> 2019-03-14 | C150: =IF(A150>$A$8,"",OFFSET(InputPriceData!G$15,CalculationsAndCharts!$A150+$A$11,IF($C$5,8,0),1,1)) -> 31496100 | D150: =IF(A150>$A$8,"",OFFSET(InputPriceData!C$15,CalculationsAndCharts!$A150+$A$11,IF($C$5,8,0),1,1)) -> 48.57 | E150: =IF(A150>$A$8,"",OFFSET(InputPriceData!D$15,CalculationsAndCharts!$A150+$A$11,IF($C$5,8,0),1,1)) -> 48.8 | F150: =IF(A150>$A$8,"",OFFSET(InputPriceData!E$15,CalculationsAndCharts!$A150+$A$11,IF($C$5,8,0),1,1)) -> 46.46 | G150: =IF(A150>$A$8,"",OFFSET(InputPriceData!F$15,CalculationsAndCharts!$A150+$A$11,IF($C$5,8,0),1,1)) -> 47.51 | H150: 48.68333333 | I150: 47.44 | J150: FALSE | K150: 48.68333333 | M150: 49.80352 | P150: 51.79 | Q150: 46.46 | R150: -1.615 | S150: =$C$23*R150+$D$23*S151 -> -1.476587961 | T150: -1.287196467 | U150: 5.33 | V150: =$C$23*U150+$D$23*V151 -> 4.61358562 | W150: 4.269384524 | X150: -60.29892409 | Y150: -49.25111193 | Z150: 40 | AA150: -40 | AD150: 100 | AE150: -100 | AF150: 2.34 | AG150: 1.21509982 | AH150: 0 | AI150: 1.45 | AJ150: 0.2061639055 | AK150: 0.3494959082 | AL150: 16.96682875 | AM150: 28.76273229 | AN150: -11.79590354 | AQ150: 30 | AR150: -30 | AT150: 31496100
A151: 119 | B151: =IF(A151>$A$8,"",OFFSET(InputPriceData!B$15,$A151+$A$11,0,1,1)) -> 2019-03-13 | C151: =IF(A151>$A$8,"",OFFSET(InputPriceData!G$15,CalculationsAndCharts!$A151+$A$11,IF($C$5,8,0),1,1)) -> 12357700 | D151: =IF(A151>$A$8,"",OFFSET(InputPriceData!C$15,CalculationsAndCharts!$A151+$A$11,IF($C$5,8,0),1,1)) -> 48.11 | E151: =IF(A151>$A$8,"",OFFSET(InputPriceData!D$15,CalculationsAndCharts!$A151+$A$11,IF($C$5,8,0),1,1)) -> 48.6 | F151: =IF(A151>$A$8,"",OFFSET(InputPriceData!E$15,CalculationsAndCharts!$A151+$A$11,IF($C$5,8,0),1,1)) -> 47.91 | G151: =IF(A151>$A$8,"",OFFSET(InputPriceData!F$15,CalculationsAndCharts!$A151+$A$11,IF($C$5,8,0),1,1)) -> 48.54 | H151: 48.78 | I151: 47.99666667 | J151: FALSE | K151: 48.78 | M151: 49.80352 | P151: 51.79 | Q151: 47.91 | R151: -1.31 | S151: =$C$23*R151+$D$23*S152 -> -1.338175922 | T151: -1.097804972 | U151: 3.88 | V151: =$C$23*U151+$D$23*V152 -> 3.89717124 | W151: 3.925183428 | X151: -55.93649278 | Y151: -38.20329977 | Z151: 40 | AA151: -40 | AD151: 100 | AE151: -100 | AF151: 0.69 | AG151: 1.090110911 | AH151: 0 | AI151: 0.04 | AJ151: 0.2290710061 | AK151: 0.2272176757 | AL151: 21.01355044 | AM151: 20.84353743 | AN151: 0.1700130107 | AO151: 30 | AP151: -30 | AS151: 12357700
A152: 120 | B152: =IF(A152>$A$8,"",OFFSET(InputPriceData!B$15,$A152+$A$11,0,1,1)) -> 2019-03-12 | C152: =IF(A152>$A$8,"",OFFSET(InputPriceData!G$15,CalculationsAndCharts!$A152+$A$11,IF($C$5,8,0),1,1)) -> 12772700 | D152: =IF(A152>$A$8,"",OFFSET(InputPriceData!C$15,CalculationsAndCharts!$A152+$A$11,IF($C$5,8,0),1,1)) -> 48.48 | E152: =IF(A152>$A$8,"",OFFSET(InputPriceData!D$15,CalculationsAndCharts!$A152+$A$11,IF($C$5,8,0),1,1)) -> 48.65 | F152: =IF(A152>$A$8,"",OFFSET(InputPriceData!E$15,CalculationsAndCharts!$A152+$A$11,IF($C$5,8,0),1,1)) -> 47.95 | G152: =IF(A152>$A$8,"",OFFSET(InputPriceData!F$15,CalculationsAndCharts!$A152+$A$11,IF($C$5,8,0),1,1)) -> 47.98 | H152: 48.9 | I152: 48.01333333 | J152: FALSE | K152: 48.9 | M152: 49.80352 | P152: 51.79 | Q152: 47.95 | R152: -1.89 | S152: =$C$23*R152+$D$23*S153 -> -1.366351844 | T152: -0.8574340229 | U152: 3.84 | V152: =$C$23*U152+$D$23*V153 -> 3.91434248 | W152: 3.953195617 | X152: -43.37928633 | Y152: -20.47010677 | Z152: 40 | AA152: -40 | AD152: 100 | AE152: -100 | AF152: 0.7 | AG152: 1.134567679 | AH152: 0 | AI152: 0.18 | AJ152: 0.2545233401 | AK152: 0.2480196397 | AL152: 22.43350881 | AM152: 21.86027721 | AN152: 0.5732315969 | AO152: 30 | AP152: -30 | AT152: 12772700
A153: 121 | B153: =IF(A153>$A$8,"",OFFSET(InputPriceData!B$15,$A153+$A$11,0,1,1)) -> 2019-03-11 | C153: =IF(A153>$A$8,"",OFFSET(InputPriceData!G$15,CalculationsAndCharts!$A153+$A$11,IF($C$5,8,0),1,1)) -> 13960600 | D153: =IF(A153>$A$8,"",OFFSET(InputPriceData!C$15,CalculationsAndCharts!$A153+$A$11,IF($C$5,8,0),1,1)) -> 48.94 | E153: =IF(A153>$A$8,"",OFFSET(InputPriceData!D$15,CalculationsAndCharts!$A153+$A$11,IF($C$5,8,0),1,1)) -> 49.09 | F153: =IF(A153>$A$8,"",OFFSET(InputPriceData!E$15,CalculationsAndCharts!$A153+$A$11,IF($C$5,8,0),1,1)) -> 48.13 | G153: =IF(A153>$A$8,"",OFFSET(InputPriceData!F$15,CalculationsAndCharts!$A153+$A$11,IF($C$5,8,0),1,1)) -> 48.47 | H153: 49.45 | I153: 48.29 | J153: FALSE | K153: 49.45 | M153: 49.80352 | P153: 51.79 | Q153: 47.96 | R153: -1.405 | S153: =$C$23*R153+$D$23*S154 -> -0.8427036877 | T153: -0.348516202 | U153: 3.83 | V153: =$C$23*U153+$D$23*V154 -> 3.988684959 | W153: 3.992048753 | X153: -17.46051832 | Y153: 2.439072801 | Z153: 40 | AA153: -40 | AD153: 100 | AE153: -100 | AF153: 0.96 | AG153: 1.182852976 | AH153: 0.13 | AI153: 0 | AJ153: 0.2828037112 | AK153: 0.2555773774 | AL153: 23.90861053 | AM153: 21.60685923 | AN153: 2.301751304 | AO153: 30 | AP153: -30 | AT153: 13960600
A154: 122 | B154: =IF(A154>$A$8,"",OFFSET(InputPriceData!B$15,$A154+$A$11,0,1,1)) -> 2019-03-08 | C154: =IF(A154>$A$8,"",OFFSET(InputPriceData!G$15,CalculationsAndCharts!$A154+$A$11,IF($C$5,8,0),1,1)) -> 18674900 | D154: =IF(A154>$A$8,"",OFFSET(InputPriceData!C$15,CalculationsAndCharts!$A154+$A$11,IF($C$5,8,0),1,1)) -> 48.65 | E154: =IF(A154>$A$8,"",OFFSET(InputPriceData!D$15,CalculationsAndCharts!$A154+$A$11,IF($C$5,8,0),1,1)) -> 48.96 | F154: =IF(A154>$A$8,"",OFFSET(InputPriceData!E$15,CalculationsAndCharts!$A154+$A$11,IF($C$5,8,0),1,1)) -> 47.96 | G154: =IF(A154>$A$8,"",OFFSET(InputPriceData!F$15,CalculationsAndCharts!$A154+$A$11,IF($C$5,8,0),1,1)) -> 48.94 | H154: 50.23 | I154: 48.96 | J154: FALSE | K154: 50.23 | M154: 49.80352 | P154: 51.79 | Q154: 47.57 | R154: -0.74 | S154: =$C$23*R154+$D$23*S155 -> -0.2804073754 | T154: 0.1456712836 | U154: 4.22 | V154: =$C$23*U154+$D$23*V155 -> 4.147369919 | W154: 3.995412548 | X154: 7.291927023 | Y154: 22.33866392 | Z154: 40 | AA154: -40 | AB154: 100 | AC154: -100 | AF154: 1.09 | AG154: 1.207614418 | AH154: 0 | AI154: 0.82 | AJ154: 0.2997819014 | AK154: 0.2839748638 | AL154: 24.82430624 | AM154: 23.51535884 | AN154: 1.308947402 | AO154: 30 | AP154: -30 | AS154: 18674900
A155: 123 | B155: =IF(A155>$A$8,"",OFFSET(InputPriceData!B$15,$A155+$A$11,0,1,1)) -> 2019-03-07 | C155: =IF(A155>$A$8,"",OFFSET(InputPriceData!G$15,CalculationsAndCharts!$A155+$A$11,IF($C$5,8,0),1,1)) -> 19096800 | D155: =IF(A155>$A$8,"",OFFSET(InputPriceData!C$15,CalculationsAndCharts!$A155+$A$11,IF($C$5,8,0),1,1)) -> 50.19 | E155: =IF(A155>$A$8,"",OFFSET(InputPriceData!D$15,CalculationsAndCharts!$A155+$A$11,IF($C$5,8,0),1,1)) -> 50.3 | F155: =IF(A155>$A$8,"",OFFSET(InputPriceData!E$15,CalculationsAndCharts!$A155+$A$11,IF($C$5,8,0),1,1)) -> 48.78 | G155: =IF(A155>$A$8,"",OFFSET(InputPriceData!F$15,CalculationsAndCharts!$A155+$A$11,IF($C$5,8,0),1,1)) -> 49.05 | H155: 51.17333333 | I155: 49.77333333 | J155: FALSE | K155: 51.17333333 | M155: 49.80352 | N155: 53.22026667 | P155: 51.79 | Q155: 47.57 | R155: -0.63 | S155: =$C$23*R155+$D$23*S156 -> 0.1791852493 | T155: 0.5717499426 | U155: 4.22 | V155: =$C$23*U155+$D$23*V156 -> 4.074739838 | W155: 3.843455176 | X155: 29.75187254 | Y155: 37.38540083 | Z155: 40 | AA155: -40 | AB155: 100 | AC155: -100 | AF155: 1.59 | AG155: 1.220682687 | AH155: 0 | AI155: 1.36 | AJ155: 0.3330910015 | AK155: 0.2244165154 | AL155: 27.28727172 | AM155: 18.38450875 | AN155: 8.902762966 | AO155: 30 | AP155: -30 | AT155: 19096800
A156: 124 | B156: =IF(A156>$A$8,"",OFFSET(InputPriceData!B$15,$A156+$A$11,0,1,1)) -> 2019-03-06 | C156: =IF(A156>$A$8,"",OFFSET(InputPriceData!G$15,CalculationsAndCharts!$A156+$A$11,IF($C$5,8,0),1,1)) -> 23652800 | D156: =IF(A156>$A$8,"",OFFSET(InputPriceData!C$15,CalculationsAndCharts!$A156+$A$11,IF($C$5,8,0),1,1)) -> 51.24 | E156: =IF(A156>$A$8,"",OFFSET(InputPriceData!D$15,CalculationsAndCharts!$A156+$A$11,IF($C$5,8,0),1,1)) -> 51.43 | F156: =IF(A156>$A$8,"",OFFSET(InputPriceData!E$15,CalculationsAndCharts!$A156+$A$11,IF($C$5,8,0),1,1)) -> 50.14 | G156: =IF(A156>$A$8,"",OFFSET(InputPriceData!F$15,CalculationsAndCharts!$A156+$A$11,IF($C$5,8,0),1,1)) -> 50.37 | H156: 51.31666667 | I156: 50.18333333 | J156: TRUE | K156: 50.18333333 | L156: 49.80352 | P156: 51.79 | Q156: 47.57 | R156: 0.69 | S156: =$C$23*R156+$D$23*S157 -> 0.9883704986 | T156: 0.9643146359 | U156: 4.22 | V156: =$C$23*U156+$D$23*V157 -> 3.929479675 | W156: 3.612170515 | X156: 53.39253128 | Y156: 45.01892911 | Z156: 40 | AA156: -40 | AB156: 100 | AC156: -100 | AF156: 1.29 | AG156: 1.17964743 | AH156: 0 | AI156: 0.26 | AJ156: 0.3701011128 | AK156: 0.09824057262 | AL156: 31.37387523 | AM156: 8.327960554 | AN156: 23.04591468 | AO156: 30 | AP156: -30 | AT156: 23652800
A157: 125 | B157: =IF(A157>$A$8,"",OFFSET(InputPriceData!B$15,$A157+$A$11,0,1,1)) -> 2019-03-05 | C157: =IF(A157>$A$8,"",OFFSET(InputPriceData!G$15,CalculationsAndCharts!$A157+$A$11,IF($C$5,8,0),1,1)) -> 23848200 | D157: =IF(A157>$A$8,"",OFFSET(InputPriceData!C$15,CalculationsAndCharts!$A157+$A$11,IF($C$5,8,0),1,1)) -> 50.61 | E157: =IF(A157>$A$8,"",OFFSET(InputPriceData!D$15,CalculationsAndCharts!$A157+$A$11,IF($C$5,8,0),1,1)) -> 51.79 | F157: =IF(A157>$A$8,"",OFFSET(InputPriceData!E$15,CalculationsAndCharts!$A157+$A$11,IF($C$5,8,0),1,1)) -> 50.4 | G157: =IF(A157>$A$8,"",OFFSET(InputPriceData!F$15,CalculationsAndCharts!$A157+$A$11,IF($C$5,8,0),1,1)) -> 51.23 | H157: 51.08666667 | I157: 49.82 | J157: TRUE | K157: 49.82 | L157: 49.80352 | P157: 51.79 | Q157: 47.57 | R157: 1.55 | S157: =$C$23*R157+$D$23*S158 -> 1.286740997 | T157: 0.9402587733 | U157: 4.22 | V157: =$C$23*U157+$D$23*V158 -> 3.638959351 | W157: 3.294861354 | X157: 57.07425426 | Y157: 36.64532694 | Z157: 40 | AA157: -40 | AB157: 100 | AC157: -100 | AF157: 1.39 | AG157: 1.167386033 | AH157: 1.06 | AI157: 0 | AJ157: 0.4112234587 | AK157: 0.08026730291 | AL157: 35.22600468 | AM157: 6.87581491 | AN157: 28.35018977 | AO157: 30 | AP157: -30 | AS157: 23848200
A158: 126 | B158: =IF(A158>$A$8,"",OFFSET(InputPriceData!B$15,$A158+$A$11,0,1,1)) -> 2019-03-04 | C158: =IF(A158>$A$8,"",OFFSET(InputPriceData!G$15,CalculationsAndCharts!$A158+$A$11,IF($C$5,8,0),1,1)) -> 20534600 | D158: =IF(A158>$A$8,"",OFFSET(InputPriceData!C$15,CalculationsAndCharts!$A158+$A$11,IF($C$5,8,0),1,1)) -> 50.66 | E158: =IF(A158>$A$8,"",OFFSET(InputPriceData!D$15,CalculationsAndCharts!$A158+$A$11,IF($C$5,8,0),1,1)) -> 50.73 | F158: =IF(A158>$A$8,"",OFFSET(InputPriceData!E$15,CalculationsAndCharts!$A158+$A$11,IF($C$5,8,0),1,1)) -> 50.01 | G158: =IF(A158>$A$8,"",OFFSET(InputPriceData!F$15,CalculationsAndCharts!$A158+$A$11,IF($C$5,8,0),1,1)) -> 50.52 | H158: 50.52666667 | I158: 49.23333333 | J158: TRUE | K158: 49.23333333 | L158: 49.80352 | P158: 50.74 | Q158: 47.57 | R158: 1.365 | S158: =$C$23*R158+$D$23*S159 -> 1.023481994 | T158: 0.5937765494 | U158: 3.17 | V158: =$C$23*U158+$D$23*V159 -> 3.057918702 | W158: 2.950763356 | X158: 40.24562309 | Y158: 16.21639962 | Z158: 40 | AA158: -40 | AB158: 100 | AC158: -100 | AF158: 0.72 | AG158: 1.142651148 | AH158: 0 | AI158: 0 | AJ158: 0.3391371763 | AK158: 0.08918589213 | AL158: 29.67985259 | AM158: 7.805172409 | AN158: 21.87468018 | AO158: 30 | AP158: -30 | AT158: 20534600
A159: 127 | B159: =IF(A159>$A$8,"",OFFSET(InputPriceData!B$15,$A159+$A$11,0,1,1)) -> 2019-03-01 | C159: =IF(A159>$A$8,"",OFFSET(InputPriceData!G$15,CalculationsAndCharts!$A159+$A$11,IF($C$5,8,0),1,1)) -> 34760700 | D159: =IF(A159>$A$8,"",OFFSET(InputPriceData!C$15,CalculationsAndCharts!$A159+$A$11,IF($C$5,8,0),1,1)) -> 49.21 | E159: =IF(A159>$A$8,"",OFFSET(InputPriceData!D$15,CalculationsAndCharts!$A159+$A$11,IF($C$5,8,0),1,1)) -> 50.74 | F159: =IF(A159>$A$8,"",OFFSET(InputPriceData!E$15,CalculationsAndCharts!$A159+$A$11,IF($C$5,8,0),1,1)) -> 49.05 | G159: =IF(A159>$A$8,"",OFFSET(InputPriceData!F$15,CalculationsAndCharts!$A159+$A$11,IF($C$5,8,0),1,1)) -> 50.68 | H159: 49.85 | I159: 48.42 | J159: TRUE | K159: 48.42 | L159: 49.80352 | P159: 50.74 | Q159: 47.57 | R159: 1.525 | S159: =$C$23*R159+$D$23*S160 -> 0.6819639885 | T159: 0.1640711045 | U159: 3.17 | V159: =$C$23*U159+$D$23*V160 -> 2.945837404 | W159: 2.843608011 | X159: 11.53964287 | Y159: -7.812823848 | Z159: 40 | AA159: -40 | AB159: 100 | AC159: -100 | AF159: 1.69 | AG159: 1.189612387 | AH159: 0.63 | AI159: 0 | AJ159: 0.3768190848 | AK159: 0.0990954357 | AL159: 31.67578693 | AM159: 8.330060852 | AN159: 23.34572607 | AO159: 30 | AP159: -30 | AS159: 34760700
A160: 128 | B160: =IF(A160>$A$8,"",OFFSET(InputPriceData!B$15,$A160+$A$11,0,1,1)) -> 2019-02-28 | C160: =IF(A160>$A$8,"",OFFSET(InputPriceData!G$15,CalculationsAndCharts!$A160+$A$11,IF($C$5,8,0),1,1)) -> 80889800 | D160: =IF(A160>$A$8,"",OFFSET(InputPriceData!C$15,CalculationsAndCharts!$A160+$A$11,IF($C$5,8,0),1,1)) -> 49.39 | E160: =IF(A160>$A$8,"",OFFSET(InputPriceData!D$15,CalculationsAndCharts!$A160+$A$11,IF($C$5,8,0),1,1)) -> 50.11 | F160: =IF(A160>$A$8,"",OFFSET(InputPriceData!E$15,CalculationsAndCharts!$A160+$A$11,IF($C$5,8,0),1,1)) -> 48.64 | G160: =IF(A160>$A$8,"",OFFSET(InputPriceData!F$15,CalculationsAndCharts!$A160+$A$11,IF($C$5,8,0),1,1)) -> 49.2 | H160: 49.08333333 | I160: 47.97 | J160: TRUE | K160: 47.97 | L160: 49.80352 | O160: 46.0512 | P160: 50.28 | Q160: 47.57 | R160: 0.275 | S160: =$C$23*R160+$D$23*S161 -> -0.1610720229 | T160: -0.3538217795 | U160: 2.71 | V160: =$C$23*U160+$D$23*V161 -> 2.721674807 | W160: 2.741378619 | X160: -25.81341936 | Y160: -27.16529056 | Z160: 40 | AA160: -40 | AD160: 100 | AE160: -100 | AF160: 1.58 | AG160: 1.134013763 | AH160: 1.41 | AI160: 0 | AJ160: 0.348687872 | AK160: 0.1101060397 | AL160: 30.74811642 | AM160: 9.709409469 | AN160: 21.03870695 | AO160: 30 | AP160: -30 | AT160: 80889800
A161: 129 | B161: =IF(A161>$A$8,"",OFFSET(InputPriceData!B$15,$A161+$A$11,0,1,1)) -> 2019-02-27 | C161: =IF(A161>$A$8,"",OFFSET(InputPriceData!G$15,CalculationsAndCharts!$A161+$A$11,IF($C$5,8,0),1,1)) -> 17453600 | D161: =IF(A161>$A$8,"",OFFSET(InputPriceData!C$15,CalculationsAndCharts!$A161+$A$11,IF($C$5,8,0),1,1)) -> 47.62 | E161: =IF(A161>$A$8,"",OFFSET(InputPriceData!D$15,CalculationsAndCharts!$A161+$A$11,IF($C$5,8,0),1,1)) -> 48.7 | F161: =IF(A161>$A$8,"",OFFSET(InputPriceData!E$15,CalculationsAndCharts!$A161+$A$11,IF($C$5,8,0),1,1)) -> 47.57 | G161: =IF(A161>$A$8,"",OFFSET(InputPriceData!F$15,CalculationsAndCharts!$A161+$A$11,IF($C$5,8,0),1,1)) -> 48.53 | H161: =IF($F$17=1,AVERAGE(OFFSET(E161,0,0,$A$17,1)),$C$17*E161+$D$17*H162) -> 48.61666667 | I161: =IF($F$17=1,AVERAGE(OFFSET(F161,0,0,$A$18,1)),$C$18*F161+$D$18*I162) -> 47.81 | J161: FALSE | K161: 48.61666667 | M161: 49.80352 | P161: 50.28 | Q161: 47.57 | R161: -0.395 | S161: =$C$23*R161+$D$23*S162 -> -0.5971440459 | T161: -0.5465715361 | U161: 2.71 | V161: =$C$23*U161+$D$23*V162 -> 2.733349615 | W161: 2.76108243 | X161: -39.59110603 | Y161: -28.51716176 | Z161: =$E$23 -> 40 | AA161: =$E$24 -> -40 | AD161: 100 | AE161: -100 | AF161: =IF($A161<$A$8,MAX(E161-F161,ABS(E161-G162),ABS(F161-G162)),"") -> 1.13 | AG161: =IF(($A$8-$A161)<$B$21,"",IF(($A$8-$A161)=$B$21,AVERAGE(OFFSET($AF161,0,0,$B$21,1)),AG162*$D$21+$AF161*$C$21)) -> 1.084459736 | AH161: =IF($A161<$A$8,IF(E161-E162>F162-F161,MAX(E161-E162,0),0),"") -> 0.26 | AI161: =IF($A161<$A$8,IF(F162-F161>E161-E162,MAX(F162-F161,0),0),"") -> 0 | AJ161: 0.2307643022 | AK161: 0.1223400441 | AL161: =IF(($A$8-$A161)<$B$20,"",AJ161/AG161*100) -> 21.27919502 | AM161: =IF(($A$8-$A161)<$B$20,"",AK161/AG161*100) -> 11.28119744 | AN161: =IF(($A$8-$A161)<$B$20,"",AL161-AM161) -> 9.997997575 | AO161: =IF(($A$8-$A161)<$B$20,"",IF($AN161>0,$BF$34,NA())) -> 30 | AP161: =IF(($A$8-$A161)<$B$20,"",IF($AN161>0,$BF$33,NA())) -> -30 | AQ161: =IF(($A$8-$A161)<$B$20,"",IF($AN161<0,$BF$34,NA())) ->  | AR161: =IF(($A$8-$A161)<$B$20,"",IF($AN161<0,$BF$33,NA())) ->  | AS161: =IF(G161>=D161,C161,NA()) -> 17453600 | AT161: =IF(G161<D161,C161,NA()) -> 
A162: 130 | B162: =IF(A162>$A$8,"",OFFSET(InputPriceData!B$15,$A162+$A$11,0,1,1)) -> 2019-02-26 | C162: =IF(A162>$A$8,"",OFFSET(InputPriceData!G$15,CalculationsAndCharts!$A162+$A$11,IF($C$5,8,0),1,1)) -> 12319500 | D162: =IF(A162>$A$8,"",OFFSET(InputPriceData!C$15,CalculationsAndCharts!$A162+$A$11,IF($C$5,8,0),1,1)) -> 48.19 | E162: =IF(A162>$A$8,"",OFFSET(InputPriceData!D$15,CalculationsAndCharts!$A162+$A$11,IF($C$5,8,0),1,1)) -> 48.44 | F162: =IF(A162>$A$8,"",OFFSET(InputPriceData!E$15,CalculationsAndCharts!$A162+$A$11,IF($C$5,8,0),1,1)) -> 47.7 | G162: =IF(A162>$A$8,"",OFFSET(InputPriceData!F$15,CalculationsAndCharts!$A162+$A$11,IF($C$5,8,0),1,1)) -> 47.77 | H162: 48.58666667 | I162: 47.86666667 | J162: =IF(G162>H163,TRUE,IF(G162<I163,FALSE,J163)) -> FALSE | K162: =IF(J162,I162,H162) -> 48.58666667 | L162: =IF(J162,$AZ$34,NA()) ->  | M162: =IF(NOT(J162),$AZ$34,NA()) -> 49.80352 | N162: =IF(AND(G163>=K163,G162<K162),MAX(E162,K162)*(1+$O$31),NA()) ->  | O162: =IF(AND(G163<=K163,G162>K162),MIN(F162,K162)*(1-$O$31),NA()) ->  | P162: =MAX(OFFSET(E162,0,0,$A$24,1)) -> 50.28 | Q162: =MIN(OFFSET(F162,0,0,$A$24,1)) -> 47.7 | R162: =G162-(P162+Q162)/2 -> -1.22 | S162: =$C$23*R162+$D$23*S163 -> -0.7992880918 | T162: -0.4959990263 | U162: =P162-Q162 -> 2.58 | V162: =$C$23*U162+$D$23*V163 -> 2.756699229 | W162: 2.788815245 | X162: =IF(W162<>0,T162/(W162/2)*100,0) -> -35.57059058 | Y162: =$C$23*X162+$D$23*Y163 -> -17.4432175 | Z162: 40 | AA162: -40 | AB162: =IF($X162>0,$BH$34,NA()) ->  | AC162: =IF($X162>0,$BH$33,NA()) ->  | AD162: =IF($X162<0,$BH$34,NA()) -> 100 | AE162: =IF($X162<0,$BH$33,NA()) -> -100 | AF162: 0.74 | AG162: 1.079399707 | AH162: 0 | AI162: 0.46 | AJ162: =IF(($A$8-$A162)<$B$20,"",IF(($A$8-$A162)=$B$20,AVERAGE(OFFSET($AH162,0,0,$B$20,1)),AJ163*$D$20+$AH162*$C$20)) -> 0.2275158914 | AK162: =IF(($A$8-$A162)<$B$20,"",IF(($A$8-$A162)=$B$20,AVERAGE(OFFSET(AI162,0,0,$B$20,1)),AK163*$D$20+AI162*$C$20)) -> 0.1359333823 | AL162: 21.07800195 | AM162: 12.59342405 | AN162: 8.484577905 | AO162: 30 | AP162: -30 | AT162: 12319500
A163: 131 | B163: =IF(A163>$A$8,"",OFFSET(InputPriceData!B$15,$A163+$A$11,0,1,1)) -> 2019-02-25 | C163: =IF(A163>$A$8,"",OFFSET(InputPriceData!G$15,CalculationsAndCharts!$A163+$A$11,IF($C$5,8,0),1,1)) -> 10551500 | D163: =IF(A163>$A$8,"",OFFSET(InputPriceData!C$15,CalculationsAndCharts!$A163+$A$11,IF($C$5,8,0),1,1)) -> 48.71 | E163: =IF(A163>$A$8,"",OFFSET(InputPriceData!D$15,CalculationsAndCharts!$A163+$A$11,IF($C$5,8,0),1,1)) -> 48.71 | F163: =IF(A163>$A$8,"",OFFSET(InputPriceData!E$15,CalculationsAndCharts!$A163+$A$11,IF($C$5,8,0),1,1)) -> 48.16 | G163: =IF(A163>$A$8,"",OFFSET(InputPriceData!F$15,CalculationsAndCharts!$A163+$A$11,IF($C$5,8,0),1,1)) -> 48.24 | H163: 49.2 | I163: 47.86666667 | J163: FALSE | K163: 49.2 | M163: 49.80352 | P163: 50.28 | Q163: 47.34 | R163: -0.57 | S163: =$C$23*R163+$D$23*S164 -> -0.3785761836 | T163: -0.1927099609 | U163: 2.94 | V163: =$C$23*U163+$D$23*V164 -> 2.933398458 | W163: 2.820931261 | X163: -13.66286117 | Y163: 0.6841555754 | Z163: 40 | AA163: -40 | AD163: 100 | AE163: -100 | AF163: 0.55 | AG163: 1.117110786 | AH163: 0.1 | AI163: 0 | AJ163: 0.2527954348 | AK163: 0.09992598033 | AL163: 22.62939702 | AM163: 8.945037646 | AN163: 13.68435937 | AO163: 30 | AP163: -30 | AT163: 10551500
A164: 132 | B164: =IF(A164>$A$8,"",OFFSET(InputPriceData!B$15,$A164+$A$11,0,1,1)) -> 2019-02-22 | C164: =IF(A164>$A$8,"",OFFSET(InputPriceData!G$15,CalculationsAndCharts!$A164+$A$11,IF($C$5,8,0),1,1)) -> 14910200 | D164: =IF(A164>$A$8,"",OFFSET(InputPriceData!C$15,CalculationsAndCharts!$A164+$A$11,IF($C$5,8,0),1,1)) -> 48.04 | E164: =IF(A164>$A$8,"",OFFSET(InputPriceData!D$15,CalculationsAndCharts!$A164+$A$11,IF($C$5,8,0),1,1)) -> 48.61 | F164: =IF(A164>$A$8,"",OFFSET(InputPriceData!E$15,CalculationsAndCharts!$A164+$A$11,IF($C$5,8,0),1,1)) -> 47.74 | G164: =IF(A164>$A$8,"",OFFSET(InputPriceData!F$15,CalculationsAndCharts!$A164+$A$11,IF($C$5,8,0),1,1)) -> 48.55 | H164: 49.43666667 | I164: 47.92333333 | J164: FALSE | K164: 49.43666667 | M164: 49.80352 | P164: 50.28 | Q164: 47.15 | R164: -0.165 | S164: =$C$23*R164+$D$23*S165 -> -0.1871523672 | T164: -0.006843738178 | U164: 3.13 | V164: =$C$23*U164+$D$23*V165 -> 2.926796917 | W164: 2.708464063 | X164: -0.505359349 | Y164: 15.03117232 | Z164: 40 | AA164: -40 | AD164: 100 | AE164: -100 | AF164: 0.87 | AG164: 1.180123095 | AH164: 0 | AI164: 0 | AJ164: 0.2697727054 | AK164: 0.111028867 | AL164: 22.859709 | AM164: 9.408244571 | AN164: 13.45146443 | AO164: 30 | AP164: -30 | AS164: 14910200
A165: 133 | B165: =IF(A165>$A$8,"",OFFSET(InputPriceData!B$15,$A165+$A$11,0,1,1)) -> 2019-02-21 | C165: =IF(A165>$A$8,"",OFFSET(InputPriceData!G$15,CalculationsAndCharts!$A165+$A$11,IF($C$5,8,0),1,1)) -> 25947000 | D165: =IF(A165>$A$8,"",OFFSET(InputPriceData!C$15,CalculationsAndCharts!$A165+$A$11,IF($C$5,8,0),1,1)) -> 48.64 | E165: =IF(A165>$A$8,"",OFFSET(InputPriceData!D$15,CalculationsAndCharts!$A165+$A$11,IF($C$5,8,0),1,1)) -> 50.28 | F165: =IF(A165>$A$8,"",OFFSET(InputPriceData!E$15,CalculationsAndCharts!$A165+$A$11,IF($C$5,8,0),1,1)) -> 47.7 | G165: =IF(A165>$A$8,"",OFFSET(InputPriceData!F$15,CalculationsAndCharts!$A165+$A$11,IF($C$5,8,0),1,1)) -> 47.74 | H165: 49.74666667 | I165: 48.28333333 | J165: FALSE | K165: 49.74666667 | M165: 49.80352 | N165: 52.2912 | P165: 50.28 | Q165: 47.15 | R165: -0.975 | S165: =$C$23*R165+$D$23*S166 -> -0.2093047343 | T165: 0.1734648908 | U165: 3.13 | V165: =$C$23*U165+$D$23*V166 -> 2.723593833 | W165: 2.490131209 | X165: 13.93218881 | Y165: 30.56770399 | Z165: 40 | AA165: -40 | AB165: 100 | AC165: -100 | AF165: 2.58 | AG165: 1.214581217 | AH165: 0.86 | AI165: 0 | AJ165: 0.2997474504 | AK165: 0.1233654078 | AL165: 24.67907837 | AM165: 10.15703241 | AN165: 14.52204596 | AO165: 30 | AP165: -30 | AT165: 25947000
A166: 134 | B166: =IF(A166>$A$8,"",OFFSET(InputPriceData!B$15,$A166+$A$11,0,1,1)) -> 2019-02-20 | C166: =IF(A166>$A$8,"",OFFSET(InputPriceData!G$15,CalculationsAndCharts!$A166+$A$11,IF($C$5,8,0),1,1)) -> 21470600 | D166: =IF(A166>$A$8,"",OFFSET(InputPriceData!C$15,CalculationsAndCharts!$A166+$A$11,IF($C$5,8,0),1,1)) -> 48.9 | E166: =IF(A166>$A$8,"",OFFSET(InputPriceData!D$15,CalculationsAndCharts!$A166+$A$11,IF($C$5,8,0),1,1)) -> 49.42 | F166: =IF(A166>$A$8,"",OFFSET(InputPriceData!E$15,CalculationsAndCharts!$A166+$A$11,IF($C$5,8,0),1,1)) -> 48.33 | G166: =IF(A166>$A$8,"",OFFSET(InputPriceData!F$15,CalculationsAndCharts!$A166+$A$11,IF($C$5,8,0),1,1)) -> 48.85 | H166: 49.45333333 | I166: 48.54666667 | J166: TRUE | K166: 48.54666667 | L166: 49.80352 | P166: 49.54 | Q166: 47.15 | R166: 0.505 | S166: =$C$23*R166+$D$23*S167 -> 0.5563905313 | T166: 0.556234516 | U166: 2.39 | V166: =$C$23*U166+$D$23*V167 -> 2.317187667 | W166: 2.256668584 | X166: 49.296961 | Y166: 47.20321916 | Z166: 40 | AA166: -40 | AB166: 100 | AC166: -100 | AF166: 1.09 | AG166: 1.062868019 | AH166: 0 | AI166: 0.49 | AJ166: 0.2374971671 | AK166: 0.1370726754 | AL166: 22.34493492 | AM166: 12.89649071 | AN166: 9.448444209 | AO166: 30 | AP166: -30 | AT166: 21470600
A167: 135 | B167: =IF(A167>$A$8,"",OFFSET(InputPriceData!B$15,$A167+$A$11,0,1,1)) -> 2019-02-19 | C167: =IF(A167>$A$8,"",OFFSET(InputPriceData!G$15,CalculationsAndCharts!$A167+$A$11,IF($C$5,8,0),1,1)) -> 9732700 | D167: =IF(A167>$A$8,"",OFFSET(InputPriceData!C$15,CalculationsAndCharts!$A167+$A$11,IF($C$5,8,0),1,1)) -> 49.22 | E167: =IF(A167>$A$8,"",OFFSET(InputPriceData!D$15,CalculationsAndCharts!$A167+$A$11,IF($C$5,8,0),1,1)) -> 49.54 | F167: =IF(A167>$A$8,"",OFFSET(InputPriceData!E$15,CalculationsAndCharts!$A167+$A$11,IF($C$5,8,0),1,1)) -> 48.82 | G167: =IF(A167>$A$8,"",OFFSET(InputPriceData!F$15,CalculationsAndCharts!$A167+$A$11,IF($C$5,8,0),1,1)) -> 48.91 | H167: 49.28333333 | I167: 48.47 | J167: TRUE | K167: 48.47 | L167: 49.80352 | P167: 49.54 | Q167: 47.15 | R167: 0.565 | S167: =$C$23*R167+$D$23*S168 -> 0.6077810627 | T167: 0.5560785006 | U167: 2.39 | V167: =$C$23*U167+$D$23*V168 -> 2.244375334 | W167: 2.196149502 | X167: 50.64122457 | Y167: 45.10947732 | Z167: 40 | AA167: -40 | AB167: 100 | AC167: -100 | AF167: 0.72 | AG167: 1.059853354 | AH167: 0.14 | AI167: 0 | AJ167: 0.2638857413 | AK167: 0.09785852817 | AL167: 24.89832581 | AM167: 9.233213989 | AN167: 15.66511182 | AO167: 30 | AP167: -30 | AT167: 9732700
A168: 136 | B168: =IF(A168>$A$8,"",OFFSET(InputPriceData!B$15,$A168+$A$11,0,1,1)) -> 2019-02-15 | C168: =IF(A168>$A$8,"",OFFSET(InputPriceData!G$15,CalculationsAndCharts!$A168+$A$11,IF($C$5,8,0),1,1)) -> 15449600 | D168: =IF(A168>$A$8,"",OFFSET(InputPriceData!C$15,CalculationsAndCharts!$A168+$A$11,IF($C$5,8,0),1,1)) -> 48.97 | E168: =IF(A168>$A$8,"",OFFSET(InputPriceData!D$15,CalculationsAndCharts!$A168+$A$11,IF($C$5,8,0),1,1)) -> 49.4 | F168: =IF(A168>$A$8,"",OFFSET(InputPriceData!E$15,CalculationsAndCharts!$A168+$A$11,IF($C$5,8,0),1,1)) -> 48.49 | G168: =IF(A168>$A$8,"",OFFSET(InputPriceData!F$15,CalculationsAndCharts!$A168+$A$11,IF($C$5,8,0),1,1)) -> 49.21 | H168: 49.02 | I168: 47.97666667 | J168: TRUE | K168: 47.97666667 | L168: 49.80352 | P168: 49.4 | Q168: 47.15 | R168: 0.935 | S168: =$C$23*R168+$D$23*S169 -> 0.6505621253 | T168: 0.5043759385 | U168: 2.25 | V168: =$C$23*U168+$D$23*V169 -> 2.098750667 | W168: 2.14792367 | X168: 46.96404677 | Y168: 39.57773008 | Z168: 40 | AA168: -40 | AB168: 100 | AC168: -100 | AF168: 0.99 | AG168: 1.097614838 | AH168: 0.49 | AI168: 0 | AJ168: 0.2776508236 | AK168: 0.108731698 | AL168: 25.29583366 | AM168: 9.906179672 | AN168: 15.38965398 | AO168: 30 | AP168: -30 | AS168: 15449600
A169: 137 | B169: =IF(A169>$A$8,"",OFFSET(InputPriceData!B$15,$A169+$A$11,0,1,1)) -> 2019-02-14 | C169: =IF(A169>$A$8,"",OFFSET(InputPriceData!G$15,CalculationsAndCharts!$A169+$A$11,IF($C$5,8,0),1,1)) -> 17855300 | D169: =IF(A169>$A$8,"",OFFSET(InputPriceData!C$15,CalculationsAndCharts!$A169+$A$11,IF($C$5,8,0),1,1)) -> 48.63 | E169: =IF(A169>$A$8,"",OFFSET(InputPriceData!D$15,CalculationsAndCharts!$A169+$A$11,IF($C$5,8,0),1,1)) -> 48.91 | F169: =IF(A169>$A$8,"",OFFSET(InputPriceData!E$15,CalculationsAndCharts!$A169+$A$11,IF($C$5,8,0),1,1)) -> 48.1 | G169: =IF(A169>$A$8,"",OFFSET(InputPriceData!F$15,CalculationsAndCharts!$A169+$A$11,IF($C$5,8,0),1,1)) -> 48.41 | H169: 48.56666667 | I169: 47.53 | J169: TRUE | K169: 47.53 | L169: 49.80352 | P169: 48.91 | Q169: 47.15 | R169: 0.38 | S169: =$C$23*R169+$D$23*S170 -> 0.3661242507 | T169: 0.3581897517 | U169: 1.76 | V169: =$C$23*U169+$D$23*V170 -> 1.947501334 | W169: 2.197096673 | X169: 32.60573429 | Y169: 32.19141339 | Z169: 40 | AA169: -40 | AB169: 100 | AC169: -100 | AF169: 0.81 | AG169: 1.109572042 | AH169: 0.16 | AI169: 0 | AJ169: 0.2540564707 | AK169: 0.1208129977 | AL169: 22.89679813 | AM169: 10.88825179 | AN169: 12.00854635 | AO169: 30 | AP169: -30 | AT169: 17855300
A170: 138 | B170: =IF(A170>$A$8,"",OFFSET(InputPriceData!B$15,$A170+$A$11,0,1,1)) -> 2019-02-13 | C170: =IF(A170>$A$8,"",OFFSET(InputPriceData!G$15,CalculationsAndCharts!$A170+$A$11,IF($C$5,8,0),1,1)) -> 14606500 | D170: =IF(A170>$A$8,"",OFFSET(InputPriceData!C$15,CalculationsAndCharts!$A170+$A$11,IF($C$5,8,0),1,1)) -> 47.47 | E170: =IF(A170>$A$8,"",OFFSET(InputPriceData!D$15,CalculationsAndCharts!$A170+$A$11,IF($C$5,8,0),1,1)) -> 48.75 | F170: =IF(A170>$A$8,"",OFFSET(InputPriceData!E$15,CalculationsAndCharts!$A170+$A$11,IF($C$5,8,0),1,1)) -> 47.34 | G170: =IF(A170>$A$8,"",OFFSET(InputPriceData!F$15,CalculationsAndCharts!$A170+$A$11,IF($C$5,8,0),1,1)) -> 48.55 | H170: 48.23666667 | I170: 47.23666667 | J170: TRUE | K170: 47.23666667 | L170: 49.80352 | P170: 48.78 | Q170: 47.15 | R170: 0.585 | S170: =$C$23*R170+$D$23*S171 -> 0.3522485013 | T170: 0.3502552527 | U170: 1.63 | V170: =$C$23*U170+$D$23*V171 -> 2.135002669 | W170: 2.446692012 | X170: 28.63092298 | Y170: 31.77709248 | Z170: 40 | AA170: -40 | AB170: 100 | AC170: -100 | AF170: 1.41 | AG170: 1.142857825 | AH170: 0.71 | AI170: 0 | AJ170: 0.2645071897 | AK170: 0.1342366642 | AL170: 23.14436528 | AM170: 11.74570111 | AN170: 11.39866418 | AO170: 30 | AP170: -30 | AS170: 14606500
A171: 139 | B171: =IF(A171>$A$8,"",OFFSET(InputPriceData!B$15,$A171+$A$11,0,1,1)) -> 2019-02-12 | C171: =IF(A171>$A$8,"",OFFSET(InputPriceData!G$15,CalculationsAndCharts!$A171+$A$11,IF($C$5,8,0),1,1)) -> 13815500 | D171: =IF(A171>$A$8,"",OFFSET(InputPriceData!C$15,CalculationsAndCharts!$A171+$A$11,IF($C$5,8,0),1,1)) -> 47.98 | E171: =IF(A171>$A$8,"",OFFSET(InputPriceData!D$15,CalculationsAndCharts!$A171+$A$11,IF($C$5,8,0),1,1)) -> 48.04 | F171: =IF(A171>$A$8,"",OFFSET(InputPriceData!E$15,CalculationsAndCharts!$A171+$A$11,IF($C$5,8,0),1,1)) -> 47.15 | G171: =IF(A171>$A$8,"",OFFSET(InputPriceData!F$15,CalculationsAndCharts!$A171+$A$11,IF($C$5,8,0),1,1)) -> 47.34 | H171: 47.93666667 | I171: 47.19666667 | J171: TRUE | K171: 47.19666667 | L171: 49.80352 | P171: 48.78 | Q171: 46.26 | R171: -0.18 | S171: =$C$23*R171+$D$23*S172 -> 0.1194970026 | T171: 0.3482620041 | U171: 2.52 | V171: =$C$23*U171+$D$23*V172 -> 2.640005338 | W171: 2.758381355 | X171: 25.25118606 | Y171: 34.92326198 | Z171: 40 | AA171: -40 | AB171: 100 | AC171: -100 | AF171: 0.89 | AG171: 1.113175361 | AH171: 0.12 | AI171: 0 | AJ171: 0.2150079885 | AK171: 0.1491518491 | AL171: 19.31483539 | AM171: 13.39877384 | AN171: 5.916061544 | AO171: 30 | AP171: -30 | AT171: 13815500
A172: 140 | B172: =IF(A172>$A$8,"",OFFSET(InputPriceData!B$15,$A172+$A$11,0,1,1)) -> 2019-02-11 | C172: =IF(A172>$A$8,"",OFFSET(InputPriceData!G$15,CalculationsAndCharts!$A172+$A$11,IF($C$5,8,0),1,1)) -> 14105600 | D172: =IF(A172>$A$8,"",OFFSET(InputPriceData!C$15,CalculationsAndCharts!$A172+$A$11,IF($C$5,8,0),1,1)) -> 47.83 | E172: =IF(A172>$A$8,"",OFFSET(InputPriceData!D$15,CalculationsAndCharts!$A172+$A$11,IF($C$5,8,0),1,1)) -> 47.92 | F172: =IF(A172>$A$8,"",OFFSET(InputPriceData!E$15,CalculationsAndCharts!$A172+$A$11,IF($C$5,8,0),1,1)) -> 47.22 | G172: =IF(A172>$A$8,"",OFFSET(InputPriceData!F$15,CalculationsAndCharts!$A172+$A$11,IF($C$5,8,0),1,1)) -> 47.71 | H172: 48.04 | I172: 47.28333333 | J172: TRUE | K172: 47.28333333 | L172: 49.80352 | P172: 48.78 | Q172: 46.26 | R172: 0.19 | S172: =$C$23*R172+$D$23*S173 -> 0.4189940053 | T172: 0.5770270055 | U172: 2.52 | V172: =$C$23*U172+$D$23*V173 -> 2.760010675 | W172: 2.876757372 | X172: 40.11648748 | Y172: 44.59533791 | Z172: 40 | AA172: -40 | AB172: 100 | AC172: -100 | AF172: 0.7 | AG172: 1.137972623 | AH172: 0.07 | AI172: 0 | AJ172: 0.2255644317 | AK172: 0.1657242767 | AL172: 19.82160441 | AM172: 14.56311631 | AN172: 5.258488097 | AO172: 30 | AP172: -30 | AT172: 14105600
A173: 141 | B173: =IF(A173>$A$8,"",OFFSET(InputPriceData!B$15,$A173+$A$11,0,1,1)) -> 2019-02-08 | C173: =IF(A173>$A$8,"",OFFSET(InputPriceData!G$15,CalculationsAndCharts!$A173+$A$11,IF($C$5,8,0),1,1)) -> 9618800 | D173: =IF(A173>$A$8,"",OFFSET(InputPriceData!C$15,CalculationsAndCharts!$A173+$A$11,IF($C$5,8,0),1,1)) -> 47.34 | E173: =IF(A173>$A$8,"",OFFSET(InputPriceData!D$15,CalculationsAndCharts!$A173+$A$11,IF($C$5,8,0),1,1)) -> 47.85 | F173: =IF(A173>$A$8,"",OFFSET(InputPriceData!E$15,CalculationsAndCharts!$A173+$A$11,IF($C$5,8,0),1,1)) -> 47.22 | G173: =IF(A173>$A$8,"",OFFSET(InputPriceData!F$15,CalculationsAndCharts!$A173+$A$11,IF($C$5,8,0),1,1)) -> 47.83 | H173: 48.32666667 | I173: 47.41666667 | J173: TRUE | K173: 47.41666667 | L173: 49.80352 | P173: 48.78 | Q173: 45.88 | R173: 0.5 | S173: =$C$23*R173+$D$23*S174 -> 0.6479880105 | T173: 0.7350600057 | U173: 2.9 | V173: =$C$23*U173+$D$23*V174 -> 3.00002135 | W173: 2.993504069 | X173: 49.11033951 | Y173: 49.07418833 | Z173: 40 | AA173: -40 | AB173: 100 | AC173: -100 | AF173: 0.63 | AG173: 1.186636248 | AH173: 0 | AI173: 0.19 | AJ173: 0.2428493685 | AK173: 0.1841380853 | AL173: 20.46535903 | AM173: 15.51765215 | AN173: 4.947706878 | AO173: 30 | AP173: -30 | AS173: 9618800
A174: 142 | B174: =IF(A174>$A$8,"",OFFSET(InputPriceData!B$15,$A174+$A$11,0,1,1)) -> 2019-02-07 | C174: =IF(A174>$A$8,"",OFFSET(InputPriceData!G$15,CalculationsAndCharts!$A174+$A$11,IF($C$5,8,0),1,1)) -> 10644200 | D174: =IF(A174>$A$8,"",OFFSET(InputPriceData!C$15,CalculationsAndCharts!$A174+$A$11,IF($C$5,8,0),1,1)) -> 48.33 | E174: =IF(A174>$A$8,"",OFFSET(InputPriceData!D$15,CalculationsAndCharts!$A174+$A$11,IF($C$5,8,0),1,1)) -> 48.35 | F174: =IF(A174>$A$8,"",OFFSET(InputPriceData!E$15,CalculationsAndCharts!$A174+$A$11,IF($C$5,8,0),1,1)) -> 47.41 | G174: =IF(A174>$A$8,"",OFFSET(InputPriceData!F$15,CalculationsAndCharts!$A174+$A$11,IF($C$5,8,0),1,1)) -> 47.66 | H174: 48.59 | I174: 47.57666667 | J174: TRUE | K174: 47.57666667 | L174: 49.80352 | P174: 48.78 | Q174: 45.6 | R174: 0.47 | S174: =$C$23*R174+$D$23*S175 -> 0.795976021 | T174: 0.8221320009 | U174: 3.18 | V174: =$C$23*U174+$D$23*V175 -> 3.100042701 | W174: 2.986986787 | X174: 55.04758203 | Y174: 49.03803714 | Z174: 40 | AA174: -40 | AB174: 100 | AC174: -100 | AF174: 1.29 | AG174: 1.24848472 | AH174: 0 | AI174: 0.21 | AJ174: 0.2698326317 | AK174: 0.1834867614 | AL174: 21.6128101 | AM174: 14.69675667 | AN174: 6.916053429 | AO174: 30 | AP174: -30 | AT174: 10644200
A175: 143 | B175: =IF(A175>$A$8,"",OFFSET(InputPriceData!B$15,$A175+$A$11,0,1,1)) -> 2019-02-06 | C175: =IF(A175>$A$8,"",OFFSET(InputPriceData!G$15,CalculationsAndCharts!$A175+$A$11,IF($C$5,8,0),1,1)) -> 13101200 | D175: =IF(A175>$A$8,"",OFFSET(InputPriceData!C$15,CalculationsAndCharts!$A175+$A$11,IF($C$5,8,0),1,1)) -> 47.65 | E175: =IF(A175>$A$8,"",OFFSET(InputPriceData!D$15,CalculationsAndCharts!$A175+$A$11,IF($C$5,8,0),1,1)) -> 48.78 | F175: =IF(A175>$A$8,"",OFFSET(InputPriceData!E$15,CalculationsAndCharts!$A175+$A$11,IF($C$5,8,0),1,1)) -> 47.62 | G175: =IF(A175>$A$8,"",OFFSET(InputPriceData!F$15,CalculationsAndCharts!$A175+$A$11,IF($C$5,8,0),1,1)) -> 48.7 | H175: 48.63 | I175: 47.51333333 | J175: TRUE | K175: 47.51333333 | L175: 49.80352 | P175: 48.78 | Q175: 45.6 | R175: 1.51 | S175: =$C$23*R175+$D$23*S176 -> 1.121952042 | T175: 0.8482879808 | U175: 3.18 | V175: =$C$23*U175+$D$23*V176 -> 3.020085401 | W175: 2.873930873 | X175: 59.03329051 | Y175: 43.02849226 | Z175: 40 | AA175: -40 | AB175: 100 | AC175: -100 | AF175: 1.16 | AG175: 1.243871911 | AH175: 0.14 | AI175: 0 | AJ175: 0.2998140352 | AK175: 0.180540846 | AL175: 24.10328849 | AM175: 14.51442423 | AN175: 9.588864267 | AO175: 30 | AP175: -30 | AS175: 13101200
A176: 144 | B176: =IF(A176>$A$8,"",OFFSET(InputPriceData!B$15,$A176+$A$11,0,1,1)) -> 2019-02-05 | C176: =IF(A176>$A$8,"",OFFSET(InputPriceData!G$15,CalculationsAndCharts!$A176+$A$11,IF($C$5,8,0),1,1)) -> 15028000 | D176: =IF(A176>$A$8,"",OFFSET(InputPriceData!C$15,CalculationsAndCharts!$A176+$A$11,IF($C$5,8,0),1,1)) -> 48.59 | E176: =IF(A176>$A$8,"",OFFSET(InputPriceData!D$15,CalculationsAndCharts!$A176+$A$11,IF($C$5,8,0),1,1)) -> 48.64 | F176: =IF(A176>$A$8,"",OFFSET(InputPriceData!E$15,CalculationsAndCharts!$A176+$A$11,IF($C$5,8,0),1,1)) -> 47.7 | G176: =IF(A176>$A$8,"",OFFSET(InputPriceData!F$15,CalculationsAndCharts!$A176+$A$11,IF($C$5,8,0),1,1)) -> 47.76 | H176: 48.25333333 | I176: 47.06 | J176: TRUE | K176: 47.06 | L176: 49.80352 | P176: 48.64 | Q176: 45.6 | R176: 0.64 | S176: =$C$23*R176+$D$23*S177 -> 0.733904084 | T176: 0.5746239196 | U176: 3.04 | V176: =$C$23*U176+$D$23*V177 -> 2.860170802 | W176: 2.727776346 | X176: 42.13130747 | Y176: 27.023694 | Z176: 40 | AA176: -40 | AB176: 100 | AC176: -100 | AF176: 0.94 | AG176: 1.253191012 | AH176: 0.17 | AI176: 0 | AJ176: 0.3175711502 | AK176: 0.20060094 | AL176: 25.34100126 | AM176: 16.00721183 | AN176: 9.333789429 | AO176: 30 | AP176: -30 | AT176: 15028000
A177: 145 | B177: =IF(A177>$A$8,"",OFFSET(InputPriceData!B$15,$A177+$A$11,0,1,1)) -> 2019-02-04 | C177: =IF(A177>$A$8,"",OFFSET(InputPriceData!G$15,CalculationsAndCharts!$A177+$A$11,IF($C$5,8,0),1,1)) -> 26142100 | D177: =IF(A177>$A$8,"",OFFSET(InputPriceData!C$15,CalculationsAndCharts!$A177+$A$11,IF($C$5,8,0),1,1)) -> 48.4 | E177: =IF(A177>$A$8,"",OFFSET(InputPriceData!D$15,CalculationsAndCharts!$A177+$A$11,IF($C$5,8,0),1,1)) -> 48.47 | F177: =IF(A177>$A$8,"",OFFSET(InputPriceData!E$15,CalculationsAndCharts!$A177+$A$11,IF($C$5,8,0),1,1)) -> 47.22 | G177: =IF(A177>$A$8,"",OFFSET(InputPriceData!F$15,CalculationsAndCharts!$A177+$A$11,IF($C$5,8,0),1,1)) -> 48.43 | H177: 47.77 | I177: 46.60666667 | J177: TRUE | K177: 46.60666667 | L177: 49.80352 | P177: 48.47 | Q177: 45.6 | R177: 1.395 | S177: =$C$23*R177+$D$23*S178 -> 0.8278081681 | T177: 0.4153437551 | U177: 2.87 | V177: =$C$23*U177+$D$23*V178 -> 2.680341604 | W177: 2.595381889 | X177: 32.00636923 | Y177: 11.91608054 | Z177: 40 | AA177: -40 | AB177: 100 | AC177: -100 | AF177: 1.25 | AG177: 1.287990014 | AH177: 0.82 | AI177: 0 | AJ177: 0.3339679447 | AK177: 0.2228899333 | AL177: 25.92938929 | AM177: 17.30525322 | AN177: 8.624136071 | AO177: 30 | AP177: -30 | AS177: 26142100
A178: 146 | B178: =IF(A178>$A$8,"",OFFSET(InputPriceData!B$15,$A178+$A$11,0,1,1)) -> 2019-02-01 | C178: =IF(A178>$A$8,"",OFFSET(InputPriceData!G$15,CalculationsAndCharts!$A178+$A$11,IF($C$5,8,0),1,1)) -> 18512100 | D178: =IF(A178>$A$8,"",OFFSET(InputPriceData!C$15,CalculationsAndCharts!$A178+$A$11,IF($C$5,8,0),1,1)) -> 46.67 | E178: =IF(A178>$A$8,"",OFFSET(InputPriceData!D$15,CalculationsAndCharts!$A178+$A$11,IF($C$5,8,0),1,1)) -> 47.65 | F178: =IF(A178>$A$8,"",OFFSET(InputPriceData!E$15,CalculationsAndCharts!$A178+$A$11,IF($C$5,8,0),1,1)) -> 46.26 | G178: =IF(A178>$A$8,"",OFFSET(InputPriceData!F$15,CalculationsAndCharts!$A178+$A$11,IF($C$5,8,0),1,1)) -> 47.51 | H178: 47.23333333 | I178: 46.16 | J178: TRUE | K178: 46.16 | L178: 49.80352 | P178: 48.09 | Q178: 45.6 | R178: 0.665 | S178: =$C$23*R178+$D$23*S179 -> 0.2606163362 | T178: 0.002879342111 | U178: 2.49 | V178: =$C$23*U178+$D$23*V179 -> 2.490683209 | W178: 2.510422174 | X178: 0.2293910675 | Y178: -8.174208141 | Z178: 40 | AA178: -40 | AB178: 100 | AC178: -100 | AF178: 1.39 | AG178: 1.292211126 | AH178: 0.46 | AI178: 0 | AJ178: 0.279964383 | AK178: 0.2476554815 | AL178: 21.66552952 | AM178: 19.16524912 | AN178: 2.5002804 | AO178: 30 | AP178: -30 | AS178: 18512100
A179: 147 | B179: =IF(A179>$A$8,"",OFFSET(InputPriceData!B$15,$A179+$A$11,0,1,1)) -> 2019-01-31 | C179: =IF(A179>$A$8,"",OFFSET(InputPriceData!G$15,CalculationsAndCharts!$A179+$A$11,IF($C$5,8,0),1,1)) -> 12945500 | D179: =IF(A179>$A$8,"",OFFSET(InputPriceData!C$15,CalculationsAndCharts!$A179+$A$11,IF($C$5,8,0),1,1)) -> 46.75 | E179: =IF(A179>$A$8,"",OFFSET(InputPriceData!D$15,CalculationsAndCharts!$A179+$A$11,IF($C$5,8,0),1,1)) -> 47.19 | F179: =IF(A179>$A$8,"",OFFSET(InputPriceData!E$15,CalculationsAndCharts!$A179+$A$11,IF($C$5,8,0),1,1)) -> 46.34 | G179: =IF(A179>$A$8,"",OFFSET(InputPriceData!F$15,CalculationsAndCharts!$A179+$A$11,IF($C$5,8,0),1,1)) -> 47.02 | H179: 46.79333333 | I179: 45.94 | J179: TRUE | K179: 45.94 | L179: 49.80352 | O179: 44.1024 | P179: 48.09 | Q179: 45.6 | R179: 0.175 | S179: =$C$23*R179+$D$23*S180 -> -0.1437673276 | T179: -0.254857652 | U179: 2.49 | V179: =$C$23*U179+$D$23*V180 -> 2.491366418 | W179: 2.530161138 | X179: -20.14556686 | Y179: -16.57780735 | Z179: 40 | AA179: -40 | AD179: 100 | AE179: -100 | AF179: 0.85 | AG179: 1.281345696 | AH179: 0.33 | AI179: 0 | AJ179: 0.2599604256 | AK179: 0.2751727572 | AL179: 20.28807888 | AM179: 21.47529414 | AN179: -1.18721526 | AQ179: 30 | AR179: -30 | AS179: 12945500
A180: 148 | B180: =IF(A180>$A$8,"",OFFSET(InputPriceData!B$15,$A180+$A$11,0,1,1)) -> 2019-01-30 | C180: =IF(A180>$A$8,"",OFFSET(InputPriceData!G$15,CalculationsAndCharts!$A180+$A$11,IF($C$5,8,0),1,1)) -> 10567500 | D180: =IF(A180>$A$8,"",OFFSET(InputPriceData!C$15,CalculationsAndCharts!$A180+$A$11,IF($C$5,8,0),1,1)) -> 46.45 | E180: =IF(A180>$A$8,"",OFFSET(InputPriceData!D$15,CalculationsAndCharts!$A180+$A$11,IF($C$5,8,0),1,1)) -> 46.86 | F180: =IF(A180>$A$8,"",OFFSET(InputPriceData!E$15,CalculationsAndCharts!$A180+$A$11,IF($C$5,8,0),1,1)) -> 45.88 | G180: =IF(A180>$A$8,"",OFFSET(InputPriceData!F$15,CalculationsAndCharts!$A180+$A$11,IF($C$5,8,0),1,1)) -> 46.53 | H180: 46.56333333 | I180: 45.77333333 | J180: FALSE | K180: 46.56333333 | M180: 49.80352 | P180: 48.09 | Q180: 45.6 | R180: -0.315 | S180: =$C$23*R180+$D$23*S181 -> -0.4625346552 | T180: -0.3659479763 | U180: 2.49 | V180: =$C$23*U180+$D$23*V181 -> 2.492732835 | W180: 2.568955859 | X180: -28.49001667 | Y180: -13.01004783 | Z180: 40 | AA180: -40 | AD180: 100 | AE180: -100 | AF180: 0.98 | AG180: 1.329272996 | AH180: 0.53 | AI180: 0 | AJ180: 0.2521782506 | AK180: 0.305747508 | AL180: 18.97114073 | AM180: 23.0011073 | AN180: -4.029966573 | AQ180: 30 | AR180: -30 | AS180: 10567500
A181: 149 | B181: =IF(A181>$A$8,"",OFFSET(InputPriceData!B$15,$A181+$A$11,0,1,1)) -> 2019-01-29 | C181: =IF(A181>$A$8,"",OFFSET(InputPriceData!G$15,CalculationsAndCharts!$A181+$A$11,IF($C$5,8,0),1,1)) -> 10883100 | D181: =IF(A181>$A$8,"",OFFSET(InputPriceData!C$15,CalculationsAndCharts!$A181+$A$11,IF($C$5,8,0),1,1)) -> 46 | E181: =IF(A181>$A$8,"",OFFSET(InputPriceData!D$15,CalculationsAndCharts!$A181+$A$11,IF($C$5,8,0),1,1)) -> 46.33 | F181: =IF(A181>$A$8,"",OFFSET(InputPriceData!E$15,CalculationsAndCharts!$A181+$A$11,IF($C$5,8,0),1,1)) -> 45.6 | G181: =IF(A181>$A$8,"",OFFSET(InputPriceData!F$15,CalculationsAndCharts!$A181+$A$11,IF($C$5,8,0),1,1)) -> 46.02 | H181: 46.84666667 | I181: 45.86333333 | J181: FALSE | K181: 46.84666667 | M181: 49.80352 | P181: 48.09 | Q181: 45.6 | R181: -0.825 | S181: =$C$23*R181+$D$23*S182 -> -0.6100693105 | T181: -0.2693612974 | U181: 2.49 | V181: =$C$23*U181+$D$23*V182 -> 2.49546567 | W181: 2.645178884 | X181: -20.36620654 | Y181: 2.469921003 | Z181: 40 | AA181: -40 | AD181: 100 | AE181: -100 | AF181: 0.73 | AG181: 1.368081106 | AH181: 0 | AI181: 0.24 | AJ181: 0.2213091674 | AK181: 0.3397194533 | AL181: 16.17661163 | AM181: 24.83182114 | AN181: -8.655209508 | AQ181: 30 | AR181: -30 | AS181: 10883100
A182: 150 | B182: =IF(A182>$A$8,"",OFFSET(InputPriceData!B$15,$A182+$A$11,0,1,1)) -> 2019-01-28 | C182: =IF(A182>$A$8,"",OFFSET(InputPriceData!G$15,CalculationsAndCharts!$A182+$A$11,IF($C$5,8,0),1,1)) -> 9723500 | D182: =IF(A182>$A$8,"",OFFSET(InputPriceData!C$15,CalculationsAndCharts!$A182+$A$11,IF($C$5,8,0),1,1)) -> 46.35 | E182: =IF(A182>$A$8,"",OFFSET(InputPriceData!D$15,CalculationsAndCharts!$A182+$A$11,IF($C$5,8,0),1,1)) -> 46.5 | F182: =IF(A182>$A$8,"",OFFSET(InputPriceData!E$15,CalculationsAndCharts!$A182+$A$11,IF($C$5,8,0),1,1)) -> 45.84 | G182: =IF(A182>$A$8,"",OFFSET(InputPriceData!F$15,CalculationsAndCharts!$A182+$A$11,IF($C$5,8,0),1,1)) -> 46.02 | H182: 47.43333333 | I182: 45.99666667 | J182: FALSE | K182: 47.43333333 | M182: 49.80352 | P182: 48.09 | Q182: 45.84 | R182: -0.945 | S182: =$C$23*R182+$D$23*S183 -> -0.395138621 | T182: 0.07134671571 | U182: 2.25 | V182: =$C$23*U182+$D$23*V183 -> 2.500931341 | W182: 2.794892097 | X182: 5.105507707 | Y182: 25.30604854 | Z182: 40 | AA182: -40 | AB182: 100 | AC182: -100 | AF182: 0.76 | AG182: 1.438979007 | AH182: 0 | AI182: 0.31 | AJ182: 0.2458990749 | AK182: 0.3507993926 | AL182: 17.08844074 | AM182: 24.37835375 | AN182: -7.289913005 | AQ182: 30 | AR182: -30 | AT182: 9723500
A183: 151 | B183: =IF(A183>$A$8,"",OFFSET(InputPriceData!B$15,$A183+$A$11,0,1,1)) -> 2019-01-25 | C183: =IF(A183>$A$8,"",OFFSET(InputPriceData!G$15,CalculationsAndCharts!$A183+$A$11,IF($C$5,8,0),1,1)) -> 19652100 | D183: =IF(A183>$A$8,"",OFFSET(InputPriceData!C$15,CalculationsAndCharts!$A183+$A$11,IF($C$5,8,0),1,1)) -> 47.21 | E183: =IF(A183>$A$8,"",OFFSET(InputPriceData!D$15,CalculationsAndCharts!$A183+$A$11,IF($C$5,8,0),1,1)) -> 47.71 | F183: =IF(A183>$A$8,"",OFFSET(InputPriceData!E$15,CalculationsAndCharts!$A183+$A$11,IF($C$5,8,0),1,1)) -> 46.15 | G183: =IF(A183>$A$8,"",OFFSET(InputPriceData!F$15,CalculationsAndCharts!$A183+$A$11,IF($C$5,8,0),1,1)) -> 46.6 | H183: 47.93333333 | I183: 46.46333333 | J183: FALSE | K183: 47.93333333 | M183: 49.80352 | P183: 48.09 | Q183: 45.71 | R183: -0.3 | S183: =$C$23*R183+$D$23*S184 -> 0.1547227581 | T183: 0.5378320524 | U183: 2.38 | V183: =$C$23*U183+$D$23*V184 -> 2.751862681 | W183: 3.088852853 | X183: 34.82406433 | Y183: 45.50658938 | Z183: 40 | AA183: -40 | AB183: 100 | AC183: -100 | AF183: 1.56 | AG183: 1.514421119 | AH183: 0 | AI183: 0 | AJ183: 0.2732211943 | AK183: 0.3553326585 | AL183: 18.04129584 | AM183: 23.4632662 | AN183: -5.421970359 | AQ183: 30 | AR183: -30 | AT183: 19652100
A184: 152 | B184: =IF(A184>$A$8,"",OFFSET(InputPriceData!B$15,$A184+$A$11,0,1,1)) -> 2019-01-24 | C184: =IF(A184>$A$8,"",OFFSET(InputPriceData!G$15,CalculationsAndCharts!$A184+$A$11,IF($C$5,8,0),1,1)) -> 20224500 | D184: =IF(A184>$A$8,"",OFFSET(InputPriceData!C$15,CalculationsAndCharts!$A184+$A$11,IF($C$5,8,0),1,1)) -> 46.43 | E184: =IF(A184>$A$8,"",OFFSET(InputPriceData!D$15,CalculationsAndCharts!$A184+$A$11,IF($C$5,8,0),1,1)) -> 48.09 | F184: =IF(A184>$A$8,"",OFFSET(InputPriceData!E$15,CalculationsAndCharts!$A184+$A$11,IF($C$5,8,0),1,1)) -> 46 | G184: =IF(A184>$A$8,"",OFFSET(InputPriceData!F$15,CalculationsAndCharts!$A184+$A$11,IF($C$5,8,0),1,1)) -> 46.68 | H184: 47.84 | I184: 46.64333333 | J184: FALSE | K184: 47.84 | M184: 49.80352 | N184: 50.0136 | P184: 48.09 | Q184: 45.31 | R184: -0.02 | S184: =$C$23*R184+$D$23*S185 -> 0.6094455161 | T184: 0.9209413467 | U184: 2.78 | V184: =$C$23*U184+$D$23*V185 -> 3.123725362 | W184: 3.425843025 | X184: 53.76436339 | Y184: 56.18911443 | Z184: 40 | AA184: -40 | AB184: 100 | AC184: -100 | AF184: 2.09 | AG184: 1.509356799 | AH184: 0 | AI184: 1.24 | AJ184: 0.3035791048 | AK184: 0.394814065 | AL184: 20.11314389 | AM184: 26.15776901 | AN184: -6.04462512 | AQ184: 30 | AR184: -30 | AS184: 20224500
A185: 153 | B185: =IF(A185>$A$8,"",OFFSET(InputPriceData!B$15,$A185+$A$11,0,1,1)) -> 2019-01-23 | C185: =IF(A185>$A$8,"",OFFSET(InputPriceData!G$15,CalculationsAndCharts!$A185+$A$11,IF($C$5,8,0),1,1)) -> 15683500 | D185: =IF(A185>$A$8,"",OFFSET(InputPriceData!C$15,CalculationsAndCharts!$A185+$A$11,IF($C$5,8,0),1,1)) -> 47.64 | E185: =IF(A185>$A$8,"",OFFSET(InputPriceData!D$15,CalculationsAndCharts!$A185+$A$11,IF($C$5,8,0),1,1)) -> 48 | F185: =IF(A185>$A$8,"",OFFSET(InputPriceData!E$15,CalculationsAndCharts!$A185+$A$11,IF($C$5,8,0),1,1)) -> 47.24 | G185: =IF(A185>$A$8,"",OFFSET(InputPriceData!F$15,CalculationsAndCharts!$A185+$A$11,IF($C$5,8,0),1,1)) -> 47.58 | H185: 47.78666667 | I185: 46.84666667 | J185: TRUE | K185: 46.84666667 | L185: 49.80352 | P185: 48 | Q185: 44.85 | R185: 1.155 | S185: =$C$23*R185+$D$23*S186 -> 1.238891032 | T185: 1.232437177 | U185: 3.15 | V185: =$C$23*U185+$D$23*V186 -> 3.467450725 | W185: 3.727960688 | X185: 66.11857154 | Y185: 58.61386547 | Z185: 40 | AA185: -40 | AB185: 100 | AC185: -100 | AF185: 0.76 | AG185: 1.444840887 | AH185: 0.57 | AI185: 0 | AJ185: 0.3373101164 | AK185: 0.3009045166 | AL185: 23.34583132 | AM185: 20.8261352 | AN185: 2.519696121 | AO185: 30 | AP185: -30 | AT185: 15683500
A186: 154 | B186: =IF(A186>$A$8,"",OFFSET(InputPriceData!B$15,$A186+$A$11,0,1,1)) -> 2019-01-22 | C186: =IF(A186>$A$8,"",OFFSET(InputPriceData!G$15,CalculationsAndCharts!$A186+$A$11,IF($C$5,8,0),1,1)) -> 17123000 | D186: =IF(A186>$A$8,"",OFFSET(InputPriceData!C$15,CalculationsAndCharts!$A186+$A$11,IF($C$5,8,0),1,1)) -> 47.41 | E186: =IF(A186>$A$8,"",OFFSET(InputPriceData!D$15,CalculationsAndCharts!$A186+$A$11,IF($C$5,8,0),1,1)) -> 47.43 | F186: =IF(A186>$A$8,"",OFFSET(InputPriceData!E$15,CalculationsAndCharts!$A186+$A$11,IF($C$5,8,0),1,1)) -> 46.69 | G186: =IF(A186>$A$8,"",OFFSET(InputPriceData!F$15,CalculationsAndCharts!$A186+$A$11,IF($C$5,8,0),1,1)) -> 47.35 | H186: 47.62333333 | I186: 46.48666667 | J186: TRUE | K186: 46.48666667 | L186: 49.80352 | P186: 47.93 | Q186: 44.21 | R186: 1.28 | S186: =$C$23*R186+$D$23*S187 -> 1.322782065 | T186: 1.225983322 | U186: 3.72 | V186: =$C$23*U186+$D$23*V187 -> 3.78490145 | W186: 3.988470652 | X186: 61.4763617 | Y186: 51.10915941 | Z186: 40 | AA186: -40 | AB186: 100 | AC186: -100 | AF186: 1.04 | AG186: 1.520934319 | AH186: 0 | AI186: 0 | AJ186: 0.3114556849 | AK186: 0.3343383518 | AL186: 20.47791814 | AM186: 21.98243196 | AN186: -1.504513812 | AQ186: 30 | AR186: -30 | AT186: 17123000
A187: 155 | B187: =IF(A187>$A$8,"",OFFSET(InputPriceData!B$15,$A187+$A$11,0,1,1)) -> 2019-01-18 | C187: =IF(A187>$A$8,"",OFFSET(InputPriceData!G$15,CalculationsAndCharts!$A187+$A$11,IF($C$5,8,0),1,1)) -> 20409900 | D187: =IF(A187>$A$8,"",OFFSET(InputPriceData!C$15,CalculationsAndCharts!$A187+$A$11,IF($C$5,8,0),1,1)) -> 47.41 | E187: =IF(A187>$A$8,"",OFFSET(InputPriceData!D$15,CalculationsAndCharts!$A187+$A$11,IF($C$5,8,0),1,1)) -> 47.93 | F187: =IF(A187>$A$8,"",OFFSET(InputPriceData!E$15,CalculationsAndCharts!$A187+$A$11,IF($C$5,8,0),1,1)) -> 46.61 | G187: =IF(A187>$A$8,"",OFFSET(InputPriceData!F$15,CalculationsAndCharts!$A187+$A$11,IF($C$5,8,0),1,1)) -> 47.73 | H187: 47.76666667 | I187: 46.51 | J187: TRUE | K187: 46.51 | L187: 49.80352 | P187: 47.93 | Q187: 44.21 | R187: 1.66 | S187: =$C$23*R187+$D$23*S188 -> 1.365564129 | T187: 1.12918458 | U187: 3.72 | V187: =$C$23*U187+$D$23*V188 -> 3.849802899 | W187: 4.192039854 | X187: 53.87279792 | Y187: 40.74195711 | Z187: 40 | AA187: -40 | AB187: 100 | AC187: -100 | AF187: 1.32 | AG187: 1.574371466 | AH187: 0.42 | AI187: 0 | AJ187: 0.3460618721 | AK187: 0.3714870575 | AL187: 21.98095428 | AM187: 23.59589624 | AN187: -1.614941962 | AQ187: 30 | AR187: -30 | AS187: 20409900
A188: 156 | B188: =IF(A188>$A$8,"",OFFSET(InputPriceData!B$15,$A188+$A$11,0,1,1)) -> 2019-01-17 | C188: =IF(A188>$A$8,"",OFFSET(InputPriceData!G$15,CalculationsAndCharts!$A188+$A$11,IF($C$5,8,0),1,1)) -> 21202400 | D188: =IF(A188>$A$8,"",OFFSET(InputPriceData!C$15,CalculationsAndCharts!$A188+$A$11,IF($C$5,8,0),1,1)) -> 46.82 | E188: =IF(A188>$A$8,"",OFFSET(InputPriceData!D$15,CalculationsAndCharts!$A188+$A$11,IF($C$5,8,0),1,1)) -> 47.51 | F188: =IF(A188>$A$8,"",OFFSET(InputPriceData!E$15,CalculationsAndCharts!$A188+$A$11,IF($C$5,8,0),1,1)) -> 46.16 | G188: =IF(A188>$A$8,"",OFFSET(InputPriceData!F$15,CalculationsAndCharts!$A188+$A$11,IF($C$5,8,0),1,1)) -> 47.24 | H188: 47.60666667 | I188: 46.21 | J188: TRUE | K188: 46.21 | L188: 49.80352 | P188: 47.86 | Q188: 44.21 | R188: 1.205 | S188: =$C$23*R188+$D$23*S189 -> 1.071128258 | T188: 0.8928050301 | U188: 3.65 | V188: =$C$23*U188+$D$23*V189 -> 3.979605798 | W188: 4.534276808 | X188: 39.38026141 | Y188: 27.6111163 | Z188: 40 | AA188: -40 | AB188: 100 | AC188: -100 | AF188: 1.35 | AG188: 1.602634962 | AH188: 0 | AI188: 0.6 | AJ188: 0.3378465246 | AK188: 0.4127633973 | AL188: 21.08069102 | AM188: 25.75529719 | AN188: -4.674606164 | AQ188: 30 | AR188: -30 | AS188: 21202400
A189: 157 | B189: =IF(A189>$A$8,"",OFFSET(InputPriceData!B$15,$A189+$A$11,0,1,1)) -> 2019-01-16 | C189: =IF(A189>$A$8,"",OFFSET(InputPriceData!G$15,CalculationsAndCharts!$A189+$A$11,IF($C$5,8,0),1,1)) -> 14961200 | D189: =IF(A189>$A$8,"",OFFSET(InputPriceData!C$15,CalculationsAndCharts!$A189+$A$11,IF($C$5,8,0),1,1)) -> 47.28 | E189: =IF(A189>$A$8,"",OFFSET(InputPriceData!D$15,CalculationsAndCharts!$A189+$A$11,IF($C$5,8,0),1,1)) -> 47.86 | F189: =IF(A189>$A$8,"",OFFSET(InputPriceData!E$15,CalculationsAndCharts!$A189+$A$11,IF($C$5,8,0),1,1)) -> 46.76 | G189: =IF(A189>$A$8,"",OFFSET(InputPriceData!F$15,CalculationsAndCharts!$A189+$A$11,IF($C$5,8,0),1,1)) -> 46.79 | H189: 47.12333333 | I189: 45.92666667 | J189: TRUE | K189: 45.92666667 | L189: 49.80352 | P189: 47.86 | Q189: 44.15 | R189: 0.785 | S189: =$C$23*R189+$D$23*S190 -> 0.9372565168 | T189: 0.7144818018 | U189: 3.71 | V189: =$C$23*U189+$D$23*V190 -> 4.309211596 | W189: 5.088947819 | X189: 28.07974565 | Y189: 15.84197119 | Z189: 40 | AA189: -40 | AB189: 100 | AC189: -100 | AF189: 1.1 | AG189: 1.630705513 | AH189: 0.41 | AI189: 0 | AJ189: 0.3753850273 | AK189: 0.3919593303 | AL189: 23.01979261 | AM189: 24.0361811 | AN189: -1.016388482 | AQ189: 30 | AR189: -30 | AT189: 14961200
A190: 158 | B190: =IF(A190>$A$8,"",OFFSET(InputPriceData!B$15,$A190+$A$11,0,1,1)) -> 2019-01-15 | C190: =IF(A190>$A$8,"",OFFSET(InputPriceData!G$15,CalculationsAndCharts!$A190+$A$11,IF($C$5,8,0),1,1)) -> 23116600 | D190: =IF(A190>$A$8,"",OFFSET(InputPriceData!C$15,CalculationsAndCharts!$A190+$A$11,IF($C$5,8,0),1,1)) -> 45.99 | E190: =IF(A190>$A$8,"",OFFSET(InputPriceData!D$15,CalculationsAndCharts!$A190+$A$11,IF($C$5,8,0),1,1)) -> 47.45 | F190: =IF(A190>$A$8,"",OFFSET(InputPriceData!E$15,CalculationsAndCharts!$A190+$A$11,IF($C$5,8,0),1,1)) -> 45.71 | G190: =IF(A190>$A$8,"",OFFSET(InputPriceData!F$15,CalculationsAndCharts!$A190+$A$11,IF($C$5,8,0),1,1)) -> 47.35 | H190: 46.41333333 | I190: 45.29 | J190: TRUE | K190: 45.29 | L190: 49.80352 | P190: 47.45 | Q190: 43.67 | R190: 1.79 | S190: =$C$23*R190+$D$23*S191 -> 1.089513034 | T190: 0.4917070868 | U190: 3.78 | V190: =$C$23*U190+$D$23*V191 -> 4.908423192 | W190: 5.868684042 | X190: 16.75697936 | Y190: 3.604196736 | Z190: 40 | AA190: -40 | AB190: 100 | AC190: -100 | AF190: 1.77 | AG190: 1.689672793 | AH190: 1.39 | AI190: 0 | AJ190: 0.3715389192 | AK190: 0.435510367 | AL190: 21.98880877 | AM190: 25.77483457 | AN190: -3.786025796 | AQ190: 30 | AR190: -30 | AS190: 23116600
A191: 159 | B191: =IF(A191>$A$8,"",OFFSET(InputPriceData!B$15,$A191+$A$11,0,1,1)) -> 2019-01-14 | C191: =IF(A191>$A$8,"",OFFSET(InputPriceData!G$15,CalculationsAndCharts!$A191+$A$11,IF($C$5,8,0),1,1)) -> 18295900 | D191: =IF(A191>$A$8,"",OFFSET(InputPriceData!C$15,CalculationsAndCharts!$A191+$A$11,IF($C$5,8,0),1,1)) -> 46 | E191: =IF(A191>$A$8,"",OFFSET(InputPriceData!D$15,CalculationsAndCharts!$A191+$A$11,IF($C$5,8,0),1,1)) -> 46.06 | F191: =IF(A191>$A$8,"",OFFSET(InputPriceData!E$15,CalculationsAndCharts!$A191+$A$11,IF($C$5,8,0),1,1)) -> 45.31 | G191: =IF(A191>$A$8,"",OFFSET(InputPriceData!F$15,CalculationsAndCharts!$A191+$A$11,IF($C$5,8,0),1,1)) -> 45.68 | H191: 45.83666667 | I191: 44.79 | J191: TRUE | K191: 44.79 | L191: 49.80352 | P191: 46.55 | Q191: 42.19 | R191: 1.31 | S191: =$C$23*R191+$D$23*S192 -> 0.389026067 | T191: -0.1060988598 | U191: 4.36 | V191: =$C$23*U191+$D$23*V192 -> 6.036846384 | W191: 6.828944891 | X191: -3.107328043 | Y191: -9.54858589 | Z191: 40 | AA191: -40 | AD191: 100 | AE191: -100 | AF191: 0.75 | AG191: 1.680747547 | AH191: 0.33 | AI191: 0 | AJ191: 0.2583765769 | AK191: 0.4839004078 | AL191: 15.37271777 | AM191: 28.79078471 | AN191: -13.41806693 | AQ191: 30 | AR191: -30 | AT191: 18295900
A192: 160 | B192: =IF(A192>$A$8,"",OFFSET(InputPriceData!B$15,$A192+$A$11,0,1,1)) -> 2019-01-11 | C192: =IF(A192>$A$8,"",OFFSET(InputPriceData!G$15,CalculationsAndCharts!$A192+$A$11,IF($C$5,8,0),1,1)) -> 12470900 | D192: =IF(A192>$A$8,"",OFFSET(InputPriceData!C$15,CalculationsAndCharts!$A192+$A$11,IF($C$5,8,0),1,1)) -> 45.24 | E192: =IF(A192>$A$8,"",OFFSET(InputPriceData!D$15,CalculationsAndCharts!$A192+$A$11,IF($C$5,8,0),1,1)) -> 45.73 | F192: =IF(A192>$A$8,"",OFFSET(InputPriceData!E$15,CalculationsAndCharts!$A192+$A$11,IF($C$5,8,0),1,1)) -> 44.85 | G192: =IF(A192>$A$8,"",OFFSET(InputPriceData!F$15,CalculationsAndCharts!$A192+$A$11,IF($C$5,8,0),1,1)) -> 45.7 | H192: 45.72 | I192: 44.52333333 | J192: TRUE | K192: 44.52333333 | L192: 49.80352 | P192: 49.93 | Q192: 42.19 | R192: -0.36 | S192: =$C$23*R192+$D$23*S193 -> -0.5319478659 | T192: -0.6012237867 | U192: 7.74 | V192: =$C$23*U192+$D$23*V193 -> 7.713692768 | W192: 7.621043399 | X192: -15.77799142 | Y192: -15.98984374 | Z192: 40 | AA192: -40 | AD192: 100 | AE192: -100 | AF192: 0.88 | AG192: 1.784163941 | AH192: 0.01 | AI192: 0 | AJ192: 0.2504184188 | AK192: 0.5376671198 | AL192: 14.03561707 | AM192: 30.13552215 | AN192: -16.09990508 | AQ192: 30 | AR192: -30 | AS192: 12470900
A193: 161 | B193: =IF(A193>$A$8,"",OFFSET(InputPriceData!B$15,$A193+$A$11,0,1,1)) -> 2019-01-10 | C193: =IF(A193>$A$8,"",OFFSET(InputPriceData!G$15,CalculationsAndCharts!$A193+$A$11,IF($C$5,8,0),1,1)) -> 24947800 | D193: =IF(A193>$A$8,"",OFFSET(InputPriceData!C$15,CalculationsAndCharts!$A193+$A$11,IF($C$5,8,0),1,1)) -> 44.84 | E193: =IF(A193>$A$8,"",OFFSET(InputPriceData!D$15,CalculationsAndCharts!$A193+$A$11,IF($C$5,8,0),1,1)) -> 45.72 | F193: =IF(A193>$A$8,"",OFFSET(InputPriceData!E$15,CalculationsAndCharts!$A193+$A$11,IF($C$5,8,0),1,1)) -> 44.21 | G193: =IF(A193>$A$8,"",OFFSET(InputPriceData!F$15,CalculationsAndCharts!$A193+$A$11,IF($C$5,8,0),1,1)) -> 45.44 | H193: 45.99333333 | I193: 44.49333333 | J193: TRUE | K193: 44.49333333 | L193: 49.80352 | P193: 49.93 | Q193: 42.19 | R193: -0.62 | S193: =$C$23*R193+$D$23*S194 -> -0.7038957319 | T193: -0.6704997074 | U193: 7.74 | V193: =$C$23*U193+$D$23*V194 -> 7.687385536 | W193: 7.52839403 | X193: -17.81255616 | Y193: -16.20169606 | Z193: 40 | AA193: -40 | AD193: 100 | AE193: -100 | AF193: 1.51 | AG193: 1.884626602 | AH193: 0 | AI193: 0.3 | AJ193: 0.2771315764 | AK193: 0.5974079108 | AL193: 14.70485327 | AM193: 31.6990066 | AN193: -16.99415333 | AQ193: 30 | AR193: -30 | AS193: 24947800
A194: 162 | B194: =IF(A194>$A$8,"",OFFSET(InputPriceData!B$15,$A194+$A$11,0,1,1)) -> 2019-01-09 | C194: =IF(A194>$A$8,"",OFFSET(InputPriceData!G$15,CalculationsAndCharts!$A194+$A$11,IF($C$5,8,0),1,1)) -> 19719600 | D194: =IF(A194>$A$8,"",OFFSET(InputPriceData!C$15,CalculationsAndCharts!$A194+$A$11,IF($C$5,8,0),1,1)) -> 45.71 | E194: =IF(A194>$A$8,"",OFFSET(InputPriceData!D$15,CalculationsAndCharts!$A194+$A$11,IF($C$5,8,0),1,1)) -> 45.71 | F194: =IF(A194>$A$8,"",OFFSET(InputPriceData!E$15,CalculationsAndCharts!$A194+$A$11,IF($C$5,8,0),1,1)) -> 44.51 | G194: =IF(A194>$A$8,"",OFFSET(InputPriceData!F$15,CalculationsAndCharts!$A194+$A$11,IF($C$5,8,0),1,1)) -> 44.93 | H194: 46.22666667 | I194: 44.47333333 | J194: TRUE | K194: 44.47333333 | L194: 49.80352 | P194: 49.93 | Q194: 42.19 | R194: -1.13 | S194: =$C$23*R194+$D$23*S195 -> -0.7877914638 | T194: -0.637103683 | U194: 7.74 | V194: =$C$23*U194+$D$23*V195 -> 7.634771073 | W194: 7.369402523 | X194: -17.29051116 | Y194: -14.59083595 | Z194: 40 | AA194: -40 | AD194: 100 | AE194: -100 | AF194: 1.2 | AG194: 1.926251779 | AH194: 0 | AI194: 0.25 | AJ194: 0.3079239738 | AK194: 0.6304532343 | AL194: 15.98565551 | AM194: 32.72953417 | AN194: -16.74387865 | AQ194: 30 | AR194: -30 | AT194: 19719600
A195: 163 | B195: =IF(A195>$A$8,"",OFFSET(InputPriceData!B$15,$A195+$A$11,0,1,1)) -> 2019-01-08 | C195: =IF(A195>$A$8,"",OFFSET(InputPriceData!G$15,CalculationsAndCharts!$A195+$A$11,IF($C$5,8,0),1,1)) -> 16415900 | D195: =IF(A195>$A$8,"",OFFSET(InputPriceData!C$15,CalculationsAndCharts!$A195+$A$11,IF($C$5,8,0),1,1)) -> 46.45 | E195: =IF(A195>$A$8,"",OFFSET(InputPriceData!D$15,CalculationsAndCharts!$A195+$A$11,IF($C$5,8,0),1,1)) -> 46.55 | F195: =IF(A195>$A$8,"",OFFSET(InputPriceData!E$15,CalculationsAndCharts!$A195+$A$11,IF($C$5,8,0),1,1)) -> 44.76 | G195: =IF(A195>$A$8,"",OFFSET(InputPriceData!F$15,CalculationsAndCharts!$A195+$A$11,IF($C$5,8,0),1,1)) -> 45.7 | H195: 46.08333333 | I195: 44.19333333 | J195: TRUE | K195: 44.19333333 | L195: 49.80352 | P195: 49.93 | Q195: 42.19 | R195: -0.36 | S195: =$C$23*R195+$D$23*S196 -> -0.4455829275 | T195: -0.4864159022 | U195: 7.74 | V195: =$C$23*U195+$D$23*V196 -> 7.529542145 | W195: 7.104033973 | X195: -13.6940759 | Y195: -11.89116074 | Z195: 40 | AA195: -40 | AD195: 100 | AE195: -100 | AF195: 1.79 | AG195: 2.006946422 | AH195: 0.13 | AI195: 0 | AJ195: 0.3421377487 | AK195: 0.6727258159 | AL195: 17.04767726 | AM195: 33.51986922 | AN195: -16.47219196 | AQ195: 30 | AR195: -30 | AT195: 16415900
